Workbook

Sheet Feuil1 (hidden)
C1: FC1 40 | D1: FC1 44 | E1: FC1 48 | F1: FC1 53 | G1: FC1 58 | H1: FC1 63 | I1: FC1 69 | J1: FC1 +69 | K1: FC2 44 | L1: FC2 48 | M1: FC2 53 | N1: FC2 58 | O1: FC2 63 | P1: FC2 69 | Q1: FC2 +69 | R1: FJ48 | S1: FJ53 | T1: FJ58 | U1: FJ63 | V1: FJ69 | W1: FJ75 | X1: FJ+75 | Y1: FS48 | Z1: FS53 | AA1: FS58 | AB1: FS63 | AC1: FS69 | AD1: FS75 | AE1: FS+75 | AF1: C1 45 | AG1: C1 50 | AH1: C1 56 | AI1: C1 62 | AJ1: C1 69 | AK1: C1 77 | AL1: C1 85 | AM1: C1 94 | AN1: C1 +94 | AO1: C2 50 | AP1: C2 56 | AQ1: C2 62 | AR1: C2 69 | AS1: C2 77 | AT1: C2 85 | AU1: C2 94 | AV1: C2 +94 | AW1: J56 | AX1: J62 | AY1: J69 | AZ1: J77 | BA1: J85 | BB1: J94 | BC1: J105 | BD1: J+105 | BE1: S56 | BF1: S62 | BG1: S69 | BH1: S77 | BI1: S85 | BJ1: S94 | BK1: S105 | BL1: S+105
B2: DEBUTANT | C2: 20 | D2: 25 | E2: 25 | F2: 35 | G2: 40 | H2: 45 | I2: 50 | J2: 60 | K2: 30 | L2: 35 | M2: 45 | N2: 50 | O2: 55 | P2: 60 | Q2: 70 | R2: 45 | S2: 55 | T2: 60 | U2: 65 | V2: 70 | W2: 80 | X2: 90 | Y2: 55 | Z2: 65 | AA2: 70 | AB2: 75 | AC2: 80 | AD2: 95 | AE2: 100 | AF2: 35 | AG2: 40 | AH2: 50 | AI2: 75 | AJ2: 85 | AK2: 90 | AL2: 100 | AM2: 110 | AN2: 120 | AO2: 45 | AP2: 65 | AQ2: 85 | AR2: 95 | AS2: 110 | AT2: 120 | AU2: 125 | AV2: 135 | AW2: 80 | AX2: 90 | AY2: 110 | AZ2: 130 | BA2: 145 | BB2: 150 | BC2: 155 | BD2: 165 | BE2: 95 | BF2: 120 | BG2: 130 | BH2: 150 | BI2: 165 | BJ2: 170 | BK2: 175 | BL2: 185
B3: DEPARTEMENTAL | C3: 25 | D3: 35 | E3: 35 | F3: 45 | G3: 50 | H3: 55 | I3: 60 | J3: 70 | K3: 40 | L3: 45 | M3: 55 | N3: 60 | O3: 65 | P3: 70 | Q3: 80 | R3: 55 | S3: 65 | T3: 70 | U3: 75 | V3: 80 | W3: 95 | X3: 100 | Y3: 65 | Z3: 75 | AA3: 80 | AB3: 85 | AC3: 90 | AD3: 105 | AE3: 110 | AF3: 50 | AG3: 55 | AH3: 70 | AI3: 95 | AJ3: 105 | AK3: 110 | AL3: 120 | AM3: 130 | AN3: 140 | AO3: 65 | AP3: 85 | AQ3: 105 | AR3: 115 | AS3: 130 | AT3: 140 | AU3: 145 | AV3: 155 | AW3: 100 | AX3: 120 | AY3: 130 | AZ3: 150 | BA3: 165 | BB3: 170 | BC3: 175 | BD3: 185 | BE3: 115 | BF3: 135 | BG3: 150 | BH3: 170 | BI3: 185 | BJ3: 190 | BK3: 195 | BL3: 205
B4: REGIONAL | C4: 35 | D4: 40 | E4: 45 | F4: 55 | G4: 60 | H4: 65 | I4: 70 | J4: 80 | K4: 50 | L4: 55 | M4: 65 | N4: 70 | O4: 75 | P4: 80 | Q4: 95 | R4: 65 | S4: 75 | T4: 80 | U4: 85 | V4: 90 | W4: 105 | X4: 110 | Y4: 75 | Z4: 85 | AA4: 90 | AB4: 95 | AC4: 105 | AD4: 115 | AE4: 125 | AF4: 60 | AG4: 65 | AH4: 85 | AI4: 105 | AJ4: 115 | AK4: 130 | AL4: 140 | AM4: 145 | AN4: 155 | AO4: 80 | AP4: 100 | AQ4: 120 | AR4: 130 | AS4: 150 | AT4: 160 | AU4: 165 | AV4: 175 | AW4: 115 | AX4: 135 | AY4: 150 | AZ4: 170 | BA4: 185 | BB4: 190 | BC4: 195 | BD4: 205 | BE4: 130 | BF4: 150 | BG4: 170 | BH4: 190 | BI4: 205 | BJ4: 215 | BK4: 220 | BL4: 225
B5: INTERREGIONAL | C5: 45 | D5: 50 | E5: 55 | F5: 65 | G5: 70 | H5: 75 | I5: 80 | J5: 95 | K5: 60 | L5: 65 | M5: 75 | N5: 80 | O5: 85 | P5: 90 | Q5: 105 | R5: 75 | S5: 85 | T5: 90 | U5: 95 | V5: 105 | W5: 115 | X5: 125 | Y5: 85 | Z5: 95 | AA5: 100 | AB5: 110 | AC5: 120 | AD5: 130 | AE5: 140 | AF5: 75 | AG5: 80 | AH5: 100 | AI5: 120 | AJ5: 130 | AK5: 150 | AL5: 160 | AM5: 165 | AN5: 175 | AO5: 95 | AP5: 115 | AQ5: 135 | AR5: 150 | AS5: 170 | AT5: 180 | AU5: 185 | AV5: 195 | AW5: 130 | AX5: 150 | AY5: 170 | AZ5: 190 | BA5: 205 | BB5: 215 | BC5: 220 | BD5: 225 | BE5: 145 | BF5: 170 | BG5: 190 | BH5: 210 | BI5: 225 | BJ5: 235 | BK5: 245 | BL5: 250
B6: FEDERAL | C6: 50 | D6: 60 | E6: 65 | F6: 75 | G6: 80 | H6: 85 | I6: 90 | J6: 105 | K6: 70 | L6: 75 | M6: 85 | N6: 90 | O6: 95 | P6: 105 | Q6: 115 | R6: 85 | S6: 95 | T6: 100 | U6: 110 | V6: 120 | W6: 130 | X6: 140 | Y6: 95 | Z6: 105 | AA6: 115 | AB6: 125 | AC6: 135 | AD6: 145 | AE6: 150 | AF6: 90 | AG6: 95 | AH6: 115 | AI6: 135 | AJ6: 150 | AK6: 170 | AL6: 180 | AM6: 185 | AN6: 195 | AO6: 110 | AP6: 130 | AQ6: 150 | AR6: 170 | AS6: 185 | AT6: 200 | AU6: 210 | AV6: 220 | AW6: 145 | AX6: 170 | AY6: 190 | AZ6: 210 | BA6: 225 | BB6: 235 | BC6: 245 | BD6: 250 | BE6: 170 | BF6: 190 | BG6: 220 | BH6: 240 | BI6: 250 | BJ6: 260 | BK6: 270 | BL6: 280
B7: NATIONAL | C7: 60 | D7: 70 | E7: 75 | F7: 85 | G7: 90 | H7: 95 | I7: 105 | J7: 115 | K7: 80 | L7: 85 | M7: 95 | N7: 100 | O7: 110 | P7: 120 | Q7: 130 | R7: 95 | S7: 105 | T7: 115 | U7: 125 | V7: 135 | W7: 145 | X7: 150 | Y7: 110 | Z7: 120 | AA7: 130 | AB7: 140 | AC7: 150 | AD7: 160 | AE7: 170 | AF7: 105 | AG7: 110 | AH7: 130 | AI7: 150 | AJ7: 170 | AK7: 185 | AL7: 200 | AM7: 210 | AN7: 220 | AO7: 120 | AP7: 145 | AQ7: 170 | AR7: 190 | AS7: 200 | AT7: 220 | AU7: 225 | AV7: 235 | AW7: 170 | AX7: 190 | AY7: 220 | AZ7: 240 | BA7: 250 | BB7: 260 | BC7: 270 | BD7: 280 | BE7: 190 | BF7: 210 | BG7: 240 | BH7: 265 | BI7: 280 | BJ7: 290 | BK7: 300 | BL7: 310
B8: INTERNATIONAL B | C8: 70 | D8: 80 | E8: 85 | F8: 95 | G8: 100 | H8: 110 | I8: 120 | J8: 130 | K8: 90 | L8: 95 | M8: 105 | N8: 115 | O8: 125 | P8: 135 | Q8: 145 | R8: 110 | S8: 120 | T8: 130 | U8: 140 | V8: 150 | W8: 160 | X8: 170 | Y8: 125 | Z8: 140 | AA8: 150 | AB8: 160 | AC8: 170 | AD8: 180 | AE8: 190 | AF8: 115 | AG8: 120 | AH8: 145 | AI8: 170 | AJ8: 190 | AK8: 200 | AL8: 220 | AM8: 225 | AN8: 235 | AO8: 135 | AP8: 170 | AQ8: 190 | AR8: 210 | AS8: 220 | AT8: 240 | AU8: 250 | AV8: 260 | AW8: 190 | AX8: 210 | AY8: 240 | AZ8: 260 | BA8: 280 | BB8: 290 | BC8: 300 | BD8: 310 | BE8: 210 | BF8: 230 | BG8: 260 | BH8: 285 | BI8: 300 | BJ8: 310 | BK8: 325 | BL8: 330
B9: INTERNATIONAL A | C9: 80 | D9: 90 | E9: 95 | F9: 105 | G9: 115 | H9: 125 | I9: 135 | J9: 145 | K9: 100 | L9: 110 | M9: 120 | N9: 130 | O9: 140 | P9: 150 | Q9: 160 | R9: 125 | S9: 135 | T9: 150 | U9: 160 | V9: 170 | W9: 180 | X9: 190 | Y9: 140 | Z9: 160 | AA9: 170 | AB9: 180 | AC9: 190 | AD9: 195 | AE9: 210 | AF9: 130 | AG9: 135 | AH9: 170 | AI9: 190 | AJ9: 210 | AK9: 220 | AL9: 240 | AM9: 250 | AN9: 260 | AO9: 150 | AP9: 190 | AQ9: 210 | AR9: 230 | AS9: 250 | AT9: 260 | AU9: 280 | AV9: 280 | AW9: 210 | AX9: 230 | AY9: 250 | AZ9: 285 | BA9: 300 | BB9: 310 | BC9: 325 | BD9: 330 | BE9: 225 | BF9: 255 | BG9: 275 | BH9: 305 | BI9: 325 | BJ9: 330 | BK9: 345 | BL9: 355
B10: OLYMPIQUE | C10: 1000 | D10: 1000 | E10: 1000 | F10: 1000 | G10: 1000 | H10: 1000 | I10: 1000 | J10: 1000 | K10: 1000 | L10: 1000 | M10: 1000 | N10: 1000 | O10: 1000 | P10: 1000 | Q10: 1000 | R10: 1000 | S10: 1000 | T10: 1000 | U10: 1000 | V10: 1000 | W10: 1000 | X10: 1000 | Y10: 155 | Z10: 175 | AA10: 190 | AB10: 200 | AC10: 205 | AD10: 210 | AE10: 225 | AF10: 1000 | AG10: 1000 | AH10: 1000 | AI10: 1000 | AJ10: 1000 | AK10: 1000 | AL10: 10000 | AM10: 1000 | AN10: 1000 | AO10: 1000 | AP10: 1000 | AQ10: 1000 | AR10: 1000 | AS10: 1000 | AT10: 10000 | AU10: 1000 | AV10: 1000 | AW10: 1000 | AX10: 1000 | AY10: 1000 | AZ10: 10000 | BA10: 1000 | BB10: 1000 | BC10: 1000 | BD10: 10000 | BE10: 240 | BF10: 270 | BG10: 290 | BH10: 320 | BI10: 345 | BJ10: 355 | BK10: 365 | BL10: 375
B11: MINIME | C11: CADET | D11: CADET | E11: JUNIOR | F11: SENIOR | H11: MINIME | I11: CADETTE | J11: CADETTE | K11: JUNIOR | L11: SENIOR
A12: 20.01 | B12: NON | C12: C1 45 | D12: C2 50 | E12: J56 | F12: S56 | G12: 20.01 | H12: NON | I12: FC1 40 | J12: FC2 44 | K12: FJ48 | L12: FS48
A13: 34.01 | B13: NON | C13: C1 45 | D13: C2 50 | E13: J56 | F13: S56 | G13: 30.01 | H13: NON | I13: FC1 40 | J13: FC2 44 | K13: FJ48 | L13: FS48
A14: 38.01 | B14: NON | C14: C1 45 | D14: C2 50 | E14: J56 | F14: S56 | G14: 35.01 | H14: NON | I14: FC1 40 | J14: FC2 44 | K14: FJ48 | L14: FS48
A15: 40.01 | B15: NON | C15: C1 45 | D15: C2 50 | E15: J56 | F15: S56 | G15: 36.01 | H15: NON | I15: FC1 40 | J15: FC2 44 | K15: FJ48 | L15: FS48
A16: 45.01 | B16: NON | C16: C1 50 | D16: C2 50 | E16: J56 | F16: S56 | G16: 40.01 | H16: NON | I16: FC1 44 | J16: FC2 44 | K16: FJ48 | L16: FS48
A17: 50.01 | B17: NON | C17: C1 56 | D17: C2 56 | E17: J56 | F17: S56 | G17: 44.01 | H17: NON | I17: FC1 48 | J17: FC2 48 | K17: FJ48 | L17: FS48
A18: 52.05 | B18: NON | C18: C1 56 | D18: C2 56 | E18: J56 | F18: S56 | G18: 48.01 | H18: NON | I18: FC1 53 | J18: FC2 53 | K18: FJ53 | L18: FS53
A19: 56.01 | B19: NON | C19: C1 62 | D19: C2 62 | E19: J62 | F19: S62 | G19: 53.01 | H19: NON | I19: FC1 58 | J19: FC2 58 | K19: FJ58 | L19: FS58
A20: 62.01 | B20: NON | C20: C1 69 | D20: C2 69 | E20: J69 | F20: S69 | G20: 58.01 | H20: NON | I20: FC1 63 | J20: FC2 63 | K20: FJ63 | L20: FS63
A21: 69.01 | B21: NON | C21: C1 77 | D21: C2 77 | E21: J77 | F21: S77 | G21: 63.01 | H21: NON | I21: FC1 69 | J21: FC2 69 | K21: FJ69 | L21: FS69
A22: 77.01 | B22: NON | C22: C1 85 | D22: C2 85 | E22: J85 | F22: S85 | G22: 69.01 | H22: NON | I22: FC1 +69 | J22: FC2 +69 | K22: FJ75 | L22: FS75
A23: 85.01 | B23: NON | C23: C1 94 | D23: C2 94 | E23: J94 | F23: S94 | G23: 75.01 | H23: NON | I23: FC1 +69 | J23: FC2 +69 | K23: FJ+75 | L23: FS+75
A24: 94.01 | B24: NON | C24: C1 +94 | D24: C2 +94 | E24: J105 | F24: S105 | G24: 110 | H24: NON | I24: FC1 +69 | J24: FC2 +69 | K24: FJ+75 | L24: FS+75
A25: 105.01 | B25: NON | C25: C1 +94 | D25: C2 +94 | E25: J+105 | F25: S+105 | G25: 140 | H25: NON | I25: FC1 +69 | J25: FC2 +69 | K25: FJ+75 | L25: FS+75
A26: 110 | B26: NON | C26: C1 +94 | D26: C2 +94 | E26: J+105 | F26: S+105
A27: 120 | B27: NON | C27: C1 +94 | D27: C2 +94 | E27: J+105 | F27: S+105
A28: 130 | B28: NON | C28: C1 +94 | D28: C2 +94 | E28: J+105 | F28: S+105
A29: 140 | B29: NON | C29: C1 +94 | D29: C2 +94 | E29: J+105 | F29: S+105

Sheet CADETS 1
F1: LISTING NATIONAL | H1: FEMININES | Q1: DATE : | S1: 2015-03-08
L2: 2° TRIMESTRE
A4: SEXE | B4: ZONE | C4: REG. | D4: CL. | E4: LICENCE | F4: NOMS | G4: Prénoms | H4: AN | I4: POIDS | J4: CLUB | K4: NAT | L4: 1 | M4: 2 | N4: 3 | O4: ARR | P4: 1 | Q4: 2 | R4: 3 | S4: EP-J | T4: Total | U4: KP-2PC | V4: SERIE | X4: Catég | Y4: IWF | AB4: DEB | AC4: DEP + | AD4: REG + | AE4: IRG + | AF4: FED + | AG4: NAT + | AH4: INTB + | AI4: INTA + | AJ4: OLY +
AB5: =T5-HLOOKUP(X5,Feuil1!$C$1:$BL$10,2,FALSE) ->  | AC5: =T5-HLOOKUP(X5,Feuil1!$C$1:$BL$10,3,FALSE) ->  | AD5: =T5-HLOOKUP(X5,Feuil1!$C$1:$BL$10,4,FALSE) ->  | AE5: =T5-HLOOKUP(X5,Feuil1!$C$1:$BL$10,5,FALSE) ->  | AF5: =T5-HLOOKUP(X5,Feuil1!$C$1:$BL$10,6,FALSE) ->  | AG5: =T5-HLOOKUP(X5,Feuil1!$C$1:$BL$10,7,FALSE) ->  | AH5: =T5-HLOOKUP(X5,Feuil1!$C$1:$BL$10,8,FALSE) ->  | AI5: =T5-HLOOKUP(X5,Feuil1!$C$1:$BL$10,9,FALSE) ->  | AJ5: =T5-HLOOKUP(X5,Feuil1!$C$1:$BL$10,10,FALSE) ->  | AQ5: =IF(AJ5>=0,$AJ$4,IF(AI5>=0,$AI$4,IF(AH5>=0,$AH$4,IF(AG5>=0,$AG$4,IF(AF5>=0,$AF$4,IF(AE5>=0,$AE$4,IF(AD5>=0,$AD$4,IF(AC5>=0,$AC$4,$AB$4)))))))) -> 
A6: F | B6: NE | C6: LOR | D6: 1 | E6: 191333 | F6: DUCHAUFFOUR | G6: Mélanie | H6: 2001 | I6: 33.1 | J6: H.VALLEROY-AUBOUÉ | K6: F | L6: 21 | M6: 22 | N6: 23 | O6: =IF(H6="","",IF(MAXA(L6:N6)<=0,0,MAXA(L6:N6))) -> 23 | P6: 30 | Q6: 31 | R6: 32 | S6: =IF(H6="","",IF(MAXA(P6:R6)<=0,0,MAXA(P6:R6))) -> 32 | T6: =IF(H6="","",IF(OR(O6=0,S6=0),0,O6+S6)) -> 55 | U6: =T6-I6*2 -> -11.2 | V6: =IF(H6="","",AQ6) -> FED + | W6: =IF(AJ6>=0,AJ6,IF(AI6>=0,AI6,IF(AH6>=0,AH6,IF(AG6>=0,AG6,IF(AF6>=0,AF6,IF(AE6>=0,AE6,IF(AD6>=0,AD6,IF(AC6>=0,AC6,AB6)))))))) -> 5 | X6: =IF(I6="","",IF(A6="H",IF(OR(H6="SEN",H6<1995),VLOOKUP(I6,Feuil1!$A$11:$G$29,6),IF(AND(H6>1994,H6<1998),VLOOKUP(I6,Feuil1!$A$11:$G$29,5),IF(AND(H6>1997,H6<2000),VLOOKUP(I6,Feuil1!$A$11:$G$29,4),IF(AND(H6>1999,H6<2002),VLOOKUP(I6,Feuil1!$A$11:$G$29,3),VLOOKUP(I6,Feuil1!$A$11:$G$29,2))))),IF(OR(H6="SEN",H6<1995),VLOOKUP(I6,Feuil1!$G$11:$L$25,6),IF(AND(H6>1994,H6<1998),VLOOKUP(I6,Feuil1!$G$11:$L$25,5),IF(AND(H6>1997,H6<2000),VLOOKUP(I6,Feuil1!$G$11:$L$25,4),IF(AND(H6>1999,H6<2002),VLOOKUP(I6,Feuil1!$G$11:$L$25,3),VLOOKUP(I6,Feuil1!$G$11:$L$25,2))))))) -> FC1 40 | Y6: =IF(I6="","",IF(A6="H",10^(0.794358141*LOG(I6/174.393)^2)*T6,IF(A6="F",10^(0.89726074*LOG(I6/148.026)^2)*T6,""))) -> 131.8409977 | AB6: =T6-HLOOKUP(X6,Feuil1!$C$1:$BL$10,2,FALSE) -> 35 | AC6: =T6-HLOOKUP(X6,Feuil1!$C$1:$BL$10,3,FALSE) -> 30 | AD6: =T6-HLOOKUP(X6,Feuil1!$C$1:$BL$10,4,FALSE) -> 20 | AE6: =T6-HLOOKUP(X6,Feuil1!$C$1:$BL$10,5,FALSE) -> 10 | AF6: =T6-HLOOKUP(X6,Feuil1!$C$1:$BL$10,6,FALSE) -> 5 | AG6: =T6-HLOOKUP(X6,Feuil1!$C$1:$BL$10,7,FALSE) -> -5 | AH6: =T6-HLOOKUP(X6,Feuil1!$C$1:$BL$10,8,FALSE) -> -15 | AI6: =T6-HLOOKUP(X6,Feuil1!$C$1:$BL$10,9,FALSE) -> -25 | AJ6: =T6-HLOOKUP(X6,Feuil1!$C$1:$BL$10,10,FALSE) -> -945 | AQ6: =IF(AJ6>=0,$AJ$4,IF(AI6>=0,$AI$4,IF(AH6>=0,$AH$4,IF(AG6>=0,$AG$4,IF(AF6>=0,$AF$4,IF(AE6>=0,$AE$4,IF(AD6>=0,$AD$4,IF(AC6>=0,$AC$4,$AB$4)))))))) -> FED +
A7: F | B7: N | C7: PIC | D7: 2 | E7: 332467 | F7: FOUCART | G7: Noémie | H7: 2000 | I7: 37.61 | J7: La Ferté Milon CMHM | K7: F | L7: 15 | M7: 18 | N7: -20 | O7: =IF(H7="","",IF(MAXA(L7:N7)<=0,0,MAXA(L7:N7))) -> 18 | P7: 25 | Q7: 27 | R7: -29 | S7: =IF(H7="","",IF(MAXA(P7:R7)<=0,0,MAXA(P7:R7))) -> 27 | T7: =IF(H7="","",IF(OR(O7=0,S7=0),0,O7+S7)) -> 45 | U7: =T7-I7*2 -> -30.22 | V7: =IF(H7="","",AQ7) -> IRG + | W7: =IF(AJ7>=0,AJ7,IF(AI7>=0,AI7,IF(AH7>=0,AH7,IF(AG7>=0,AG7,IF(AF7>=0,AF7,IF(AE7>=0,AE7,IF(AD7>=0,AD7,IF(AC7>=0,AC7,AB7)))))))) -> 0 | X7: =IF(I7="","",IF(A7="H",IF(OR(H7="SEN",H7<1995),VLOOKUP(I7,Feuil1!$A$11:$G$29,6),IF(AND(H7>1994,H7<1998),VLOOKUP(I7,Feuil1!$A$11:$G$29,5),IF(AND(H7>1997,H7<2000),VLOOKUP(I7,Feuil1!$A$11:$G$29,4),IF(AND(H7>1999,H7<2002),VLOOKUP(I7,Feuil1!$A$11:$G$29,3),VLOOKUP(I7,Feuil1!$A$11:$G$29,2))))),IF(OR(H7="SEN",H7<1995),VLOOKUP(I7,Feuil1!$G$11:$L$25,6),IF(AND(H7>1994,H7<1998),VLOOKUP(I7,Feuil1!$G$11:$L$25,5),IF(AND(H7>1997,H7<2000),VLOOKUP(I7,Feuil1!$G$11:$L$25,4),IF(AND(H7>1999,H7<2002),VLOOKUP(I7,Feuil1!$G$11:$L$25,3),VLOOKUP(I7,Feuil1!$G$11:$L$25,2))))))) -> FC1 40 | Y7: =IF(I7="","",IF(A7="H",10^(0.794358141*LOG(I7/174.393)^2)*T7,IF(A7="F",10^(0.89726074*LOG(I7/148.026)^2)*T7,""))) -> 93.51951958 | AB7: =T7-HLOOKUP(X7,Feuil1!$C$1:$BL$10,2,FALSE) -> 25 | AC7: =T7-HLOOKUP(X7,Feuil1!$C$1:$BL$10,3,FALSE) -> 20 | AD7: =T7-HLOOKUP(X7,Feuil1!$C$1:$BL$10,4,FALSE) -> 10 | AE7: =T7-HLOOKUP(X7,Feuil1!$C$1:$BL$10,5,FALSE) -> 0 | AF7: =T7-HLOOKUP(X7,Feuil1!$C$1:$BL$10,6,FALSE) -> -5 | AG7: =T7-HLOOKUP(X7,Feuil1!$C$1:$BL$10,7,FALSE) -> -15 | AH7: =T7-HLOOKUP(X7,Feuil1!$C$1:$BL$10,8,FALSE) -> -25 | AI7: =T7-HLOOKUP(X7,Feuil1!$C$1:$BL$10,9,FALSE) -> -35 | AJ7: =T7-HLOOKUP(X7,Feuil1!$C$1:$BL$10,10,FALSE) -> -955 | AQ7: =IF(AJ7>=0,$AJ$4,IF(AI7>=0,$AI$4,IF(AH7>=0,$AH$4,IF(AG7>=0,$AG$4,IF(AF7>=0,$AF$4,IF(AE7>=0,$AE$4,IF(AD7>=0,$AD$4,IF(AC7>=0,$AC$4,$AB$4)))))))) -> IRG +
A8: F | B8: SEST | C8: LAN | D8: 3 | E8: 378497 | F8: MONTESSINOS | G8: Lucile | H8: 2001 | I8: 35.2 | J8: Frontignan AC | K8: F | L8: 14 | M8: 17 | N8: 19 | O8: =IF(H8="","",IF(MAXA(L8:N8)<=0,0,MAXA(L8:N8))) -> 19 | P8: -20 | Q8: 21 | R8: 23 | S8: =IF(H8="","",IF(MAXA(P8:R8)<=0,0,MAXA(P8:R8))) -> 23 | T8: =IF(H8="","",IF(OR(O8=0,S8=0),0,O8+S8)) -> 42 | U8: =T8-I8*2 -> -28.4 | V8: =IF(H8="","",AQ8) -> REG + | W8: =IF(AJ8>=0,AJ8,IF(AI8>=0,AI8,IF(AH8>=0,AH8,IF(AG8>=0,AG8,IF(AF8>=0,AF8,IF(AE8>=0,AE8,IF(AD8>=0,AD8,IF(AC8>=0,AC8,AB8)))))))) -> 7 | X8: =IF(I8="","",IF(A8="H",IF(OR(H8="SEN",H8<1995),VLOOKUP(I8,Feuil1!$A$11:$G$29,6),IF(AND(H8>1994,H8<1998),VLOOKUP(I8,Feuil1!$A$11:$G$29,5),IF(AND(H8>1997,H8<2000),VLOOKUP(I8,Feuil1!$A$11:$G$29,4),IF(AND(H8>1999,H8<2002),VLOOKUP(I8,Feuil1!$A$11:$G$29,3),VLOOKUP(I8,Feuil1!$A$11:$G$29,2))))),IF(OR(H8="SEN",H8<1995),VLOOKUP(I8,Feuil1!$G$11:$L$25,6),IF(AND(H8>1994,H8<1998),VLOOKUP(I8,Feuil1!$G$11:$L$25,5),IF(AND(H8>1997,H8<2000),VLOOKUP(I8,Feuil1!$G$11:$L$25,4),IF(AND(H8>1999,H8<2002),VLOOKUP(I8,Feuil1!$G$11:$L$25,3),VLOOKUP(I8,Feuil1!$G$11:$L$25,2))))))) -> FC1 40 | Y8: =IF(I8="","",IF(A8="H",10^(0.794358141*LOG(I8/174.393)^2)*T8,IF(A8="F",10^(0.89726074*LOG(I8/148.026)^2)*T8,""))) -> 93.84085404 | AB8: =T8-HLOOKUP(X8,Feuil1!$C$1:$BL$10,2,FALSE) -> 22 | AC8: =T8-HLOOKUP(X8,Feuil1!$C$1:$BL$10,3,FALSE) -> 17 | AD8: =T8-HLOOKUP(X8,Feuil1!$C$1:$BL$10,4,FALSE) -> 7 | AE8: =T8-HLOOKUP(X8,Feuil1!$C$1:$BL$10,5,FALSE) -> -3 | AF8: =T8-HLOOKUP(X8,Feuil1!$C$1:$BL$10,6,FALSE) -> -8 | AG8: =T8-HLOOKUP(X8,Feuil1!$C$1:$BL$10,7,FALSE) -> -18 | AH8: =T8-HLOOKUP(X8,Feuil1!$C$1:$BL$10,8,FALSE) -> -28 | AI8: =T8-HLOOKUP(X8,Feuil1!$C$1:$BL$10,9,FALSE) -> -38 | AJ8: =T8-HLOOKUP(X8,Feuil1!$C$1:$BL$10,10,FALSE) -> -958 | AQ8: =IF(AJ8>=0,$AJ$4,IF(AI8>=0,$AI$4,IF(AH8>=0,$AH$4,IF(AG8>=0,$AG$4,IF(AF8>=0,$AF$4,IF(AE8>=0,$AE$4,IF(AD8>=0,$AD$4,IF(AC8>=0,$AC$4,$AB$4)))))))) -> REG +
AB9: =T9-HLOOKUP(X9,Feuil1!$C$1:$BL$10,2,FALSE) ->  | AC9: =T9-HLOOKUP(X9,Feuil1!$C$1:$BL$10,3,FALSE) ->  | AD9: =T9-HLOOKUP(X9,Feuil1!$C$1:$BL$10,4,FALSE) ->  | AE9: =T9-HLOOKUP(X9,Feuil1!$C$1:$BL$10,5,FALSE) ->  | AF9: =T9-HLOOKUP(X9,Feuil1!$C$1:$BL$10,6,FALSE) ->  | AG9: =T9-HLOOKUP(X9,Feuil1!$C$1:$BL$10,7,FALSE) ->  | AH9: =T9-HLOOKUP(X9,Feuil1!$C$1:$BL$10,8,FALSE) ->  | AI9: =T9-HLOOKUP(X9,Feuil1!$C$1:$BL$10,9,FALSE) ->  | AJ9: =T9-HLOOKUP(X9,Feuil1!$C$1:$BL$10,10,FALSE) ->  | AQ9: =IF(AJ9>=0,$AJ$4,IF(AI9>=0,$AI$4,IF(AH9>=0,$AH$4,IF(AG9>=0,$AG$4,IF(AF9>=0,$AF$4,IF(AE9>=0,$AE$4,IF(AD9>=0,$AD$4,IF(AC9>=0,$AC$4,$AB$4)))))))) -> 
A10: F | B10: NE | C10: ALS | D10: 1 | E10: 244336 | F10: CHRISTOPHEL | G10: Marie | H10: 2000 | I10: 43.5 | J10: ASPTT Strasbourg | K10: F | L10: 37 | M10: 40 | N10: 42 | O10: =IF(H10="","",IF(MAXA(L10:N10)<=0,0,MAXA(L10:N10))) -> 42 | P10: 46 | Q10: 49 | R10: 52 | S10: =IF(H10="","",IF(MAXA(P10:R10)<=0,0,MAXA(P10:R10))) -> 52 | T10: =IF(H10="","",IF(OR(O10=0,S10=0),0,O10+S10)) -> 94 | U10: =T10-I10*2 -> 7 | V10: =IF(H10="","",AQ10) -> INTA + | W10: =IF(AJ10>=0,AJ10,IF(AI10>=0,AI10,IF(AH10>=0,AH10,IF(AG10>=0,AG10,IF(AF10>=0,AF10,IF(AE10>=0,AE10,IF(AD10>=0,AD10,IF(AC10>=0,AC10,AB10)))))))) -> 4 | X10: =IF(I10="","",IF(A10="H",IF(OR(H10="SEN",H10<1995),VLOOKUP(I10,Feuil1!$A$11:$G$29,6),IF(AND(H10>1994,H10<1998),VLOOKUP(I10,Feuil1!$A$11:$G$29,5),IF(AND(H10>1997,H10<2000),VLOOKUP(I10,Feuil1!$A$11:$G$29,4),IF(AND(H10>1999,H10<2002),VLOOKUP(I10,Feuil1!$A$11:$G$29,3),VLOOKUP(I10,Feuil1!$A$11:$G$29,2))))),IF(OR(H10="SEN",H10<1995),VLOOKUP(I10,Feuil1!$G$11:$L$25,6),IF(AND(H10>1994,H10<1998),VLOOKUP(I10,Feuil1!$G$11:$L$25,5),IF(AND(H10>1997,H10<2000),VLOOKUP(I10,Feuil1!$G$11:$L$25,4),IF(AND(H10>1999,H10<2002),VLOOKUP(I10,Feuil1!$G$11:$L$25,3),VLOOKUP(I10,Feuil1!$G$11:$L$25,2))))))) -> FC1 44 | Y10: =IF(I10="","",IF(A10="H",10^(0.794358141*LOG(I10/174.393)^2)*T10,IF(A10="F",10^(0.89726074*LOG(I10/148.026)^2)*T10,""))) -> 168.6280425 | AB10: =T10-HLOOKUP(X10,Feuil1!$C$1:$BL$10,2,FALSE) -> 69 | AC10: =T10-HLOOKUP(X10,Feuil1!$C$1:$BL$10,3,FALSE) -> 59 | AD10: =T10-HLOOKUP(X10,Feuil1!$C$1:$BL$10,4,FALSE) -> 54 | AE10: =T10-HLOOKUP(X10,Feuil1!$C$1:$BL$10,5,FALSE) -> 44 | AF10: =T10-HLOOKUP(X10,Feuil1!$C$1:$BL$10,6,FALSE) -> 34 | AG10: =T10-HLOOKUP(X10,Feuil1!$C$1:$BL$10,7,FALSE) -> 24 | AH10: =T10-HLOOKUP(X10,Feuil1!$C$1:$BL$10,8,FALSE) -> 14 | AI10: =T10-HLOOKUP(X10,Feuil1!$C$1:$BL$10,9,FALSE) -> 4 | AJ10: =T10-HLOOKUP(X10,Feuil1!$C$1:$BL$10,10,FALSE) -> -906 | AQ10: =IF(AJ10>=0,$AJ$4,IF(AI10>=0,$AI$4,IF(AH10>=0,$AH$4,IF(AG10>=0,$AG$4,IF(AF10>=0,$AF$4,IF(AE10>=0,$AE$4,IF(AD10>=0,$AD$4,IF(AC10>=0,$AC$4,$AB$4)))))))) -> INTA +
A11: F | B11: CO | C11: PDL | D11: 2 | E11: 379232 | F11: HEUZE | G11: Emma | H11: 2000 | I11: 43.96 | J11: CA Evron 53 | K11: F | L11: 30 | M11: 33 | N11: 35 | O11: 35 | P11: 40 | Q11: 43 | R11: 45 | S11: 45 | T11: 80 | U11: -7.92 | V11: INTB + | W11: 0 | X11: =IF(I11="","",IF(A11="H",IF(OR(H11="SEN",H11<1995),VLOOKUP(I11,Feuil1!$A$11:$G$29,6),IF(AND(H11>1994,H11<1998),VLOOKUP(I11,Feuil1!$A$11:$G$29,5),IF(AND(H11>1997,H11<2000),VLOOKUP(I11,Feuil1!$A$11:$G$29,4),IF(AND(H11>1999,H11<2002),VLOOKUP(I11,Feuil1!$A$11:$G$29,3),VLOOKUP(I11,Feuil1!$A$11:$G$29,2))))),IF(OR(H11="SEN",H11<1995),VLOOKUP(I11,Feuil1!$G$11:$L$25,6),IF(AND(H11>1994,H11<1998),VLOOKUP(I11,Feuil1!$G$11:$L$25,5),IF(AND(H11>1997,H11<2000),VLOOKUP(I11,Feuil1!$G$11:$L$25,4),IF(AND(H11>1999,H11<2002),VLOOKUP(I11,Feuil1!$G$11:$L$25,3),VLOOKUP(I11,Feuil1!$G$11:$L$25,2))))))) -> FC1 44 | Y11: 142.0857381 | AB11: =T11-HLOOKUP(X11,Feuil1!$C$1:$BL$10,2,FALSE) -> 55 | AC11: =T11-HLOOKUP(X11,Feuil1!$C$1:$BL$10,3,FALSE) -> 45 | AD11: =T11-HLOOKUP(X11,Feuil1!$C$1:$BL$10,4,FALSE) -> 40 | AE11: =T11-HLOOKUP(X11,Feuil1!$C$1:$BL$10,5,FALSE) -> 30 | AF11: =T11-HLOOKUP(X11,Feuil1!$C$1:$BL$10,6,FALSE) -> 20 | AG11: =T11-HLOOKUP(X11,Feuil1!$C$1:$BL$10,7,FALSE) -> 10 | AH11: =T11-HLOOKUP(X11,Feuil1!$C$1:$BL$10,8,FALSE) -> 0 | AI11: =T11-HLOOKUP(X11,Feuil1!$C$1:$BL$10,9,FALSE) -> -10 | AJ11: =T11-HLOOKUP(X11,Feuil1!$C$1:$BL$10,10,FALSE) -> -920 | AQ11: INTB +
A12: F | B12: N | C12: IDF | D12: 3 | E12: 357786 | F12: MACE | G12: DORIANE | H12: 2000 | I12: 43.8 | J12: US METRO | K12: F | L12: 30 | M12: -34 | N12: 34 | O12: 34 | P12: 40 | Q12: 45 | R12: -50 | S12: 45 | T12: 79 | U12: -8.6 | V12: NAT + | W12: 9 | X12: =IF(I12="","",IF(A12="H",IF(OR(H12="SEN",H12<1995),VLOOKUP(I12,Feuil1!$A$11:$G$29,6),IF(AND(H12>1994,H12<1998),VLOOKUP(I12,Feuil1!$A$11:$G$29,5),IF(AND(H12>1997,H12<2000),VLOOKUP(I12,Feuil1!$A$11:$G$29,4),IF(AND(H12>1999,H12<2002),VLOOKUP(I12,Feuil1!$A$11:$G$29,3),VLOOKUP(I12,Feuil1!$A$11:$G$29,2))))),IF(OR(H12="SEN",H12<1995),VLOOKUP(I12,Feuil1!$G$11:$L$25,6),IF(AND(H12>1994,H12<1998),VLOOKUP(I12,Feuil1!$G$11:$L$25,5),IF(AND(H12>1997,H12<2000),VLOOKUP(I12,Feuil1!$G$11:$L$25,4),IF(AND(H12>1999,H12<2002),VLOOKUP(I12,Feuil1!$G$11:$L$25,3),VLOOKUP(I12,Feuil1!$G$11:$L$25,2))))))) -> FC1 44 | Y12: 140.7953281 | AB12: =T12-HLOOKUP(X12,Feuil1!$C$1:$BL$10,2,FALSE) -> 54 | AC12: =T12-HLOOKUP(X12,Feuil1!$C$1:$BL$10,3,FALSE) -> 44 | AD12: =T12-HLOOKUP(X12,Feuil1!$C$1:$BL$10,4,FALSE) -> 39 | AE12: =T12-HLOOKUP(X12,Feuil1!$C$1:$BL$10,5,FALSE) -> 29 | AF12: =T12-HLOOKUP(X12,Feuil1!$C$1:$BL$10,6,FALSE) -> 19 | AG12: =T12-HLOOKUP(X12,Feuil1!$C$1:$BL$10,7,FALSE) -> 9 | AH12: =T12-HLOOKUP(X12,Feuil1!$C$1:$BL$10,8,FALSE) -> -1 | AI12: =T12-HLOOKUP(X12,Feuil1!$C$1:$BL$10,9,FALSE) -> -11 | AJ12: =T12-HLOOKUP(X12,Feuil1!$C$1:$BL$10,10,FALSE) -> -921 | AQ12: NAT +
A13: F | B13: N | C13: NPC | D13: 4 | E13: 367010 | F13: PIETERS | G13: Justine | H13: 2000 | I13: 43.9 | J13: C.A.ROSENDAEL | K13: F | L13: 28 | M13: 30 | N13: -32 | O13: 30 | P13: 40 | Q13: 43 | R13: 45 | S13: 45 | T13: 75 | U13: -12.8 | V13: NAT + | W13: 5 | X13: =IF(I13="","",IF(A13="H",IF(OR(H13="SEN",H13<1995),VLOOKUP(I13,Feuil1!$A$11:$G$29,6),IF(AND(H13>1994,H13<1998),VLOOKUP(I13,Feuil1!$A$11:$G$29,5),IF(AND(H13>1997,H13<2000),VLOOKUP(I13,Feuil1!$A$11:$G$29,4),IF(AND(H13>1999,H13<2002),VLOOKUP(I13,Feuil1!$A$11:$G$29,3),VLOOKUP(I13,Feuil1!$A$11:$G$29,2))))),IF(OR(H13="SEN",H13<1995),VLOOKUP(I13,Feuil1!$G$11:$L$25,6),IF(AND(H13>1994,H13<1998),VLOOKUP(I13,Feuil1!$G$11:$L$25,5),IF(AND(H13>1997,H13<2000),VLOOKUP(I13,Feuil1!$G$11:$L$25,4),IF(AND(H13>1999,H13<2002),VLOOKUP(I13,Feuil1!$G$11:$L$25,3),VLOOKUP(I13,Feuil1!$G$11:$L$25,2))))))) -> FC1 44 | Y13: 133.3777358 | AB13: =T13-HLOOKUP(X13,Feuil1!$C$1:$BL$10,2,FALSE) -> 50 | AC13: =T13-HLOOKUP(X13,Feuil1!$C$1:$BL$10,3,FALSE) -> 40 | AD13: =T13-HLOOKUP(X13,Feuil1!$C$1:$BL$10,4,FALSE) -> 35 | AE13: =T13-HLOOKUP(X13,Feuil1!$C$1:$BL$10,5,FALSE) -> 25 | AF13: =T13-HLOOKUP(X13,Feuil1!$C$1:$BL$10,6,FALSE) -> 15 | AG13: =T13-HLOOKUP(X13,Feuil1!$C$1:$BL$10,7,FALSE) -> 5 | AH13: =T13-HLOOKUP(X13,Feuil1!$C$1:$BL$10,8,FALSE) -> -5 | AI13: =T13-HLOOKUP(X13,Feuil1!$C$1:$BL$10,9,FALSE) -> -15 | AJ13: =T13-HLOOKUP(X13,Feuil1!$C$1:$BL$10,10,FALSE) -> -925 | AQ13: NAT +
A14: F | B14: N | C14: NPC | D14: 5 | E14: 298339 | F14: RIQUIER | G14: Angélique | H14: 2001 | I14: 42.6 | J14: CHCD COMINES | K14: F | L14: 22 | M14: 25 | N14: -27 | O14: 25 | P14: 32 | Q14: 35 | R14: 37 | S14: 37 | T14: 62 | U14: -23.2 | V14: FED + | W14: 2 | X14: =IF(I14="","",IF(A14="H",IF(OR(H14="SEN",H14<1995),VLOOKUP(I14,Feuil1!$A$11:$G$29,6),IF(AND(H14>1994,H14<1998),VLOOKUP(I14,Feuil1!$A$11:$G$29,5),IF(AND(H14>1997,H14<2000),VLOOKUP(I14,Feuil1!$A$11:$G$29,4),IF(AND(H14>1999,H14<2002),VLOOKUP(I14,Feuil1!$A$11:$G$29,3),VLOOKUP(I14,Feuil1!$A$11:$G$29,2))))),IF(OR(H14="SEN",H14<1995),VLOOKUP(I14,Feuil1!$G$11:$L$25,6),IF(AND(H14>1994,H14<1998),VLOOKUP(I14,Feuil1!$G$11:$L$25,5),IF(AND(H14>1997,H14<2000),VLOOKUP(I14,Feuil1!$G$11:$L$25,4),IF(AND(H14>1999,H14<2002),VLOOKUP(I14,Feuil1!$G$11:$L$25,3),VLOOKUP(I14,Feuil1!$G$11:$L$25,2))))))) -> FC1 44 | Y14: 113.4836661 | AB14: =T14-HLOOKUP(X14,Feuil1!$C$1:$BL$10,2,FALSE) -> 37 | AC14: =T14-HLOOKUP(X14,Feuil1!$C$1:$BL$10,3,FALSE) -> 27 | AD14: =T14-HLOOKUP(X14,Feuil1!$C$1:$BL$10,4,FALSE) -> 22 | AE14: =T14-HLOOKUP(X14,Feuil1!$C$1:$BL$10,5,FALSE) -> 12 | AF14: =T14-HLOOKUP(X14,Feuil1!$C$1:$BL$10,6,FALSE) -> 2 | AG14: =T14-HLOOKUP(X14,Feuil1!$C$1:$BL$10,7,FALSE) -> -8 | AH14: =T14-HLOOKUP(X14,Feuil1!$C$1:$BL$10,8,FALSE) -> -18 | AI14: =T14-HLOOKUP(X14,Feuil1!$C$1:$BL$10,9,FALSE) -> -28 | AJ14: =T14-HLOOKUP(X14,Feuil1!$C$1:$BL$10,10,FALSE) -> -938 | AQ14: FED +
A15: F | B15: N | C15: IDF | D15: 6 | E15: 390302 | F15: LE PESSOT | G15: ILLONA | H15: 2000 | I15: 43 | J15: US METRO | K15: F | L15: 10 | M15: 13 | N15: 15 | O15: 15 | P15: 15 | Q15: -18 | R15: 18 | S15: 18 | T15: 33 | U15: -53 | V15: DEB | W15: 8 | X15: =IF(I15="","",IF(A15="H",IF(OR(H15="SEN",H15<1995),VLOOKUP(I15,Feuil1!$A$11:$G$29,6),IF(AND(H15>1994,H15<1998),VLOOKUP(I15,Feuil1!$A$11:$G$29,5),IF(AND(H15>1997,H15<2000),VLOOKUP(I15,Feuil1!$A$11:$G$29,4),IF(AND(H15>1999,H15<2002),VLOOKUP(I15,Feuil1!$A$11:$G$29,3),VLOOKUP(I15,Feuil1!$A$11:$G$29,2))))),IF(OR(H15="SEN",H15<1995),VLOOKUP(I15,Feuil1!$G$11:$L$25,6),IF(AND(H15>1994,H15<1998),VLOOKUP(I15,Feuil1!$G$11:$L$25,5),IF(AND(H15>1997,H15<2000),VLOOKUP(I15,Feuil1!$G$11:$L$25,4),IF(AND(H15>1999,H15<2002),VLOOKUP(I15,Feuil1!$G$11:$L$25,3),VLOOKUP(I15,Feuil1!$G$11:$L$25,2))))))) -> FC1 44 | Y15: 59.85913358 | AB15: =T15-HLOOKUP(X15,Feuil1!$C$1:$BL$10,2,FALSE) -> 8 | AC15: =T15-HLOOKUP(X15,Feuil1!$C$1:$BL$10,3,FALSE) -> -2 | AD15: =T15-HLOOKUP(X15,Feuil1!$C$1:$BL$10,4,FALSE) -> -7 | AE15: =T15-HLOOKUP(X15,Feuil1!$C$1:$BL$10,5,FALSE) -> -17 | AF15: =T15-HLOOKUP(X15,Feuil1!$C$1:$BL$10,6,FALSE) -> -27 | AG15: =T15-HLOOKUP(X15,Feuil1!$C$1:$BL$10,7,FALSE) -> -37 | AH15: =T15-HLOOKUP(X15,Feuil1!$C$1:$BL$10,8,FALSE) -> -47 | AI15: =T15-HLOOKUP(X15,Feuil1!$C$1:$BL$10,9,FALSE) -> -57 | AJ15: =T15-HLOOKUP(X15,Feuil1!$C$1:$BL$10,10,FALSE) -> -967 | AQ15: DEB
AB16: =T16-HLOOKUP(X16,Feuil1!$C$1:$BL$10,2,FALSE) ->  | AC16: =T16-HLOOKUP(X16,Feuil1!$C$1:$BL$10,3,FALSE) ->  | AD16: =T16-HLOOKUP(X16,Feuil1!$C$1:$BL$10,4,FALSE) ->  | AE16: =T16-HLOOKUP(X16,Feuil1!$C$1:$BL$10,5,FALSE) ->  | AF16: =T16-HLOOKUP(X16,Feuil1!$C$1:$BL$10,6,FALSE) ->  | AG16: =T16-HLOOKUP(X16,Feuil1!$C$1:$BL$10,7,FALSE) ->  | AH16: =T16-HLOOKUP(X16,Feuil1!$C$1:$BL$10,8,FALSE) ->  | AI16: =T16-HLOOKUP(X16,Feuil1!$C$1:$BL$10,9,FALSE) ->  | AJ16: =T16-HLOOKUP(X16,Feuil1!$C$1:$BL$10,10,FALSE) ->  | AQ16: =IF(AJ16>=0,$AJ$4,IF(AI16>=0,$AI$4,IF(AH16>=0,$AH$4,IF(AG16>=0,$AG$4,IF(AF16>=0,$AF$4,IF(AE16>=0,$AE$4,IF(AD16>=0,$AD$4,IF(AC16>=0,$AC$4,$AB$4)))))))) -> 
A17: F | B17: NE | C17: ALS | D17: 1 | E17: 244336 | F17: CHRISTOPHEL | G17: Marie | H17: 2000 | I17: 45.5 | J17: ASPTT Strasbourg | K17: F | L17: 41 | M17: 43 | N17: 45 | O17: =IF(H17="","",IF(MAXA(L17:N17)<=0,0,MAXA(L17:N17))) -> 45 | P17: 55 | Q17: 58 | R17: 60 | S17: =IF(H17="","",IF(MAXA(P17:R17)<=0,0,MAXA(P17:R17))) -> 60 | T17: =IF(H17="","",IF(OR(O17=0,S17=0),0,O17+S17)) -> 105 | U17: =T17-I17*2 -> 14 | V17: =IF(H17="","",AQ17) -> INTA + | W17: =IF(AJ17>=0,AJ17,IF(AI17>=0,AI17,IF(AH17>=0,AH17,IF(AG17>=0,AG17,IF(AF17>=0,AF17,IF(AE17>=0,AE17,IF(AD17>=0,AD17,IF(AC17>=0,AC17,AB17)))))))) -> 10 | X17: =IF(I17="","",IF(A17="H",IF(OR(H17="SEN",H17<1995),VLOOKUP(I17,Feuil1!$A$11:$G$29,6),IF(AND(H17>1994,H17<1998),VLOOKUP(I17,Feuil1!$A$11:$G$29,5),IF(AND(H17>1997,H17<2000),VLOOKUP(I17,Feuil1!$A$11:$G$29,4),IF(AND(H17>1999,H17<2002),VLOOKUP(I17,Feuil1!$A$11:$G$29,3),VLOOKUP(I17,Feuil1!$A$11:$G$29,2))))),IF(OR(H17="SEN",H17<1995),VLOOKUP(I17,Feuil1!$G$11:$L$25,6),IF(AND(H17>1994,H17<1998),VLOOKUP(I17,Feuil1!$G$11:$L$25,5),IF(AND(H17>1997,H17<2000),VLOOKUP(I17,Feuil1!$G$11:$L$25,4),IF(AND(H17>1999,H17<2002),VLOOKUP(I17,Feuil1!$G$11:$L$25,3),VLOOKUP(I17,Feuil1!$G$11:$L$25,2))))))) -> FC1 48 | Y17: =IF(I17="","",IF(A17="H",10^(0.794358141*LOG(I17/174.393)^2)*T17,IF(A17="F",10^(0.89726074*LOG(I17/148.026)^2)*T17,""))) -> 180.593036 | AB17: =T17-HLOOKUP(X17,Feuil1!$C$1:$BL$10,2,FALSE) -> 80 | AC17: =T17-HLOOKUP(X17,Feuil1!$C$1:$BL$10,3,FALSE) -> 70 | AD17: =T17-HLOOKUP(X17,Feuil1!$C$1:$BL$10,4,FALSE) -> 60 | AE17: =T17-HLOOKUP(X17,Feuil1!$C$1:$BL$10,5,FALSE) -> 50 | AF17: =T17-HLOOKUP(X17,Feuil1!$C$1:$BL$10,6,FALSE) -> 40 | AG17: =T17-HLOOKUP(X17,Feuil1!$C$1:$BL$10,7,FALSE) -> 30 | AH17: =T17-HLOOKUP(X17,Feuil1!$C$1:$BL$10,8,FALSE) -> 20 | AI17: =T17-HLOOKUP(X17,Feuil1!$C$1:$BL$10,9,FALSE) -> 10 | AJ17: =T17-HLOOKUP(X17,Feuil1!$C$1:$BL$10,10,FALSE) -> -895 | AQ17: =IF(AJ17>=0,$AJ$4,IF(AI17>=0,$AI$4,IF(AH17>=0,$AH$4,IF(AG17>=0,$AG$4,IF(AF17>=0,$AF$4,IF(AE17>=0,$AE$4,IF(AD17>=0,$AD$4,IF(AC17>=0,$AC$4,$AB$4)))))))) -> INTA +
A18: F | B18: SEST | C18: LAN | D18: 2 | E18: 290105 | F18: ROMERO | G18: Héloïse | H18: 2000 | I18: 47 | J18: Narbonne Haltéro | K18: F | L18: 32 | M18: 35 | N18: 37 | O18: 37 | P18: 46 | Q18: 49 | R18: -53 | S18: 49 | T18: 86 | U18: -8 | V18: INTB + | W18: 1 | X18: =IF(I18="","",IF(A18="H",IF(OR(H18="SEN",H18<1995),VLOOKUP(I18,Feuil1!$A$11:$G$29,6),IF(AND(H18>1994,H18<1998),VLOOKUP(I18,Feuil1!$A$11:$G$29,5),IF(AND(H18>1997,H18<2000),VLOOKUP(I18,Feuil1!$A$11:$G$29,4),IF(AND(H18>1999,H18<2002),VLOOKUP(I18,Feuil1!$A$11:$G$29,3),VLOOKUP(I18,Feuil1!$A$11:$G$29,2))))),IF(OR(H18="SEN",H18<1995),VLOOKUP(I18,Feuil1!$G$11:$L$25,6),IF(AND(H18>1994,H18<1998),VLOOKUP(I18,Feuil1!$G$11:$L$25,5),IF(AND(H18>1997,H18<2000),VLOOKUP(I18,Feuil1!$G$11:$L$25,4),IF(AND(H18>1999,H18<2002),VLOOKUP(I18,Feuil1!$G$11:$L$25,3),VLOOKUP(I18,Feuil1!$G$11:$L$25,2))))))) -> FC1 48 | Y18: 143.6274226 | AB18: =T18-HLOOKUP(X18,Feuil1!$C$1:$BL$10,2,FALSE) -> 61 | AC18: =T18-HLOOKUP(X18,Feuil1!$C$1:$BL$10,3,FALSE) -> 51 | AD18: =T18-HLOOKUP(X18,Feuil1!$C$1:$BL$10,4,FALSE) -> 41 | AE18: =T18-HLOOKUP(X18,Feuil1!$C$1:$BL$10,5,FALSE) -> 31 | AF18: =T18-HLOOKUP(X18,Feuil1!$C$1:$BL$10,6,FALSE) -> 21 | AG18: =T18-HLOOKUP(X18,Feuil1!$C$1:$BL$10,7,FALSE) -> 11 | AH18: =T18-HLOOKUP(X18,Feuil1!$C$1:$BL$10,8,FALSE) -> 1 | AI18: =T18-HLOOKUP(X18,Feuil1!$C$1:$BL$10,9,FALSE) -> -9 | AJ18: =T18-HLOOKUP(X18,Feuil1!$C$1:$BL$10,10,FALSE) -> -914 | AQ18: INTB +
A19: F | B19: NE | C19: ALS | D19: 3 | E19: 300315 | F19: IMBS | G19: HONORINE | H19: 2001 | I19: 47.5 | J19: Dorlisheim FH | K19: F | L19: 30 | M19: 34 | N19: 36 | O19: 36 | P19: 40 | Q19: 45 | R19: 48 | S19: 48 | T19: 84 | U19: -11 | V19: NAT + | W19: 9 | X19: =IF(I19="","",IF(A19="H",IF(OR(H19="SEN",H19<1995),VLOOKUP(I19,Feuil1!$A$11:$G$29,6),IF(AND(H19>1994,H19<1998),VLOOKUP(I19,Feuil1!$A$11:$G$29,5),IF(AND(H19>1997,H19<2000),VLOOKUP(I19,Feuil1!$A$11:$G$29,4),IF(AND(H19>1999,H19<2002),VLOOKUP(I19,Feuil1!$A$11:$G$29,3),VLOOKUP(I19,Feuil1!$A$11:$G$29,2))))),IF(OR(H19="SEN",H19<1995),VLOOKUP(I19,Feuil1!$G$11:$L$25,6),IF(AND(H19>1994,H19<1998),VLOOKUP(I19,Feuil1!$G$11:$L$25,5),IF(AND(H19>1997,H19<2000),VLOOKUP(I19,Feuil1!$G$11:$L$25,4),IF(AND(H19>1999,H19<2002),VLOOKUP(I19,Feuil1!$G$11:$L$25,3),VLOOKUP(I19,Feuil1!$G$11:$L$25,2))))))) -> FC1 48 | Y19: 138.9722468 | AB19: =T19-HLOOKUP(X19,Feuil1!$C$1:$BL$10,2,FALSE) -> 59 | AC19: =T19-HLOOKUP(X19,Feuil1!$C$1:$BL$10,3,FALSE) -> 49 | AD19: =T19-HLOOKUP(X19,Feuil1!$C$1:$BL$10,4,FALSE) -> 39 | AE19: =T19-HLOOKUP(X19,Feuil1!$C$1:$BL$10,5,FALSE) -> 29 | AF19: =T19-HLOOKUP(X19,Feuil1!$C$1:$BL$10,6,FALSE) -> 19 | AG19: =T19-HLOOKUP(X19,Feuil1!$C$1:$BL$10,7,FALSE) -> 9 | AH19: =T19-HLOOKUP(X19,Feuil1!$C$1:$BL$10,8,FALSE) -> -1 | AI19: =T19-HLOOKUP(X19,Feuil1!$C$1:$BL$10,9,FALSE) -> -11 | AJ19: =T19-HLOOKUP(X19,Feuil1!$C$1:$BL$10,10,FALSE) -> -916 | AQ19: NAT +
A20: F | B20: N | C20: IDF | D20: 4 | E20: 357786 | F20: MACE | G20: DORIANE | H20: 2000 | I20: 45.05 | J20: US METRO | K20: F | L20: 33 | M20: -36 | N20: -36 | O20: 33 | P20: 42 | Q20: -46 | R20: 46 | S20: 46 | T20: 79 | U20: -11.1 | V20: NAT + | W20: 4 | X20: =IF(I20="","",IF(A20="H",IF(OR(H20="SEN",H20<1995),VLOOKUP(I20,Feuil1!$A$11:$G$29,6),IF(AND(H20>1994,H20<1998),VLOOKUP(I20,Feuil1!$A$11:$G$29,5),IF(AND(H20>1997,H20<2000),VLOOKUP(I20,Feuil1!$A$11:$G$29,4),IF(AND(H20>1999,H20<2002),VLOOKUP(I20,Feuil1!$A$11:$G$29,3),VLOOKUP(I20,Feuil1!$A$11:$G$29,2))))),IF(OR(H20="SEN",H20<1995),VLOOKUP(I20,Feuil1!$G$11:$L$25,6),IF(AND(H20>1994,H20<1998),VLOOKUP(I20,Feuil1!$G$11:$L$25,5),IF(AND(H20>1997,H20<2000),VLOOKUP(I20,Feuil1!$G$11:$L$25,4),IF(AND(H20>1999,H20<2002),VLOOKUP(I20,Feuil1!$G$11:$L$25,3),VLOOKUP(I20,Feuil1!$G$11:$L$25,2))))))) -> FC1 48 | Y20: 137.127359 | AB20: =T20-HLOOKUP(X20,Feuil1!$C$1:$BL$10,2,FALSE) -> 54 | AC20: =T20-HLOOKUP(X20,Feuil1!$C$1:$BL$10,3,FALSE) -> 44 | AD20: =T20-HLOOKUP(X20,Feuil1!$C$1:$BL$10,4,FALSE) -> 34 | AE20: =T20-HLOOKUP(X20,Feuil1!$C$1:$BL$10,5,FALSE) -> 24 | AF20: =T20-HLOOKUP(X20,Feuil1!$C$1:$BL$10,6,FALSE) -> 14 | AG20: =T20-HLOOKUP(X20,Feuil1!$C$1:$BL$10,7,FALSE) -> 4 | AH20: =T20-HLOOKUP(X20,Feuil1!$C$1:$BL$10,8,FALSE) -> -6 | AI20: =T20-HLOOKUP(X20,Feuil1!$C$1:$BL$10,9,FALSE) -> -16 | AJ20: =T20-HLOOKUP(X20,Feuil1!$C$1:$BL$10,10,FALSE) -> -921 | AQ20: NAT +
A21: F | B21: CO | C21: PDL | D21: 5 | E21: 379232 | F21: HEUZE | G21: Emma | H21: 2000 | I21: 44.5 | J21: CA Evron 53 | K21: F | L21: 31 | M21: 33 | N21: -35 | O21: 33 | P21: 40 | Q21: 43 | R21: -44 | S21: 43 | T21: 76 | U21: -13 | V21: NAT + | W21: 1 | X21: =IF(I21="","",IF(A21="H",IF(OR(H21="SEN",H21<1995),VLOOKUP(I21,Feuil1!$A$11:$G$29,6),IF(AND(H21>1994,H21<1998),VLOOKUP(I21,Feuil1!$A$11:$G$29,5),IF(AND(H21>1997,H21<2000),VLOOKUP(I21,Feuil1!$A$11:$G$29,4),IF(AND(H21>1999,H21<2002),VLOOKUP(I21,Feuil1!$A$11:$G$29,3),VLOOKUP(I21,Feuil1!$A$11:$G$29,2))))),IF(OR(H21="SEN",H21<1995),VLOOKUP(I21,Feuil1!$G$11:$L$25,6),IF(AND(H21>1994,H21<1998),VLOOKUP(I21,Feuil1!$G$11:$L$25,5),IF(AND(H21>1997,H21<2000),VLOOKUP(I21,Feuil1!$G$11:$L$25,4),IF(AND(H21>1999,H21<2002),VLOOKUP(I21,Feuil1!$G$11:$L$25,3),VLOOKUP(I21,Feuil1!$G$11:$L$25,2))))))) -> FC1 48 | Y21: 133.4388139 | AB21: =T21-HLOOKUP(X21,Feuil1!$C$1:$BL$10,2,FALSE) -> 51 | AC21: =T21-HLOOKUP(X21,Feuil1!$C$1:$BL$10,3,FALSE) -> 41 | AD21: =T21-HLOOKUP(X21,Feuil1!$C$1:$BL$10,4,FALSE) -> 31 | AE21: =T21-HLOOKUP(X21,Feuil1!$C$1:$BL$10,5,FALSE) -> 21 | AF21: =T21-HLOOKUP(X21,Feuil1!$C$1:$BL$10,6,FALSE) -> 11 | AG21: =T21-HLOOKUP(X21,Feuil1!$C$1:$BL$10,7,FALSE) -> 1 | AH21: =T21-HLOOKUP(X21,Feuil1!$C$1:$BL$10,8,FALSE) -> -9 | AI21: =T21-HLOOKUP(X21,Feuil1!$C$1:$BL$10,9,FALSE) -> -19 | AJ21: =T21-HLOOKUP(X21,Feuil1!$C$1:$BL$10,10,FALSE) -> -924 | AQ21: NAT +
A22: F | B22: N | C22: NPC | D22: 6 | E22: 367010 | F22: PIETERS | G22: Justine | H22: 2000 | I22: 44.7 | J22: C.A.ROSENDAEL | K22: F | L22: 27 | M22: 29 | N22: -32 | O22: 29 | P22: 39 | Q22: 42 | R22: 44 | S22: 44 | T22: 73 | U22: -16.4 | V22: FED + | W22: 8 | X22: =IF(I22="","",IF(A22="H",IF(OR(H22="SEN",H22<1995),VLOOKUP(I22,Feuil1!$A$11:$G$29,6),IF(AND(H22>1994,H22<1998),VLOOKUP(I22,Feuil1!$A$11:$G$29,5),IF(AND(H22>1997,H22<2000),VLOOKUP(I22,Feuil1!$A$11:$G$29,4),IF(AND(H22>1999,H22<2002),VLOOKUP(I22,Feuil1!$A$11:$G$29,3),VLOOKUP(I22,Feuil1!$A$11:$G$29,2))))),IF(OR(H22="SEN",H22<1995),VLOOKUP(I22,Feuil1!$G$11:$L$25,6),IF(AND(H22>1994,H22<1998),VLOOKUP(I22,Feuil1!$G$11:$L$25,5),IF(AND(H22>1997,H22<2000),VLOOKUP(I22,Feuil1!$G$11:$L$25,4),IF(AND(H22>1999,H22<2002),VLOOKUP(I22,Feuil1!$G$11:$L$25,3),VLOOKUP(I22,Feuil1!$G$11:$L$25,2))))))) -> FC1 48 | Y22: 127.6352425 | AB22: =T22-HLOOKUP(X22,Feuil1!$C$1:$BL$10,2,FALSE) -> 48 | AC22: =T22-HLOOKUP(X22,Feuil1!$C$1:$BL$10,3,FALSE) -> 38 | AD22: =T22-HLOOKUP(X22,Feuil1!$C$1:$BL$10,4,FALSE) -> 28 | AE22: =T22-HLOOKUP(X22,Feuil1!$C$1:$BL$10,5,FALSE) -> 18 | AF22: =T22-HLOOKUP(X22,Feuil1!$C$1:$BL$10,6,FALSE) -> 8 | AG22: =T22-HLOOKUP(X22,Feuil1!$C$1:$BL$10,7,FALSE) -> -2 | AH22: =T22-HLOOKUP(X22,Feuil1!$C$1:$BL$10,8,FALSE) -> -12 | AI22: =T22-HLOOKUP(X22,Feuil1!$C$1:$BL$10,9,FALSE) -> -22 | AJ22: =T22-HLOOKUP(X22,Feuil1!$C$1:$BL$10,10,FALSE) -> -927 | AQ22: FED +
A23: F | B23: NE | C23: ALS | D23: 7 | E23: 340255 | F23: MIGUEL | G23: LEA | H23: 2001 | I23: 47.4 | J23: Dorlisheim FH | K23: F | L23: 26 | M23: 28 | N23: 29 | O23: 29 | P23: 36 | Q23: 38 | R23: 40 | S23: 40 | T23: 69 | U23: -25.8 | V23: FED + | W23: 4 | X23: =IF(I23="","",IF(A23="H",IF(OR(H23="SEN",H23<1995),VLOOKUP(I23,Feuil1!$A$11:$G$29,6),IF(AND(H23>1994,H23<1998),VLOOKUP(I23,Feuil1!$A$11:$G$29,5),IF(AND(H23>1997,H23<2000),VLOOKUP(I23,Feuil1!$A$11:$G$29,4),IF(AND(H23>1999,H23<2002),VLOOKUP(I23,Feuil1!$A$11:$G$29,3),VLOOKUP(I23,Feuil1!$A$11:$G$29,2))))),IF(OR(H23="SEN",H23<1995),VLOOKUP(I23,Feuil1!$G$11:$L$25,6),IF(AND(H23>1994,H23<1998),VLOOKUP(I23,Feuil1!$G$11:$L$25,5),IF(AND(H23>1997,H23<2000),VLOOKUP(I23,Feuil1!$G$11:$L$25,4),IF(AND(H23>1999,H23<2002),VLOOKUP(I23,Feuil1!$G$11:$L$25,3),VLOOKUP(I23,Feuil1!$G$11:$L$25,2))))))) -> FC1 48 | Y23: 114.3692914 | AB23: =T23-HLOOKUP(X23,Feuil1!$C$1:$BL$10,2,FALSE) -> 44 | AC23: =T23-HLOOKUP(X23,Feuil1!$C$1:$BL$10,3,FALSE) -> 34 | AD23: =T23-HLOOKUP(X23,Feuil1!$C$1:$BL$10,4,FALSE) -> 24 | AE23: =T23-HLOOKUP(X23,Feuil1!$C$1:$BL$10,5,FALSE) -> 14 | AF23: =T23-HLOOKUP(X23,Feuil1!$C$1:$BL$10,6,FALSE) -> 4 | AG23: =T23-HLOOKUP(X23,Feuil1!$C$1:$BL$10,7,FALSE) -> -6 | AH23: =T23-HLOOKUP(X23,Feuil1!$C$1:$BL$10,8,FALSE) -> -16 | AI23: =T23-HLOOKUP(X23,Feuil1!$C$1:$BL$10,9,FALSE) -> -26 | AJ23: =T23-HLOOKUP(X23,Feuil1!$C$1:$BL$10,10,FALSE) -> -931 | AQ23: FED +
A24: F | B24: CO | C24: BRE | D24: 8 | E24: 339426 | F24: PIRIS | G24: Océanne | H24: 2000 | I24: 45.6 | J24: ES Saint Avé | K24: F | L24: 25 | M24: 29 | N24: -31 | O24: 29 | P24: 30 | Q24: 34 | R24: 37 | S24: 37 | T24: 66 | U24: -25.2 | V24: FED + | W24: 1 | X24: =IF(I24="","",IF(A24="H",IF(OR(H24="SEN",H24<1995),VLOOKUP(I24,Feuil1!$A$11:$G$29,6),IF(AND(H24>1994,H24<1998),VLOOKUP(I24,Feuil1!$A$11:$G$29,5),IF(AND(H24>1997,H24<2000),VLOOKUP(I24,Feuil1!$A$11:$G$29,4),IF(AND(H24>1999,H24<2002),VLOOKUP(I24,Feuil1!$A$11:$G$29,3),VLOOKUP(I24,Feuil1!$A$11:$G$29,2))))),IF(OR(H24="SEN",H24<1995),VLOOKUP(I24,Feuil1!$G$11:$L$25,6),IF(AND(H24>1994,H24<1998),VLOOKUP(I24,Feuil1!$G$11:$L$25,5),IF(AND(H24>1997,H24<2000),VLOOKUP(I24,Feuil1!$G$11:$L$25,4),IF(AND(H24>1999,H24<2002),VLOOKUP(I24,Feuil1!$G$11:$L$25,3),VLOOKUP(I24,Feuil1!$G$11:$L$25,2))))))) -> FC1 48 | Y24: 113.2869465 | AB24: =T24-HLOOKUP(X24,Feuil1!$C$1:$BL$10,2,FALSE) -> 41 | AC24: =T24-HLOOKUP(X24,Feuil1!$C$1:$BL$10,3,FALSE) -> 31 | AD24: =T24-HLOOKUP(X24,Feuil1!$C$1:$BL$10,4,FALSE) -> 21 | AE24: =T24-HLOOKUP(X24,Feuil1!$C$1:$BL$10,5,FALSE) -> 11 | AF24: =T24-HLOOKUP(X24,Feuil1!$C$1:$BL$10,6,FALSE) -> 1 | AG24: =T24-HLOOKUP(X24,Feuil1!$C$1:$BL$10,7,FALSE) -> -9 | AH24: =T24-HLOOKUP(X24,Feuil1!$C$1:$BL$10,8,FALSE) -> -19 | AI24: =T24-HLOOKUP(X24,Feuil1!$C$1:$BL$10,9,FALSE) -> -29 | AJ24: =T24-HLOOKUP(X24,Feuil1!$C$1:$BL$10,10,FALSE) -> -934 | AQ24: FED +
A25: F | B25: N | C25: PIC | D25: 9 | E25: 378365 | F25: MONTOYA | G25: Chloé | H25: 2000 | I25: 47.47 | J25: Villers-Bretonneux KC | K25: F | L25: 20 | M25: 23 | N25: -26 | O25: 23 | P25: 30 | Q25: -33 | R25: 33 | S25: 33 | T25: 56 | U25: -38.94 | V25: IRG + | W25: 1 | X25: =IF(I25="","",IF(A25="H",IF(OR(H25="SEN",H25<1995),VLOOKUP(I25,Feuil1!$A$11:$G$29,6),IF(AND(H25>1994,H25<1998),VLOOKUP(I25,Feuil1!$A$11:$G$29,5),IF(AND(H25>1997,H25<2000),VLOOKUP(I25,Feuil1!$A$11:$G$29,4),IF(AND(H25>1999,H25<2002),VLOOKUP(I25,Feuil1!$A$11:$G$29,3),VLOOKUP(I25,Feuil1!$A$11:$G$29,2))))),IF(OR(H25="SEN",H25<1995),VLOOKUP(I25,Feuil1!$G$11:$L$25,6),IF(AND(H25>1994,H25<1998),VLOOKUP(I25,Feuil1!$G$11:$L$25,5),IF(AND(H25>1997,H25<2000),VLOOKUP(I25,Feuil1!$G$11:$L$25,4),IF(AND(H25>1999,H25<2002),VLOOKUP(I25,Feuil1!$G$11:$L$25,3),VLOOKUP(I25,Feuil1!$G$11:$L$25,2))))))) -> FC1 48 | Y25: 92.70004538 | AB25: =T25-HLOOKUP(X25,Feuil1!$C$1:$BL$10,2,FALSE) -> 31 | AC25: =T25-HLOOKUP(X25,Feuil1!$C$1:$BL$10,3,FALSE) -> 21 | AD25: =T25-HLOOKUP(X25,Feuil1!$C$1:$BL$10,4,FALSE) -> 11 | AE25: =T25-HLOOKUP(X25,Feuil1!$C$1:$BL$10,5,FALSE) -> 1 | AF25: =T25-HLOOKUP(X25,Feuil1!$C$1:$BL$10,6,FALSE) -> -9 | AG25: =T25-HLOOKUP(X25,Feuil1!$C$1:$BL$10,7,FALSE) -> -19 | AH25: =T25-HLOOKUP(X25,Feuil1!$C$1:$BL$10,8,FALSE) -> -29 | AI25: =T25-HLOOKUP(X25,Feuil1!$C$1:$BL$10,9,FALSE) -> -39 | AJ25: =T25-HLOOKUP(X25,Feuil1!$C$1:$BL$10,10,FALSE) -> -944 | AQ25: IRG +
A26: F | B26: NE | C26: ALS | D26: 10 | E26: 366668 | F26: BURCKEL | G26: Mélissa | H26: 2001 | I26: 47.8 | J26: Dorlisheim FH | K26: F | L26: 20 | M26: 22 | N26: 25 | O26: 25 | P26: 23 | Q26: 25 | R26: 27 | S26: 27 | T26: 52 | U26: -43.6 | V26: REG + | W26: 7 | X26: =IF(I26="","",IF(A26="H",IF(OR(H26="SEN",H26<1995),VLOOKUP(I26,Feuil1!$A$11:$G$29,6),IF(AND(H26>1994,H26<1998),VLOOKUP(I26,Feuil1!$A$11:$G$29,5),IF(AND(H26>1997,H26<2000),VLOOKUP(I26,Feuil1!$A$11:$G$29,4),IF(AND(H26>1999,H26<2002),VLOOKUP(I26,Feuil1!$A$11:$G$29,3),VLOOKUP(I26,Feuil1!$A$11:$G$29,2))))),IF(OR(H26="SEN",H26<1995),VLOOKUP(I26,Feuil1!$G$11:$L$25,6),IF(AND(H26>1994,H26<1998),VLOOKUP(I26,Feuil1!$G$11:$L$25,5),IF(AND(H26>1997,H26<2000),VLOOKUP(I26,Feuil1!$G$11:$L$25,4),IF(AND(H26>1999,H26<2002),VLOOKUP(I26,Feuil1!$G$11:$L$25,3),VLOOKUP(I26,Feuil1!$G$11:$L$25,2))))))) -> FC1 48 | Y26: 85.55327947 | AB26: =T26-HLOOKUP(X26,Feuil1!$C$1:$BL$10,2,FALSE) -> 27 | AC26: =T26-HLOOKUP(X26,Feuil1!$C$1:$BL$10,3,FALSE) -> 17 | AD26: =T26-HLOOKUP(X26,Feuil1!$C$1:$BL$10,4,FALSE) -> 7 | AE26: =T26-HLOOKUP(X26,Feuil1!$C$1:$BL$10,5,FALSE) -> -3 | AF26: =T26-HLOOKUP(X26,Feuil1!$C$1:$BL$10,6,FALSE) -> -13 | AG26: =T26-HLOOKUP(X26,Feuil1!$C$1:$BL$10,7,FALSE) -> -23 | AH26: =T26-HLOOKUP(X26,Feuil1!$C$1:$BL$10,8,FALSE) -> -33 | AI26: =T26-HLOOKUP(X26,Feuil1!$C$1:$BL$10,9,FALSE) -> -43 | AJ26: =T26-HLOOKUP(X26,Feuil1!$C$1:$BL$10,10,FALSE) -> -948 | AQ26: REG +
A27: F | B27: N | C27: PIC | D27: 11 | E27: 378362 | F27: CHAUVIN | G27: Appoline | H27: 2001 | I27: 46 | J27: Villers-Bretonneux KC | K27: F | L27: 17 | M27: -19 | N27: 19 | O27: 19 | P27: 20 | Q27: 24 | R27: 26 | S27: 26 | T27: 45 | U27: -47 | V27: REG + | W27: 0 | X27: =IF(I27="","",IF(A27="H",IF(OR(H27="SEN",H27<1995),VLOOKUP(I27,Feuil1!$A$11:$G$29,6),IF(AND(H27>1994,H27<1998),VLOOKUP(I27,Feuil1!$A$11:$G$29,5),IF(AND(H27>1997,H27<2000),VLOOKUP(I27,Feuil1!$A$11:$G$29,4),IF(AND(H27>1999,H27<2002),VLOOKUP(I27,Feuil1!$A$11:$G$29,3),VLOOKUP(I27,Feuil1!$A$11:$G$29,2))))),IF(OR(H27="SEN",H27<1995),VLOOKUP(I27,Feuil1!$G$11:$L$25,6),IF(AND(H27>1994,H27<1998),VLOOKUP(I27,Feuil1!$G$11:$L$25,5),IF(AND(H27>1997,H27<2000),VLOOKUP(I27,Feuil1!$G$11:$L$25,4),IF(AND(H27>1999,H27<2002),VLOOKUP(I27,Feuil1!$G$11:$L$25,3),VLOOKUP(I27,Feuil1!$G$11:$L$25,2))))))) -> FC1 48 | Y27: 76.6267922 | AB27: =T27-HLOOKUP(X27,Feuil1!$C$1:$BL$10,2,FALSE) -> 20 | AC27: =T27-HLOOKUP(X27,Feuil1!$C$1:$BL$10,3,FALSE) -> 10 | AD27: =T27-HLOOKUP(X27,Feuil1!$C$1:$BL$10,4,FALSE) -> 0 | AE27: =T27-HLOOKUP(X27,Feuil1!$C$1:$BL$10,5,FALSE) -> -10 | AF27: =T27-HLOOKUP(X27,Feuil1!$C$1:$BL$10,6,FALSE) -> -20 | AG27: =T27-HLOOKUP(X27,Feuil1!$C$1:$BL$10,7,FALSE) -> -30 | AH27: =T27-HLOOKUP(X27,Feuil1!$C$1:$BL$10,8,FALSE) -> -40 | AI27: =T27-HLOOKUP(X27,Feuil1!$C$1:$BL$10,9,FALSE) -> -50 | AJ27: =T27-HLOOKUP(X27,Feuil1!$C$1:$BL$10,10,FALSE) -> -955 | AQ27: REG +
AB28: =T28-HLOOKUP(X28,Feuil1!$C$1:$BL$10,2,FALSE) ->  | AC28: =T28-HLOOKUP(X28,Feuil1!$C$1:$BL$10,3,FALSE) ->  | AD28: =T28-HLOOKUP(X28,Feuil1!$C$1:$BL$10,4,FALSE) ->  | AE28: =T28-HLOOKUP(X28,Feuil1!$C$1:$BL$10,5,FALSE) ->  | AF28: =T28-HLOOKUP(X28,Feuil1!$C$1:$BL$10,6,FALSE) ->  | AG28: =T28-HLOOKUP(X28,Feuil1!$C$1:$BL$10,7,FALSE) ->  | AH28: =T28-HLOOKUP(X28,Feuil1!$C$1:$BL$10,8,FALSE) ->  | AI28: =T28-HLOOKUP(X28,Feuil1!$C$1:$BL$10,9,FALSE) ->  | AJ28: =T28-HLOOKUP(X28,Feuil1!$C$1:$BL$10,10,FALSE) ->  | AQ28: =IF(AJ28>=0,$AJ$4,IF(AI28>=0,$AI$4,IF(AH28>=0,$AH$4,IF(AG28>=0,$AG$4,IF(AF28>=0,$AF$4,IF(AE28>=0,$AE$4,IF(AD28>=0,$AD$4,IF(AC28>=0,$AC$4,$AB$4)))))))) -> 
A29: F | B29: SEST | C29: RAL | D29: 1 | E29: 280309 | F29: BARBIER | G29: Clarisse | H29: 2000 | I29: 51.4 | J29: VAULX EN VELIN | K29: F | L29: 40 | M29: 43 | N29: 45 | O29: =IF(H29="","",IF(MAXA(L29:N29)<=0,0,MAXA(L29:N29))) -> 45 | P29: 55 | Q29: 60 | R29: -64 | S29: =IF(H29="","",IF(MAXA(P29:R29)<=0,0,MAXA(P29:R29))) -> 60 | T29: =IF(H29="","",IF(OR(O29=0,S29=0),0,O29+S29)) -> 105 | U29: =T29-I29*2 -> 2.2 | V29: =IF(H29="","",AQ29) -> INTA + | W29: =IF(AJ29>=0,AJ29,IF(AI29>=0,AI29,IF(AH29>=0,AH29,IF(AG29>=0,AG29,IF(AF29>=0,AF29,IF(AE29>=0,AE29,IF(AD29>=0,AD29,IF(AC29>=0,AC29,AB29)))))))) -> 0 | X29: =IF(I29="","",IF(A29="H",IF(OR(H29="SEN",H29<1995),VLOOKUP(I29,Feuil1!$A$11:$G$29,6),IF(AND(H29>1994,H29<1998),VLOOKUP(I29,Feuil1!$A$11:$G$29,5),IF(AND(H29>1997,H29<2000),VLOOKUP(I29,Feuil1!$A$11:$G$29,4),IF(AND(H29>1999,H29<2002),VLOOKUP(I29,Feuil1!$A$11:$G$29,3),VLOOKUP(I29,Feuil1!$A$11:$G$29,2))))),IF(OR(H29="SEN",H29<1995),VLOOKUP(I29,Feuil1!$G$11:$L$25,6),IF(AND(H29>1994,H29<1998),VLOOKUP(I29,Feuil1!$G$11:$L$25,5),IF(AND(H29>1997,H29<2000),VLOOKUP(I29,Feuil1!$G$11:$L$25,4),IF(AND(H29>1999,H29<2002),VLOOKUP(I29,Feuil1!$G$11:$L$25,3),VLOOKUP(I29,Feuil1!$G$11:$L$25,2))))))) -> FC1 53 | Y29: =IF(I29="","",IF(A29="H",10^(0.794358141*LOG(I29/174.393)^2)*T29,IF(A29="F",10^(0.89726074*LOG(I29/148.026)^2)*T29,""))) -> 162.3805478 | AB29: =T29-HLOOKUP(X29,Feuil1!$C$1:$BL$10,2,FALSE) -> 70 | AC29: =T29-HLOOKUP(X29,Feuil1!$C$1:$BL$10,3,FALSE) -> 60 | AD29: =T29-HLOOKUP(X29,Feuil1!$C$1:$BL$10,4,FALSE) -> 50 | AE29: =T29-HLOOKUP(X29,Feuil1!$C$1:$BL$10,5,FALSE) -> 40 | AF29: =T29-HLOOKUP(X29,Feuil1!$C$1:$BL$10,6,FALSE) -> 30 | AG29: =T29-HLOOKUP(X29,Feuil1!$C$1:$BL$10,7,FALSE) -> 20 | AH29: =T29-HLOOKUP(X29,Feuil1!$C$1:$BL$10,8,FALSE) -> 10 | AI29: =T29-HLOOKUP(X29,Feuil1!$C$1:$BL$10,9,FALSE) -> 0 | AJ29: =T29-HLOOKUP(X29,Feuil1!$C$1:$BL$10,10,FALSE) -> -895 | AQ29: =IF(AJ29>=0,$AJ$4,IF(AI29>=0,$AI$4,IF(AH29>=0,$AH$4,IF(AG29>=0,$AG$4,IF(AF29>=0,$AF$4,IF(AE29>=0,$AE$4,IF(AD29>=0,$AD$4,IF(AC29>=0,$AC$4,$AB$4)))))))) -> INTA +
A30: F | B30: SEST | C30: LAN | D30: 2 | E30: 290105 | F30: ROMERO | G30: Héloïse | H30: 2000 | I30: 48.6 | J30: Narbonne Haltéro | K30: F | L30: 35 | M30: 38 | N30: 40 | O30: 40 | P30: 46 | Q30: 48 | R30: 51 | S30: 51 | T30: 91 | U30: -6.2 | V30: NAT + | W30: 6 | X30: =IF(I30="","",IF(A30="H",IF(OR(H30="SEN",H30<1995),VLOOKUP(I30,Feuil1!$A$11:$G$29,6),IF(AND(H30>1994,H30<1998),VLOOKUP(I30,Feuil1!$A$11:$G$29,5),IF(AND(H30>1997,H30<2000),VLOOKUP(I30,Feuil1!$A$11:$G$29,4),IF(AND(H30>1999,H30<2002),VLOOKUP(I30,Feuil1!$A$11:$G$29,3),VLOOKUP(I30,Feuil1!$A$11:$G$29,2))))),IF(OR(H30="SEN",H30<1995),VLOOKUP(I30,Feuil1!$G$11:$L$25,6),IF(AND(H30>1994,H30<1998),VLOOKUP(I30,Feuil1!$G$11:$L$25,5),IF(AND(H30>1997,H30<2000),VLOOKUP(I30,Feuil1!$G$11:$L$25,4),IF(AND(H30>1999,H30<2002),VLOOKUP(I30,Feuil1!$G$11:$L$25,3),VLOOKUP(I30,Feuil1!$G$11:$L$25,2))))))) -> FC1 53 | Y30: 147.5608424 | AB30: =T30-HLOOKUP(X30,Feuil1!$C$1:$BL$10,2,FALSE) -> 56 | AC30: =T30-HLOOKUP(X30,Feuil1!$C$1:$BL$10,3,FALSE) -> 46 | AD30: =T30-HLOOKUP(X30,Feuil1!$C$1:$BL$10,4,FALSE) -> 36 | AE30: =T30-HLOOKUP(X30,Feuil1!$C$1:$BL$10,5,FALSE) -> 26 | AF30: =T30-HLOOKUP(X30,Feuil1!$C$1:$BL$10,6,FALSE) -> 16 | AG30: =T30-HLOOKUP(X30,Feuil1!$C$1:$BL$10,7,FALSE) -> 6 | AH30: =T30-HLOOKUP(X30,Feuil1!$C$1:$BL$10,8,FALSE) -> -4 | AI30: =T30-HLOOKUP(X30,Feuil1!$C$1:$BL$10,9,FALSE) -> -14 | AJ30: =T30-HLOOKUP(X30,Feuil1!$C$1:$BL$10,10,FALSE) -> -909 | AQ30: NAT +
A31: F | B31: NE | C31: ALS | D31: 3 | E31: 300315 | F31: IMBS | G31: HONORINE | H31: 2001 | I31: 48.9 | J31: Dorlisheim FH | K31: F | L31: 36 | M31: 38 | N31: 40 | O31: 40 | P31: 46 | Q31: 50 | R31: -52 | S31: 50 | T31: 90 | U31: -7.8 | V31: NAT + | W31: 5 | X31: =IF(I31="","",IF(A31="H",IF(OR(H31="SEN",H31<1995),VLOOKUP(I31,Feuil1!$A$11:$G$29,6),IF(AND(H31>1994,H31<1998),VLOOKUP(I31,Feuil1!$A$11:$G$29,5),IF(AND(H31>1997,H31<2000),VLOOKUP(I31,Feuil1!$A$11:$G$29,4),IF(AND(H31>1999,H31<2002),VLOOKUP(I31,Feuil1!$A$11:$G$29,3),VLOOKUP(I31,Feuil1!$A$11:$G$29,2))))),IF(OR(H31="SEN",H31<1995),VLOOKUP(I31,Feuil1!$G$11:$L$25,6),IF(AND(H31>1994,H31<1998),VLOOKUP(I31,Feuil1!$G$11:$L$25,5),IF(AND(H31>1997,H31<2000),VLOOKUP(I31,Feuil1!$G$11:$L$25,4),IF(AND(H31>1999,H31<2002),VLOOKUP(I31,Feuil1!$G$11:$L$25,3),VLOOKUP(I31,Feuil1!$G$11:$L$25,2))))))) -> FC1 53 | Y31: 145.1639606 | AB31: =T31-HLOOKUP(X31,Feuil1!$C$1:$BL$10,2,FALSE) -> 55 | AC31: =T31-HLOOKUP(X31,Feuil1!$C$1:$BL$10,3,FALSE) -> 45 | AD31: =T31-HLOOKUP(X31,Feuil1!$C$1:$BL$10,4,FALSE) -> 35 | AE31: =T31-HLOOKUP(X31,Feuil1!$C$1:$BL$10,5,FALSE) -> 25 | AF31: =T31-HLOOKUP(X31,Feuil1!$C$1:$BL$10,6,FALSE) -> 15 | AG31: =T31-HLOOKUP(X31,Feuil1!$C$1:$BL$10,7,FALSE) -> 5 | AH31: =T31-HLOOKUP(X31,Feuil1!$C$1:$BL$10,8,FALSE) -> -5 | AI31: =T31-HLOOKUP(X31,Feuil1!$C$1:$BL$10,9,FALSE) -> -15 | AJ31: =T31-HLOOKUP(X31,Feuil1!$C$1:$BL$10,10,FALSE) -> -910 | AQ31: NAT +
A32: F | B32: NE | C32: CHA | D32: 4 | E32: 320210 | F32: ROEHRIG | G32: Ludivine | H32: 2000 | I32: 52.6 | J32: Langres HM | K32: F | L32: 32 | M32: 34 | N32: 38 | O32: 38 | P32: 44 | Q32: 48 | R32: 52 | S32: 52 | T32: 90 | U32: -15.2 | V32: NAT + | W32: 5 | X32: =IF(I32="","",IF(A32="H",IF(OR(H32="SEN",H32<1995),VLOOKUP(I32,Feuil1!$A$11:$G$29,6),IF(AND(H32>1994,H32<1998),VLOOKUP(I32,Feuil1!$A$11:$G$29,5),IF(AND(H32>1997,H32<2000),VLOOKUP(I32,Feuil1!$A$11:$G$29,4),IF(AND(H32>1999,H32<2002),VLOOKUP(I32,Feuil1!$A$11:$G$29,3),VLOOKUP(I32,Feuil1!$A$11:$G$29,2))))),IF(OR(H32="SEN",H32<1995),VLOOKUP(I32,Feuil1!$G$11:$L$25,6),IF(AND(H32>1994,H32<1998),VLOOKUP(I32,Feuil1!$G$11:$L$25,5),IF(AND(H32>1997,H32<2000),VLOOKUP(I32,Feuil1!$G$11:$L$25,4),IF(AND(H32>1999,H32<2002),VLOOKUP(I32,Feuil1!$G$11:$L$25,3),VLOOKUP(I32,Feuil1!$G$11:$L$25,2))))))) -> FC1 53 | Y32: 136.5888073 | AB32: =T32-HLOOKUP(X32,Feuil1!$C$1:$BL$10,2,FALSE) -> 55 | AC32: =T32-HLOOKUP(X32,Feuil1!$C$1:$BL$10,3,FALSE) -> 45 | AD32: =T32-HLOOKUP(X32,Feuil1!$C$1:$BL$10,4,FALSE) -> 35 | AE32: =T32-HLOOKUP(X32,Feuil1!$C$1:$BL$10,5,FALSE) -> 25 | AF32: =T32-HLOOKUP(X32,Feuil1!$C$1:$BL$10,6,FALSE) -> 15 | AG32: =T32-HLOOKUP(X32,Feuil1!$C$1:$BL$10,7,FALSE) -> 5 | AH32: =T32-HLOOKUP(X32,Feuil1!$C$1:$BL$10,8,FALSE) -> -5 | AI32: =T32-HLOOKUP(X32,Feuil1!$C$1:$BL$10,9,FALSE) -> -15 | AJ32: =T32-HLOOKUP(X32,Feuil1!$C$1:$BL$10,10,FALSE) -> -910 | AQ32: NAT +
A33: F | B33: SO | C33: LIM | D33: 5 | E33: 326705 | F33: LOPEZ | G33: MELISSA | H33: 2001 | I33: 50.7 | J33: LIMOGES AVA | K33: F | L33: 31 | M33: -34 | N33: 34 | O33: 34 | P33: 42 | Q33: 45 | R33: 46 | S33: 46 | T33: 80 | U33: -21.4 | V33: FED + | W33: 5 | X33: =IF(I33="","",IF(A33="H",IF(OR(H33="SEN",H33<1995),VLOOKUP(I33,Feuil1!$A$11:$G$29,6),IF(AND(H33>1994,H33<1998),VLOOKUP(I33,Feuil1!$A$11:$G$29,5),IF(AND(H33>1997,H33<2000),VLOOKUP(I33,Feuil1!$A$11:$G$29,4),IF(AND(H33>1999,H33<2002),VLOOKUP(I33,Feuil1!$A$11:$G$29,3),VLOOKUP(I33,Feuil1!$A$11:$G$29,2))))),IF(OR(H33="SEN",H33<1995),VLOOKUP(I33,Feuil1!$G$11:$L$25,6),IF(AND(H33>1994,H33<1998),VLOOKUP(I33,Feuil1!$G$11:$L$25,5),IF(AND(H33>1997,H33<2000),VLOOKUP(I33,Feuil1!$G$11:$L$25,4),IF(AND(H33>1999,H33<2002),VLOOKUP(I33,Feuil1!$G$11:$L$25,3),VLOOKUP(I33,Feuil1!$G$11:$L$25,2))))))) -> FC1 53 | Y33: 125.1341058 | AB33: =T33-HLOOKUP(X33,Feuil1!$C$1:$BL$10,2,FALSE) -> 45 | AC33: =T33-HLOOKUP(X33,Feuil1!$C$1:$BL$10,3,FALSE) -> 35 | AD33: =T33-HLOOKUP(X33,Feuil1!$C$1:$BL$10,4,FALSE) -> 25 | AE33: =T33-HLOOKUP(X33,Feuil1!$C$1:$BL$10,5,FALSE) -> 15 | AF33: =T33-HLOOKUP(X33,Feuil1!$C$1:$BL$10,6,FALSE) -> 5 | AG33: =T33-HLOOKUP(X33,Feuil1!$C$1:$BL$10,7,FALSE) -> -5 | AH33: =T33-HLOOKUP(X33,Feuil1!$C$1:$BL$10,8,FALSE) -> -15 | AI33: =T33-HLOOKUP(X33,Feuil1!$C$1:$BL$10,9,FALSE) -> -25 | AJ33: =T33-HLOOKUP(X33,Feuil1!$C$1:$BL$10,10,FALSE) -> -920 | AQ33: FED +
A34: F | B34: SO | C34: LIM | D34: 6 | E34: 326707 | F34: LAMARGUE | G34: Loriane | H34: 2000 | I34: 52.5 | J34: LIMOGES AVA | K34: F | L34: 28 | M34: 31 | N34: 32 | O34: 32 | P34: 39 | Q34: 43 | R34: -45 | S34: 43 | T34: 75 | U34: -30 | V34: FED + | W34: 0 | X34: =IF(I34="","",IF(A34="H",IF(OR(H34="SEN",H34<1995),VLOOKUP(I34,Feuil1!$A$11:$G$29,6),IF(AND(H34>1994,H34<1998),VLOOKUP(I34,Feuil1!$A$11:$G$29,5),IF(AND(H34>1997,H34<2000),VLOOKUP(I34,Feuil1!$A$11:$G$29,4),IF(AND(H34>1999,H34<2002),VLOOKUP(I34,Feuil1!$A$11:$G$29,3),VLOOKUP(I34,Feuil1!$A$11:$G$29,2))))),IF(OR(H34="SEN",H34<1995),VLOOKUP(I34,Feuil1!$G$11:$L$25,6),IF(AND(H34>1994,H34<1998),VLOOKUP(I34,Feuil1!$G$11:$L$25,5),IF(AND(H34>1997,H34<2000),VLOOKUP(I34,Feuil1!$G$11:$L$25,4),IF(AND(H34>1999,H34<2002),VLOOKUP(I34,Feuil1!$G$11:$L$25,3),VLOOKUP(I34,Feuil1!$G$11:$L$25,2))))))) -> FC1 53 | Y34: 113.9989624 | AB34: =T34-HLOOKUP(X34,Feuil1!$C$1:$BL$10,2,FALSE) -> 40 | AC34: =T34-HLOOKUP(X34,Feuil1!$C$1:$BL$10,3,FALSE) -> 30 | AD34: =T34-HLOOKUP(X34,Feuil1!$C$1:$BL$10,4,FALSE) -> 20 | AE34: =T34-HLOOKUP(X34,Feuil1!$C$1:$BL$10,5,FALSE) -> 10 | AF34: =T34-HLOOKUP(X34,Feuil1!$C$1:$BL$10,6,FALSE) -> 0 | AG34: =T34-HLOOKUP(X34,Feuil1!$C$1:$BL$10,7,FALSE) -> -10 | AH34: =T34-HLOOKUP(X34,Feuil1!$C$1:$BL$10,8,FALSE) -> -20 | AI34: =T34-HLOOKUP(X34,Feuil1!$C$1:$BL$10,9,FALSE) -> -30 | AJ34: =T34-HLOOKUP(X34,Feuil1!$C$1:$BL$10,10,FALSE) -> -925 | AQ34: FED +
A35: F | B35: NE | C35: CHA | D35: 7 | E35: 355066 | F35: MECHIAKH | G35: Chloé | H35: 2001 | I35: 52.4 | J35: Langres HM | K35: F | L35: 22 | M35: 25 | N35: 27 | O35: 27 | P35: 30 | Q35: 35 | R35: 38 | S35: 38 | T35: 65 | U35: -39.8 | V35: IRG + | W35: 0 | X35: =IF(I35="","",IF(A35="H",IF(OR(H35="SEN",H35<1995),VLOOKUP(I35,Feuil1!$A$11:$G$29,6),IF(AND(H35>1994,H35<1998),VLOOKUP(I35,Feuil1!$A$11:$G$29,5),IF(AND(H35>1997,H35<2000),VLOOKUP(I35,Feuil1!$A$11:$G$29,4),IF(AND(H35>1999,H35<2002),VLOOKUP(I35,Feuil1!$A$11:$G$29,3),VLOOKUP(I35,Feuil1!$A$11:$G$29,2))))),IF(OR(H35="SEN",H35<1995),VLOOKUP(I35,Feuil1!$G$11:$L$25,6),IF(AND(H35>1994,H35<1998),VLOOKUP(I35,Feuil1!$G$11:$L$25,5),IF(AND(H35>1997,H35<2000),VLOOKUP(I35,Feuil1!$G$11:$L$25,4),IF(AND(H35>1999,H35<2002),VLOOKUP(I35,Feuil1!$G$11:$L$25,3),VLOOKUP(I35,Feuil1!$G$11:$L$25,2))))))) -> FC1 53 | Y35: 98.95153245 | AB35: =T35-HLOOKUP(X35,Feuil1!$C$1:$BL$10,2,FALSE) -> 30 | AC35: =T35-HLOOKUP(X35,Feuil1!$C$1:$BL$10,3,FALSE) -> 20 | AD35: =T35-HLOOKUP(X35,Feuil1!$C$1:$BL$10,4,FALSE) -> 10 | AE35: =T35-HLOOKUP(X35,Feuil1!$C$1:$BL$10,5,FALSE) -> 0 | AF35: =T35-HLOOKUP(X35,Feuil1!$C$1:$BL$10,6,FALSE) -> -10 | AG35: =T35-HLOOKUP(X35,Feuil1!$C$1:$BL$10,7,FALSE) -> -20 | AH35: =T35-HLOOKUP(X35,Feuil1!$C$1:$BL$10,8,FALSE) -> -30 | AI35: =T35-HLOOKUP(X35,Feuil1!$C$1:$BL$10,9,FALSE) -> -40 | AJ35: =T35-HLOOKUP(X35,Feuil1!$C$1:$BL$10,10,FALSE) -> -935 | AQ35: IRG +
A36: F | B36: N | C36: PIC | D36: 8 | E36: 378365 | F36: MONTOYA | G36: Chloé | H36: 2000 | I36: 48.4 | J36: Villers-Bretonneux KC | K36: F | L36: 20 | M36: 23 | N36: -25 | O36: 23 | P36: 27 | Q36: -31 | R36: 31 | S36: 31 | T36: 54 | U36: -42.8 | V36: DEP + | W36: 9 | X36: =IF(I36="","",IF(A36="H",IF(OR(H36="SEN",H36<1995),VLOOKUP(I36,Feuil1!$A$11:$G$29,6),IF(AND(H36>1994,H36<1998),VLOOKUP(I36,Feuil1!$A$11:$G$29,5),IF(AND(H36>1997,H36<2000),VLOOKUP(I36,Feuil1!$A$11:$G$29,4),IF(AND(H36>1999,H36<2002),VLOOKUP(I36,Feuil1!$A$11:$G$29,3),VLOOKUP(I36,Feuil1!$A$11:$G$29,2))))),IF(OR(H36="SEN",H36<1995),VLOOKUP(I36,Feuil1!$G$11:$L$25,6),IF(AND(H36>1994,H36<1998),VLOOKUP(I36,Feuil1!$G$11:$L$25,5),IF(AND(H36>1997,H36<2000),VLOOKUP(I36,Feuil1!$G$11:$L$25,4),IF(AND(H36>1999,H36<2002),VLOOKUP(I36,Feuil1!$G$11:$L$25,3),VLOOKUP(I36,Feuil1!$G$11:$L$25,2))))))) -> FC1 53 | Y36: 87.8781494 | AB36: =T36-HLOOKUP(X36,Feuil1!$C$1:$BL$10,2,FALSE) -> 19 | AC36: =T36-HLOOKUP(X36,Feuil1!$C$1:$BL$10,3,FALSE) -> 9 | AD36: =T36-HLOOKUP(X36,Feuil1!$C$1:$BL$10,4,FALSE) -> -1 | AE36: =T36-HLOOKUP(X36,Feuil1!$C$1:$BL$10,5,FALSE) -> -11 | AF36: =T36-HLOOKUP(X36,Feuil1!$C$1:$BL$10,6,FALSE) -> -21 | AG36: =T36-HLOOKUP(X36,Feuil1!$C$1:$BL$10,7,FALSE) -> -31 | AH36: =T36-HLOOKUP(X36,Feuil1!$C$1:$BL$10,8,FALSE) -> -41 | AI36: =T36-HLOOKUP(X36,Feuil1!$C$1:$BL$10,9,FALSE) -> -51 | AJ36: =T36-HLOOKUP(X36,Feuil1!$C$1:$BL$10,10,FALSE) -> -946 | AQ36: DEP +
A37: F | B37: NE | C37: ALS | D37: 9 | E37: 366668 | F37: BURCKEL | G37: Mélissa | H37: 2001 | I37: 49.6 | J37: Dorlisheim FH | K37: F | L37: 18 | M37: 21 | N37: 24 | O37: 24 | P37: 24 | Q37: 26 | R37: 28 | S37: 28 | T37: 52 | U37: -47.2 | V37: DEP + | W37: 7 | X37: =IF(I37="","",IF(A37="H",IF(OR(H37="SEN",H37<1995),VLOOKUP(I37,Feuil1!$A$11:$G$29,6),IF(AND(H37>1994,H37<1998),VLOOKUP(I37,Feuil1!$A$11:$G$29,5),IF(AND(H37>1997,H37<2000),VLOOKUP(I37,Feuil1!$A$11:$G$29,4),IF(AND(H37>1999,H37<2002),VLOOKUP(I37,Feuil1!$A$11:$G$29,3),VLOOKUP(I37,Feuil1!$A$11:$G$29,2))))),IF(OR(H37="SEN",H37<1995),VLOOKUP(I37,Feuil1!$G$11:$L$25,6),IF(AND(H37>1994,H37<1998),VLOOKUP(I37,Feuil1!$G$11:$L$25,5),IF(AND(H37>1997,H37<2000),VLOOKUP(I37,Feuil1!$G$11:$L$25,4),IF(AND(H37>1999,H37<2002),VLOOKUP(I37,Feuil1!$G$11:$L$25,3),VLOOKUP(I37,Feuil1!$G$11:$L$25,2))))))) -> FC1 53 | Y37: 82.85626462 | AB37: =T37-HLOOKUP(X37,Feuil1!$C$1:$BL$10,2,FALSE) -> 17 | AC37: =T37-HLOOKUP(X37,Feuil1!$C$1:$BL$10,3,FALSE) -> 7 | AD37: =T37-HLOOKUP(X37,Feuil1!$C$1:$BL$10,4,FALSE) -> -3 | AE37: =T37-HLOOKUP(X37,Feuil1!$C$1:$BL$10,5,FALSE) -> -13 | AF37: =T37-HLOOKUP(X37,Feuil1!$C$1:$BL$10,6,FALSE) -> -23 | AG37: =T37-HLOOKUP(X37,Feuil1!$C$1:$BL$10,7,FALSE) -> -33 | AH37: =T37-HLOOKUP(X37,Feuil1!$C$1:$BL$10,8,FALSE) -> -43 | AI37: =T37-HLOOKUP(X37,Feuil1!$C$1:$BL$10,9,FALSE) -> -53 | AJ37: =T37-HLOOKUP(X37,Feuil1!$C$1:$BL$10,10,FALSE) -> -948 | AQ37: DEP +
A38: F | B38: NE | C38: BOU | D38: 10 | E38: 390850 | F38: LARGE | G38: Margaux | H38: 2000 | I38: 50.1 | J38: HMDB21 | K38: F | L38: 15 | M38: 19 | N38: 20 | O38: 20 | P38: 25 | Q38: 28 | R38: 30 | S38: 30 | T38: 50 | U38: -50.2 | V38: DEP + | W38: 5 | X38: =IF(I38="","",IF(A38="H",IF(OR(H38="SEN",H38<1995),VLOOKUP(I38,Feuil1!$A$11:$G$29,6),IF(AND(H38>1994,H38<1998),VLOOKUP(I38,Feuil1!$A$11:$G$29,5),IF(AND(H38>1997,H38<2000),VLOOKUP(I38,Feuil1!$A$11:$G$29,4),IF(AND(H38>1999,H38<2002),VLOOKUP(I38,Feuil1!$A$11:$G$29,3),VLOOKUP(I38,Feuil1!$A$11:$G$29,2))))),IF(OR(H38="SEN",H38<1995),VLOOKUP(I38,Feuil1!$G$11:$L$25,6),IF(AND(H38>1994,H38<1998),VLOOKUP(I38,Feuil1!$G$11:$L$25,5),IF(AND(H38>1997,H38<2000),VLOOKUP(I38,Feuil1!$G$11:$L$25,4),IF(AND(H38>1999,H38<2002),VLOOKUP(I38,Feuil1!$G$11:$L$25,3),VLOOKUP(I38,Feuil1!$G$11:$L$25,2))))))) -> FC1 53 | Y38: 78.99453978 | AB38: =T38-HLOOKUP(X38,Feuil1!$C$1:$BL$10,2,FALSE) -> 15 | AC38: =T38-HLOOKUP(X38,Feuil1!$C$1:$BL$10,3,FALSE) -> 5 | AD38: =T38-HLOOKUP(X38,Feuil1!$C$1:$BL$10,4,FALSE) -> -5 | AE38: =T38-HLOOKUP(X38,Feuil1!$C$1:$BL$10,5,FALSE) -> -15 | AF38: =T38-HLOOKUP(X38,Feuil1!$C$1:$BL$10,6,FALSE) -> -25 | AG38: =T38-HLOOKUP(X38,Feuil1!$C$1:$BL$10,7,FALSE) -> -35 | AH38: =T38-HLOOKUP(X38,Feuil1!$C$1:$BL$10,8,FALSE) -> -45 | AI38: =T38-HLOOKUP(X38,Feuil1!$C$1:$BL$10,9,FALSE) -> -55 | AJ38: =T38-HLOOKUP(X38,Feuil1!$C$1:$BL$10,10,FALSE) -> -950 | AQ38: DEP +
A39: F | B39: SEST | C39: CAZ | D39: 11 | E39: 385819 | F39: POIRSON | G39: Alicia | H39: 2000 | I39: 53 | J39: ASLDD TOULON | K39: F | L39: 10 | M39: 15 | N39: 20 | O39: 20 | P39: 25 | Q39: 27 | R39: -28 | S39: 27 | T39: 47 | U39: -59 | V39: DEP + | W39: 2 | X39: =IF(I39="","",IF(A39="H",IF(OR(H39="SEN",H39<1995),VLOOKUP(I39,Feuil1!$A$11:$G$29,6),IF(AND(H39>1994,H39<1998),VLOOKUP(I39,Feuil1!$A$11:$G$29,5),IF(AND(H39>1997,H39<2000),VLOOKUP(I39,Feuil1!$A$11:$G$29,4),IF(AND(H39>1999,H39<2002),VLOOKUP(I39,Feuil1!$A$11:$G$29,3),VLOOKUP(I39,Feuil1!$A$11:$G$29,2))))),IF(OR(H39="SEN",H39<1995),VLOOKUP(I39,Feuil1!$G$11:$L$25,6),IF(AND(H39>1994,H39<1998),VLOOKUP(I39,Feuil1!$G$11:$L$25,5),IF(AND(H39>1997,H39<2000),VLOOKUP(I39,Feuil1!$G$11:$L$25,4),IF(AND(H39>1999,H39<2002),VLOOKUP(I39,Feuil1!$G$11:$L$25,3),VLOOKUP(I39,Feuil1!$G$11:$L$25,2))))))) -> FC1 53 | Y39: 70.89687752 | AB39: =T39-HLOOKUP(X39,Feuil1!$C$1:$BL$10,2,FALSE) -> 12 | AC39: =T39-HLOOKUP(X39,Feuil1!$C$1:$BL$10,3,FALSE) -> 2 | AD39: =T39-HLOOKUP(X39,Feuil1!$C$1:$BL$10,4,FALSE) -> -8 | AE39: =T39-HLOOKUP(X39,Feuil1!$C$1:$BL$10,5,FALSE) -> -18 | AF39: =T39-HLOOKUP(X39,Feuil1!$C$1:$BL$10,6,FALSE) -> -28 | AG39: =T39-HLOOKUP(X39,Feuil1!$C$1:$BL$10,7,FALSE) -> -38 | AH39: =T39-HLOOKUP(X39,Feuil1!$C$1:$BL$10,8,FALSE) -> -48 | AI39: =T39-HLOOKUP(X39,Feuil1!$C$1:$BL$10,9,FALSE) -> -58 | AJ39: =T39-HLOOKUP(X39,Feuil1!$C$1:$BL$10,10,FALSE) -> -953 | AQ39: DEP +
A40: F | B40: DOM | C40: GUY | D40: 12 | E40: 382075 | F40: VEDDIE | G40: Tessa | H40: 2001 | I40: 50 | J40: ASCPG/Rémire Montjoly | K40: F | L40: 15 | M40: -20 | N40: -20 | O40: 15 | P40: 20 | Q40: -25 | R40: 25 | S40: 25 | T40: 40 | U40: -60 | V40: DEB | W40: 5 | X40: =IF(I40="","",IF(A40="H",IF(OR(H40="SEN",H40<1995),VLOOKUP(I40,Feuil1!$A$11:$G$29,6),IF(AND(H40>1994,H40<1998),VLOOKUP(I40,Feuil1!$A$11:$G$29,5),IF(AND(H40>1997,H40<2000),VLOOKUP(I40,Feuil1!$A$11:$G$29,4),IF(AND(H40>1999,H40<2002),VLOOKUP(I40,Feuil1!$A$11:$G$29,3),VLOOKUP(I40,Feuil1!$A$11:$G$29,2))))),IF(OR(H40="SEN",H40<1995),VLOOKUP(I40,Feuil1!$G$11:$L$25,6),IF(AND(H40>1994,H40<1998),VLOOKUP(I40,Feuil1!$G$11:$L$25,5),IF(AND(H40>1997,H40<2000),VLOOKUP(I40,Feuil1!$G$11:$L$25,4),IF(AND(H40>1999,H40<2002),VLOOKUP(I40,Feuil1!$G$11:$L$25,3),VLOOKUP(I40,Feuil1!$G$11:$L$25,2))))))) -> FC1 53 | Y40: 63.30242872 | AB40: =T40-HLOOKUP(X40,Feuil1!$C$1:$BL$10,2,FALSE) -> 5 | AC40: =T40-HLOOKUP(X40,Feuil1!$C$1:$BL$10,3,FALSE) -> -5 | AD40: =T40-HLOOKUP(X40,Feuil1!$C$1:$BL$10,4,FALSE) -> -15 | AE40: =T40-HLOOKUP(X40,Feuil1!$C$1:$BL$10,5,FALSE) -> -25 | AF40: =T40-HLOOKUP(X40,Feuil1!$C$1:$BL$10,6,FALSE) -> -35 | AG40: =T40-HLOOKUP(X40,Feuil1!$C$1:$BL$10,7,FALSE) -> -45 | AH40: =T40-HLOOKUP(X40,Feuil1!$C$1:$BL$10,8,FALSE) -> -55 | AI40: =T40-HLOOKUP(X40,Feuil1!$C$1:$BL$10,9,FALSE) -> -65 | AJ40: =T40-HLOOKUP(X40,Feuil1!$C$1:$BL$10,10,FALSE) -> -960 | AQ40: DEB
AB41: =T41-HLOOKUP(X41,Feuil1!$C$1:$BL$10,2,FALSE) ->  | AC41: =T41-HLOOKUP(X41,Feuil1!$C$1:$BL$10,3,FALSE) ->  | AD41: =T41-HLOOKUP(X41,Feuil1!$C$1:$BL$10,4,FALSE) ->  | AE41: =T41-HLOOKUP(X41,Feuil1!$C$1:$BL$10,5,FALSE) ->  | AF41: =T41-HLOOKUP(X41,Feuil1!$C$1:$BL$10,6,FALSE) ->  | AG41: =T41-HLOOKUP(X41,Feuil1!$C$1:$BL$10,7,FALSE) ->  | AH41: =T41-HLOOKUP(X41,Feuil1!$C$1:$BL$10,8,FALSE) ->  | AI41: =T41-HLOOKUP(X41,Feuil1!$C$1:$BL$10,9,FALSE) ->  | AJ41: =T41-HLOOKUP(X41,Feuil1!$C$1:$BL$10,10,FALSE) ->  | AQ41: =IF(AJ41>=0,$AJ$4,IF(AI41>=0,$AI$4,IF(AH41>=0,$AH$4,IF(AG41>=0,$AG$4,IF(AF41>=0,$AF$4,IF(AE41>=0,$AE$4,IF(AD41>=0,$AD$4,IF(AC41>=0,$AC$4,$AB$4)))))))) -> 
A42: F | B42: N | C42: NPC | D42: 1 | E42: 359845 | F42: PARANTHOEN | G42: Kimberley | H42: 2000 | I42: 57.27 | J42: C.A.ROSENDAEL | K42: F | L42: 35 | M42: 38 | N42: -40 | O42: =IF(H42="","",IF(MAXA(L42:N42)<=0,0,MAXA(L42:N42))) -> 38 | P42: 48 | Q42: -52 | R42: 52 | S42: =IF(H42="","",IF(MAXA(P42:R42)<=0,0,MAXA(P42:R42))) -> 52 | T42: =IF(H42="","",IF(OR(O42=0,S42=0),0,O42+S42)) -> 90 | U42: =T42-I42*2 -> -24.54 | V42: =IF(H42="","",AQ42) -> NAT + | W42: =IF(AJ42>=0,AJ42,IF(AI42>=0,AI42,IF(AH42>=0,AH42,IF(AG42>=0,AG42,IF(AF42>=0,AF42,IF(AE42>=0,AE42,IF(AD42>=0,AD42,IF(AC42>=0,AC42,AB42)))))))) -> 0 | X42: =IF(I42="","",IF(A42="H",IF(OR(H42="SEN",H42<1995),VLOOKUP(I42,Feuil1!$A$11:$G$29,6),IF(AND(H42>1994,H42<1998),VLOOKUP(I42,Feuil1!$A$11:$G$29,5),IF(AND(H42>1997,H42<2000),VLOOKUP(I42,Feuil1!$A$11:$G$29,4),IF(AND(H42>1999,H42<2002),VLOOKUP(I42,Feuil1!$A$11:$G$29,3),VLOOKUP(I42,Feuil1!$A$11:$G$29,2))))),IF(OR(H42="SEN",H42<1995),VLOOKUP(I42,Feuil1!$G$11:$L$25,6),IF(AND(H42>1994,H42<1998),VLOOKUP(I42,Feuil1!$G$11:$L$25,5),IF(AND(H42>1997,H42<2000),VLOOKUP(I42,Feuil1!$G$11:$L$25,4),IF(AND(H42>1999,H42<2002),VLOOKUP(I42,Feuil1!$G$11:$L$25,3),VLOOKUP(I42,Feuil1!$G$11:$L$25,2))))))) -> FC1 58 | Y42: =IF(I42="","",IF(A42="H",10^(0.794358141*LOG(I42/174.393)^2)*T42,IF(A42="F",10^(0.89726074*LOG(I42/148.026)^2)*T42,""))) -> 127.8942517 | AB42: =T42-HLOOKUP(X42,Feuil1!$C$1:$BL$10,2,FALSE) -> 50 | AC42: =T42-HLOOKUP(X42,Feuil1!$C$1:$BL$10,3,FALSE) -> 40 | AD42: =T42-HLOOKUP(X42,Feuil1!$C$1:$BL$10,4,FALSE) -> 30 | AE42: =T42-HLOOKUP(X42,Feuil1!$C$1:$BL$10,5,FALSE) -> 20 | AF42: =T42-HLOOKUP(X42,Feuil1!$C$1:$BL$10,6,FALSE) -> 10 | AG42: =T42-HLOOKUP(X42,Feuil1!$C$1:$BL$10,7,FALSE) -> 0 | AH42: =T42-HLOOKUP(X42,Feuil1!$C$1:$BL$10,8,FALSE) -> -10 | AI42: =T42-HLOOKUP(X42,Feuil1!$C$1:$BL$10,9,FALSE) -> -25 | AJ42: =T42-HLOOKUP(X42,Feuil1!$C$1:$BL$10,10,FALSE) -> -910 | AQ42: =IF(AJ42>=0,$AJ$4,IF(AI42>=0,$AI$4,IF(AH42>=0,$AH$4,IF(AG42>=0,$AG$4,IF(AF42>=0,$AF$4,IF(AE42>=0,$AE$4,IF(AD42>=0,$AD$4,IF(AC42>=0,$AC$4,$AB$4)))))))) -> NAT +
A43: F | B43: NE | C43: CHA | D43: 2 | E43: 320210 | F43: ROEHRIG | G43: Ludivine | H43: 2000 | I43: 54.9 | J43: Langres HM | K43: F | L43: 35 | M43: 38 | N43: 40 | O43: 40 | P43: 45 | Q43: - | R43: - | S43: 45 | T43: 85 | U43: -24.8 | V43: FED + | W43: 5 | X43: =IF(I43="","",IF(A43="H",IF(OR(H43="SEN",H43<1995),VLOOKUP(I43,Feuil1!$A$11:$G$29,6),IF(AND(H43>1994,H43<1998),VLOOKUP(I43,Feuil1!$A$11:$G$29,5),IF(AND(H43>1997,H43<2000),VLOOKUP(I43,Feuil1!$A$11:$G$29,4),IF(AND(H43>1999,H43<2002),VLOOKUP(I43,Feuil1!$A$11:$G$29,3),VLOOKUP(I43,Feuil1!$A$11:$G$29,2))))),IF(OR(H43="SEN",H43<1995),VLOOKUP(I43,Feuil1!$G$11:$L$25,6),IF(AND(H43>1994,H43<1998),VLOOKUP(I43,Feuil1!$G$11:$L$25,5),IF(AND(H43>1997,H43<2000),VLOOKUP(I43,Feuil1!$G$11:$L$25,4),IF(AND(H43>1999,H43<2002),VLOOKUP(I43,Feuil1!$G$11:$L$25,3),VLOOKUP(I43,Feuil1!$G$11:$L$25,2))))))) -> FC1 58 | Y43: 124.7135894 | AB43: =T43-HLOOKUP(X43,Feuil1!$C$1:$BL$10,2,FALSE) -> 45 | AC43: =T43-HLOOKUP(X43,Feuil1!$C$1:$BL$10,3,FALSE) -> 35 | AD43: =T43-HLOOKUP(X43,Feuil1!$C$1:$BL$10,4,FALSE) -> 25 | AE43: =T43-HLOOKUP(X43,Feuil1!$C$1:$BL$10,5,FALSE) -> 15 | AF43: =T43-HLOOKUP(X43,Feuil1!$C$1:$BL$10,6,FALSE) -> 5 | AG43: =T43-HLOOKUP(X43,Feuil1!$C$1:$BL$10,7,FALSE) -> -5 | AH43: =T43-HLOOKUP(X43,Feuil1!$C$1:$BL$10,8,FALSE) -> -15 | AI43: =T43-HLOOKUP(X43,Feuil1!$C$1:$BL$10,9,FALSE) -> -30 | AJ43: =T43-HLOOKUP(X43,Feuil1!$C$1:$BL$10,10,FALSE) -> -915 | AQ43: FED +
A44: F | B44: SO | C44: LIM | D44: 3 | E44: 326707 | F44: LAMARGUE | G44: Loriane | H44: 2000 | I44: 53.1 | J44: LIMOGES AVA | K44: F | L44: 30 | M44: 33 | N44: -34 | O44: 33 | P44: 42 | Q44: 45 | R44: 47 | S44: 47 | T44: 80 | U44: -26.2 | V44: FED + | W44: 0 | X44: =IF(I44="","",IF(A44="H",IF(OR(H44="SEN",H44<1995),VLOOKUP(I44,Feuil1!$A$11:$G$29,6),IF(AND(H44>1994,H44<1998),VLOOKUP(I44,Feuil1!$A$11:$G$29,5),IF(AND(H44>1997,H44<2000),VLOOKUP(I44,Feuil1!$A$11:$G$29,4),IF(AND(H44>1999,H44<2002),VLOOKUP(I44,Feuil1!$A$11:$G$29,3),VLOOKUP(I44,Feuil1!$A$11:$G$29,2))))),IF(OR(H44="SEN",H44<1995),VLOOKUP(I44,Feuil1!$G$11:$L$25,6),IF(AND(H44>1994,H44<1998),VLOOKUP(I44,Feuil1!$G$11:$L$25,5),IF(AND(H44>1997,H44<2000),VLOOKUP(I44,Feuil1!$G$11:$L$25,4),IF(AND(H44>1999,H44<2002),VLOOKUP(I44,Feuil1!$G$11:$L$25,3),VLOOKUP(I44,Feuil1!$G$11:$L$25,2))))))) -> FC1 58 | Y44: 120.4937537 | AB44: =T44-HLOOKUP(X44,Feuil1!$C$1:$BL$10,2,FALSE) -> 40 | AC44: =T44-HLOOKUP(X44,Feuil1!$C$1:$BL$10,3,FALSE) -> 30 | AD44: =T44-HLOOKUP(X44,Feuil1!$C$1:$BL$10,4,FALSE) -> 20 | AE44: =T44-HLOOKUP(X44,Feuil1!$C$1:$BL$10,5,FALSE) -> 10 | AF44: =T44-HLOOKUP(X44,Feuil1!$C$1:$BL$10,6,FALSE) -> 0 | AG44: =T44-HLOOKUP(X44,Feuil1!$C$1:$BL$10,7,FALSE) -> -10 | AH44: =T44-HLOOKUP(X44,Feuil1!$C$1:$BL$10,8,FALSE) -> -20 | AI44: =T44-HLOOKUP(X44,Feuil1!$C$1:$BL$10,9,FALSE) -> -35 | AJ44: =T44-HLOOKUP(X44,Feuil1!$C$1:$BL$10,10,FALSE) -> -920 | AQ44: FED +
A45: F | B45: SO | C45: AQU | D45: 4 | E45: 277040 | F45: GIRAUD | G45: Hectorine | H45: 2000 | I45: 57.9 | J45: ASOA Aquitaine | K45: F | L45: 33 | M45: 35 | N45: -36 | O45: 35 | P45: 43 | Q45: 45 | R45: -47 | S45: 45 | T45: 80 | U45: -35.8 | V45: FED + | W45: 0 | X45: =IF(I45="","",IF(A45="H",IF(OR(H45="SEN",H45<1995),VLOOKUP(I45,Feuil1!$A$11:$G$29,6),IF(AND(H45>1994,H45<1998),VLOOKUP(I45,Feuil1!$A$11:$G$29,5),IF(AND(H45>1997,H45<2000),VLOOKUP(I45,Feuil1!$A$11:$G$29,4),IF(AND(H45>1999,H45<2002),VLOOKUP(I45,Feuil1!$A$11:$G$29,3),VLOOKUP(I45,Feuil1!$A$11:$G$29,2))))),IF(OR(H45="SEN",H45<1995),VLOOKUP(I45,Feuil1!$G$11:$L$25,6),IF(AND(H45>1994,H45<1998),VLOOKUP(I45,Feuil1!$G$11:$L$25,5),IF(AND(H45>1997,H45<2000),VLOOKUP(I45,Feuil1!$G$11:$L$25,4),IF(AND(H45>1999,H45<2002),VLOOKUP(I45,Feuil1!$G$11:$L$25,3),VLOOKUP(I45,Feuil1!$G$11:$L$25,2))))))) -> FC1 58 | Y45: 112.7722789 | AB45: =T45-HLOOKUP(X45,Feuil1!$C$1:$BL$10,2,FALSE) -> 40 | AC45: =T45-HLOOKUP(X45,Feuil1!$C$1:$BL$10,3,FALSE) -> 30 | AD45: =T45-HLOOKUP(X45,Feuil1!$C$1:$BL$10,4,FALSE) -> 20 | AE45: =T45-HLOOKUP(X45,Feuil1!$C$1:$BL$10,5,FALSE) -> 10 | AF45: =T45-HLOOKUP(X45,Feuil1!$C$1:$BL$10,6,FALSE) -> 0 | AG45: =T45-HLOOKUP(X45,Feuil1!$C$1:$BL$10,7,FALSE) -> -10 | AH45: =T45-HLOOKUP(X45,Feuil1!$C$1:$BL$10,8,FALSE) -> -20 | AI45: =T45-HLOOKUP(X45,Feuil1!$C$1:$BL$10,9,FALSE) -> -35 | AJ45: =T45-HLOOKUP(X45,Feuil1!$C$1:$BL$10,10,FALSE) -> -920 | AQ45: FED +
A46: F | B46: NE | C46: CHA | D46: 5 | E46: 355066 | F46: MECHIAKH | G46: Chloé | H46: 2001 | I46: 54.1 | J46: Langres HM | K46: F | L46: 26 | M46: 29 | N46: -31 | O46: 29 | P46: 35 | Q46: 38 | R46: 41 | S46: 41 | T46: 70 | U46: -38.2 | V46: IRG + | W46: 0 | X46: =IF(I46="","",IF(A46="H",IF(OR(H46="SEN",H46<1995),VLOOKUP(I46,Feuil1!$A$11:$G$29,6),IF(AND(H46>1994,H46<1998),VLOOKUP(I46,Feuil1!$A$11:$G$29,5),IF(AND(H46>1997,H46<2000),VLOOKUP(I46,Feuil1!$A$11:$G$29,4),IF(AND(H46>1999,H46<2002),VLOOKUP(I46,Feuil1!$A$11:$G$29,3),VLOOKUP(I46,Feuil1!$A$11:$G$29,2))))),IF(OR(H46="SEN",H46<1995),VLOOKUP(I46,Feuil1!$G$11:$L$25,6),IF(AND(H46>1994,H46<1998),VLOOKUP(I46,Feuil1!$G$11:$L$25,5),IF(AND(H46>1997,H46<2000),VLOOKUP(I46,Feuil1!$G$11:$L$25,4),IF(AND(H46>1999,H46<2002),VLOOKUP(I46,Feuil1!$G$11:$L$25,3),VLOOKUP(I46,Feuil1!$G$11:$L$25,2))))))) -> FC1 58 | Y46: 103.8860927 | AB46: =T46-HLOOKUP(X46,Feuil1!$C$1:$BL$10,2,FALSE) -> 30 | AC46: =T46-HLOOKUP(X46,Feuil1!$C$1:$BL$10,3,FALSE) -> 20 | AD46: =T46-HLOOKUP(X46,Feuil1!$C$1:$BL$10,4,FALSE) -> 10 | AE46: =T46-HLOOKUP(X46,Feuil1!$C$1:$BL$10,5,FALSE) -> 0 | AF46: =T46-HLOOKUP(X46,Feuil1!$C$1:$BL$10,6,FALSE) -> -10 | AG46: =T46-HLOOKUP(X46,Feuil1!$C$1:$BL$10,7,FALSE) -> -20 | AH46: =T46-HLOOKUP(X46,Feuil1!$C$1:$BL$10,8,FALSE) -> -30 | AI46: =T46-HLOOKUP(X46,Feuil1!$C$1:$BL$10,9,FALSE) -> -45 | AJ46: =T46-HLOOKUP(X46,Feuil1!$C$1:$BL$10,10,FALSE) -> -930 | AQ46: IRG +
A47: F | B47: SEST | C47: PRO | D47: 6 | E47: 391362 | F47: PEREIRA MARTIN | G47: TATIANA | H47: 2001 | I47: 57.5 | J47: EEAR MONTEUX | K47: F | L47: 18 | M47: -22 | N47: 22 | O47: 22 | P47: 28 | Q47: 32 | R47: 35 | S47: 35 | T47: 57 | U47: -58 | V47: DEP + | W47: 7 | X47: =IF(I47="","",IF(A47="H",IF(OR(H47="SEN",H47<1995),VLOOKUP(I47,Feuil1!$A$11:$G$29,6),IF(AND(H47>1994,H47<1998),VLOOKUP(I47,Feuil1!$A$11:$G$29,5),IF(AND(H47>1997,H47<2000),VLOOKUP(I47,Feuil1!$A$11:$G$29,4),IF(AND(H47>1999,H47<2002),VLOOKUP(I47,Feuil1!$A$11:$G$29,3),VLOOKUP(I47,Feuil1!$A$11:$G$29,2))))),IF(OR(H47="SEN",H47<1995),VLOOKUP(I47,Feuil1!$G$11:$L$25,6),IF(AND(H47>1994,H47<1998),VLOOKUP(I47,Feuil1!$G$11:$L$25,5),IF(AND(H47>1997,H47<2000),VLOOKUP(I47,Feuil1!$G$11:$L$25,4),IF(AND(H47>1999,H47<2002),VLOOKUP(I47,Feuil1!$G$11:$L$25,3),VLOOKUP(I47,Feuil1!$G$11:$L$25,2))))))) -> FC1 58 | Y47: 80.76028838 | AB47: =T47-HLOOKUP(X47,Feuil1!$C$1:$BL$10,2,FALSE) -> 17 | AC47: =T47-HLOOKUP(X47,Feuil1!$C$1:$BL$10,3,FALSE) -> 7 | AD47: =T47-HLOOKUP(X47,Feuil1!$C$1:$BL$10,4,FALSE) -> -3 | AE47: =T47-HLOOKUP(X47,Feuil1!$C$1:$BL$10,5,FALSE) -> -13 | AF47: =T47-HLOOKUP(X47,Feuil1!$C$1:$BL$10,6,FALSE) -> -23 | AG47: =T47-HLOOKUP(X47,Feuil1!$C$1:$BL$10,7,FALSE) -> -33 | AH47: =T47-HLOOKUP(X47,Feuil1!$C$1:$BL$10,8,FALSE) -> -43 | AI47: =T47-HLOOKUP(X47,Feuil1!$C$1:$BL$10,9,FALSE) -> -58 | AJ47: =T47-HLOOKUP(X47,Feuil1!$C$1:$BL$10,10,FALSE) -> -943 | AQ47: DEP +
A48: F | B48: SEST | C48: CAZ | D48: 7 | E48: 385819 | F48: POIRSON | G48: Alicia | H48: 2000 | I48: 57 | J48: ASLDD TOULON | K48: F | L48: -17 | M48: 17 | N48: 19 | O48: 19 | P48: -24 | Q48: 26 | R48: 28 | S48: 28 | T48: 47 | U48: -67 | V48: DEB | W48: 7 | X48: =IF(I48="","",IF(A48="H",IF(OR(H48="SEN",H48<1995),VLOOKUP(I48,Feuil1!$A$11:$G$29,6),IF(AND(H48>1994,H48<1998),VLOOKUP(I48,Feuil1!$A$11:$G$29,5),IF(AND(H48>1997,H48<2000),VLOOKUP(I48,Feuil1!$A$11:$G$29,4),IF(AND(H48>1999,H48<2002),VLOOKUP(I48,Feuil1!$A$11:$G$29,3),VLOOKUP(I48,Feuil1!$A$11:$G$29,2))))),IF(OR(H48="SEN",H48<1995),VLOOKUP(I48,Feuil1!$G$11:$L$25,6),IF(AND(H48>1994,H48<1998),VLOOKUP(I48,Feuil1!$G$11:$L$25,5),IF(AND(H48>1997,H48<2000),VLOOKUP(I48,Feuil1!$G$11:$L$25,4),IF(AND(H48>1999,H48<2002),VLOOKUP(I48,Feuil1!$G$11:$L$25,3),VLOOKUP(I48,Feuil1!$G$11:$L$25,2))))))) -> FC1 58 | Y48: 67.02379885 | AB48: =T48-HLOOKUP(X48,Feuil1!$C$1:$BL$10,2,FALSE) -> 7 | AC48: =T48-HLOOKUP(X48,Feuil1!$C$1:$BL$10,3,FALSE) -> -3 | AD48: =T48-HLOOKUP(X48,Feuil1!$C$1:$BL$10,4,FALSE) -> -13 | AE48: =T48-HLOOKUP(X48,Feuil1!$C$1:$BL$10,5,FALSE) -> -23 | AF48: =T48-HLOOKUP(X48,Feuil1!$C$1:$BL$10,6,FALSE) -> -33 | AG48: =T48-HLOOKUP(X48,Feuil1!$C$1:$BL$10,7,FALSE) -> -43 | AH48: =T48-HLOOKUP(X48,Feuil1!$C$1:$BL$10,8,FALSE) -> -53 | AI48: =T48-HLOOKUP(X48,Feuil1!$C$1:$BL$10,9,FALSE) -> -68 | AJ48: =T48-HLOOKUP(X48,Feuil1!$C$1:$BL$10,10,FALSE) -> -953 | AQ48: DEB
A49: F | B49: NE | C49: ALS | D49: 8 | E49: 374732 | F49: FERON-GRIMM | G49: LILOU | H49: 2001 | I49: 56.3 | J49: ASPTT Strasbourg | K49: F | L49: 17 | M49: 20 | N49: -22 | O49: 20 | P49: -21 | Q49: 21 | R49: 24 | S49: 24 | T49: 44 | U49: -68.6 | V49: DEB | W49: 4 | X49: =IF(I49="","",IF(A49="H",IF(OR(H49="SEN",H49<1995),VLOOKUP(I49,Feuil1!$A$11:$G$29,6),IF(AND(H49>1994,H49<1998),VLOOKUP(I49,Feuil1!$A$11:$G$29,5),IF(AND(H49>1997,H49<2000),VLOOKUP(I49,Feuil1!$A$11:$G$29,4),IF(AND(H49>1999,H49<2002),VLOOKUP(I49,Feuil1!$A$11:$G$29,3),VLOOKUP(I49,Feuil1!$A$11:$G$29,2))))),IF(OR(H49="SEN",H49<1995),VLOOKUP(I49,Feuil1!$G$11:$L$25,6),IF(AND(H49>1994,H49<1998),VLOOKUP(I49,Feuil1!$G$11:$L$25,5),IF(AND(H49>1997,H49<2000),VLOOKUP(I49,Feuil1!$G$11:$L$25,4),IF(AND(H49>1999,H49<2002),VLOOKUP(I49,Feuil1!$G$11:$L$25,3),VLOOKUP(I49,Feuil1!$G$11:$L$25,2))))))) -> FC1 58 | Y49: 63.32877297 | AB49: =T49-HLOOKUP(X49,Feuil1!$C$1:$BL$10,2,FALSE) -> 4 | AC49: =T49-HLOOKUP(X49,Feuil1!$C$1:$BL$10,3,FALSE) -> -6 | AD49: =T49-HLOOKUP(X49,Feuil1!$C$1:$BL$10,4,FALSE) -> -16 | AE49: =T49-HLOOKUP(X49,Feuil1!$C$1:$BL$10,5,FALSE) -> -26 | AF49: =T49-HLOOKUP(X49,Feuil1!$C$1:$BL$10,6,FALSE) -> -36 | AG49: =T49-HLOOKUP(X49,Feuil1!$C$1:$BL$10,7,FALSE) -> -46 | AH49: =T49-HLOOKUP(X49,Feuil1!$C$1:$BL$10,8,FALSE) -> -56 | AI49: =T49-HLOOKUP(X49,Feuil1!$C$1:$BL$10,9,FALSE) -> -71 | AJ49: =T49-HLOOKUP(X49,Feuil1!$C$1:$BL$10,10,FALSE) -> -956 | AQ49: DEB
A50: F | B50: CO | C50: BRE | D50: 9 | E50: 381211 | F50: VAN KERKHOVE | G50: Charline | H50: 2001 | I50: 57.8 | J50: AL Quimper | K50: F | L50: 15 | M50: 18 | N50: 20 | O50: 20 | P50: 20 | Q50: -23 | R50: 23 | S50: 23 | T50: 43 | U50: -72.6 | V50: DEB | W50: 3 | X50: =IF(I50="","",IF(A50="H",IF(OR(H50="SEN",H50<1995),VLOOKUP(I50,Feuil1!$A$11:$G$29,6),IF(AND(H50>1994,H50<1998),VLOOKUP(I50,Feuil1!$A$11:$G$29,5),IF(AND(H50>1997,H50<2000),VLOOKUP(I50,Feuil1!$A$11:$G$29,4),IF(AND(H50>1999,H50<2002),VLOOKUP(I50,Feuil1!$A$11:$G$29,3),VLOOKUP(I50,Feuil1!$A$11:$G$29,2))))),IF(OR(H50="SEN",H50<1995),VLOOKUP(I50,Feuil1!$G$11:$L$25,6),IF(AND(H50>1994,H50<1998),VLOOKUP(I50,Feuil1!$G$11:$L$25,5),IF(AND(H50>1997,H50<2000),VLOOKUP(I50,Feuil1!$G$11:$L$25,4),IF(AND(H50>1999,H50<2002),VLOOKUP(I50,Feuil1!$G$11:$L$25,3),VLOOKUP(I50,Feuil1!$G$11:$L$25,2))))))) -> FC1 58 | Y50: 60.69187112 | AB50: =T50-HLOOKUP(X50,Feuil1!$C$1:$BL$10,2,FALSE) -> 3 | AC50: =T50-HLOOKUP(X50,Feuil1!$C$1:$BL$10,3,FALSE) -> -7 | AD50: =T50-HLOOKUP(X50,Feuil1!$C$1:$BL$10,4,FALSE) -> -17 | AE50: =T50-HLOOKUP(X50,Feuil1!$C$1:$BL$10,5,FALSE) -> -27 | AF50: =T50-HLOOKUP(X50,Feuil1!$C$1:$BL$10,6,FALSE) -> -37 | AG50: =T50-HLOOKUP(X50,Feuil1!$C$1:$BL$10,7,FALSE) -> -47 | AH50: =T50-HLOOKUP(X50,Feuil1!$C$1:$BL$10,8,FALSE) -> -57 | AI50: =T50-HLOOKUP(X50,Feuil1!$C$1:$BL$10,9,FALSE) -> -72 | AJ50: =T50-HLOOKUP(X50,Feuil1!$C$1:$BL$10,10,FALSE) -> -957 | AQ50: DEB
AB51: =T51-HLOOKUP(X51,Feuil1!$C$1:$BL$10,2,FALSE) ->  | AC51: =T51-HLOOKUP(X51,Feuil1!$C$1:$BL$10,3,FALSE) ->  | AD51: =T51-HLOOKUP(X51,Feuil1!$C$1:$BL$10,4,FALSE) ->  | AE51: =T51-HLOOKUP(X51,Feuil1!$C$1:$BL$10,5,FALSE) ->  | AF51: =T51-HLOOKUP(X51,Feuil1!$C$1:$BL$10,6,FALSE) ->  | AG51: =T51-HLOOKUP(X51,Feuil1!$C$1:$BL$10,7,FALSE) ->  | AH51: =T51-HLOOKUP(X51,Feuil1!$C$1:$BL$10,8,FALSE) ->  | AI51: =T51-HLOOKUP(X51,Feuil1!$C$1:$BL$10,9,FALSE) ->  | AJ51: =T51-HLOOKUP(X51,Feuil1!$C$1:$BL$10,10,FALSE) ->  | AQ51: =IF(AJ51>=0,$AJ$4,IF(AI51>=0,$AI$4,IF(AH51>=0,$AH$4,IF(AG51>=0,$AG$4,IF(AF51>=0,$AF$4,IF(AE51>=0,$AE$4,IF(AD51>=0,$AD$4,IF(AC51>=0,$AC$4,$AB$4)))))))) -> 
A52: F | B52: NE | C52: BOU | D52: 1 | E52: 363267 | F52: GRAILLOT | G52: Vicky | H52: 2000 | I52: 60.3 | J52: HMDB21 | K52: F | L52: 49 | M52: 52 | N52: 55 | O52: =IF(H52="","",IF(MAXA(L52:N52)<=0,0,MAXA(L52:N52))) -> 55 | P52: 62 | Q52: -65 | R52: 65 | S52: =IF(H52="","",IF(MAXA(P52:R52)<=0,0,MAXA(P52:R52))) -> 65 | T52: =IF(H52="","",IF(OR(O52=0,S52=0),0,O52+S52)) -> 120 | U52: =T52-I52*2 -> -0.6 | V52: =IF(H52="","",AQ52) -> INTB + | W52: =IF(AJ52>=0,AJ52,IF(AI52>=0,AI52,IF(AH52>=0,AH52,IF(AG52>=0,AG52,IF(AF52>=0,AF52,IF(AE52>=0,AE52,IF(AD52>=0,AD52,IF(AC52>=0,AC52,AB52)))))))) -> 10 | X52: =IF(I52="","",IF(A52="H",IF(OR(H52="SEN",H52<1995),VLOOKUP(I52,Feuil1!$A$11:$G$29,6),IF(AND(H52>1994,H52<1998),VLOOKUP(I52,Feuil1!$A$11:$G$29,5),IF(AND(H52>1997,H52<2000),VLOOKUP(I52,Feuil1!$A$11:$G$29,4),IF(AND(H52>1999,H52<2002),VLOOKUP(I52,Feuil1!$A$11:$G$29,3),VLOOKUP(I52,Feuil1!$A$11:$G$29,2))))),IF(OR(H52="SEN",H52<1995),VLOOKUP(I52,Feuil1!$G$11:$L$25,6),IF(AND(H52>1994,H52<1998),VLOOKUP(I52,Feuil1!$G$11:$L$25,5),IF(AND(H52>1997,H52<2000),VLOOKUP(I52,Feuil1!$G$11:$L$25,4),IF(AND(H52>1999,H52<2002),VLOOKUP(I52,Feuil1!$G$11:$L$25,3),VLOOKUP(I52,Feuil1!$G$11:$L$25,2))))))) -> FC1 63 | Y52: =IF(I52="","",IF(A52="H",10^(0.794358141*LOG(I52/174.393)^2)*T52,IF(A52="F",10^(0.89726074*LOG(I52/148.026)^2)*T52,""))) -> 164.311926 | AB52: =T52-HLOOKUP(X52,Feuil1!$C$1:$BL$10,2,FALSE) -> 75 | AC52: =T52-HLOOKUP(X52,Feuil1!$C$1:$BL$10,3,FALSE) -> 65 | AD52: =T52-HLOOKUP(X52,Feuil1!$C$1:$BL$10,4,FALSE) -> 55 | AE52: =T52-HLOOKUP(X52,Feuil1!$C$1:$BL$10,5,FALSE) -> 45 | AF52: =T52-HLOOKUP(X52,Feuil1!$C$1:$BL$10,6,FALSE) -> 35 | AG52: =T52-HLOOKUP(X52,Feuil1!$C$1:$BL$10,7,FALSE) -> 25 | AH52: =T52-HLOOKUP(X52,Feuil1!$C$1:$BL$10,8,FALSE) -> 10 | AI52: =T52-HLOOKUP(X52,Feuil1!$C$1:$BL$10,9,FALSE) -> -5 | AJ52: =T52-HLOOKUP(X52,Feuil1!$C$1:$BL$10,10,FALSE) -> -880 | AQ52: =IF(AJ52>=0,$AJ$4,IF(AI52>=0,$AI$4,IF(AH52>=0,$AH$4,IF(AG52>=0,$AG$4,IF(AF52>=0,$AF$4,IF(AE52>=0,$AE$4,IF(AD52>=0,$AD$4,IF(AC52>=0,$AC$4,$AB$4)))))))) -> INTB +
A53: F | B53: SO | C53: AQU | D53: 2 | E53: 277040 | F53: GIRAUD | G53: Hectorine | H53: 2000 | I53: 58.1 | J53: ASOA Aquitaine | K53: F | L53: 29 | M53: 31 | N53: 33 | O53: 33 | P53: 39 | Q53: 42 | R53: 45 | S53: 45 | T53: 78 | U53: -38.2 | V53: IRG + | W53: 3 | X53: =IF(I53="","",IF(A53="H",IF(OR(H53="SEN",H53<1995),VLOOKUP(I53,Feuil1!$A$11:$G$29,6),IF(AND(H53>1994,H53<1998),VLOOKUP(I53,Feuil1!$A$11:$G$29,5),IF(AND(H53>1997,H53<2000),VLOOKUP(I53,Feuil1!$A$11:$G$29,4),IF(AND(H53>1999,H53<2002),VLOOKUP(I53,Feuil1!$A$11:$G$29,3),VLOOKUP(I53,Feuil1!$A$11:$G$29,2))))),IF(OR(H53="SEN",H53<1995),VLOOKUP(I53,Feuil1!$G$11:$L$25,6),IF(AND(H53>1994,H53<1998),VLOOKUP(I53,Feuil1!$G$11:$L$25,5),IF(AND(H53>1997,H53<2000),VLOOKUP(I53,Feuil1!$G$11:$L$25,4),IF(AND(H53>1999,H53<2002),VLOOKUP(I53,Feuil1!$G$11:$L$25,3),VLOOKUP(I53,Feuil1!$G$11:$L$25,2))))))) -> FC1 63 | Y53: 109.6764622 | AB53: =T53-HLOOKUP(X53,Feuil1!$C$1:$BL$10,2,FALSE) -> 33 | AC53: =T53-HLOOKUP(X53,Feuil1!$C$1:$BL$10,3,FALSE) -> 23 | AD53: =T53-HLOOKUP(X53,Feuil1!$C$1:$BL$10,4,FALSE) -> 13 | AE53: =T53-HLOOKUP(X53,Feuil1!$C$1:$BL$10,5,FALSE) -> 3 | AF53: =T53-HLOOKUP(X53,Feuil1!$C$1:$BL$10,6,FALSE) -> -7 | AG53: =T53-HLOOKUP(X53,Feuil1!$C$1:$BL$10,7,FALSE) -> -17 | AH53: =T53-HLOOKUP(X53,Feuil1!$C$1:$BL$10,8,FALSE) -> -32 | AI53: =T53-HLOOKUP(X53,Feuil1!$C$1:$BL$10,9,FALSE) -> -47 | AJ53: =T53-HLOOKUP(X53,Feuil1!$C$1:$BL$10,10,FALSE) -> -922 | AQ53: IRG +
A54: F | B54: SEST | C54: AUV | D54: 3 | E54: 332457 | F54: FILIQUIER | G54: léa | H54: 2001 | I54: 59.7 | J54: CHM AURILLAC | K54: F | L54: 25 | M54: 27 | N54: -30 | O54: 27 | P54: 35 | Q54: 40 | R54: 42 | S54: 42 | T54: 69 | U54: -50.4 | V54: REG + | W54: 4 | X54: =IF(I54="","",IF(A54="H",IF(OR(H54="SEN",H54<1995),VLOOKUP(I54,Feuil1!$A$11:$G$29,6),IF(AND(H54>1994,H54<1998),VLOOKUP(I54,Feuil1!$A$11:$G$29,5),IF(AND(H54>1997,H54<2000),VLOOKUP(I54,Feuil1!$A$11:$G$29,4),IF(AND(H54>1999,H54<2002),VLOOKUP(I54,Feuil1!$A$11:$G$29,3),VLOOKUP(I54,Feuil1!$A$11:$G$29,2))))),IF(OR(H54="SEN",H54<1995),VLOOKUP(I54,Feuil1!$G$11:$L$25,6),IF(AND(H54>1994,H54<1998),VLOOKUP(I54,Feuil1!$G$11:$L$25,5),IF(AND(H54>1997,H54<2000),VLOOKUP(I54,Feuil1!$G$11:$L$25,4),IF(AND(H54>1999,H54<2002),VLOOKUP(I54,Feuil1!$G$11:$L$25,3),VLOOKUP(I54,Feuil1!$G$11:$L$25,2))))))) -> FC1 63 | Y54: 95.1466516 | AB54: =T54-HLOOKUP(X54,Feuil1!$C$1:$BL$10,2,FALSE) -> 24 | AC54: =T54-HLOOKUP(X54,Feuil1!$C$1:$BL$10,3,FALSE) -> 14 | AD54: =T54-HLOOKUP(X54,Feuil1!$C$1:$BL$10,4,FALSE) -> 4 | AE54: =T54-HLOOKUP(X54,Feuil1!$C$1:$BL$10,5,FALSE) -> -6 | AF54: =T54-HLOOKUP(X54,Feuil1!$C$1:$BL$10,6,FALSE) -> -16 | AG54: =T54-HLOOKUP(X54,Feuil1!$C$1:$BL$10,7,FALSE) -> -26 | AH54: =T54-HLOOKUP(X54,Feuil1!$C$1:$BL$10,8,FALSE) -> -41 | AI54: =T54-HLOOKUP(X54,Feuil1!$C$1:$BL$10,9,FALSE) -> -56 | AJ54: =T54-HLOOKUP(X54,Feuil1!$C$1:$BL$10,10,FALSE) -> -931 | AQ54: REG +
A55: F | B55: CO | C55: BRE | D55: 4 | E55: 381211 | F55: VAN KERKHOVE | G55: Charline | H55: 2001 | I55: 59.9 | J55: AL Quimper | K55: F | L55: 20 | M55: 23 | N55: 26 | O55: 26 | P55: 29 | Q55: 32 | R55: -35 | S55: 32 | T55: 58 | U55: -61.8 | V55: DEP + | W55: 3 | X55: =IF(I55="","",IF(A55="H",IF(OR(H55="SEN",H55<1995),VLOOKUP(I55,Feuil1!$A$11:$G$29,6),IF(AND(H55>1994,H55<1998),VLOOKUP(I55,Feuil1!$A$11:$G$29,5),IF(AND(H55>1997,H55<2000),VLOOKUP(I55,Feuil1!$A$11:$G$29,4),IF(AND(H55>1999,H55<2002),VLOOKUP(I55,Feuil1!$A$11:$G$29,3),VLOOKUP(I55,Feuil1!$A$11:$G$29,2))))),IF(OR(H55="SEN",H55<1995),VLOOKUP(I55,Feuil1!$G$11:$L$25,6),IF(AND(H55>1994,H55<1998),VLOOKUP(I55,Feuil1!$G$11:$L$25,5),IF(AND(H55>1997,H55<2000),VLOOKUP(I55,Feuil1!$G$11:$L$25,4),IF(AND(H55>1999,H55<2002),VLOOKUP(I55,Feuil1!$G$11:$L$25,3),VLOOKUP(I55,Feuil1!$G$11:$L$25,2))))))) -> FC1 63 | Y55: 79.78961794 | AB55: =T55-HLOOKUP(X55,Feuil1!$C$1:$BL$10,2,FALSE) -> 13 | AC55: =T55-HLOOKUP(X55,Feuil1!$C$1:$BL$10,3,FALSE) -> 3 | AD55: =T55-HLOOKUP(X55,Feuil1!$C$1:$BL$10,4,FALSE) -> -7 | AE55: =T55-HLOOKUP(X55,Feuil1!$C$1:$BL$10,5,FALSE) -> -17 | AF55: =T55-HLOOKUP(X55,Feuil1!$C$1:$BL$10,6,FALSE) -> -27 | AG55: =T55-HLOOKUP(X55,Feuil1!$C$1:$BL$10,7,FALSE) -> -37 | AH55: =T55-HLOOKUP(X55,Feuil1!$C$1:$BL$10,8,FALSE) -> -52 | AI55: =T55-HLOOKUP(X55,Feuil1!$C$1:$BL$10,9,FALSE) -> -67 | AJ55: =T55-HLOOKUP(X55,Feuil1!$C$1:$BL$10,10,FALSE) -> -942 | AQ55: DEP +
A56: F | B56: CO | C56: BRE | D56: 5 | E56: 378676 | F56: JAFFRY | G56: Lauréline | H56: 2001 | I56: 62.8 | J56: CHM Plouhinec PR | K56: F | L56: 22 | M56: -25 | N56: -25 | O56: 22 | P56: 28 | Q56: 30 | R56: 32 | S56: 32 | T56: 54 | U56: -71.6 | V56: DEB | W56: 9 | X56: =IF(I56="","",IF(A56="H",IF(OR(H56="SEN",H56<1995),VLOOKUP(I56,Feuil1!$A$11:$G$29,6),IF(AND(H56>1994,H56<1998),VLOOKUP(I56,Feuil1!$A$11:$G$29,5),IF(AND(H56>1997,H56<2000),VLOOKUP(I56,Feuil1!$A$11:$G$29,4),IF(AND(H56>1999,H56<2002),VLOOKUP(I56,Feuil1!$A$11:$G$29,3),VLOOKUP(I56,Feuil1!$A$11:$G$29,2))))),IF(OR(H56="SEN",H56<1995),VLOOKUP(I56,Feuil1!$G$11:$L$25,6),IF(AND(H56>1994,H56<1998),VLOOKUP(I56,Feuil1!$G$11:$L$25,5),IF(AND(H56>1997,H56<2000),VLOOKUP(I56,Feuil1!$G$11:$L$25,4),IF(AND(H56>1999,H56<2002),VLOOKUP(I56,Feuil1!$G$11:$L$25,3),VLOOKUP(I56,Feuil1!$G$11:$L$25,2))))))) -> FC1 63 | Y56: 71.91392573 | AB56: =T56-HLOOKUP(X56,Feuil1!$C$1:$BL$10,2,FALSE) -> 9 | AC56: =T56-HLOOKUP(X56,Feuil1!$C$1:$BL$10,3,FALSE) -> -1 | AD56: =T56-HLOOKUP(X56,Feuil1!$C$1:$BL$10,4,FALSE) -> -11 | AE56: =T56-HLOOKUP(X56,Feuil1!$C$1:$BL$10,5,FALSE) -> -21 | AF56: =T56-HLOOKUP(X56,Feuil1!$C$1:$BL$10,6,FALSE) -> -31 | AG56: =T56-HLOOKUP(X56,Feuil1!$C$1:$BL$10,7,FALSE) -> -41 | AH56: =T56-HLOOKUP(X56,Feuil1!$C$1:$BL$10,8,FALSE) -> -56 | AI56: =T56-HLOOKUP(X56,Feuil1!$C$1:$BL$10,9,FALSE) -> -71 | AJ56: =T56-HLOOKUP(X56,Feuil1!$C$1:$BL$10,10,FALSE) -> -946 | AQ56: DEB
A57: F | B57: CO | C57: BRE | D57: 6 | E57: 394300 | F57: RUMEN | G57: Camille | H57: 2001 | I57: 61.3 | J57: AL Quimper | K57: F | L57: 30 | M57: -33 | N57: 33 | O57: 33 | P57: -38 | Q57: -38 | R57: -42 | S57: 0 | T57: 0 | U57: -122.6 | V57: DEB | W57: -45 | X57: =IF(I57="","",IF(A57="H",IF(OR(H57="SEN",H57<1995),VLOOKUP(I57,Feuil1!$A$11:$G$29,6),IF(AND(H57>1994,H57<1998),VLOOKUP(I57,Feuil1!$A$11:$G$29,5),IF(AND(H57>1997,H57<2000),VLOOKUP(I57,Feuil1!$A$11:$G$29,4),IF(AND(H57>1999,H57<2002),VLOOKUP(I57,Feuil1!$A$11:$G$29,3),VLOOKUP(I57,Feuil1!$A$11:$G$29,2))))),IF(OR(H57="SEN",H57<1995),VLOOKUP(I57,Feuil1!$G$11:$L$25,6),IF(AND(H57>1994,H57<1998),VLOOKUP(I57,Feuil1!$G$11:$L$25,5),IF(AND(H57>1997,H57<2000),VLOOKUP(I57,Feuil1!$G$11:$L$25,4),IF(AND(H57>1999,H57<2002),VLOOKUP(I57,Feuil1!$G$11:$L$25,3),VLOOKUP(I57,Feuil1!$G$11:$L$25,2))))))) -> FC1 63 | Y57: 0 | AB57: =T57-HLOOKUP(X57,Feuil1!$C$1:$BL$10,2,FALSE) -> -45 | AC57: =T57-HLOOKUP(X57,Feuil1!$C$1:$BL$10,3,FALSE) -> -55 | AD57: =T57-HLOOKUP(X57,Feuil1!$C$1:$BL$10,4,FALSE) -> -65 | AE57: =T57-HLOOKUP(X57,Feuil1!$C$1:$BL$10,5,FALSE) -> -75 | AF57: =T57-HLOOKUP(X57,Feuil1!$C$1:$BL$10,6,FALSE) -> -85 | AG57: =T57-HLOOKUP(X57,Feuil1!$C$1:$BL$10,7,FALSE) -> -95 | AH57: =T57-HLOOKUP(X57,Feuil1!$C$1:$BL$10,8,FALSE) -> -110 | AI57: =T57-HLOOKUP(X57,Feuil1!$C$1:$BL$10,9,FALSE) -> -125 | AJ57: =T57-HLOOKUP(X57,Feuil1!$C$1:$BL$10,10,FALSE) -> -1000 | AQ57: DEB
AB58: =T58-HLOOKUP(X58,Feuil1!$C$1:$BL$10,2,FALSE) ->  | AC58: =T58-HLOOKUP(X58,Feuil1!$C$1:$BL$10,3,FALSE) ->  | AD58: =T58-HLOOKUP(X58,Feuil1!$C$1:$BL$10,4,FALSE) ->  | AE58: =T58-HLOOKUP(X58,Feuil1!$C$1:$BL$10,5,FALSE) ->  | AF58: =T58-HLOOKUP(X58,Feuil1!$C$1:$BL$10,6,FALSE) ->  | AG58: =T58-HLOOKUP(X58,Feuil1!$C$1:$BL$10,7,FALSE) ->  | AH58: =T58-HLOOKUP(X58,Feuil1!$C$1:$BL$10,8,FALSE) ->  | AI58: =T58-HLOOKUP(X58,Feuil1!$C$1:$BL$10,9,FALSE) ->  | AJ58: =T58-HLOOKUP(X58,Feuil1!$C$1:$BL$10,10,FALSE) ->  | AQ58: =IF(AJ58>=0,$AJ$4,IF(AI58>=0,$AI$4,IF(AH58>=0,$AH$4,IF(AG58>=0,$AG$4,IF(AF58>=0,$AF$4,IF(AE58>=0,$AE$4,IF(AD58>=0,$AD$4,IF(AC58>=0,$AC$4,$AB$4)))))))) -> 
A59: F | B59: N | C59: NPC | D59: 1 | E59: 300212 | F59: GUILLEMIN | G59: Elise | H59: 2000 | I59: 66.2 | J59: C.A.ROSENDAEL | K59: F | L59: 37 | M59: 39 | N59: -41 | O59: =IF(H59="","",IF(MAXA(L59:N59)<=0,0,MAXA(L59:N59))) -> 39 | P59: 50 | Q59: 53 | R59: 56 | S59: =IF(H59="","",IF(MAXA(P59:R59)<=0,0,MAXA(P59:R59))) -> 56 | T59: =IF(H59="","",IF(OR(O59=0,S59=0),0,O59+S59)) -> 95 | U59: =T59-I59*2 -> -37.4 | V59: =IF(H59="","",AQ59) -> FED + | W59: =IF(AJ59>=0,AJ59,IF(AI59>=0,AI59,IF(AH59>=0,AH59,IF(AG59>=0,AG59,IF(AF59>=0,AF59,IF(AE59>=0,AE59,IF(AD59>=0,AD59,IF(AC59>=0,AC59,AB59)))))))) -> 5 | X59: =IF(I59="","",IF(A59="H",IF(OR(H59="SEN",H59<1995),VLOOKUP(I59,Feuil1!$A$11:$G$29,6),IF(AND(H59>1994,H59<1998),VLOOKUP(I59,Feuil1!$A$11:$G$29,5),IF(AND(H59>1997,H59<2000),VLOOKUP(I59,Feuil1!$A$11:$G$29,4),IF(AND(H59>1999,H59<2002),VLOOKUP(I59,Feuil1!$A$11:$G$29,3),VLOOKUP(I59,Feuil1!$A$11:$G$29,2))))),IF(OR(H59="SEN",H59<1995),VLOOKUP(I59,Feuil1!$G$11:$L$25,6),IF(AND(H59>1994,H59<1998),VLOOKUP(I59,Feuil1!$G$11:$L$25,5),IF(AND(H59>1997,H59<2000),VLOOKUP(I59,Feuil1!$G$11:$L$25,4),IF(AND(H59>1999,H59<2002),VLOOKUP(I59,Feuil1!$G$11:$L$25,3),VLOOKUP(I59,Feuil1!$G$11:$L$25,2))))))) -> FC1 69 | Y59: =IF(I59="","",IF(A59="H",10^(0.794358141*LOG(I59/174.393)^2)*T59,IF(A59="F",10^(0.89726074*LOG(I59/148.026)^2)*T59,""))) -> 122.2676865 | AB59: =T59-HLOOKUP(X59,Feuil1!$C$1:$BL$10,2,FALSE) -> 45 | AC59: =T59-HLOOKUP(X59,Feuil1!$C$1:$BL$10,3,FALSE) -> 35 | AD59: =T59-HLOOKUP(X59,Feuil1!$C$1:$BL$10,4,FALSE) -> 25 | AE59: =T59-HLOOKUP(X59,Feuil1!$C$1:$BL$10,5,FALSE) -> 15 | AF59: =T59-HLOOKUP(X59,Feuil1!$C$1:$BL$10,6,FALSE) -> 5 | AG59: =T59-HLOOKUP(X59,Feuil1!$C$1:$BL$10,7,FALSE) -> -10 | AH59: =T59-HLOOKUP(X59,Feuil1!$C$1:$BL$10,8,FALSE) -> -25 | AI59: =T59-HLOOKUP(X59,Feuil1!$C$1:$BL$10,9,FALSE) -> -40 | AJ59: =T59-HLOOKUP(X59,Feuil1!$C$1:$BL$10,10,FALSE) -> -905 | AQ59: =IF(AJ59>=0,$AJ$4,IF(AI59>=0,$AI$4,IF(AH59>=0,$AH$4,IF(AG59>=0,$AG$4,IF(AF59>=0,$AF$4,IF(AE59>=0,$AE$4,IF(AD59>=0,$AD$4,IF(AC59>=0,$AC$4,$AB$4)))))))) -> FED +
A60: F | B60: SEST | C60: CAZ | D60: 2 | E60: 391830 | F60: GIANNETTI | G60: Margot | H60: 2000 | I60: 68.35 | J60: ES VILLE LOUBET | K60: F | L60: -32 | M60: 32 | N60: 35 | O60: =IF(H60="","",IF(MAXA(L60:N60)<=0,0,MAXA(L60:N60))) -> 35 | P60: 40 | Q60: -45 | R60: 45 | S60: =IF(H60="","",IF(MAXA(P60:R60)<=0,0,MAXA(P60:R60))) -> 45 | T60: =IF(H60="","",IF(OR(O60=0,S60=0),0,O60+S60)) -> 80 | U60: =T60-I60*2 -> -56.7 | V60: =IF(H60="","",AQ60) -> IRG + | W60: =IF(AJ60>=0,AJ60,IF(AI60>=0,AI60,IF(AH60>=0,AH60,IF(AG60>=0,AG60,IF(AF60>=0,AF60,IF(AE60>=0,AE60,IF(AD60>=0,AD60,IF(AC60>=0,AC60,AB60)))))))) -> 0 | X60: =IF(I60="","",IF(A60="H",IF(OR(H60="SEN",H60<1995),VLOOKUP(I60,Feuil1!$A$11:$G$29,6),IF(AND(H60>1994,H60<1998),VLOOKUP(I60,Feuil1!$A$11:$G$29,5),IF(AND(H60>1997,H60<2000),VLOOKUP(I60,Feuil1!$A$11:$G$29,4),IF(AND(H60>1999,H60<2002),VLOOKUP(I60,Feuil1!$A$11:$G$29,3),VLOOKUP(I60,Feuil1!$A$11:$G$29,2))))),IF(OR(H60="SEN",H60<1995),VLOOKUP(I60,Feuil1!$G$11:$L$25,6),IF(AND(H60>1994,H60<1998),VLOOKUP(I60,Feuil1!$G$11:$L$25,5),IF(AND(H60>1997,H60<2000),VLOOKUP(I60,Feuil1!$G$11:$L$25,4),IF(AND(H60>1999,H60<2002),VLOOKUP(I60,Feuil1!$G$11:$L$25,3),VLOOKUP(I60,Feuil1!$G$11:$L$25,2))))))) -> FC1 69 | Y60: =IF(I60="","",IF(A60="H",10^(0.794358141*LOG(I60/174.393)^2)*T60,IF(A60="F",10^(0.89726074*LOG(I60/148.026)^2)*T60,""))) -> 100.9591732 | AB60: =T60-HLOOKUP(X60,Feuil1!$C$1:$BL$10,2,FALSE) -> 30 | AC60: =T60-HLOOKUP(X60,Feuil1!$C$1:$BL$10,3,FALSE) -> 20 | AD60: =T60-HLOOKUP(X60,Feuil1!$C$1:$BL$10,4,FALSE) -> 10 | AE60: =T60-HLOOKUP(X60,Feuil1!$C$1:$BL$10,5,FALSE) -> 0 | AF60: =T60-HLOOKUP(X60,Feuil1!$C$1:$BL$10,6,FALSE) -> -10 | AG60: =T60-HLOOKUP(X60,Feuil1!$C$1:$BL$10,7,FALSE) -> -25 | AH60: =T60-HLOOKUP(X60,Feuil1!$C$1:$BL$10,8,FALSE) -> -40 | AI60: =T60-HLOOKUP(X60,Feuil1!$C$1:$BL$10,9,FALSE) -> -55 | AJ60: =T60-HLOOKUP(X60,Feuil1!$C$1:$BL$10,10,FALSE) -> -920 | AQ60: =IF(AJ60>=0,$AJ$4,IF(AI60>=0,$AI$4,IF(AH60>=0,$AH$4,IF(AG60>=0,$AG$4,IF(AF60>=0,$AF$4,IF(AE60>=0,$AE$4,IF(AD60>=0,$AD$4,IF(AC60>=0,$AC$4,$AB$4)))))))) -> IRG +
A61: F | B61: CO | C61: BRE | D61: 3 | E61: 378876 | F61: JAFFRY | G61: Laureline | H61: 2001 | I61: 64.25 | J61: CHM Plouhinec PR | K61: F | L61: 26 | M61: 28 | N61: -30 | O61: =IF(H61="","",IF(MAXA(L61:N61)<=0,0,MAXA(L61:N61))) -> 28 | P61: 35 | Q61: 38 | R61: -40 | S61: =IF(H61="","",IF(MAXA(P61:R61)<=0,0,MAXA(P61:R61))) -> 38 | T61: =IF(H61="","",IF(OR(O61=0,S61=0),0,O61+S61)) -> 66 | U61: =T61-I61*2 -> -62.5 | V61: =IF(H61="","",AQ61) -> DEP + | W61: =IF(AJ61>=0,AJ61,IF(AI61>=0,AI61,IF(AH61>=0,AH61,IF(AG61>=0,AG61,IF(AF61>=0,AF61,IF(AE61>=0,AE61,IF(AD61>=0,AD61,IF(AC61>=0,AC61,AB61)))))))) -> 6 | X61: =IF(I61="","",IF(A61="H",IF(OR(H61="SEN",H61<1995),VLOOKUP(I61,Feuil1!$A$11:$G$29,6),IF(AND(H61>1994,H61<1998),VLOOKUP(I61,Feuil1!$A$11:$G$29,5),IF(AND(H61>1997,H61<2000),VLOOKUP(I61,Feuil1!$A$11:$G$29,4),IF(AND(H61>1999,H61<2002),VLOOKUP(I61,Feuil1!$A$11:$G$29,3),VLOOKUP(I61,Feuil1!$A$11:$G$29,2))))),IF(OR(H61="SEN",H61<1995),VLOOKUP(I61,Feuil1!$G$11:$L$25,6),IF(AND(H61>1994,H61<1998),VLOOKUP(I61,Feuil1!$G$11:$L$25,5),IF(AND(H61>1997,H61<2000),VLOOKUP(I61,Feuil1!$G$11:$L$25,4),IF(AND(H61>1999,H61<2002),VLOOKUP(I61,Feuil1!$G$11:$L$25,3),VLOOKUP(I61,Feuil1!$G$11:$L$25,2))))))) -> FC1 69 | Y61: =IF(I61="","",IF(A61="H",10^(0.794358141*LOG(I61/174.393)^2)*T61,IF(A61="F",10^(0.89726074*LOG(I61/148.026)^2)*T61,""))) -> 86.58182869 | AB61: =T61-HLOOKUP(X61,Feuil1!$C$1:$BL$10,2,FALSE) -> 16 | AC61: =T61-HLOOKUP(X61,Feuil1!$C$1:$BL$10,3,FALSE) -> 6 | AD61: =T61-HLOOKUP(X61,Feuil1!$C$1:$BL$10,4,FALSE) -> -4 | AE61: =T61-HLOOKUP(X61,Feuil1!$C$1:$BL$10,5,FALSE) -> -14 | AF61: =T61-HLOOKUP(X61,Feuil1!$C$1:$BL$10,6,FALSE) -> -24 | AG61: =T61-HLOOKUP(X61,Feuil1!$C$1:$BL$10,7,FALSE) -> -39 | AH61: =T61-HLOOKUP(X61,Feuil1!$C$1:$BL$10,8,FALSE) -> -54 | AI61: =T61-HLOOKUP(X61,Feuil1!$C$1:$BL$10,9,FALSE) -> -69 | AJ61: =T61-HLOOKUP(X61,Feuil1!$C$1:$BL$10,10,FALSE) -> -934 | AQ61: =IF(AJ61>=0,$AJ$4,IF(AI61>=0,$AI$4,IF(AH61>=0,$AH$4,IF(AG61>=0,$AG$4,IF(AF61>=0,$AF$4,IF(AE61>=0,$AE$4,IF(AD61>=0,$AD$4,IF(AC61>=0,$AC$4,$AB$4)))))))) -> DEP +
A62: F | B62: N | C62: PIC | D62: 4 | E62: 371430 | F62: LEMORT | G62: Marine | H62: 2000 | I62: 68.7 | J62: La Ferté Milon CMHM | K62: F | L62: 23 | M62: 26 | N62: 28 | O62: =IF(H62="","",IF(MAXA(L62:N62)<=0,0,MAXA(L62:N62))) -> 28 | P62: 32 | Q62: 37 | R62: -40 | S62: =IF(H62="","",IF(MAXA(P62:R62)<=0,0,MAXA(P62:R62))) -> 37 | T62: =IF(H62="","",IF(OR(O62=0,S62=0),0,O62+S62)) -> 65 | U62: =T62-I62*2 -> -72.4 | V62: =IF(H62="","",AQ62) -> DEP + | W62: =IF(AJ62>=0,AJ62,IF(AI62>=0,AI62,IF(AH62>=0,AH62,IF(AG62>=0,AG62,IF(AF62>=0,AF62,IF(AE62>=0,AE62,IF(AD62>=0,AD62,IF(AC62>=0,AC62,AB62)))))))) -> 5 | X62: =IF(I62="","",IF(A62="H",IF(OR(H62="SEN",H62<1995),VLOOKUP(I62,Feuil1!$A$11:$G$29,6),IF(AND(H62>1994,H62<1998),VLOOKUP(I62,Feuil1!$A$11:$G$29,5),IF(AND(H62>1997,H62<2000),VLOOKUP(I62,Feuil1!$A$11:$G$29,4),IF(AND(H62>1999,H62<2002),VLOOKUP(I62,Feuil1!$A$11:$G$29,3),VLOOKUP(I62,Feuil1!$A$11:$G$29,2))))),IF(OR(H62="SEN",H62<1995),VLOOKUP(I62,Feuil1!$G$11:$L$25,6),IF(AND(H62>1994,H62<1998),VLOOKUP(I62,Feuil1!$G$11:$L$25,5),IF(AND(H62>1997,H62<2000),VLOOKUP(I62,Feuil1!$G$11:$L$25,4),IF(AND(H62>1999,H62<2002),VLOOKUP(I62,Feuil1!$G$11:$L$25,3),VLOOKUP(I62,Feuil1!$G$11:$L$25,2))))))) -> FC1 69 | Y62: =IF(I62="","",IF(A62="H",10^(0.794358141*LOG(I62/174.393)^2)*T62,IF(A62="F",10^(0.89726074*LOG(I62/148.026)^2)*T62,""))) -> 81.77822292 | AB62: =T62-HLOOKUP(X62,Feuil1!$C$1:$BL$10,2,FALSE) -> 15 | AC62: =T62-HLOOKUP(X62,Feuil1!$C$1:$BL$10,3,FALSE) -> 5 | AD62: =T62-HLOOKUP(X62,Feuil1!$C$1:$BL$10,4,FALSE) -> -5 | AE62: =T62-HLOOKUP(X62,Feuil1!$C$1:$BL$10,5,FALSE) -> -15 | AF62: =T62-HLOOKUP(X62,Feuil1!$C$1:$BL$10,6,FALSE) -> -25 | AG62: =T62-HLOOKUP(X62,Feuil1!$C$1:$BL$10,7,FALSE) -> -40 | AH62: =T62-HLOOKUP(X62,Feuil1!$C$1:$BL$10,8,FALSE) -> -55 | AI62: =T62-HLOOKUP(X62,Feuil1!$C$1:$BL$10,9,FALSE) -> -70 | AJ62: =T62-HLOOKUP(X62,Feuil1!$C$1:$BL$10,10,FALSE) -> -935 | AQ62: =IF(AJ62>=0,$AJ$4,IF(AI62>=0,$AI$4,IF(AH62>=0,$AH$4,IF(AG62>=0,$AG$4,IF(AF62>=0,$AF$4,IF(AE62>=0,$AE$4,IF(AD62>=0,$AD$4,IF(AC62>=0,$AC$4,$AB$4)))))))) -> DEP +
A63: F | B63: SEST | C63: AUV | D63: 5 | E63: 376754 | F63: FAUBLADIER | G63: Anaîs | H63: 2000 | I63: 68 | J63: CHM AURILLAC | K63: F | L63: 20 | M63: 22 | N63: 25 | O63: =IF(H63="","",IF(MAXA(L63:N63)<=0,0,MAXA(L63:N63))) -> 25 | P63: 25 | Q63: 27 | R63: 30 | S63: =IF(H63="","",IF(MAXA(P63:R63)<=0,0,MAXA(P63:R63))) -> 30 | T63: =IF(H63="","",IF(OR(O63=0,S63=0),0,O63+S63)) -> 55 | U63: =T63-I63*2 -> -81 | V63: =IF(H63="","",AQ63) -> DEB | W63: =IF(AJ63>=0,AJ63,IF(AI63>=0,AI63,IF(AH63>=0,AH63,IF(AG63>=0,AG63,IF(AF63>=0,AF63,IF(AE63>=0,AE63,IF(AD63>=0,AD63,IF(AC63>=0,AC63,AB63)))))))) -> 5 | X63: =IF(I63="","",IF(A63="H",IF(OR(H63="SEN",H63<1995),VLOOKUP(I63,Feuil1!$A$11:$G$29,6),IF(AND(H63>1994,H63<1998),VLOOKUP(I63,Feuil1!$A$11:$G$29,5),IF(AND(H63>1997,H63<2000),VLOOKUP(I63,Feuil1!$A$11:$G$29,4),IF(AND(H63>1999,H63<2002),VLOOKUP(I63,Feuil1!$A$11:$G$29,3),VLOOKUP(I63,Feuil1!$A$11:$G$29,2))))),IF(OR(H63="SEN",H63<1995),VLOOKUP(I63,Feuil1!$G$11:$L$25,6),IF(AND(H63>1994,H63<1998),VLOOKUP(I63,Feuil1!$G$11:$L$25,5),IF(AND(H63>1997,H63<2000),VLOOKUP(I63,Feuil1!$G$11:$L$25,4),IF(AND(H63>1999,H63<2002),VLOOKUP(I63,Feuil1!$G$11:$L$25,3),VLOOKUP(I63,Feuil1!$G$11:$L$25,2))))))) -> FC1 69 | Y63: =IF(I63="","",IF(A63="H",10^(0.794358141*LOG(I63/174.393)^2)*T63,IF(A63="F",10^(0.89726074*LOG(I63/148.026)^2)*T63,""))) -> 69.62507999 | AB63: =T63-HLOOKUP(X63,Feuil1!$C$1:$BL$10,2,FALSE) -> 5 | AC63: =T63-HLOOKUP(X63,Feuil1!$C$1:$BL$10,3,FALSE) -> -5 | AD63: =T63-HLOOKUP(X63,Feuil1!$C$1:$BL$10,4,FALSE) -> -15 | AE63: =T63-HLOOKUP(X63,Feuil1!$C$1:$BL$10,5,FALSE) -> -25 | AF63: =T63-HLOOKUP(X63,Feuil1!$C$1:$BL$10,6,FALSE) -> -35 | AG63: =T63-HLOOKUP(X63,Feuil1!$C$1:$BL$10,7,FALSE) -> -50 | AH63: =T63-HLOOKUP(X63,Feuil1!$C$1:$BL$10,8,FALSE) -> -65 | AI63: =T63-HLOOKUP(X63,Feuil1!$C$1:$BL$10,9,FALSE) -> -80 | AJ63: =T63-HLOOKUP(X63,Feuil1!$C$1:$BL$10,10,FALSE) -> -945 | AQ63: =IF(AJ63>=0,$AJ$4,IF(AI63>=0,$AI$4,IF(AH63>=0,$AH$4,IF(AG63>=0,$AG$4,IF(AF63>=0,$AF$4,IF(AE63>=0,$AE$4,IF(AD63>=0,$AD$4,IF(AC63>=0,$AC$4,$AB$4)))))))) -> DEB
AB64: =T64-HLOOKUP(X64,Feuil1!$C$1:$BL$10,2,FALSE) ->  | AC64: =T64-HLOOKUP(X64,Feuil1!$C$1:$BL$10,3,FALSE) ->  | AD64: =T64-HLOOKUP(X64,Feuil1!$C$1:$BL$10,4,FALSE) ->  | AE64: =T64-HLOOKUP(X64,Feuil1!$C$1:$BL$10,5,FALSE) ->  | AF64: =T64-HLOOKUP(X64,Feuil1!$C$1:$BL$10,6,FALSE) ->  | AG64: =T64-HLOOKUP(X64,Feuil1!$C$1:$BL$10,7,FALSE) ->  | AH64: =T64-HLOOKUP(X64,Feuil1!$C$1:$BL$10,8,FALSE) ->  | AI64: =T64-HLOOKUP(X64,Feuil1!$C$1:$BL$10,9,FALSE) ->  | AJ64: =T64-HLOOKUP(X64,Feuil1!$C$1:$BL$10,10,FALSE) ->  | AQ64: =IF(AJ64>=0,$AJ$4,IF(AI64>=0,$AI$4,IF(AH64>=0,$AH$4,IF(AG64>=0,$AG$4,IF(AF64>=0,$AF$4,IF(AE64>=0,$AE$4,IF(AD64>=0,$AD$4,IF(AC64>=0,$AC$4,$AB$4)))))))) -> 
A65: F | B65: CO | C65: PDL | D65: 1 | E65: 36748 | F65: COGNON | G65: Alexia | H65: 2000 | I65: 74.4 | J65: CJF Laval-Voutré | K65: F | L65: 44 | M65: 47 | N65: 48 | O65: =IF(H65="","",IF(MAXA(L65:N65)<=0,0,MAXA(L65:N65))) -> 48 | P65: 55 | Q65: 57 | R65: -59 | S65: =IF(H65="","",IF(MAXA(P65:R65)<=0,0,MAXA(P65:R65))) -> 57 | T65: =IF(H65="","",IF(OR(O65=0,S65=0),0,O65+S65)) -> 105 | U65: =T65-I65*2 -> -43.8 | V65: =IF(H65="","",AQ65) -> FED + | W65: =IF(AJ65>=0,AJ65,IF(AI65>=0,AI65,IF(AH65>=0,AH65,IF(AG65>=0,AG65,IF(AF65>=0,AF65,IF(AE65>=0,AE65,IF(AD65>=0,AD65,IF(AC65>=0,AC65,AB65)))))))) -> 0 | X65: =IF(I65="","",IF(A65="H",IF(OR(H65="SEN",H65<1995),VLOOKUP(I65,Feuil1!$A$11:$G$29,6),IF(AND(H65>1994,H65<1998),VLOOKUP(I65,Feuil1!$A$11:$G$29,5),IF(AND(H65>1997,H65<2000),VLOOKUP(I65,Feuil1!$A$11:$G$29,4),IF(AND(H65>1999,H65<2002),VLOOKUP(I65,Feuil1!$A$11:$G$29,3),VLOOKUP(I65,Feuil1!$A$11:$G$29,2))))),IF(OR(H65="SEN",H65<1995),VLOOKUP(I65,Feuil1!$G$11:$L$25,6),IF(AND(H65>1994,H65<1998),VLOOKUP(I65,Feuil1!$G$11:$L$25,5),IF(AND(H65>1997,H65<2000),VLOOKUP(I65,Feuil1!$G$11:$L$25,4),IF(AND(H65>1999,H65<2002),VLOOKUP(I65,Feuil1!$G$11:$L$25,3),VLOOKUP(I65,Feuil1!$G$11:$L$25,2))))))) -> FC1 +69 | Y65: =IF(I65="","",IF(A65="H",10^(0.794358141*LOG(I65/174.393)^2)*T65,IF(A65="F",10^(0.89726074*LOG(I65/148.026)^2)*T65,""))) -> 126.2639294 | AB65: =T65-HLOOKUP(X65,Feuil1!$C$1:$BL$10,2,FALSE) -> 45 | AC65: =T65-HLOOKUP(X65,Feuil1!$C$1:$BL$10,3,FALSE) -> 35 | AD65: =T65-HLOOKUP(X65,Feuil1!$C$1:$BL$10,4,FALSE) -> 25 | AE65: =T65-HLOOKUP(X65,Feuil1!$C$1:$BL$10,5,FALSE) -> 10 | AF65: =T65-HLOOKUP(X65,Feuil1!$C$1:$BL$10,6,FALSE) -> 0 | AG65: =T65-HLOOKUP(X65,Feuil1!$C$1:$BL$10,7,FALSE) -> -10 | AH65: =T65-HLOOKUP(X65,Feuil1!$C$1:$BL$10,8,FALSE) -> -25 | AI65: =T65-HLOOKUP(X65,Feuil1!$C$1:$BL$10,9,FALSE) -> -40 | AJ65: =T65-HLOOKUP(X65,Feuil1!$C$1:$BL$10,10,FALSE) -> -895 | AQ65: =IF(AJ65>=0,$AJ$4,IF(AI65>=0,$AI$4,IF(AH65>=0,$AH$4,IF(AG65>=0,$AG$4,IF(AF65>=0,$AF$4,IF(AE65>=0,$AE$4,IF(AD65>=0,$AD$4,IF(AC65>=0,$AC$4,$AB$4)))))))) -> FED +
A66: F | B66: N | C66: PIC | D66: 2 | E66: 328806 | F66: ALLAL BEN MAATI | G66: Chloé | H66: 2000 | I66: 70.2 | J66: Péronne AAEEP | K66: F | L66: 30 | M66: 32 | N66: -34 | O66: =IF(H66="","",IF(MAXA(L66:N66)<=0,0,MAXA(L66:N66))) -> 32 | P66: 35 | Q66: 40 | R66: 43 | S66: =IF(H66="","",IF(MAXA(P66:R66)<=0,0,MAXA(P66:R66))) -> 43 | T66: =IF(H66="","",IF(OR(O66=0,S66=0),0,O66+S66)) -> 75 | U66: =T66-I66*2 -> -65.4 | V66: =IF(H66="","",AQ66) -> DEP + | W66: =IF(AJ66>=0,AJ66,IF(AI66>=0,AI66,IF(AH66>=0,AH66,IF(AG66>=0,AG66,IF(AF66>=0,AF66,IF(AE66>=0,AE66,IF(AD66>=0,AD66,IF(AC66>=0,AC66,AB66)))))))) -> 5 | X66: =IF(I66="","",IF(A66="H",IF(OR(H66="SEN",H66<1995),VLOOKUP(I66,Feuil1!$A$11:$G$29,6),IF(AND(H66>1994,H66<1998),VLOOKUP(I66,Feuil1!$A$11:$G$29,5),IF(AND(H66>1997,H66<2000),VLOOKUP(I66,Feuil1!$A$11:$G$29,4),IF(AND(H66>1999,H66<2002),VLOOKUP(I66,Feuil1!$A$11:$G$29,3),VLOOKUP(I66,Feuil1!$A$11:$G$29,2))))),IF(OR(H66="SEN",H66<1995),VLOOKUP(I66,Feuil1!$G$11:$L$25,6),IF(AND(H66>1994,H66<1998),VLOOKUP(I66,Feuil1!$G$11:$L$25,5),IF(AND(H66>1997,H66<2000),VLOOKUP(I66,Feuil1!$G$11:$L$25,4),IF(AND(H66>1999,H66<2002),VLOOKUP(I66,Feuil1!$G$11:$L$25,3),VLOOKUP(I66,Feuil1!$G$11:$L$25,2))))))) -> FC1 +69 | Y66: =IF(I66="","",IF(A66="H",10^(0.794358141*LOG(I66/174.393)^2)*T66,IF(A66="F",10^(0.89726074*LOG(I66/148.026)^2)*T66,""))) -> 93.16496501 | AB66: =T66-HLOOKUP(X66,Feuil1!$C$1:$BL$10,2,FALSE) -> 15 | AC66: =T66-HLOOKUP(X66,Feuil1!$C$1:$BL$10,3,FALSE) -> 5 | AD66: =T66-HLOOKUP(X66,Feuil1!$C$1:$BL$10,4,FALSE) -> -5 | AE66: =T66-HLOOKUP(X66,Feuil1!$C$1:$BL$10,5,FALSE) -> -20 | AF66: =T66-HLOOKUP(X66,Feuil1!$C$1:$BL$10,6,FALSE) -> -30 | AG66: =T66-HLOOKUP(X66,Feuil1!$C$1:$BL$10,7,FALSE) -> -40 | AH66: =T66-HLOOKUP(X66,Feuil1!$C$1:$BL$10,8,FALSE) -> -55 | AI66: =T66-HLOOKUP(X66,Feuil1!$C$1:$BL$10,9,FALSE) -> -70 | AJ66: =T66-HLOOKUP(X66,Feuil1!$C$1:$BL$10,10,FALSE) -> -925 | AQ66: =IF(AJ66>=0,$AJ$4,IF(AI66>=0,$AI$4,IF(AH66>=0,$AH$4,IF(AG66>=0,$AG$4,IF(AF66>=0,$AF$4,IF(AE66>=0,$AE$4,IF(AD66>=0,$AD$4,IF(AC66>=0,$AC$4,$AB$4)))))))) -> DEP +
A67: F | B67: SEST | C67: CAZ | D67: 3 | E67: 391830 | F67: GIANETTI | G67: Margot | H67: 2000 | I67: 69.5 | J67: ES VILLE LOUBET | K67: F | L67: 28 | M67: 31 | N67: -33 | O67: =IF(H67="","",IF(MAXA(L67:N67)<=0,0,MAXA(L67:N67))) -> 31 | P67: 37 | Q67: -40 | R67: -42 | S67: =IF(H67="","",IF(MAXA(P67:R67)<=0,0,MAXA(P67:R67))) -> 37 | T67: =IF(H67="","",IF(OR(O67=0,S67=0),0,O67+S67)) -> 68 | U67: =T67-I67*2 -> -71 | V67: =IF(H67="","",AQ67) -> DEB | W67: =IF(AJ67>=0,AJ67,IF(AI67>=0,AI67,IF(AH67>=0,AH67,IF(AG67>=0,AG67,IF(AF67>=0,AF67,IF(AE67>=0,AE67,IF(AD67>=0,AD67,IF(AC67>=0,AC67,AB67)))))))) -> 8 | X67: =IF(I67="","",IF(A67="H",IF(OR(H67="SEN",H67<1995),VLOOKUP(I67,Feuil1!$A$11:$G$29,6),IF(AND(H67>1994,H67<1998),VLOOKUP(I67,Feuil1!$A$11:$G$29,5),IF(AND(H67>1997,H67<2000),VLOOKUP(I67,Feuil1!$A$11:$G$29,4),IF(AND(H67>1999,H67<2002),VLOOKUP(I67,Feuil1!$A$11:$G$29,3),VLOOKUP(I67,Feuil1!$A$11:$G$29,2))))),IF(OR(H67="SEN",H67<1995),VLOOKUP(I67,Feuil1!$G$11:$L$25,6),IF(AND(H67>1994,H67<1998),VLOOKUP(I67,Feuil1!$G$11:$L$25,5),IF(AND(H67>1997,H67<2000),VLOOKUP(I67,Feuil1!$G$11:$L$25,4),IF(AND(H67>1999,H67<2002),VLOOKUP(I67,Feuil1!$G$11:$L$25,3),VLOOKUP(I67,Feuil1!$G$11:$L$25,2))))))) -> FC1 +69 | Y67: =IF(I67="","",IF(A67="H",10^(0.794358141*LOG(I67/174.393)^2)*T67,IF(A67="F",10^(0.89726074*LOG(I67/148.026)^2)*T67,""))) -> 84.96651747 | AB67: =T67-HLOOKUP(X67,Feuil1!$C$1:$BL$10,2,FALSE) -> 8 | AC67: =T67-HLOOKUP(X67,Feuil1!$C$1:$BL$10,3,FALSE) -> -2 | AD67: =T67-HLOOKUP(X67,Feuil1!$C$1:$BL$10,4,FALSE) -> -12 | AE67: =T67-HLOOKUP(X67,Feuil1!$C$1:$BL$10,5,FALSE) -> -27 | AF67: =T67-HLOOKUP(X67,Feuil1!$C$1:$BL$10,6,FALSE) -> -37 | AG67: =T67-HLOOKUP(X67,Feuil1!$C$1:$BL$10,7,FALSE) -> -47 | AH67: =T67-HLOOKUP(X67,Feuil1!$C$1:$BL$10,8,FALSE) -> -62 | AI67: =T67-HLOOKUP(X67,Feuil1!$C$1:$BL$10,9,FALSE) -> -77 | AJ67: =T67-HLOOKUP(X67,Feuil1!$C$1:$BL$10,10,FALSE) -> -932 | AQ67: =IF(AJ67>=0,$AJ$4,IF(AI67>=0,$AI$4,IF(AH67>=0,$AH$4,IF(AG67>=0,$AG$4,IF(AF67>=0,$AF$4,IF(AE67>=0,$AE$4,IF(AD67>=0,$AD$4,IF(AC67>=0,$AC$4,$AB$4)))))))) -> DEB
A68: F | B68: NE | C68: ALS | D68: 4 | E68: 369106 | F68: MAILLOT | G68: OCEANE | H68: 2000 | I68: 78.2 | J68: ASPTT Strasbourg | K68: F | L68: 20 | M68: 22 | N68: -23 | O68: =IF(H68="","",IF(MAXA(L68:N68)<=0,0,MAXA(L68:N68))) -> 22 | P68: 22 | Q68: 25 | R68: 27 | S68: =IF(H68="","",IF(MAXA(P68:R68)<=0,0,MAXA(P68:R68))) -> 27 | T68: =IF(H68="","",IF(OR(O68=0,S68=0),0,O68+S68)) -> 49 | U68: =T68-I68*2 -> -107.4 | V68: =IF(H68="","",AQ68) -> DEB | W68: =IF(AJ68>=0,AJ68,IF(AI68>=0,AI68,IF(AH68>=0,AH68,IF(AG68>=0,AG68,IF(AF68>=0,AF68,IF(AE68>=0,AE68,IF(AD68>=0,AD68,IF(AC68>=0,AC68,AB68)))))))) -> -11 | X68: =IF(I68="","",IF(A68="H",IF(OR(H68="SEN",H68<1995),VLOOKUP(I68,Feuil1!$A$11:$G$29,6),IF(AND(H68>1994,H68<1998),VLOOKUP(I68,Feuil1!$A$11:$G$29,5),IF(AND(H68>1997,H68<2000),VLOOKUP(I68,Feuil1!$A$11:$G$29,4),IF(AND(H68>1999,H68<2002),VLOOKUP(I68,Feuil1!$A$11:$G$29,3),VLOOKUP(I68,Feuil1!$A$11:$G$29,2))))),IF(OR(H68="SEN",H68<1995),VLOOKUP(I68,Feuil1!$G$11:$L$25,6),IF(AND(H68>1994,H68<1998),VLOOKUP(I68,Feuil1!$G$11:$L$25,5),IF(AND(H68>1997,H68<2000),VLOOKUP(I68,Feuil1!$G$11:$L$25,4),IF(AND(H68>1999,H68<2002),VLOOKUP(I68,Feuil1!$G$11:$L$25,3),VLOOKUP(I68,Feuil1!$G$11:$L$25,2))))))) -> FC1 +69 | Y68: =IF(I68="","",IF(A68="H",10^(0.794358141*LOG(I68/174.393)^2)*T68,IF(A68="F",10^(0.89726074*LOG(I68/148.026)^2)*T68,""))) -> 57.42582686 | AB68: =T68-HLOOKUP(X68,Feuil1!$C$1:$BL$10,2,FALSE) -> -11 | AC68: =T68-HLOOKUP(X68,Feuil1!$C$1:$BL$10,3,FALSE) -> -21 | AD68: =T68-HLOOKUP(X68,Feuil1!$C$1:$BL$10,4,FALSE) -> -31 | AE68: =T68-HLOOKUP(X68,Feuil1!$C$1:$BL$10,5,FALSE) -> -46 | AF68: =T68-HLOOKUP(X68,Feuil1!$C$1:$BL$10,6,FALSE) -> -56 | AG68: =T68-HLOOKUP(X68,Feuil1!$C$1:$BL$10,7,FALSE) -> -66 | AH68: =T68-HLOOKUP(X68,Feuil1!$C$1:$BL$10,8,FALSE) -> -81 | AI68: =T68-HLOOKUP(X68,Feuil1!$C$1:$BL$10,9,FALSE) -> -96 | AJ68: =T68-HLOOKUP(X68,Feuil1!$C$1:$BL$10,10,FALSE) -> -951 | AQ68: =IF(AJ68>=0,$AJ$4,IF(AI68>=0,$AI$4,IF(AH68>=0,$AH$4,IF(AG68>=0,$AG$4,IF(AF68>=0,$AF$4,IF(AE68>=0,$AE$4,IF(AD68>=0,$AD$4,IF(AC68>=0,$AC$4,$AB$4)))))))) -> DEB
AB69: =T69-HLOOKUP(X69,Feuil1!$C$1:$BL$10,2,FALSE) ->  | AC69: =T69-HLOOKUP(X69,Feuil1!$C$1:$BL$10,3,FALSE) ->  | AD69: =T69-HLOOKUP(X69,Feuil1!$C$1:$BL$10,4,FALSE) ->  | AE69: =T69-HLOOKUP(X69,Feuil1!$C$1:$BL$10,5,FALSE) ->  | AF69: =T69-HLOOKUP(X69,Feuil1!$C$1:$BL$10,6,FALSE) ->  | AG69: =T69-HLOOKUP(X69,Feuil1!$C$1:$BL$10,7,FALSE) ->  | AH69: =T69-HLOOKUP(X69,Feuil1!$C$1:$BL$10,8,FALSE) ->  | AI69: =T69-HLOOKUP(X69,Feuil1!$C$1:$BL$10,9,FALSE) ->  | AJ69: =T69-HLOOKUP(X69,Feuil1!$C$1:$BL$10,10,FALSE) ->  | AQ69: =IF(AJ69>=0,$AJ$4,IF(AI69>=0,$AI$4,IF(AH69>=0,$AH$4,IF(AG69>=0,$AG$4,IF(AF69>=0,$AF$4,IF(AE69>=0,$AE$4,IF(AD69>=0,$AD$4,IF(AC69>=0,$AC$4,$AB$4)))))))) -> 
AB506: J77 | AC506: J85 | AD506: J94 | AE506: J105 | AF506: J+105 | AH506: J56 | AI506: J62 | AJ506: J69 | AK506: J77 | AL506: J85 | AM506: J94 | AN506: J105 | AO506: J+105 | AQ506: S56 | AR506: S62 | AS506: S69 | AT506: S77 | AU506: S85 | AV506: S94 | AW506: S105 | AX506: S+105
AB507: 145 | AC507: 160 | AD507: 170 | AE507: 180 | AF507: 190 | AH507: 100 | AI507: 115 | AJ507: 130 | AK507: 145 | AL507: 160 | AM507: 170 | AN507: 180 | AO507: 190 | AQ507: 115 | AR507: 135 | AS507: 150 | AT507: 165 | AU507: 180 | AV507: 190 | AW507: 200 | AX507: 210
AB508: 165 | AC508: 180 | AD508: 190 | AE508: 200 | AF508: 210 | AH508: 115 | AI508: 135 | AJ508: 150 | AK508: 165 | AL508: 180 | AM508: 190 | AN508: 200 | AO508: 210 | AQ508: 130 | AR508: 150 | AS508: 165 | AT508: 185 | AU508: 200 | AV508: 210 | AW508: 220 | AX508: 230
AB509: 185 | AC509: 200 | AD509: 210 | AE509: 220 | AF509: 230 | AH509: 130 | AI509: 150 | AJ509: 165 | AK509: 185 | AL509: 200 | AM509: 210 | AN509: 220 | AO509: 230 | AQ509: 145 | AR509: 165 | AS509: 180 | AT509: 200 | AU509: 220 | AV509: 230 | AW509: 240 | AX509: 250
AB510: 200 | AC510: 220 | AD510: 230 | AE510: 240 | AF510: 250 | AH510: 145 | AI510: 165 | AJ510: 180 | AK510: 200 | AL510: 220 | AM510: 230 | AN510: 240 | AO510: 250 | AQ510: 175 | AR510: 195 | AS510: 215 | AT510: 235 | AU510: 250 | AV510: 260 | AW510: 275 | AX510: 280
AB511: 235 | AC511: 250 | AD511: 260 | AE511: 275 | AF511: 280 | AH511: 175 | AI511: 195 | AJ511: 215 | AK511: 235 | AL511: 250 | AM511: 260 | AN511: 275 | AO511: 280 | AQ511: 210 | AR511: 230 | AS511: 250 | AT511: 270 | AU511: 290 | AV511: 300 | AW511: 310 | AX511: 325
AB512: 270 | AC512: 290 | AD512: 300 | AE512: 310 | AF512: 325 | AH512: 210 | AI512: 230 | AJ512: 250 | AK512: 270 | AL512: 290 | AM512: 300 | AN512: 310 | AO512: 325 | AQ512: 230 | AR512: 255 | AS512: 275 | AT512: 300 | AU512: 315 | AV512: 335 | AW512: 345 | AX512: 355
AB513: 320 | AC513: 335 | AD513: 355 | AE513: 370 | AF513: 380 | AH513: 245 | AI513: 270 | AJ513: 295 | AK513: 320 | AL513: 335 | AM513: 355 | AN513: 370 | AO513: 380 | AQ513: 245 | AR513: 270 | AS513: 295 | AT513: 320 | AU513: 335 | AV513: 355 | AW513: 370 | AX513: 380

Sheet CADETS 2
F1: LISTING NATIONAL | H1: FEMININES | Q1: DATE : | S1: 2015-03-08
L2: 2° TRIMESTRE
A4: SEXE | B4: ZONE | C4: REG. | D4: CL. | E4: LICENCE | F4: NOMS | G4: Prénoms | H4: AN | I4: POIDS | J4: CLUB | K4: NAT | L4: 1 | M4: 2 | N4: 3 | O4: ARR | P4: 1 | Q4: 2 | R4: 3 | S4: EP-J | T4: Total | U4: KP-2PC | V4: SERIE | X4: Catég | Y4: IWF | AB4: DEB | AC4: DEP + | AD4: REG + | AE4: IRG + | AF4: FED + | AG4: NAT + | AH4: INTB + | AI4: INTA + | AJ4: OLY +
AB5: =T5-HLOOKUP(X5,Feuil1!$C$1:$BL$10,2,FALSE) ->  | AC5: =T5-HLOOKUP(X5,Feuil1!$C$1:$BL$10,3,FALSE) ->  | AD5: =T5-HLOOKUP(X5,Feuil1!$C$1:$BL$10,4,FALSE) ->  | AE5: =T5-HLOOKUP(X5,Feuil1!$C$1:$BL$10,5,FALSE) ->  | AF5: =T5-HLOOKUP(X5,Feuil1!$C$1:$BL$10,6,FALSE) ->  | AG5: =T5-HLOOKUP(X5,Feuil1!$C$1:$BL$10,7,FALSE) ->  | AH5: =T5-HLOOKUP(X5,Feuil1!$C$1:$BL$10,8,FALSE) ->  | AI5: =T5-HLOOKUP(X5,Feuil1!$C$1:$BL$10,9,FALSE) ->  | AJ5: =T5-HLOOKUP(X5,Feuil1!$C$1:$BL$10,10,FALSE) ->  | AQ5: =IF(AJ5>=0,$AJ$4,IF(AI5>=0,$AI$4,IF(AH5>=0,$AH$4,IF(AG5>=0,$AG$4,IF(AF5>=0,$AF$4,IF(AE5>=0,$AE$4,IF(AD5>=0,$AD$4,IF(AC5>=0,$AC$4,$AB$4)))))))) -> 
A6: F | B6: SO | C6: AQU | D6: 1 | E6: 298421 | F6: MOCAER | G6: Nolwenn | H6: 1999 | I6: 44 | J6: ST MEDARD | K6: F | N6: 44 | O6: =IF(H6="","",IF(MAXA(L6:N6)<=0,0,MAXA(L6:N6))) -> 44 | R6: 59 | S6: =IF(H6="","",IF(MAXA(P6:R6)<=0,0,MAXA(P6:R6))) -> 59 | T6: =IF(H6="","",IF(OR(O6=0,S6=0),0,O6+S6)) -> 103 | U6: =T6-I6*2 -> 15 | V6: =IF(H6="","",AQ6) -> INTA + | W6: =IF(AJ6>=0,AJ6,IF(AI6>=0,AI6,IF(AH6>=0,AH6,IF(AG6>=0,AG6,IF(AF6>=0,AF6,IF(AE6>=0,AE6,IF(AD6>=0,AD6,IF(AC6>=0,AC6,AB6)))))))) -> 3 | X6: =IF(I6="","",IF(A6="H",IF(OR(H6="SEN",H6<1995),VLOOKUP(I6,Feuil1!$A$11:$G$29,6),IF(AND(H6>1994,H6<1998),VLOOKUP(I6,Feuil1!$A$11:$G$29,5),IF(AND(H6>1997,H6<2000),VLOOKUP(I6,Feuil1!$A$11:$G$29,4),IF(AND(H6>1999,H6<2002),VLOOKUP(I6,Feuil1!$A$11:$G$29,3),VLOOKUP(I6,Feuil1!$A$11:$G$29,2))))),IF(OR(H6="SEN",H6<1995),VLOOKUP(I6,Feuil1!$G$11:$L$25,6),IF(AND(H6>1994,H6<1998),VLOOKUP(I6,Feuil1!$G$11:$L$25,5),IF(AND(H6>1997,H6<2000),VLOOKUP(I6,Feuil1!$G$11:$L$25,4),IF(AND(H6>1999,H6<2002),VLOOKUP(I6,Feuil1!$G$11:$L$25,3),VLOOKUP(I6,Feuil1!$G$11:$L$25,2))))))) -> FC2 44 | Y6: =IF(I6="","",IF(A6="H",10^(0.794358141*LOG(I6/174.393)^2)*T6,IF(A6="F",10^(0.89726074*LOG(I6/148.026)^2)*T6,""))) -> 182.7780826 | AB6: =T6-HLOOKUP(X6,Feuil1!$C$1:$BL$10,2,FALSE) -> 73 | AC6: =T6-HLOOKUP(X6,Feuil1!$C$1:$BL$10,3,FALSE) -> 63 | AD6: =T6-HLOOKUP(X6,Feuil1!$C$1:$BL$10,4,FALSE) -> 53 | AE6: =T6-HLOOKUP(X6,Feuil1!$C$1:$BL$10,5,FALSE) -> 43 | AF6: =T6-HLOOKUP(X6,Feuil1!$C$1:$BL$10,6,FALSE) -> 33 | AG6: =T6-HLOOKUP(X6,Feuil1!$C$1:$BL$10,7,FALSE) -> 23 | AH6: =T6-HLOOKUP(X6,Feuil1!$C$1:$BL$10,8,FALSE) -> 13 | AI6: =T6-HLOOKUP(X6,Feuil1!$C$1:$BL$10,9,FALSE) -> 3 | AJ6: =T6-HLOOKUP(X6,Feuil1!$C$1:$BL$10,10,FALSE) -> -897 | AQ6: =IF(AJ6>=0,$AJ$4,IF(AI6>=0,$AI$4,IF(AH6>=0,$AH$4,IF(AG6>=0,$AG$4,IF(AF6>=0,$AF$4,IF(AE6>=0,$AE$4,IF(AD6>=0,$AD$4,IF(AC6>=0,$AC$4,$AB$4)))))))) -> INTA +
A7: F | B7: CO | C7: PDL | D7: 2 | E7: 191138 | F7: L'HERMIER | G7: Nolwen | H7: 1999 | I7: 43.65 | J7: CJF Laval-Voutré | K7: F | L7: 40 | M7: 42 | N7: 44 | O7: =IF(H7="","",IF(MAXA(L7:N7)<=0,0,MAXA(L7:N7))) -> 44 | P7: 53 | Q7: 56 | R7: 58 | S7: =IF(H7="","",IF(MAXA(P7:R7)<=0,0,MAXA(P7:R7))) -> 58 | T7: =IF(H7="","",IF(OR(O7=0,S7=0),0,O7+S7)) -> 102 | U7: =T7-I7*2 -> 14.7 | V7: =IF(H7="","",AQ7) -> INTA + | W7: =IF(AJ7>=0,AJ7,IF(AI7>=0,AI7,IF(AH7>=0,AH7,IF(AG7>=0,AG7,IF(AF7>=0,AF7,IF(AE7>=0,AE7,IF(AD7>=0,AD7,IF(AC7>=0,AC7,AB7)))))))) -> 2 | X7: =IF(I7="","",IF(A7="H",IF(OR(H7="SEN",H7<1995),VLOOKUP(I7,Feuil1!$A$11:$G$29,6),IF(AND(H7>1994,H7<1998),VLOOKUP(I7,Feuil1!$A$11:$G$29,5),IF(AND(H7>1997,H7<2000),VLOOKUP(I7,Feuil1!$A$11:$G$29,4),IF(AND(H7>1999,H7<2002),VLOOKUP(I7,Feuil1!$A$11:$G$29,3),VLOOKUP(I7,Feuil1!$A$11:$G$29,2))))),IF(OR(H7="SEN",H7<1995),VLOOKUP(I7,Feuil1!$G$11:$L$25,6),IF(AND(H7>1994,H7<1998),VLOOKUP(I7,Feuil1!$G$11:$L$25,5),IF(AND(H7>1997,H7<2000),VLOOKUP(I7,Feuil1!$G$11:$L$25,4),IF(AND(H7>1999,H7<2002),VLOOKUP(I7,Feuil1!$G$11:$L$25,3),VLOOKUP(I7,Feuil1!$G$11:$L$25,2))))))) -> FC2 44 | Y7: =IF(I7="","",IF(A7="H",10^(0.794358141*LOG(I7/174.393)^2)*T7,IF(A7="F",10^(0.89726074*LOG(I7/148.026)^2)*T7,""))) -> 182.3800295 | AB7: =T7-HLOOKUP(X7,Feuil1!$C$1:$BL$10,2,FALSE) -> 72 | AC7: =T7-HLOOKUP(X7,Feuil1!$C$1:$BL$10,3,FALSE) -> 62 | AD7: =T7-HLOOKUP(X7,Feuil1!$C$1:$BL$10,4,FALSE) -> 52 | AE7: =T7-HLOOKUP(X7,Feuil1!$C$1:$BL$10,5,FALSE) -> 42 | AF7: =T7-HLOOKUP(X7,Feuil1!$C$1:$BL$10,6,FALSE) -> 32 | AG7: =T7-HLOOKUP(X7,Feuil1!$C$1:$BL$10,7,FALSE) -> 22 | AH7: =T7-HLOOKUP(X7,Feuil1!$C$1:$BL$10,8,FALSE) -> 12 | AI7: =T7-HLOOKUP(X7,Feuil1!$C$1:$BL$10,9,FALSE) -> 2 | AJ7: =T7-HLOOKUP(X7,Feuil1!$C$1:$BL$10,10,FALSE) -> -898 | AQ7: =IF(AJ7>=0,$AJ$4,IF(AI7>=0,$AI$4,IF(AH7>=0,$AH$4,IF(AG7>=0,$AG$4,IF(AF7>=0,$AF$4,IF(AE7>=0,$AE$4,IF(AD7>=0,$AD$4,IF(AC7>=0,$AC$4,$AB$4)))))))) -> INTA +
A8: F | B8: N | C8: NPC | D8: 3 | E8: 344393 | F8: CNOCKAERT | G8: Kelly-Ann | H8: 1999 | I8: 42.06 | J8: CHCD COMINES | K8: BEL | L8: 20 | M8: 23 | N8: -25 | O8: =IF(H8="","",IF(MAXA(L8:N8)<=0,0,MAXA(L8:N8))) -> 23 | P8: 25 | Q8: 27 | R8: 29 | S8: =IF(H8="","",IF(MAXA(P8:R8)<=0,0,MAXA(P8:R8))) -> 29 | T8: =IF(H8="","",IF(OR(O8=0,S8=0),0,O8+S8)) -> 52 | U8: =T8-I8*2 -> -32.12 | V8: =IF(H8="","",AQ8) -> REG + | W8: =IF(AJ8>=0,AJ8,IF(AI8>=0,AI8,IF(AH8>=0,AH8,IF(AG8>=0,AG8,IF(AF8>=0,AF8,IF(AE8>=0,AE8,IF(AD8>=0,AD8,IF(AC8>=0,AC8,AB8)))))))) -> 2 | X8: =IF(I8="","",IF(A8="H",IF(OR(H8="SEN",H8<1995),VLOOKUP(I8,Feuil1!$A$11:$G$29,6),IF(AND(H8>1994,H8<1998),VLOOKUP(I8,Feuil1!$A$11:$G$29,5),IF(AND(H8>1997,H8<2000),VLOOKUP(I8,Feuil1!$A$11:$G$29,4),IF(AND(H8>1999,H8<2002),VLOOKUP(I8,Feuil1!$A$11:$G$29,3),VLOOKUP(I8,Feuil1!$A$11:$G$29,2))))),IF(OR(H8="SEN",H8<1995),VLOOKUP(I8,Feuil1!$G$11:$L$25,6),IF(AND(H8>1994,H8<1998),VLOOKUP(I8,Feuil1!$G$11:$L$25,5),IF(AND(H8>1997,H8<2000),VLOOKUP(I8,Feuil1!$G$11:$L$25,4),IF(AND(H8>1999,H8<2002),VLOOKUP(I8,Feuil1!$G$11:$L$25,3),VLOOKUP(I8,Feuil1!$G$11:$L$25,2))))))) -> FC2 44 | Y8: =IF(I8="","",IF(A8="H",10^(0.794358141*LOG(I8/174.393)^2)*T8,IF(A8="F",10^(0.89726074*LOG(I8/148.026)^2)*T8,""))) -> 96.37193843 | AB8: =T8-HLOOKUP(X8,Feuil1!$C$1:$BL$10,2,FALSE) -> 22 | AC8: =T8-HLOOKUP(X8,Feuil1!$C$1:$BL$10,3,FALSE) -> 12 | AD8: =T8-HLOOKUP(X8,Feuil1!$C$1:$BL$10,4,FALSE) -> 2 | AE8: =T8-HLOOKUP(X8,Feuil1!$C$1:$BL$10,5,FALSE) -> -8 | AF8: =T8-HLOOKUP(X8,Feuil1!$C$1:$BL$10,6,FALSE) -> -18 | AG8: =T8-HLOOKUP(X8,Feuil1!$C$1:$BL$10,7,FALSE) -> -28 | AH8: =T8-HLOOKUP(X8,Feuil1!$C$1:$BL$10,8,FALSE) -> -38 | AI8: =T8-HLOOKUP(X8,Feuil1!$C$1:$BL$10,9,FALSE) -> -48 | AJ8: =T8-HLOOKUP(X8,Feuil1!$C$1:$BL$10,10,FALSE) -> -948 | AQ8: =IF(AJ8>=0,$AJ$4,IF(AI8>=0,$AI$4,IF(AH8>=0,$AH$4,IF(AG8>=0,$AG$4,IF(AF8>=0,$AF$4,IF(AE8>=0,$AE$4,IF(AD8>=0,$AD$4,IF(AC8>=0,$AC$4,$AB$4)))))))) -> REG +
AB9: =T9-HLOOKUP(X9,Feuil1!$C$1:$BL$10,2,FALSE) ->  | AC9: =T9-HLOOKUP(X9,Feuil1!$C$1:$BL$10,3,FALSE) ->  | AD9: =T9-HLOOKUP(X9,Feuil1!$C$1:$BL$10,4,FALSE) ->  | AE9: =T9-HLOOKUP(X9,Feuil1!$C$1:$BL$10,5,FALSE) ->  | AF9: =T9-HLOOKUP(X9,Feuil1!$C$1:$BL$10,6,FALSE) ->  | AG9: =T9-HLOOKUP(X9,Feuil1!$C$1:$BL$10,7,FALSE) ->  | AH9: =T9-HLOOKUP(X9,Feuil1!$C$1:$BL$10,8,FALSE) ->  | AI9: =T9-HLOOKUP(X9,Feuil1!$C$1:$BL$10,9,FALSE) ->  | AJ9: =T9-HLOOKUP(X9,Feuil1!$C$1:$BL$10,10,FALSE) ->  | AQ9: =IF(AJ9>=0,$AJ$4,IF(AI9>=0,$AI$4,IF(AH9>=0,$AH$4,IF(AG9>=0,$AG$4,IF(AF9>=0,$AF$4,IF(AE9>=0,$AE$4,IF(AD9>=0,$AD$4,IF(AC9>=0,$AC$4,$AB$4)))))))) -> 
A10: F | B10: SO | C10: AQU | D10: 1 | E10: 277832 | F10: RIGAUD | G10: GARANCE | H10: 1999 | I10: 47.8 | J10: ST MEDARD | K10: F | L10: 48 | M10: 51 | N10: 53 | O10: =IF(H10="","",IF(MAXA(L10:N10)<=0,0,MAXA(L10:N10))) -> 53 | P10: 59 | Q10: -62 | R10: 62 | S10: =IF(H10="","",IF(MAXA(P10:R10)<=0,0,MAXA(P10:R10))) -> 62 | T10: =IF(H10="","",IF(OR(O10=0,S10=0),0,O10+S10)) -> 115 | U10: =T10-I10*2 -> 19.4 | V10: =IF(H10="","",AQ10) -> INTA + | W10: =IF(AJ10>=0,AJ10,IF(AI10>=0,AI10,IF(AH10>=0,AH10,IF(AG10>=0,AG10,IF(AF10>=0,AF10,IF(AE10>=0,AE10,IF(AD10>=0,AD10,IF(AC10>=0,AC10,AB10)))))))) -> 5 | X10: =IF(I10="","",IF(A10="H",IF(OR(H10="SEN",H10<1995),VLOOKUP(I10,Feuil1!$A$11:$G$29,6),IF(AND(H10>1994,H10<1998),VLOOKUP(I10,Feuil1!$A$11:$G$29,5),IF(AND(H10>1997,H10<2000),VLOOKUP(I10,Feuil1!$A$11:$G$29,4),IF(AND(H10>1999,H10<2002),VLOOKUP(I10,Feuil1!$A$11:$G$29,3),VLOOKUP(I10,Feuil1!$A$11:$G$29,2))))),IF(OR(H10="SEN",H10<1995),VLOOKUP(I10,Feuil1!$G$11:$L$25,6),IF(AND(H10>1994,H10<1998),VLOOKUP(I10,Feuil1!$G$11:$L$25,5),IF(AND(H10>1997,H10<2000),VLOOKUP(I10,Feuil1!$G$11:$L$25,4),IF(AND(H10>1999,H10<2002),VLOOKUP(I10,Feuil1!$G$11:$L$25,3),VLOOKUP(I10,Feuil1!$G$11:$L$25,2))))))) -> FC2 48 | Y10: =IF(I10="","",IF(A10="H",10^(0.794358141*LOG(I10/174.393)^2)*T10,IF(A10="F",10^(0.89726074*LOG(I10/148.026)^2)*T10,""))) -> 189.2043681 | AB10: =T10-HLOOKUP(X10,Feuil1!$C$1:$BL$10,2,FALSE) -> 80 | AC10: =T10-HLOOKUP(X10,Feuil1!$C$1:$BL$10,3,FALSE) -> 70 | AD10: =T10-HLOOKUP(X10,Feuil1!$C$1:$BL$10,4,FALSE) -> 60 | AE10: =T10-HLOOKUP(X10,Feuil1!$C$1:$BL$10,5,FALSE) -> 50 | AF10: =T10-HLOOKUP(X10,Feuil1!$C$1:$BL$10,6,FALSE) -> 40 | AG10: =T10-HLOOKUP(X10,Feuil1!$C$1:$BL$10,7,FALSE) -> 30 | AH10: =T10-HLOOKUP(X10,Feuil1!$C$1:$BL$10,8,FALSE) -> 20 | AI10: =T10-HLOOKUP(X10,Feuil1!$C$1:$BL$10,9,FALSE) -> 5 | AJ10: =T10-HLOOKUP(X10,Feuil1!$C$1:$BL$10,10,FALSE) -> -885 | AQ10: =IF(AJ10>=0,$AJ$4,IF(AI10>=0,$AI$4,IF(AH10>=0,$AH$4,IF(AG10>=0,$AG$4,IF(AF10>=0,$AF$4,IF(AE10>=0,$AE$4,IF(AD10>=0,$AD$4,IF(AC10>=0,$AC$4,$AB$4)))))))) -> INTA +
A11: F | B11: SO | C11: AQU | D11: 2 | E11: 298421 | F11: MOCAER | G11: Nolwenn | H11: 1999 | I11: 45.1 | J11: ST MEDARD | K11: F | L11: 44 | M11: 48 | N11: 50 | O11: 50 | P11: 58 | Q11: 61 | R11: 64 | S11: 64 | T11: 114 | U11: 23.8 | V11: INTA + | W11: 4 | X11: =IF(I11="","",IF(A11="H",IF(OR(H11="SEN",H11<1995),VLOOKUP(I11,Feuil1!$A$11:$G$29,6),IF(AND(H11>1994,H11<1998),VLOOKUP(I11,Feuil1!$A$11:$G$29,5),IF(AND(H11>1997,H11<2000),VLOOKUP(I11,Feuil1!$A$11:$G$29,4),IF(AND(H11>1999,H11<2002),VLOOKUP(I11,Feuil1!$A$11:$G$29,3),VLOOKUP(I11,Feuil1!$A$11:$G$29,2))))),IF(OR(H11="SEN",H11<1995),VLOOKUP(I11,Feuil1!$G$11:$L$25,6),IF(AND(H11>1994,H11<1998),VLOOKUP(I11,Feuil1!$G$11:$L$25,5),IF(AND(H11>1997,H11<2000),VLOOKUP(I11,Feuil1!$G$11:$L$25,4),IF(AND(H11>1999,H11<2002),VLOOKUP(I11,Feuil1!$G$11:$L$25,3),VLOOKUP(I11,Feuil1!$G$11:$L$25,2))))))) -> FC2 48 | Y11: 197.6766805 | AB11: =T11-HLOOKUP(X11,Feuil1!$C$1:$BL$10,2,FALSE) -> 79 | AC11: =T11-HLOOKUP(X11,Feuil1!$C$1:$BL$10,3,FALSE) -> 69 | AD11: =T11-HLOOKUP(X11,Feuil1!$C$1:$BL$10,4,FALSE) -> 59 | AE11: =T11-HLOOKUP(X11,Feuil1!$C$1:$BL$10,5,FALSE) -> 49 | AF11: =T11-HLOOKUP(X11,Feuil1!$C$1:$BL$10,6,FALSE) -> 39 | AG11: =T11-HLOOKUP(X11,Feuil1!$C$1:$BL$10,7,FALSE) -> 29 | AH11: =T11-HLOOKUP(X11,Feuil1!$C$1:$BL$10,8,FALSE) -> 19 | AI11: =T11-HLOOKUP(X11,Feuil1!$C$1:$BL$10,9,FALSE) -> 4 | AJ11: =T11-HLOOKUP(X11,Feuil1!$C$1:$BL$10,10,FALSE) -> -886 | AQ11: INTA +
A12: F | B12: CO | C12: PDL | D12: 3 | E12: 191138 | F12: L'HERMIER | G12: Nolwen | H12: 1999 | I12: 44.7 | J12: CJF Laval-Voutré | K12: F | L12: 42 | M12: 44 | N12: 46 | O12: 46 | P12: 58 | Q12: 60 | R12: 62 | S12: 62 | T12: 108 | U12: 18.6 | V12: INTB + | W12: 13 | X12: =IF(I12="","",IF(A12="H",IF(OR(H12="SEN",H12<1995),VLOOKUP(I12,Feuil1!$A$11:$G$29,6),IF(AND(H12>1994,H12<1998),VLOOKUP(I12,Feuil1!$A$11:$G$29,5),IF(AND(H12>1997,H12<2000),VLOOKUP(I12,Feuil1!$A$11:$G$29,4),IF(AND(H12>1999,H12<2002),VLOOKUP(I12,Feuil1!$A$11:$G$29,3),VLOOKUP(I12,Feuil1!$A$11:$G$29,2))))),IF(OR(H12="SEN",H12<1995),VLOOKUP(I12,Feuil1!$G$11:$L$25,6),IF(AND(H12>1994,H12<1998),VLOOKUP(I12,Feuil1!$G$11:$L$25,5),IF(AND(H12>1997,H12<2000),VLOOKUP(I12,Feuil1!$G$11:$L$25,4),IF(AND(H12>1999,H12<2002),VLOOKUP(I12,Feuil1!$G$11:$L$25,3),VLOOKUP(I12,Feuil1!$G$11:$L$25,2))))))) -> FC2 48 | Y12: 188.8302218 | AB12: =T12-HLOOKUP(X12,Feuil1!$C$1:$BL$10,2,FALSE) -> 73 | AC12: =T12-HLOOKUP(X12,Feuil1!$C$1:$BL$10,3,FALSE) -> 63 | AD12: =T12-HLOOKUP(X12,Feuil1!$C$1:$BL$10,4,FALSE) -> 53 | AE12: =T12-HLOOKUP(X12,Feuil1!$C$1:$BL$10,5,FALSE) -> 43 | AF12: =T12-HLOOKUP(X12,Feuil1!$C$1:$BL$10,6,FALSE) -> 33 | AG12: =T12-HLOOKUP(X12,Feuil1!$C$1:$BL$10,7,FALSE) -> 23 | AH12: =T12-HLOOKUP(X12,Feuil1!$C$1:$BL$10,8,FALSE) -> 13 | AI12: =T12-HLOOKUP(X12,Feuil1!$C$1:$BL$10,9,FALSE) -> -2 | AJ12: =T12-HLOOKUP(X12,Feuil1!$C$1:$BL$10,10,FALSE) -> -892 | AQ12: INTB +
A13: F | B13: SEST | C13: CAZ | D13: 4 | E13: 363002 | F13: MAILLOT | G13: Asia | H13: 1998 | I13: 47.8 | J13: ASLDD TOULON | K13: F | L13: 39 | M13: 42 | N13: 44 | O13: 44 | P13: 50 | Q13: 53 | R13: 56 | S13: 56 | T13: 100 | U13: 4.4 | V13: INTB + | W13: 5 | X13: =IF(I13="","",IF(A13="H",IF(OR(H13="SEN",H13<1995),VLOOKUP(I13,Feuil1!$A$11:$G$29,6),IF(AND(H13>1994,H13<1998),VLOOKUP(I13,Feuil1!$A$11:$G$29,5),IF(AND(H13>1997,H13<2000),VLOOKUP(I13,Feuil1!$A$11:$G$29,4),IF(AND(H13>1999,H13<2002),VLOOKUP(I13,Feuil1!$A$11:$G$29,3),VLOOKUP(I13,Feuil1!$A$11:$G$29,2))))),IF(OR(H13="SEN",H13<1995),VLOOKUP(I13,Feuil1!$G$11:$L$25,6),IF(AND(H13>1994,H13<1998),VLOOKUP(I13,Feuil1!$G$11:$L$25,5),IF(AND(H13>1997,H13<2000),VLOOKUP(I13,Feuil1!$G$11:$L$25,4),IF(AND(H13>1999,H13<2002),VLOOKUP(I13,Feuil1!$G$11:$L$25,3),VLOOKUP(I13,Feuil1!$G$11:$L$25,2))))))) -> FC2 48 | Y13: 164.5255374 | AB13: =T13-HLOOKUP(X13,Feuil1!$C$1:$BL$10,2,FALSE) -> 65 | AC13: =T13-HLOOKUP(X13,Feuil1!$C$1:$BL$10,3,FALSE) -> 55 | AD13: =T13-HLOOKUP(X13,Feuil1!$C$1:$BL$10,4,FALSE) -> 45 | AE13: =T13-HLOOKUP(X13,Feuil1!$C$1:$BL$10,5,FALSE) -> 35 | AF13: =T13-HLOOKUP(X13,Feuil1!$C$1:$BL$10,6,FALSE) -> 25 | AG13: =T13-HLOOKUP(X13,Feuil1!$C$1:$BL$10,7,FALSE) -> 15 | AH13: =T13-HLOOKUP(X13,Feuil1!$C$1:$BL$10,8,FALSE) -> 5 | AI13: =T13-HLOOKUP(X13,Feuil1!$C$1:$BL$10,9,FALSE) -> -10 | AJ13: =T13-HLOOKUP(X13,Feuil1!$C$1:$BL$10,10,FALSE) -> -900 | AQ13: INTB +
A14: F | B14: SEST | C14: CAZ | D14: 5 | E14: 295873 | F14: RICHET | G14: Catherine | H14: 1999 | I14: 47.8 | J14: ES VILL LOUBET | K14: F | L14: 38 | M14: 41 | N14: 44 | O14: 44 | P14: 50 | Q14: 53 | R14: 56 | S14: 56 | T14: 100 | U14: 4.4 | V14: INTB + | W14: 5 | X14: =IF(I14="","",IF(A14="H",IF(OR(H14="SEN",H14<1995),VLOOKUP(I14,Feuil1!$A$11:$G$29,6),IF(AND(H14>1994,H14<1998),VLOOKUP(I14,Feuil1!$A$11:$G$29,5),IF(AND(H14>1997,H14<2000),VLOOKUP(I14,Feuil1!$A$11:$G$29,4),IF(AND(H14>1999,H14<2002),VLOOKUP(I14,Feuil1!$A$11:$G$29,3),VLOOKUP(I14,Feuil1!$A$11:$G$29,2))))),IF(OR(H14="SEN",H14<1995),VLOOKUP(I14,Feuil1!$G$11:$L$25,6),IF(AND(H14>1994,H14<1998),VLOOKUP(I14,Feuil1!$G$11:$L$25,5),IF(AND(H14>1997,H14<2000),VLOOKUP(I14,Feuil1!$G$11:$L$25,4),IF(AND(H14>1999,H14<2002),VLOOKUP(I14,Feuil1!$G$11:$L$25,3),VLOOKUP(I14,Feuil1!$G$11:$L$25,2))))))) -> FC2 48 | Y14: 164.5255374 | AB14: =T14-HLOOKUP(X14,Feuil1!$C$1:$BL$10,2,FALSE) -> 65 | AC14: =T14-HLOOKUP(X14,Feuil1!$C$1:$BL$10,3,FALSE) -> 55 | AD14: =T14-HLOOKUP(X14,Feuil1!$C$1:$BL$10,4,FALSE) -> 45 | AE14: =T14-HLOOKUP(X14,Feuil1!$C$1:$BL$10,5,FALSE) -> 35 | AF14: =T14-HLOOKUP(X14,Feuil1!$C$1:$BL$10,6,FALSE) -> 25 | AG14: =T14-HLOOKUP(X14,Feuil1!$C$1:$BL$10,7,FALSE) -> 15 | AH14: =T14-HLOOKUP(X14,Feuil1!$C$1:$BL$10,8,FALSE) -> 5 | AI14: =T14-HLOOKUP(X14,Feuil1!$C$1:$BL$10,9,FALSE) -> -10 | AJ14: =T14-HLOOKUP(X14,Feuil1!$C$1:$BL$10,10,FALSE) -> -900 | AQ14: INTB +
A15: F | B15: SEST | C15: CAZ | D15: 6 | E15: 385815 | F15: GOUDE | G15: Zoé | H15: 1999 | I15: 47.25 | J15: ASLDD TOULON | K15: F | L15: 27 | M15: 30 | N15: 31 | O15: 31 | P15: 36 | Q15: 38 | R15: 41 | S15: 41 | T15: 72 | U15: -22.5 | V15: IRG + | W15: 7 | X15: =IF(I15="","",IF(A15="H",IF(OR(H15="SEN",H15<1995),VLOOKUP(I15,Feuil1!$A$11:$G$29,6),IF(AND(H15>1994,H15<1998),VLOOKUP(I15,Feuil1!$A$11:$G$29,5),IF(AND(H15>1997,H15<2000),VLOOKUP(I15,Feuil1!$A$11:$G$29,4),IF(AND(H15>1999,H15<2002),VLOOKUP(I15,Feuil1!$A$11:$G$29,3),VLOOKUP(I15,Feuil1!$A$11:$G$29,2))))),IF(OR(H15="SEN",H15<1995),VLOOKUP(I15,Feuil1!$G$11:$L$25,6),IF(AND(H15>1994,H15<1998),VLOOKUP(I15,Feuil1!$G$11:$L$25,5),IF(AND(H15>1997,H15<2000),VLOOKUP(I15,Feuil1!$G$11:$L$25,4),IF(AND(H15>1999,H15<2002),VLOOKUP(I15,Feuil1!$G$11:$L$25,3),VLOOKUP(I15,Feuil1!$G$11:$L$25,2))))))) -> FC2 48 | Y15: 119.6785181 | AB15: =T15-HLOOKUP(X15,Feuil1!$C$1:$BL$10,2,FALSE) -> 37 | AC15: =T15-HLOOKUP(X15,Feuil1!$C$1:$BL$10,3,FALSE) -> 27 | AD15: =T15-HLOOKUP(X15,Feuil1!$C$1:$BL$10,4,FALSE) -> 17 | AE15: =T15-HLOOKUP(X15,Feuil1!$C$1:$BL$10,5,FALSE) -> 7 | AF15: =T15-HLOOKUP(X15,Feuil1!$C$1:$BL$10,6,FALSE) -> -3 | AG15: =T15-HLOOKUP(X15,Feuil1!$C$1:$BL$10,7,FALSE) -> -13 | AH15: =T15-HLOOKUP(X15,Feuil1!$C$1:$BL$10,8,FALSE) -> -23 | AI15: =T15-HLOOKUP(X15,Feuil1!$C$1:$BL$10,9,FALSE) -> -38 | AJ15: =T15-HLOOKUP(X15,Feuil1!$C$1:$BL$10,10,FALSE) -> -928 | AQ15: IRG +
A16: F | B16: SEST | C16: CAZ | D16: 7 | E16: 387211 | F16: CUDIA | G16: Charlotte | H16: 1999 | I16: 45.4 | J16: ASLDD TOULON | K16: F | L16: 26 | M16: 28 | N16: -30 | O16: 28 | P16: -33 | Q16: 35 | R16: 37 | S16: 37 | T16: 65 | U16: -25.8 | V16: IRG + | W16: 0 | X16: =IF(I16="","",IF(A16="H",IF(OR(H16="SEN",H16<1995),VLOOKUP(I16,Feuil1!$A$11:$G$29,6),IF(AND(H16>1994,H16<1998),VLOOKUP(I16,Feuil1!$A$11:$G$29,5),IF(AND(H16>1997,H16<2000),VLOOKUP(I16,Feuil1!$A$11:$G$29,4),IF(AND(H16>1999,H16<2002),VLOOKUP(I16,Feuil1!$A$11:$G$29,3),VLOOKUP(I16,Feuil1!$A$11:$G$29,2))))),IF(OR(H16="SEN",H16<1995),VLOOKUP(I16,Feuil1!$G$11:$L$25,6),IF(AND(H16>1994,H16<1998),VLOOKUP(I16,Feuil1!$G$11:$L$25,5),IF(AND(H16>1997,H16<2000),VLOOKUP(I16,Feuil1!$G$11:$L$25,4),IF(AND(H16>1999,H16<2002),VLOOKUP(I16,Feuil1!$G$11:$L$25,3),VLOOKUP(I16,Feuil1!$G$11:$L$25,2))))))) -> FC2 48 | Y16: 112.0222741 | AB16: =T16-HLOOKUP(X16,Feuil1!$C$1:$BL$10,2,FALSE) -> 30 | AC16: =T16-HLOOKUP(X16,Feuil1!$C$1:$BL$10,3,FALSE) -> 20 | AD16: =T16-HLOOKUP(X16,Feuil1!$C$1:$BL$10,4,FALSE) -> 10 | AE16: =T16-HLOOKUP(X16,Feuil1!$C$1:$BL$10,5,FALSE) -> 0 | AF16: =T16-HLOOKUP(X16,Feuil1!$C$1:$BL$10,6,FALSE) -> -10 | AG16: =T16-HLOOKUP(X16,Feuil1!$C$1:$BL$10,7,FALSE) -> -20 | AH16: =T16-HLOOKUP(X16,Feuil1!$C$1:$BL$10,8,FALSE) -> -30 | AI16: =T16-HLOOKUP(X16,Feuil1!$C$1:$BL$10,9,FALSE) -> -45 | AJ16: =T16-HLOOKUP(X16,Feuil1!$C$1:$BL$10,10,FALSE) -> -935 | AQ16: IRG +
A17: F | B17: N | C17: PIC | D17: 8 | E17: 378364 | F17: LHERBIEZ | G17: Amandine | H17: 1999 | I17: 47.7 | J17: Villers-Bretonneux KC | K17: F | L17: 22 | M17: 25 | N17: -27 | O17: 25 | P17: 32 | Q17: 34 | R17: 36 | S17: 36 | T17: 61 | U17: -34.4 | V17: REG + | W17: 6 | X17: =IF(I17="","",IF(A17="H",IF(OR(H17="SEN",H17<1995),VLOOKUP(I17,Feuil1!$A$11:$G$29,6),IF(AND(H17>1994,H17<1998),VLOOKUP(I17,Feuil1!$A$11:$G$29,5),IF(AND(H17>1997,H17<2000),VLOOKUP(I17,Feuil1!$A$11:$G$29,4),IF(AND(H17>1999,H17<2002),VLOOKUP(I17,Feuil1!$A$11:$G$29,3),VLOOKUP(I17,Feuil1!$A$11:$G$29,2))))),IF(OR(H17="SEN",H17<1995),VLOOKUP(I17,Feuil1!$G$11:$L$25,6),IF(AND(H17>1994,H17<1998),VLOOKUP(I17,Feuil1!$G$11:$L$25,5),IF(AND(H17>1997,H17<2000),VLOOKUP(I17,Feuil1!$G$11:$L$25,4),IF(AND(H17>1999,H17<2002),VLOOKUP(I17,Feuil1!$G$11:$L$25,3),VLOOKUP(I17,Feuil1!$G$11:$L$25,2))))))) -> FC2 48 | Y17: 100.5460778 | AB17: =T17-HLOOKUP(X17,Feuil1!$C$1:$BL$10,2,FALSE) -> 26 | AC17: =T17-HLOOKUP(X17,Feuil1!$C$1:$BL$10,3,FALSE) -> 16 | AD17: =T17-HLOOKUP(X17,Feuil1!$C$1:$BL$10,4,FALSE) -> 6 | AE17: =T17-HLOOKUP(X17,Feuil1!$C$1:$BL$10,5,FALSE) -> -4 | AF17: =T17-HLOOKUP(X17,Feuil1!$C$1:$BL$10,6,FALSE) -> -14 | AG17: =T17-HLOOKUP(X17,Feuil1!$C$1:$BL$10,7,FALSE) -> -24 | AH17: =T17-HLOOKUP(X17,Feuil1!$C$1:$BL$10,8,FALSE) -> -34 | AI17: =T17-HLOOKUP(X17,Feuil1!$C$1:$BL$10,9,FALSE) -> -49 | AJ17: =T17-HLOOKUP(X17,Feuil1!$C$1:$BL$10,10,FALSE) -> -939 | AQ17: REG +
A18: F | B18: N | C18: NPC | D18: 9 | E18: 376716 | F18: IMPINES | G18: Alicia | H18: 1999 | I18: 45.9 | J18: ST POL SUR MER | K18: F | L18: 18 | M18: 21 | N18: 24 | O18: 24 | P18: 24 | Q18: 26 | R18: 30 | S18: 30 | T18: 54 | U18: -37.8 | V18: DEP + | W18: 9 | X18: =IF(I18="","",IF(A18="H",IF(OR(H18="SEN",H18<1995),VLOOKUP(I18,Feuil1!$A$11:$G$29,6),IF(AND(H18>1994,H18<1998),VLOOKUP(I18,Feuil1!$A$11:$G$29,5),IF(AND(H18>1997,H18<2000),VLOOKUP(I18,Feuil1!$A$11:$G$29,4),IF(AND(H18>1999,H18<2002),VLOOKUP(I18,Feuil1!$A$11:$G$29,3),VLOOKUP(I18,Feuil1!$A$11:$G$29,2))))),IF(OR(H18="SEN",H18<1995),VLOOKUP(I18,Feuil1!$G$11:$L$25,6),IF(AND(H18>1994,H18<1998),VLOOKUP(I18,Feuil1!$G$11:$L$25,5),IF(AND(H18>1997,H18<2000),VLOOKUP(I18,Feuil1!$G$11:$L$25,4),IF(AND(H18>1999,H18<2002),VLOOKUP(I18,Feuil1!$G$11:$L$25,3),VLOOKUP(I18,Feuil1!$G$11:$L$25,2))))))) -> FC2 48 | Y18: 92.13477762 | AB18: =T18-HLOOKUP(X18,Feuil1!$C$1:$BL$10,2,FALSE) -> 19 | AC18: =T18-HLOOKUP(X18,Feuil1!$C$1:$BL$10,3,FALSE) -> 9 | AD18: =T18-HLOOKUP(X18,Feuil1!$C$1:$BL$10,4,FALSE) -> -1 | AE18: =T18-HLOOKUP(X18,Feuil1!$C$1:$BL$10,5,FALSE) -> -11 | AF18: =T18-HLOOKUP(X18,Feuil1!$C$1:$BL$10,6,FALSE) -> -21 | AG18: =T18-HLOOKUP(X18,Feuil1!$C$1:$BL$10,7,FALSE) -> -31 | AH18: =T18-HLOOKUP(X18,Feuil1!$C$1:$BL$10,8,FALSE) -> -41 | AI18: =T18-HLOOKUP(X18,Feuil1!$C$1:$BL$10,9,FALSE) -> -56 | AJ18: =T18-HLOOKUP(X18,Feuil1!$C$1:$BL$10,10,FALSE) -> -946 | AQ18: DEP +
A19: F | B19: SO | C19: MPY | D19: 10 | E19: 375975 | F19: GRIMAL | G19: Claire | H19: 1999 | I19: 46.5 | J19: MONTAUBAN HC | K19: F | L19: 14 | M19: 17 | N19: 20 | O19: 20 | P19: 17 | Q19: 21 | R19: 25 | S19: 25 | T19: 45 | U19: -48 | V19: DEP + | W19: 0 | X19: =IF(I19="","",IF(A19="H",IF(OR(H19="SEN",H19<1995),VLOOKUP(I19,Feuil1!$A$11:$G$29,6),IF(AND(H19>1994,H19<1998),VLOOKUP(I19,Feuil1!$A$11:$G$29,5),IF(AND(H19>1997,H19<2000),VLOOKUP(I19,Feuil1!$A$11:$G$29,4),IF(AND(H19>1999,H19<2002),VLOOKUP(I19,Feuil1!$A$11:$G$29,3),VLOOKUP(I19,Feuil1!$A$11:$G$29,2))))),IF(OR(H19="SEN",H19<1995),VLOOKUP(I19,Feuil1!$G$11:$L$25,6),IF(AND(H19>1994,H19<1998),VLOOKUP(I19,Feuil1!$G$11:$L$25,5),IF(AND(H19>1997,H19<2000),VLOOKUP(I19,Feuil1!$G$11:$L$25,4),IF(AND(H19>1999,H19<2002),VLOOKUP(I19,Feuil1!$G$11:$L$25,3),VLOOKUP(I19,Feuil1!$G$11:$L$25,2))))))) -> FC2 48 | Y19: 75.87938634 | AB19: =T19-HLOOKUP(X19,Feuil1!$C$1:$BL$10,2,FALSE) -> 10 | AC19: =T19-HLOOKUP(X19,Feuil1!$C$1:$BL$10,3,FALSE) -> 0 | AD19: =T19-HLOOKUP(X19,Feuil1!$C$1:$BL$10,4,FALSE) -> -10 | AE19: =T19-HLOOKUP(X19,Feuil1!$C$1:$BL$10,5,FALSE) -> -20 | AF19: =T19-HLOOKUP(X19,Feuil1!$C$1:$BL$10,6,FALSE) -> -30 | AG19: =T19-HLOOKUP(X19,Feuil1!$C$1:$BL$10,7,FALSE) -> -40 | AH19: =T19-HLOOKUP(X19,Feuil1!$C$1:$BL$10,8,FALSE) -> -50 | AI19: =T19-HLOOKUP(X19,Feuil1!$C$1:$BL$10,9,FALSE) -> -65 | AJ19: =T19-HLOOKUP(X19,Feuil1!$C$1:$BL$10,10,FALSE) -> -955 | AQ19: DEP +
A20: F | B20: N | C20: NPC | D20: 11 | E20: 311496 | F20: DEFONTAINE | G20: Elodie | H20: 1999 | I20: 46.5 | J20: ST POL SUR MER | K20: F | L20: 16 | M20: 18 | N20: 20 | O20: 20 | P20: 20 | Q20: 23 | R20: 25 | S20: 25 | T20: 45 | U20: -48 | V20: DEP + | W20: 0 | X20: =IF(I20="","",IF(A20="H",IF(OR(H20="SEN",H20<1995),VLOOKUP(I20,Feuil1!$A$11:$G$29,6),IF(AND(H20>1994,H20<1998),VLOOKUP(I20,Feuil1!$A$11:$G$29,5),IF(AND(H20>1997,H20<2000),VLOOKUP(I20,Feuil1!$A$11:$G$29,4),IF(AND(H20>1999,H20<2002),VLOOKUP(I20,Feuil1!$A$11:$G$29,3),VLOOKUP(I20,Feuil1!$A$11:$G$29,2))))),IF(OR(H20="SEN",H20<1995),VLOOKUP(I20,Feuil1!$G$11:$L$25,6),IF(AND(H20>1994,H20<1998),VLOOKUP(I20,Feuil1!$G$11:$L$25,5),IF(AND(H20>1997,H20<2000),VLOOKUP(I20,Feuil1!$G$11:$L$25,4),IF(AND(H20>1999,H20<2002),VLOOKUP(I20,Feuil1!$G$11:$L$25,3),VLOOKUP(I20,Feuil1!$G$11:$L$25,2))))))) -> FC2 48 | Y20: 75.87938634 | AB20: =T20-HLOOKUP(X20,Feuil1!$C$1:$BL$10,2,FALSE) -> 10 | AC20: =T20-HLOOKUP(X20,Feuil1!$C$1:$BL$10,3,FALSE) -> 0 | AD20: =T20-HLOOKUP(X20,Feuil1!$C$1:$BL$10,4,FALSE) -> -10 | AE20: =T20-HLOOKUP(X20,Feuil1!$C$1:$BL$10,5,FALSE) -> -20 | AF20: =T20-HLOOKUP(X20,Feuil1!$C$1:$BL$10,6,FALSE) -> -30 | AG20: =T20-HLOOKUP(X20,Feuil1!$C$1:$BL$10,7,FALSE) -> -40 | AH20: =T20-HLOOKUP(X20,Feuil1!$C$1:$BL$10,8,FALSE) -> -50 | AI20: =T20-HLOOKUP(X20,Feuil1!$C$1:$BL$10,9,FALSE) -> -65 | AJ20: =T20-HLOOKUP(X20,Feuil1!$C$1:$BL$10,10,FALSE) -> -955 | AQ20: DEP +
AB21: =T21-HLOOKUP(X21,Feuil1!$C$1:$BL$10,2,FALSE) ->  | AC21: =T21-HLOOKUP(X21,Feuil1!$C$1:$BL$10,3,FALSE) ->  | AD21: =T21-HLOOKUP(X21,Feuil1!$C$1:$BL$10,4,FALSE) ->  | AE21: =T21-HLOOKUP(X21,Feuil1!$C$1:$BL$10,5,FALSE) ->  | AF21: =T21-HLOOKUP(X21,Feuil1!$C$1:$BL$10,6,FALSE) ->  | AG21: =T21-HLOOKUP(X21,Feuil1!$C$1:$BL$10,7,FALSE) ->  | AH21: =T21-HLOOKUP(X21,Feuil1!$C$1:$BL$10,8,FALSE) ->  | AI21: =T21-HLOOKUP(X21,Feuil1!$C$1:$BL$10,9,FALSE) ->  | AJ21: =T21-HLOOKUP(X21,Feuil1!$C$1:$BL$10,10,FALSE) ->  | AQ21: =IF(AJ21>=0,$AJ$4,IF(AI21>=0,$AI$4,IF(AH21>=0,$AH$4,IF(AG21>=0,$AG$4,IF(AF21>=0,$AF$4,IF(AE21>=0,$AE$4,IF(AD21>=0,$AD$4,IF(AC21>=0,$AC$4,$AB$4)))))))) -> 
A22: F | B22: NE | C22: FCO | D22: 1 | E22: 382515 | F22: PRUVOT | G22: Samantha | H22: 1999 | I22: 52.8 | J22: LF Besançon | K22: F | L22: 45 | M22: 48 | N22: 51 | O22: =IF(H22="","",IF(MAXA(L22:N22)<=0,0,MAXA(L22:N22))) -> 51 | P22: 58 | Q22: 64 | R22: 68 | S22: =IF(H22="","",IF(MAXA(P22:R22)<=0,0,MAXA(P22:R22))) -> 68 | T22: =IF(H22="","",IF(OR(O22=0,S22=0),0,O22+S22)) -> 119 | U22: =T22-I22*2 -> 13.4 | V22: =IF(H22="","",AQ22) -> INTB + | W22: =IF(AJ22>=0,AJ22,IF(AI22>=0,AI22,IF(AH22>=0,AH22,IF(AG22>=0,AG22,IF(AF22>=0,AF22,IF(AE22>=0,AE22,IF(AD22>=0,AD22,IF(AC22>=0,AC22,AB22)))))))) -> 14 | X22: =IF(I22="","",IF(A22="H",IF(OR(H22="SEN",H22<1995),VLOOKUP(I22,Feuil1!$A$11:$G$29,6),IF(AND(H22>1994,H22<1998),VLOOKUP(I22,Feuil1!$A$11:$G$29,5),IF(AND(H22>1997,H22<2000),VLOOKUP(I22,Feuil1!$A$11:$G$29,4),IF(AND(H22>1999,H22<2002),VLOOKUP(I22,Feuil1!$A$11:$G$29,3),VLOOKUP(I22,Feuil1!$A$11:$G$29,2))))),IF(OR(H22="SEN",H22<1995),VLOOKUP(I22,Feuil1!$G$11:$L$25,6),IF(AND(H22>1994,H22<1998),VLOOKUP(I22,Feuil1!$G$11:$L$25,5),IF(AND(H22>1997,H22<2000),VLOOKUP(I22,Feuil1!$G$11:$L$25,4),IF(AND(H22>1999,H22<2002),VLOOKUP(I22,Feuil1!$G$11:$L$25,3),VLOOKUP(I22,Feuil1!$G$11:$L$25,2))))))) -> FC2 53 | Y22: =IF(I22="","",IF(A22="H",10^(0.794358141*LOG(I22/174.393)^2)*T22,IF(A22="F",10^(0.89726074*LOG(I22/148.026)^2)*T22,""))) -> 180.04993 | AB22: =T22-HLOOKUP(X22,Feuil1!$C$1:$BL$10,2,FALSE) -> 74 | AC22: =T22-HLOOKUP(X22,Feuil1!$C$1:$BL$10,3,FALSE) -> 64 | AD22: =T22-HLOOKUP(X22,Feuil1!$C$1:$BL$10,4,FALSE) -> 54 | AE22: =T22-HLOOKUP(X22,Feuil1!$C$1:$BL$10,5,FALSE) -> 44 | AF22: =T22-HLOOKUP(X22,Feuil1!$C$1:$BL$10,6,FALSE) -> 34 | AG22: =T22-HLOOKUP(X22,Feuil1!$C$1:$BL$10,7,FALSE) -> 24 | AH22: =T22-HLOOKUP(X22,Feuil1!$C$1:$BL$10,8,FALSE) -> 14 | AI22: =T22-HLOOKUP(X22,Feuil1!$C$1:$BL$10,9,FALSE) -> -1 | AJ22: =T22-HLOOKUP(X22,Feuil1!$C$1:$BL$10,10,FALSE) -> -881 | AQ22: =IF(AJ22>=0,$AJ$4,IF(AI22>=0,$AI$4,IF(AH22>=0,$AH$4,IF(AG22>=0,$AG$4,IF(AF22>=0,$AF$4,IF(AE22>=0,$AE$4,IF(AD22>=0,$AD$4,IF(AC22>=0,$AC$4,$AB$4)))))))) -> INTB +
A23: F | B23: SO | C23: AQU | D23: 2 | E23: 277832 | F23: RIGAUD | G23: GARANCE | H23: 1999 | I23: 48.1 | J23: ST MEDARD | K23: F | L23: -49 | M23: -49 | N23: 49 | O23: 49 | P23: 59 | Q23: 63 | R23: -65 | S23: 63 | T23: 112 | U23: 15.8 | V23: INTB + | W23: 7 | X23: =IF(I23="","",IF(A23="H",IF(OR(H23="SEN",H23<1995),VLOOKUP(I23,Feuil1!$A$11:$G$29,6),IF(AND(H23>1994,H23<1998),VLOOKUP(I23,Feuil1!$A$11:$G$29,5),IF(AND(H23>1997,H23<2000),VLOOKUP(I23,Feuil1!$A$11:$G$29,4),IF(AND(H23>1999,H23<2002),VLOOKUP(I23,Feuil1!$A$11:$G$29,3),VLOOKUP(I23,Feuil1!$A$11:$G$29,2))))),IF(OR(H23="SEN",H23<1995),VLOOKUP(I23,Feuil1!$G$11:$L$25,6),IF(AND(H23>1994,H23<1998),VLOOKUP(I23,Feuil1!$G$11:$L$25,5),IF(AND(H23>1997,H23<2000),VLOOKUP(I23,Feuil1!$G$11:$L$25,4),IF(AND(H23>1999,H23<2002),VLOOKUP(I23,Feuil1!$G$11:$L$25,3),VLOOKUP(I23,Feuil1!$G$11:$L$25,2))))))) -> FC2 53 | Y23: 183.2585598 | AB23: =T23-HLOOKUP(X23,Feuil1!$C$1:$BL$10,2,FALSE) -> 67 | AC23: =T23-HLOOKUP(X23,Feuil1!$C$1:$BL$10,3,FALSE) -> 57 | AD23: =T23-HLOOKUP(X23,Feuil1!$C$1:$BL$10,4,FALSE) -> 47 | AE23: =T23-HLOOKUP(X23,Feuil1!$C$1:$BL$10,5,FALSE) -> 37 | AF23: =T23-HLOOKUP(X23,Feuil1!$C$1:$BL$10,6,FALSE) -> 27 | AG23: =T23-HLOOKUP(X23,Feuil1!$C$1:$BL$10,7,FALSE) -> 17 | AH23: =T23-HLOOKUP(X23,Feuil1!$C$1:$BL$10,8,FALSE) -> 7 | AI23: =T23-HLOOKUP(X23,Feuil1!$C$1:$BL$10,9,FALSE) -> -8 | AJ23: =T23-HLOOKUP(X23,Feuil1!$C$1:$BL$10,10,FALSE) -> -888 | AQ23: INTB +
A24: F | B24: SEST | C24: CAZ | D24: 3 | E24: 295873 | F24: RICHET | G24: Catherine | H24: 1999 | I24: 49.25 | J24: ES VILL LOUBET | K24: F | L24: -40 | M24: 41 | N24: 44 | O24: 44 | P24: 54 | Q24: 58 | R24: 61 | S24: 61 | T24: 105 | U24: 6.5 | V24: INTB + | W24: 0 | X24: =IF(I24="","",IF(A24="H",IF(OR(H24="SEN",H24<1995),VLOOKUP(I24,Feuil1!$A$11:$G$29,6),IF(AND(H24>1994,H24<1998),VLOOKUP(I24,Feuil1!$A$11:$G$29,5),IF(AND(H24>1997,H24<2000),VLOOKUP(I24,Feuil1!$A$11:$G$29,4),IF(AND(H24>1999,H24<2002),VLOOKUP(I24,Feuil1!$A$11:$G$29,3),VLOOKUP(I24,Feuil1!$A$11:$G$29,2))))),IF(OR(H24="SEN",H24<1995),VLOOKUP(I24,Feuil1!$G$11:$L$25,6),IF(AND(H24>1994,H24<1998),VLOOKUP(I24,Feuil1!$G$11:$L$25,5),IF(AND(H24>1997,H24<2000),VLOOKUP(I24,Feuil1!$G$11:$L$25,4),IF(AND(H24>1999,H24<2002),VLOOKUP(I24,Feuil1!$G$11:$L$25,3),VLOOKUP(I24,Feuil1!$G$11:$L$25,2))))))) -> FC2 53 | Y24: 168.3218512 | AB24: =T24-HLOOKUP(X24,Feuil1!$C$1:$BL$10,2,FALSE) -> 60 | AC24: =T24-HLOOKUP(X24,Feuil1!$C$1:$BL$10,3,FALSE) -> 50 | AD24: =T24-HLOOKUP(X24,Feuil1!$C$1:$BL$10,4,FALSE) -> 40 | AE24: =T24-HLOOKUP(X24,Feuil1!$C$1:$BL$10,5,FALSE) -> 30 | AF24: =T24-HLOOKUP(X24,Feuil1!$C$1:$BL$10,6,FALSE) -> 20 | AG24: =T24-HLOOKUP(X24,Feuil1!$C$1:$BL$10,7,FALSE) -> 10 | AH24: =T24-HLOOKUP(X24,Feuil1!$C$1:$BL$10,8,FALSE) -> 0 | AI24: =T24-HLOOKUP(X24,Feuil1!$C$1:$BL$10,9,FALSE) -> -15 | AJ24: =T24-HLOOKUP(X24,Feuil1!$C$1:$BL$10,10,FALSE) -> -895 | AQ24: INTB +
A25: F | B25: SEST | C25: CAZ | D25: 4 | E25: 363002 | F25: MAILLOT | G25: Asia | H25: 1998 | I25: 48.8 | J25: ASLDD TOULON | K25: F | L25: 40 | M25: 43 | N25: -45 | O25: 43 | P25: 50 | Q25: 53 | R25: 55 | S25: 55 | T25: 98 | U25: 0.4 | V25: NAT + | W25: 3 | X25: =IF(I25="","",IF(A25="H",IF(OR(H25="SEN",H25<1995),VLOOKUP(I25,Feuil1!$A$11:$G$29,6),IF(AND(H25>1994,H25<1998),VLOOKUP(I25,Feuil1!$A$11:$G$29,5),IF(AND(H25>1997,H25<2000),VLOOKUP(I25,Feuil1!$A$11:$G$29,4),IF(AND(H25>1999,H25<2002),VLOOKUP(I25,Feuil1!$A$11:$G$29,3),VLOOKUP(I25,Feuil1!$A$11:$G$29,2))))),IF(OR(H25="SEN",H25<1995),VLOOKUP(I25,Feuil1!$G$11:$L$25,6),IF(AND(H25>1994,H25<1998),VLOOKUP(I25,Feuil1!$G$11:$L$25,5),IF(AND(H25>1997,H25<2000),VLOOKUP(I25,Feuil1!$G$11:$L$25,4),IF(AND(H25>1999,H25<2002),VLOOKUP(I25,Feuil1!$G$11:$L$25,3),VLOOKUP(I25,Feuil1!$G$11:$L$25,2))))))) -> FC2 53 | Y25: 158.3472467 | AB25: =T25-HLOOKUP(X25,Feuil1!$C$1:$BL$10,2,FALSE) -> 53 | AC25: =T25-HLOOKUP(X25,Feuil1!$C$1:$BL$10,3,FALSE) -> 43 | AD25: =T25-HLOOKUP(X25,Feuil1!$C$1:$BL$10,4,FALSE) -> 33 | AE25: =T25-HLOOKUP(X25,Feuil1!$C$1:$BL$10,5,FALSE) -> 23 | AF25: =T25-HLOOKUP(X25,Feuil1!$C$1:$BL$10,6,FALSE) -> 13 | AG25: =T25-HLOOKUP(X25,Feuil1!$C$1:$BL$10,7,FALSE) -> 3 | AH25: =T25-HLOOKUP(X25,Feuil1!$C$1:$BL$10,8,FALSE) -> -7 | AI25: =T25-HLOOKUP(X25,Feuil1!$C$1:$BL$10,9,FALSE) -> -22 | AJ25: =T25-HLOOKUP(X25,Feuil1!$C$1:$BL$10,10,FALSE) -> -902 | AQ25: NAT +
A26: F | B26: SEST | C26: RAL | D26: 5 | E26: 392577 | F26: TESTE | G26: Flavie | H26: 1998 | I26: 51.9 | J26: SAINT MARCELLIN | K26: F | L26: -38 | M26: 38 | N26: -43 | O26: 38 | P26: 55 | Q26: 58 | R26: 60 | S26: 60 | T26: 98 | U26: -5.8 | V26: NAT + | W26: 3 | X26: =IF(I26="","",IF(A26="H",IF(OR(H26="SEN",H26<1995),VLOOKUP(I26,Feuil1!$A$11:$G$29,6),IF(AND(H26>1994,H26<1998),VLOOKUP(I26,Feuil1!$A$11:$G$29,5),IF(AND(H26>1997,H26<2000),VLOOKUP(I26,Feuil1!$A$11:$G$29,4),IF(AND(H26>1999,H26<2002),VLOOKUP(I26,Feuil1!$A$11:$G$29,3),VLOOKUP(I26,Feuil1!$A$11:$G$29,2))))),IF(OR(H26="SEN",H26<1995),VLOOKUP(I26,Feuil1!$G$11:$L$25,6),IF(AND(H26>1994,H26<1998),VLOOKUP(I26,Feuil1!$G$11:$L$25,5),IF(AND(H26>1997,H26<2000),VLOOKUP(I26,Feuil1!$G$11:$L$25,4),IF(AND(H26>1999,H26<2002),VLOOKUP(I26,Feuil1!$G$11:$L$25,3),VLOOKUP(I26,Feuil1!$G$11:$L$25,2))))))) -> FC2 53 | Y26: 150.3560265 | AB26: =T26-HLOOKUP(X26,Feuil1!$C$1:$BL$10,2,FALSE) -> 53 | AC26: =T26-HLOOKUP(X26,Feuil1!$C$1:$BL$10,3,FALSE) -> 43 | AD26: =T26-HLOOKUP(X26,Feuil1!$C$1:$BL$10,4,FALSE) -> 33 | AE26: =T26-HLOOKUP(X26,Feuil1!$C$1:$BL$10,5,FALSE) -> 23 | AF26: =T26-HLOOKUP(X26,Feuil1!$C$1:$BL$10,6,FALSE) -> 13 | AG26: =T26-HLOOKUP(X26,Feuil1!$C$1:$BL$10,7,FALSE) -> 3 | AH26: =T26-HLOOKUP(X26,Feuil1!$C$1:$BL$10,8,FALSE) -> -7 | AI26: =T26-HLOOKUP(X26,Feuil1!$C$1:$BL$10,9,FALSE) -> -22 | AJ26: =T26-HLOOKUP(X26,Feuil1!$C$1:$BL$10,10,FALSE) -> -902 | AQ26: NAT +
A27: F | B27: N | C27: PIC | D27: 6 | E27: 326995 | F27: BONNIERE | G27: Priscillia | H27: 1999 | I27: 52.93 | J27: Villers-Bretonneux KC | K27: F | L27: 40 | M27: 43 | N27: -44 | O27: 43 | P27: 48 | Q27: 52 | R27: -55 | S27: 52 | T27: 95 | U27: -10.86 | V27: NAT + | W27: 0 | X27: =IF(I27="","",IF(A27="H",IF(OR(H27="SEN",H27<1995),VLOOKUP(I27,Feuil1!$A$11:$G$29,6),IF(AND(H27>1994,H27<1998),VLOOKUP(I27,Feuil1!$A$11:$G$29,5),IF(AND(H27>1997,H27<2000),VLOOKUP(I27,Feuil1!$A$11:$G$29,4),IF(AND(H27>1999,H27<2002),VLOOKUP(I27,Feuil1!$A$11:$G$29,3),VLOOKUP(I27,Feuil1!$A$11:$G$29,2))))),IF(OR(H27="SEN",H27<1995),VLOOKUP(I27,Feuil1!$G$11:$L$25,6),IF(AND(H27>1994,H27<1998),VLOOKUP(I27,Feuil1!$G$11:$L$25,5),IF(AND(H27>1997,H27<2000),VLOOKUP(I27,Feuil1!$G$11:$L$25,4),IF(AND(H27>1999,H27<2002),VLOOKUP(I27,Feuil1!$G$11:$L$25,3),VLOOKUP(I27,Feuil1!$G$11:$L$25,2))))))) -> FC2 53 | Y27: 143.4539795 | AB27: =T27-HLOOKUP(X27,Feuil1!$C$1:$BL$10,2,FALSE) -> 50 | AC27: =T27-HLOOKUP(X27,Feuil1!$C$1:$BL$10,3,FALSE) -> 40 | AD27: =T27-HLOOKUP(X27,Feuil1!$C$1:$BL$10,4,FALSE) -> 30 | AE27: =T27-HLOOKUP(X27,Feuil1!$C$1:$BL$10,5,FALSE) -> 20 | AF27: =T27-HLOOKUP(X27,Feuil1!$C$1:$BL$10,6,FALSE) -> 10 | AG27: =T27-HLOOKUP(X27,Feuil1!$C$1:$BL$10,7,FALSE) -> 0 | AH27: =T27-HLOOKUP(X27,Feuil1!$C$1:$BL$10,8,FALSE) -> -10 | AI27: =T27-HLOOKUP(X27,Feuil1!$C$1:$BL$10,9,FALSE) -> -25 | AJ27: =T27-HLOOKUP(X27,Feuil1!$C$1:$BL$10,10,FALSE) -> -905 | AQ27: NAT +
A28: F | B28: DOM | C28: MAR | D28: 7 | E28: 362590 | F28: BOISFER | G28: Priscilla | H28: 1999 | I28: 50 | J28: ABBC/Foyal Didier | K28: F | L28: 34 | M28: 38 | N28: -40 | O28: 38 | P28: 50 | Q28: 55 | R28: -58 | S28: 55 | T28: 93 | U28: -7 | V28: FED + | W28: 8 | X28: =IF(I28="","",IF(A28="H",IF(OR(H28="SEN",H28<1995),VLOOKUP(I28,Feuil1!$A$11:$G$29,6),IF(AND(H28>1994,H28<1998),VLOOKUP(I28,Feuil1!$A$11:$G$29,5),IF(AND(H28>1997,H28<2000),VLOOKUP(I28,Feuil1!$A$11:$G$29,4),IF(AND(H28>1999,H28<2002),VLOOKUP(I28,Feuil1!$A$11:$G$29,3),VLOOKUP(I28,Feuil1!$A$11:$G$29,2))))),IF(OR(H28="SEN",H28<1995),VLOOKUP(I28,Feuil1!$G$11:$L$25,6),IF(AND(H28>1994,H28<1998),VLOOKUP(I28,Feuil1!$G$11:$L$25,5),IF(AND(H28>1997,H28<2000),VLOOKUP(I28,Feuil1!$G$11:$L$25,4),IF(AND(H28>1999,H28<2002),VLOOKUP(I28,Feuil1!$G$11:$L$25,3),VLOOKUP(I28,Feuil1!$G$11:$L$25,2))))))) -> FC2 53 | Y28: 147.1781468 | AB28: =T28-HLOOKUP(X28,Feuil1!$C$1:$BL$10,2,FALSE) -> 48 | AC28: =T28-HLOOKUP(X28,Feuil1!$C$1:$BL$10,3,FALSE) -> 38 | AD28: =T28-HLOOKUP(X28,Feuil1!$C$1:$BL$10,4,FALSE) -> 28 | AE28: =T28-HLOOKUP(X28,Feuil1!$C$1:$BL$10,5,FALSE) -> 18 | AF28: =T28-HLOOKUP(X28,Feuil1!$C$1:$BL$10,6,FALSE) -> 8 | AG28: =T28-HLOOKUP(X28,Feuil1!$C$1:$BL$10,7,FALSE) -> -2 | AH28: =T28-HLOOKUP(X28,Feuil1!$C$1:$BL$10,8,FALSE) -> -12 | AI28: =T28-HLOOKUP(X28,Feuil1!$C$1:$BL$10,9,FALSE) -> -27 | AJ28: =T28-HLOOKUP(X28,Feuil1!$C$1:$BL$10,10,FALSE) -> -907 | AQ28: FED +
A29: F | B29: CO | C29: BNO | D29: 8 | E29: 285369 | F29: VILLENEUVE | G29: Irys | H29: 1998 | I29: 52.54 | J29: Caen CHM | K29: F | L29: 40 | M29: -43 | N29: -43 | O29: 40 | P29: 50 | Q29: -55 | R29: -55 | S29: 50 | T29: 90 | U29: -15.08 | V29: FED + | W29: 5 | X29: =IF(I29="","",IF(A29="H",IF(OR(H29="SEN",H29<1995),VLOOKUP(I29,Feuil1!$A$11:$G$29,6),IF(AND(H29>1994,H29<1998),VLOOKUP(I29,Feuil1!$A$11:$G$29,5),IF(AND(H29>1997,H29<2000),VLOOKUP(I29,Feuil1!$A$11:$G$29,4),IF(AND(H29>1999,H29<2002),VLOOKUP(I29,Feuil1!$A$11:$G$29,3),VLOOKUP(I29,Feuil1!$A$11:$G$29,2))))),IF(OR(H29="SEN",H29<1995),VLOOKUP(I29,Feuil1!$G$11:$L$25,6),IF(AND(H29>1994,H29<1998),VLOOKUP(I29,Feuil1!$G$11:$L$25,5),IF(AND(H29>1997,H29<2000),VLOOKUP(I29,Feuil1!$G$11:$L$25,4),IF(AND(H29>1999,H29<2002),VLOOKUP(I29,Feuil1!$G$11:$L$25,3),VLOOKUP(I29,Feuil1!$G$11:$L$25,2))))))) -> FC2 53 | Y29: 136.7146429 | AB29: =T29-HLOOKUP(X29,Feuil1!$C$1:$BL$10,2,FALSE) -> 45 | AC29: =T29-HLOOKUP(X29,Feuil1!$C$1:$BL$10,3,FALSE) -> 35 | AD29: =T29-HLOOKUP(X29,Feuil1!$C$1:$BL$10,4,FALSE) -> 25 | AE29: =T29-HLOOKUP(X29,Feuil1!$C$1:$BL$10,5,FALSE) -> 15 | AF29: =T29-HLOOKUP(X29,Feuil1!$C$1:$BL$10,6,FALSE) -> 5 | AG29: =T29-HLOOKUP(X29,Feuil1!$C$1:$BL$10,7,FALSE) -> -5 | AH29: =T29-HLOOKUP(X29,Feuil1!$C$1:$BL$10,8,FALSE) -> -15 | AI29: =T29-HLOOKUP(X29,Feuil1!$C$1:$BL$10,9,FALSE) -> -30 | AJ29: =T29-HLOOKUP(X29,Feuil1!$C$1:$BL$10,10,FALSE) -> -910 | AQ29: FED +
A30: F | B30: NE | C30: ALS | D30: 9 | E30: 381293 | F30: FEILLARD | G30: LEA | H30: 1998 | I30: 49.5 | J30: SR Obernai HM | K30: F | L30: 30 | M30: 33 | N30: -35 | O30: 33 | P30: 41 | Q30: 44 | R30: -46 | S30: 44 | T30: 77 | U30: -22 | V30: IRG + | W30: 2 | X30: =IF(I30="","",IF(A30="H",IF(OR(H30="SEN",H30<1995),VLOOKUP(I30,Feuil1!$A$11:$G$29,6),IF(AND(H30>1994,H30<1998),VLOOKUP(I30,Feuil1!$A$11:$G$29,5),IF(AND(H30>1997,H30<2000),VLOOKUP(I30,Feuil1!$A$11:$G$29,4),IF(AND(H30>1999,H30<2002),VLOOKUP(I30,Feuil1!$A$11:$G$29,3),VLOOKUP(I30,Feuil1!$A$11:$G$29,2))))),IF(OR(H30="SEN",H30<1995),VLOOKUP(I30,Feuil1!$G$11:$L$25,6),IF(AND(H30>1994,H30<1998),VLOOKUP(I30,Feuil1!$G$11:$L$25,5),IF(AND(H30>1997,H30<2000),VLOOKUP(I30,Feuil1!$G$11:$L$25,4),IF(AND(H30>1999,H30<2002),VLOOKUP(I30,Feuil1!$G$11:$L$25,3),VLOOKUP(I30,Feuil1!$G$11:$L$25,2))))))) -> FC2 53 | Y30: 122.9023827 | AB30: =T30-HLOOKUP(X30,Feuil1!$C$1:$BL$10,2,FALSE) -> 32 | AC30: =T30-HLOOKUP(X30,Feuil1!$C$1:$BL$10,3,FALSE) -> 22 | AD30: =T30-HLOOKUP(X30,Feuil1!$C$1:$BL$10,4,FALSE) -> 12 | AE30: =T30-HLOOKUP(X30,Feuil1!$C$1:$BL$10,5,FALSE) -> 2 | AF30: =T30-HLOOKUP(X30,Feuil1!$C$1:$BL$10,6,FALSE) -> -8 | AG30: =T30-HLOOKUP(X30,Feuil1!$C$1:$BL$10,7,FALSE) -> -18 | AH30: =T30-HLOOKUP(X30,Feuil1!$C$1:$BL$10,8,FALSE) -> -28 | AI30: =T30-HLOOKUP(X30,Feuil1!$C$1:$BL$10,9,FALSE) -> -43 | AJ30: =T30-HLOOKUP(X30,Feuil1!$C$1:$BL$10,10,FALSE) -> -923 | AQ30: IRG +
A31: F | B31: SO | C31: MPY | D31: 10 | E31: 375895 | F31: CAUSSE | G31: Lucie | H31: 1998 | I31: 50.4 | J31: PAMIERS HC | K31: F | L31: 26 | M31: 28 | N31: 31 | O31: 31 | P31: 38 | Q31: 41 | R31: -44 | S31: 41 | T31: 72 | U31: -28.8 | V31: REG + | W31: 7 | X31: =IF(I31="","",IF(A31="H",IF(OR(H31="SEN",H31<1995),VLOOKUP(I31,Feuil1!$A$11:$G$29,6),IF(AND(H31>1994,H31<1998),VLOOKUP(I31,Feuil1!$A$11:$G$29,5),IF(AND(H31>1997,H31<2000),VLOOKUP(I31,Feuil1!$A$11:$G$29,4),IF(AND(H31>1999,H31<2002),VLOOKUP(I31,Feuil1!$A$11:$G$29,3),VLOOKUP(I31,Feuil1!$A$11:$G$29,2))))),IF(OR(H31="SEN",H31<1995),VLOOKUP(I31,Feuil1!$G$11:$L$25,6),IF(AND(H31>1994,H31<1998),VLOOKUP(I31,Feuil1!$G$11:$L$25,5),IF(AND(H31>1997,H31<2000),VLOOKUP(I31,Feuil1!$G$11:$L$25,4),IF(AND(H31>1999,H31<2002),VLOOKUP(I31,Feuil1!$G$11:$L$25,3),VLOOKUP(I31,Feuil1!$G$11:$L$25,2))))))) -> FC2 53 | Y31: 113.1817561 | AB31: =T31-HLOOKUP(X31,Feuil1!$C$1:$BL$10,2,FALSE) -> 27 | AC31: =T31-HLOOKUP(X31,Feuil1!$C$1:$BL$10,3,FALSE) -> 17 | AD31: =T31-HLOOKUP(X31,Feuil1!$C$1:$BL$10,4,FALSE) -> 7 | AE31: =T31-HLOOKUP(X31,Feuil1!$C$1:$BL$10,5,FALSE) -> -3 | AF31: =T31-HLOOKUP(X31,Feuil1!$C$1:$BL$10,6,FALSE) -> -13 | AG31: =T31-HLOOKUP(X31,Feuil1!$C$1:$BL$10,7,FALSE) -> -23 | AH31: =T31-HLOOKUP(X31,Feuil1!$C$1:$BL$10,8,FALSE) -> -33 | AI31: =T31-HLOOKUP(X31,Feuil1!$C$1:$BL$10,9,FALSE) -> -48 | AJ31: =T31-HLOOKUP(X31,Feuil1!$C$1:$BL$10,10,FALSE) -> -928 | AQ31: REG +
A32: F | B32: CO | C32: BNO | D32: 11 | E32: 380061 | F32: HELIE | G32: Pauline | H32: 1998 | I32: 52.2 | J32: Stade St Lois | K32: F | L32: -27 | M32: 27 | N32: 30 | O32: 30 | P32: 37 | Q32: -40 | R32: 40 | S32: 40 | T32: 70 | U32: -34.4 | V32: REG + | W32: 5 | X32: =IF(I32="","",IF(A32="H",IF(OR(H32="SEN",H32<1995),VLOOKUP(I32,Feuil1!$A$11:$G$29,6),IF(AND(H32>1994,H32<1998),VLOOKUP(I32,Feuil1!$A$11:$G$29,5),IF(AND(H32>1997,H32<2000),VLOOKUP(I32,Feuil1!$A$11:$G$29,4),IF(AND(H32>1999,H32<2002),VLOOKUP(I32,Feuil1!$A$11:$G$29,3),VLOOKUP(I32,Feuil1!$A$11:$G$29,2))))),IF(OR(H32="SEN",H32<1995),VLOOKUP(I32,Feuil1!$G$11:$L$25,6),IF(AND(H32>1994,H32<1998),VLOOKUP(I32,Feuil1!$G$11:$L$25,5),IF(AND(H32>1997,H32<2000),VLOOKUP(I32,Feuil1!$G$11:$L$25,4),IF(AND(H32>1999,H32<2002),VLOOKUP(I32,Feuil1!$G$11:$L$25,3),VLOOKUP(I32,Feuil1!$G$11:$L$25,2))))))) -> FC2 53 | Y32: 106.8941218 | AB32: =T32-HLOOKUP(X32,Feuil1!$C$1:$BL$10,2,FALSE) -> 25 | AC32: =T32-HLOOKUP(X32,Feuil1!$C$1:$BL$10,3,FALSE) -> 15 | AD32: =T32-HLOOKUP(X32,Feuil1!$C$1:$BL$10,4,FALSE) -> 5 | AE32: =T32-HLOOKUP(X32,Feuil1!$C$1:$BL$10,5,FALSE) -> -5 | AF32: =T32-HLOOKUP(X32,Feuil1!$C$1:$BL$10,6,FALSE) -> -15 | AG32: =T32-HLOOKUP(X32,Feuil1!$C$1:$BL$10,7,FALSE) -> -25 | AH32: =T32-HLOOKUP(X32,Feuil1!$C$1:$BL$10,8,FALSE) -> -35 | AI32: =T32-HLOOKUP(X32,Feuil1!$C$1:$BL$10,9,FALSE) -> -50 | AJ32: =T32-HLOOKUP(X32,Feuil1!$C$1:$BL$10,10,FALSE) -> -930 | AQ32: REG +
A33: F | B33: DOM | C33: GUA | D33: 12 | E33: 367888 | F33: BOUDINE | G33: Rémyka | H33: 1998 | I33: 52 | J33: AHCS/Pointois | K33: F | L33: 25 | M33: 30 | N33: 32 | O33: 32 | P33: 30 | Q33: 35 | R33: 37 | S33: 37 | T33: 69 | U33: -35 | V33: REG + | W33: 4 | X33: =IF(I33="","",IF(A33="H",IF(OR(H33="SEN",H33<1995),VLOOKUP(I33,Feuil1!$A$11:$G$29,6),IF(AND(H33>1994,H33<1998),VLOOKUP(I33,Feuil1!$A$11:$G$29,5),IF(AND(H33>1997,H33<2000),VLOOKUP(I33,Feuil1!$A$11:$G$29,4),IF(AND(H33>1999,H33<2002),VLOOKUP(I33,Feuil1!$A$11:$G$29,3),VLOOKUP(I33,Feuil1!$A$11:$G$29,2))))),IF(OR(H33="SEN",H33<1995),VLOOKUP(I33,Feuil1!$G$11:$L$25,6),IF(AND(H33>1994,H33<1998),VLOOKUP(I33,Feuil1!$G$11:$L$25,5),IF(AND(H33>1997,H33<2000),VLOOKUP(I33,Feuil1!$G$11:$L$25,4),IF(AND(H33>1999,H33<2002),VLOOKUP(I33,Feuil1!$G$11:$L$25,3),VLOOKUP(I33,Feuil1!$G$11:$L$25,2))))))) -> FC2 53 | Y33: 105.696751 | AB33: =T33-HLOOKUP(X33,Feuil1!$C$1:$BL$10,2,FALSE) -> 24 | AC33: =T33-HLOOKUP(X33,Feuil1!$C$1:$BL$10,3,FALSE) -> 14 | AD33: =T33-HLOOKUP(X33,Feuil1!$C$1:$BL$10,4,FALSE) -> 4 | AE33: =T33-HLOOKUP(X33,Feuil1!$C$1:$BL$10,5,FALSE) -> -6 | AF33: =T33-HLOOKUP(X33,Feuil1!$C$1:$BL$10,6,FALSE) -> -16 | AG33: =T33-HLOOKUP(X33,Feuil1!$C$1:$BL$10,7,FALSE) -> -26 | AH33: =T33-HLOOKUP(X33,Feuil1!$C$1:$BL$10,8,FALSE) -> -36 | AI33: =T33-HLOOKUP(X33,Feuil1!$C$1:$BL$10,9,FALSE) -> -51 | AJ33: =T33-HLOOKUP(X33,Feuil1!$C$1:$BL$10,10,FALSE) -> -931 | AQ33: REG +
A34: F | B34: CO | C34: BNO | D34: 13 | E34: 306045 | F34: Gaultier | G34: Esther | H34: 1999 | I34: 48.6 | J34: Saint-Lô | K34: F | L34: 25 | M34: 28 | N34: 30 | O34: 30 | P34: 32 | Q34: 35 | R34: -38 | S34: 35 | T34: 65 | U34: -32.2 | V34: REG + | W34: 0 | X34: =IF(I34="","",IF(A34="H",IF(OR(H34="SEN",H34<1995),VLOOKUP(I34,Feuil1!$A$11:$G$29,6),IF(AND(H34>1994,H34<1998),VLOOKUP(I34,Feuil1!$A$11:$G$29,5),IF(AND(H34>1997,H34<2000),VLOOKUP(I34,Feuil1!$A$11:$G$29,4),IF(AND(H34>1999,H34<2002),VLOOKUP(I34,Feuil1!$A$11:$G$29,3),VLOOKUP(I34,Feuil1!$A$11:$G$29,2))))),IF(OR(H34="SEN",H34<1995),VLOOKUP(I34,Feuil1!$G$11:$L$25,6),IF(AND(H34>1994,H34<1998),VLOOKUP(I34,Feuil1!$G$11:$L$25,5),IF(AND(H34>1997,H34<2000),VLOOKUP(I34,Feuil1!$G$11:$L$25,4),IF(AND(H34>1999,H34<2002),VLOOKUP(I34,Feuil1!$G$11:$L$25,3),VLOOKUP(I34,Feuil1!$G$11:$L$25,2))))))) -> FC2 53 | Y34: 105.4006017 | AB34: =T34-HLOOKUP(X34,Feuil1!$C$1:$BL$10,2,FALSE) -> 20 | AC34: =T34-HLOOKUP(X34,Feuil1!$C$1:$BL$10,3,FALSE) -> 10 | AD34: =T34-HLOOKUP(X34,Feuil1!$C$1:$BL$10,4,FALSE) -> 0 | AE34: =T34-HLOOKUP(X34,Feuil1!$C$1:$BL$10,5,FALSE) -> -10 | AF34: =T34-HLOOKUP(X34,Feuil1!$C$1:$BL$10,6,FALSE) -> -20 | AG34: =T34-HLOOKUP(X34,Feuil1!$C$1:$BL$10,7,FALSE) -> -30 | AH34: =T34-HLOOKUP(X34,Feuil1!$C$1:$BL$10,8,FALSE) -> -40 | AI34: =T34-HLOOKUP(X34,Feuil1!$C$1:$BL$10,9,FALSE) -> -55 | AJ34: =T34-HLOOKUP(X34,Feuil1!$C$1:$BL$10,10,FALSE) -> -935 | AQ34: REG +
A35: F | B35: N | C35: PIC | D35: 14 | E35: 378364 | F35: LHERBIEZ | G35: Amandine | H35: 1999 | I35: 48.2 | J35: Villers-Bretonneux KC | K35: F | L35: -22 | M35: 24 | N35: 27 | O35: 27 | P35: 32 | Q35: 35 | R35: -38 | S35: 35 | T35: 62 | U35: -34.4 | V35: DEP + | W35: 7 | X35: =IF(I35="","",IF(A35="H",IF(OR(H35="SEN",H35<1995),VLOOKUP(I35,Feuil1!$A$11:$G$29,6),IF(AND(H35>1994,H35<1998),VLOOKUP(I35,Feuil1!$A$11:$G$29,5),IF(AND(H35>1997,H35<2000),VLOOKUP(I35,Feuil1!$A$11:$G$29,4),IF(AND(H35>1999,H35<2002),VLOOKUP(I35,Feuil1!$A$11:$G$29,3),VLOOKUP(I35,Feuil1!$A$11:$G$29,2))))),IF(OR(H35="SEN",H35<1995),VLOOKUP(I35,Feuil1!$G$11:$L$25,6),IF(AND(H35>1994,H35<1998),VLOOKUP(I35,Feuil1!$G$11:$L$25,5),IF(AND(H35>1997,H35<2000),VLOOKUP(I35,Feuil1!$G$11:$L$25,4),IF(AND(H35>1999,H35<2002),VLOOKUP(I35,Feuil1!$G$11:$L$25,3),VLOOKUP(I35,Feuil1!$G$11:$L$25,2))))))) -> FC2 53 | Y35: 101.2624619 | AB35: =T35-HLOOKUP(X35,Feuil1!$C$1:$BL$10,2,FALSE) -> 17 | AC35: =T35-HLOOKUP(X35,Feuil1!$C$1:$BL$10,3,FALSE) -> 7 | AD35: =T35-HLOOKUP(X35,Feuil1!$C$1:$BL$10,4,FALSE) -> -3 | AE35: =T35-HLOOKUP(X35,Feuil1!$C$1:$BL$10,5,FALSE) -> -13 | AF35: =T35-HLOOKUP(X35,Feuil1!$C$1:$BL$10,6,FALSE) -> -23 | AG35: =T35-HLOOKUP(X35,Feuil1!$C$1:$BL$10,7,FALSE) -> -33 | AH35: =T35-HLOOKUP(X35,Feuil1!$C$1:$BL$10,8,FALSE) -> -43 | AI35: =T35-HLOOKUP(X35,Feuil1!$C$1:$BL$10,9,FALSE) -> -58 | AJ35: =T35-HLOOKUP(X35,Feuil1!$C$1:$BL$10,10,FALSE) -> -938 | AQ35: DEP +
A36: F | B36: SEST | C36: PRO | D36: 15 | E36: 312868 | F36: BENJABEUR | G36: Rim | H36: 1998 | I36: 50.8 | J36: EEAR MONTEUX | K36: F | L36: 20 | M36: 24 | N36: 26 | O36: 26 | P36: 28 | Q36: 32 | R36: 35 | S36: 35 | T36: 61 | U36: -40.6 | V36: DEP + | W36: 6 | X36: =IF(I36="","",IF(A36="H",IF(OR(H36="SEN",H36<1995),VLOOKUP(I36,Feuil1!$A$11:$G$29,6),IF(AND(H36>1994,H36<1998),VLOOKUP(I36,Feuil1!$A$11:$G$29,5),IF(AND(H36>1997,H36<2000),VLOOKUP(I36,Feuil1!$A$11:$G$29,4),IF(AND(H36>1999,H36<2002),VLOOKUP(I36,Feuil1!$A$11:$G$29,3),VLOOKUP(I36,Feuil1!$A$11:$G$29,2))))),IF(OR(H36="SEN",H36<1995),VLOOKUP(I36,Feuil1!$G$11:$L$25,6),IF(AND(H36>1994,H36<1998),VLOOKUP(I36,Feuil1!$G$11:$L$25,5),IF(AND(H36>1997,H36<2000),VLOOKUP(I36,Feuil1!$G$11:$L$25,4),IF(AND(H36>1999,H36<2002),VLOOKUP(I36,Feuil1!$G$11:$L$25,3),VLOOKUP(I36,Feuil1!$G$11:$L$25,2))))))) -> FC2 53 | Y36: 95.2580326 | AB36: =T36-HLOOKUP(X36,Feuil1!$C$1:$BL$10,2,FALSE) -> 16 | AC36: =T36-HLOOKUP(X36,Feuil1!$C$1:$BL$10,3,FALSE) -> 6 | AD36: =T36-HLOOKUP(X36,Feuil1!$C$1:$BL$10,4,FALSE) -> -4 | AE36: =T36-HLOOKUP(X36,Feuil1!$C$1:$BL$10,5,FALSE) -> -14 | AF36: =T36-HLOOKUP(X36,Feuil1!$C$1:$BL$10,6,FALSE) -> -24 | AG36: =T36-HLOOKUP(X36,Feuil1!$C$1:$BL$10,7,FALSE) -> -34 | AH36: =T36-HLOOKUP(X36,Feuil1!$C$1:$BL$10,8,FALSE) -> -44 | AI36: =T36-HLOOKUP(X36,Feuil1!$C$1:$BL$10,9,FALSE) -> -59 | AJ36: =T36-HLOOKUP(X36,Feuil1!$C$1:$BL$10,10,FALSE) -> -939 | AQ36: DEP +
A37: F | B37: N | C37: PIC | D37: 16 | E37: 378361 | F37: CHARRAUD | G37: Manon | H37: 1998 | I37: 52.52 | J37: Villers-Bretonneux KC | K37: F | L37: 22 | M37: 25 | N37: -27 | O37: 25 | P37: 32 | Q37: 36 | R37: -40 | S37: 36 | T37: 61 | U37: -44.04 | V37: DEP + | W37: 6 | X37: =IF(I37="","",IF(A37="H",IF(OR(H37="SEN",H37<1995),VLOOKUP(I37,Feuil1!$A$11:$G$29,6),IF(AND(H37>1994,H37<1998),VLOOKUP(I37,Feuil1!$A$11:$G$29,5),IF(AND(H37>1997,H37<2000),VLOOKUP(I37,Feuil1!$A$11:$G$29,4),IF(AND(H37>1999,H37<2002),VLOOKUP(I37,Feuil1!$A$11:$G$29,3),VLOOKUP(I37,Feuil1!$A$11:$G$29,2))))),IF(OR(H37="SEN",H37<1995),VLOOKUP(I37,Feuil1!$G$11:$L$25,6),IF(AND(H37>1994,H37<1998),VLOOKUP(I37,Feuil1!$G$11:$L$25,5),IF(AND(H37>1997,H37<2000),VLOOKUP(I37,Feuil1!$G$11:$L$25,4),IF(AND(H37>1999,H37<2002),VLOOKUP(I37,Feuil1!$G$11:$L$25,3),VLOOKUP(I37,Feuil1!$G$11:$L$25,2))))))) -> FC2 53 | Y37: 92.69063643 | AB37: =T37-HLOOKUP(X37,Feuil1!$C$1:$BL$10,2,FALSE) -> 16 | AC37: =T37-HLOOKUP(X37,Feuil1!$C$1:$BL$10,3,FALSE) -> 6 | AD37: =T37-HLOOKUP(X37,Feuil1!$C$1:$BL$10,4,FALSE) -> -4 | AE37: =T37-HLOOKUP(X37,Feuil1!$C$1:$BL$10,5,FALSE) -> -14 | AF37: =T37-HLOOKUP(X37,Feuil1!$C$1:$BL$10,6,FALSE) -> -24 | AG37: =T37-HLOOKUP(X37,Feuil1!$C$1:$BL$10,7,FALSE) -> -34 | AH37: =T37-HLOOKUP(X37,Feuil1!$C$1:$BL$10,8,FALSE) -> -44 | AI37: =T37-HLOOKUP(X37,Feuil1!$C$1:$BL$10,9,FALSE) -> -59 | AJ37: =T37-HLOOKUP(X37,Feuil1!$C$1:$BL$10,10,FALSE) -> -939 | AQ37: DEP +
A38: F | B38: SEST | C38: RAL | D38: 17 | E38: 391553 | F38: FLASSEUR | G38: Amélie | H38: 1998 | I38: 52.6 | J38: SAINT MARCELLIN | K38: F | L38: -25 | M38: 25 | N38: 27 | O38: 27 | P38: 30 | Q38: 34 | R38: -37 | S38: 34 | T38: 61 | U38: -44.2 | V38: DEP + | W38: 6 | X38: =IF(I38="","",IF(A38="H",IF(OR(H38="SEN",H38<1995),VLOOKUP(I38,Feuil1!$A$11:$G$29,6),IF(AND(H38>1994,H38<1998),VLOOKUP(I38,Feuil1!$A$11:$G$29,5),IF(AND(H38>1997,H38<2000),VLOOKUP(I38,Feuil1!$A$11:$G$29,4),IF(AND(H38>1999,H38<2002),VLOOKUP(I38,Feuil1!$A$11:$G$29,3),VLOOKUP(I38,Feuil1!$A$11:$G$29,2))))),IF(OR(H38="SEN",H38<1995),VLOOKUP(I38,Feuil1!$G$11:$L$25,6),IF(AND(H38>1994,H38<1998),VLOOKUP(I38,Feuil1!$G$11:$L$25,5),IF(AND(H38>1997,H38<2000),VLOOKUP(I38,Feuil1!$G$11:$L$25,4),IF(AND(H38>1999,H38<2002),VLOOKUP(I38,Feuil1!$G$11:$L$25,3),VLOOKUP(I38,Feuil1!$G$11:$L$25,2))))))) -> FC2 53 | Y38: 92.5768583 | AB38: =T38-HLOOKUP(X38,Feuil1!$C$1:$BL$10,2,FALSE) -> 16 | AC38: =T38-HLOOKUP(X38,Feuil1!$C$1:$BL$10,3,FALSE) -> 6 | AD38: =T38-HLOOKUP(X38,Feuil1!$C$1:$BL$10,4,FALSE) -> -4 | AE38: =T38-HLOOKUP(X38,Feuil1!$C$1:$BL$10,5,FALSE) -> -14 | AF38: =T38-HLOOKUP(X38,Feuil1!$C$1:$BL$10,6,FALSE) -> -24 | AG38: =T38-HLOOKUP(X38,Feuil1!$C$1:$BL$10,7,FALSE) -> -34 | AH38: =T38-HLOOKUP(X38,Feuil1!$C$1:$BL$10,8,FALSE) -> -44 | AI38: =T38-HLOOKUP(X38,Feuil1!$C$1:$BL$10,9,FALSE) -> -59 | AJ38: =T38-HLOOKUP(X38,Feuil1!$C$1:$BL$10,10,FALSE) -> -939 | AQ38: DEP +
A39: F | B39: SEST | C39: RAL | D39: 18 | E39: 364637 | F39: GIRMA | G39: Lucile | H39: 1998 | I39: 50.8 | J39: CH Arbresle | K39: F | L39: 18 | M39: 21 | N39: 23 | O39: 23 | P39: 28 | Q39: 31 | R39: 34 | S39: 34 | T39: 57 | U39: -44.6 | V39: DEP + | W39: 2 | X39: =IF(I39="","",IF(A39="H",IF(OR(H39="SEN",H39<1995),VLOOKUP(I39,Feuil1!$A$11:$G$29,6),IF(AND(H39>1994,H39<1998),VLOOKUP(I39,Feuil1!$A$11:$G$29,5),IF(AND(H39>1997,H39<2000),VLOOKUP(I39,Feuil1!$A$11:$G$29,4),IF(AND(H39>1999,H39<2002),VLOOKUP(I39,Feuil1!$A$11:$G$29,3),VLOOKUP(I39,Feuil1!$A$11:$G$29,2))))),IF(OR(H39="SEN",H39<1995),VLOOKUP(I39,Feuil1!$G$11:$L$25,6),IF(AND(H39>1994,H39<1998),VLOOKUP(I39,Feuil1!$G$11:$L$25,5),IF(AND(H39>1997,H39<2000),VLOOKUP(I39,Feuil1!$G$11:$L$25,4),IF(AND(H39>1999,H39<2002),VLOOKUP(I39,Feuil1!$G$11:$L$25,3),VLOOKUP(I39,Feuil1!$G$11:$L$25,2))))))) -> FC2 53 | Y39: 89.01160424 | AB39: =T39-HLOOKUP(X39,Feuil1!$C$1:$BL$10,2,FALSE) -> 12 | AC39: =T39-HLOOKUP(X39,Feuil1!$C$1:$BL$10,3,FALSE) -> 2 | AD39: =T39-HLOOKUP(X39,Feuil1!$C$1:$BL$10,4,FALSE) -> -8 | AE39: =T39-HLOOKUP(X39,Feuil1!$C$1:$BL$10,5,FALSE) -> -18 | AF39: =T39-HLOOKUP(X39,Feuil1!$C$1:$BL$10,6,FALSE) -> -28 | AG39: =T39-HLOOKUP(X39,Feuil1!$C$1:$BL$10,7,FALSE) -> -38 | AH39: =T39-HLOOKUP(X39,Feuil1!$C$1:$BL$10,8,FALSE) -> -48 | AI39: =T39-HLOOKUP(X39,Feuil1!$C$1:$BL$10,9,FALSE) -> -63 | AJ39: =T39-HLOOKUP(X39,Feuil1!$C$1:$BL$10,10,FALSE) -> -943 | AQ39: DEP +
A40: F | B40: NE | C40: ALS | D40: 19 | E40: 381287 | F40: NEBOIT | G40: Zoé | H40: 1999 | I40: 52.2 | J40: SR Obernai HM | K40: F | L40: 21 | M40: 23 | N40: -25 | O40: 23 | P40: 27 | Q40: 30 | R40: 33 | S40: 33 | T40: 56 | U40: -48.4 | V40: DEP + | W40: 1 | X40: =IF(I40="","",IF(A40="H",IF(OR(H40="SEN",H40<1995),VLOOKUP(I40,Feuil1!$A$11:$G$29,6),IF(AND(H40>1994,H40<1998),VLOOKUP(I40,Feuil1!$A$11:$G$29,5),IF(AND(H40>1997,H40<2000),VLOOKUP(I40,Feuil1!$A$11:$G$29,4),IF(AND(H40>1999,H40<2002),VLOOKUP(I40,Feuil1!$A$11:$G$29,3),VLOOKUP(I40,Feuil1!$A$11:$G$29,2))))),IF(OR(H40="SEN",H40<1995),VLOOKUP(I40,Feuil1!$G$11:$L$25,6),IF(AND(H40>1994,H40<1998),VLOOKUP(I40,Feuil1!$G$11:$L$25,5),IF(AND(H40>1997,H40<2000),VLOOKUP(I40,Feuil1!$G$11:$L$25,4),IF(AND(H40>1999,H40<2002),VLOOKUP(I40,Feuil1!$G$11:$L$25,3),VLOOKUP(I40,Feuil1!$G$11:$L$25,2))))))) -> FC2 53 | Y40: 85.51529744 | AB40: =T40-HLOOKUP(X40,Feuil1!$C$1:$BL$10,2,FALSE) -> 11 | AC40: =T40-HLOOKUP(X40,Feuil1!$C$1:$BL$10,3,FALSE) -> 1 | AD40: =T40-HLOOKUP(X40,Feuil1!$C$1:$BL$10,4,FALSE) -> -9 | AE40: =T40-HLOOKUP(X40,Feuil1!$C$1:$BL$10,5,FALSE) -> -19 | AF40: =T40-HLOOKUP(X40,Feuil1!$C$1:$BL$10,6,FALSE) -> -29 | AG40: =T40-HLOOKUP(X40,Feuil1!$C$1:$BL$10,7,FALSE) -> -39 | AH40: =T40-HLOOKUP(X40,Feuil1!$C$1:$BL$10,8,FALSE) -> -49 | AI40: =T40-HLOOKUP(X40,Feuil1!$C$1:$BL$10,9,FALSE) -> -64 | AJ40: =T40-HLOOKUP(X40,Feuil1!$C$1:$BL$10,10,FALSE) -> -944 | AQ40: DEP +
A41: F | B41: NE | C41: ALS | D41: 20 | E41: 381286 | F41: BALLANB SCHMIDT | G41: Zoé | H41: 1998 | I41: 50.2 | J41: SR Obernai HM | K41: F | L41: 20 | M41: -22 | N41: -22 | O41: 20 | P41: -25 | Q41: 25 | R41: 28 | S41: 28 | T41: 48 | U41: -52.4 | V41: DEB | W41: 3 | X41: =IF(I41="","",IF(A41="H",IF(OR(H41="SEN",H41<1995),VLOOKUP(I41,Feuil1!$A$11:$G$29,6),IF(AND(H41>1994,H41<1998),VLOOKUP(I41,Feuil1!$A$11:$G$29,5),IF(AND(H41>1997,H41<2000),VLOOKUP(I41,Feuil1!$A$11:$G$29,4),IF(AND(H41>1999,H41<2002),VLOOKUP(I41,Feuil1!$A$11:$G$29,3),VLOOKUP(I41,Feuil1!$A$11:$G$29,2))))),IF(OR(H41="SEN",H41<1995),VLOOKUP(I41,Feuil1!$G$11:$L$25,6),IF(AND(H41>1994,H41<1998),VLOOKUP(I41,Feuil1!$G$11:$L$25,5),IF(AND(H41>1997,H41<2000),VLOOKUP(I41,Feuil1!$G$11:$L$25,4),IF(AND(H41>1999,H41<2002),VLOOKUP(I41,Feuil1!$G$11:$L$25,3),VLOOKUP(I41,Feuil1!$G$11:$L$25,2))))))) -> FC2 53 | Y41: 75.70730784 | AB41: =T41-HLOOKUP(X41,Feuil1!$C$1:$BL$10,2,FALSE) -> 3 | AC41: =T41-HLOOKUP(X41,Feuil1!$C$1:$BL$10,3,FALSE) -> -7 | AD41: =T41-HLOOKUP(X41,Feuil1!$C$1:$BL$10,4,FALSE) -> -17 | AE41: =T41-HLOOKUP(X41,Feuil1!$C$1:$BL$10,5,FALSE) -> -27 | AF41: =T41-HLOOKUP(X41,Feuil1!$C$1:$BL$10,6,FALSE) -> -37 | AG41: =T41-HLOOKUP(X41,Feuil1!$C$1:$BL$10,7,FALSE) -> -47 | AH41: =T41-HLOOKUP(X41,Feuil1!$C$1:$BL$10,8,FALSE) -> -57 | AI41: =T41-HLOOKUP(X41,Feuil1!$C$1:$BL$10,9,FALSE) -> -72 | AJ41: =T41-HLOOKUP(X41,Feuil1!$C$1:$BL$10,10,FALSE) -> -952 | AQ41: DEB
AB42: =T42-HLOOKUP(X42,Feuil1!$C$1:$BL$10,2,FALSE) ->  | AC42: =T42-HLOOKUP(X42,Feuil1!$C$1:$BL$10,3,FALSE) ->  | AD42: =T42-HLOOKUP(X42,Feuil1!$C$1:$BL$10,4,FALSE) ->  | AE42: =T42-HLOOKUP(X42,Feuil1!$C$1:$BL$10,5,FALSE) ->  | AF42: =T42-HLOOKUP(X42,Feuil1!$C$1:$BL$10,6,FALSE) ->  | AG42: =T42-HLOOKUP(X42,Feuil1!$C$1:$BL$10,7,FALSE) ->  | AH42: =T42-HLOOKUP(X42,Feuil1!$C$1:$BL$10,8,FALSE) ->  | AI42: =T42-HLOOKUP(X42,Feuil1!$C$1:$BL$10,9,FALSE) ->  | AJ42: =T42-HLOOKUP(X42,Feuil1!$C$1:$BL$10,10,FALSE) ->  | AQ42: =IF(AJ42>=0,$AJ$4,IF(AI42>=0,$AI$4,IF(AH42>=0,$AH$4,IF(AG42>=0,$AG$4,IF(AF42>=0,$AF$4,IF(AE42>=0,$AE$4,IF(AD42>=0,$AD$4,IF(AC42>=0,$AC$4,$AB$4)))))))) -> 
A43: F | B43: N | C43: PIC | D43: 1 | E43: 260923 | F43: ARNOULD | G43: Lutricia | H43: 1998 | I43: 57.9 | J43: Villers-Bretonneux KC | K43: F | L43: 54 | M43: 57 | N43: 59 | O43: =IF(H43="","",IF(MAXA(L43:N43)<=0,0,MAXA(L43:N43))) -> 59 | P43: 70 | Q43: 73 | R43: 75 | S43: =IF(H43="","",IF(MAXA(P43:R43)<=0,0,MAXA(P43:R43))) -> 75 | T43: =IF(H43="","",IF(OR(O43=0,S43=0),0,O43+S43)) -> 134 | U43: =T43-I43*2 -> 18.2 | V43: =IF(H43="","",AQ43) -> INTA + | W43: =IF(AJ43>=0,AJ43,IF(AI43>=0,AI43,IF(AH43>=0,AH43,IF(AG43>=0,AG43,IF(AF43>=0,AF43,IF(AE43>=0,AE43,IF(AD43>=0,AD43,IF(AC43>=0,AC43,AB43)))))))) -> 4 | X43: =IF(I43="","",IF(A43="H",IF(OR(H43="SEN",H43<1995),VLOOKUP(I43,Feuil1!$A$11:$G$29,6),IF(AND(H43>1994,H43<1998),VLOOKUP(I43,Feuil1!$A$11:$G$29,5),IF(AND(H43>1997,H43<2000),VLOOKUP(I43,Feuil1!$A$11:$G$29,4),IF(AND(H43>1999,H43<2002),VLOOKUP(I43,Feuil1!$A$11:$G$29,3),VLOOKUP(I43,Feuil1!$A$11:$G$29,2))))),IF(OR(H43="SEN",H43<1995),VLOOKUP(I43,Feuil1!$G$11:$L$25,6),IF(AND(H43>1994,H43<1998),VLOOKUP(I43,Feuil1!$G$11:$L$25,5),IF(AND(H43>1997,H43<2000),VLOOKUP(I43,Feuil1!$G$11:$L$25,4),IF(AND(H43>1999,H43<2002),VLOOKUP(I43,Feuil1!$G$11:$L$25,3),VLOOKUP(I43,Feuil1!$G$11:$L$25,2))))))) -> FC2 58 | Y43: =IF(I43="","",IF(A43="H",10^(0.794358141*LOG(I43/174.393)^2)*T43,IF(A43="F",10^(0.89726074*LOG(I43/148.026)^2)*T43,""))) -> 188.8935672 | AB43: =T43-HLOOKUP(X43,Feuil1!$C$1:$BL$10,2,FALSE) -> 84 | AC43: =T43-HLOOKUP(X43,Feuil1!$C$1:$BL$10,3,FALSE) -> 74 | AD43: =T43-HLOOKUP(X43,Feuil1!$C$1:$BL$10,4,FALSE) -> 64 | AE43: =T43-HLOOKUP(X43,Feuil1!$C$1:$BL$10,5,FALSE) -> 54 | AF43: =T43-HLOOKUP(X43,Feuil1!$C$1:$BL$10,6,FALSE) -> 44 | AG43: =T43-HLOOKUP(X43,Feuil1!$C$1:$BL$10,7,FALSE) -> 34 | AH43: =T43-HLOOKUP(X43,Feuil1!$C$1:$BL$10,8,FALSE) -> 19 | AI43: =T43-HLOOKUP(X43,Feuil1!$C$1:$BL$10,9,FALSE) -> 4 | AJ43: =T43-HLOOKUP(X43,Feuil1!$C$1:$BL$10,10,FALSE) -> -866 | AQ43: =IF(AJ43>=0,$AJ$4,IF(AI43>=0,$AI$4,IF(AH43>=0,$AH$4,IF(AG43>=0,$AG$4,IF(AF43>=0,$AF$4,IF(AE43>=0,$AE$4,IF(AD43>=0,$AD$4,IF(AC43>=0,$AC$4,$AB$4)))))))) -> INTA +
A44: F | B44: DOM | C44: MAR | D44: 2 | E44: 286912 | F44: KICHENAMA | G44: Clara | H44: 1999 | I44: 57.5 | J44: ABBC/Foyal Didier | K44: F | L44: 40 | M44: 45 | N44: -48 | O44: 45 | P44: 55 | Q44: 60 | R44: -65 | S44: 60 | T44: 105 | U44: -10 | V44: NAT + | W44: 5 | X44: =IF(I44="","",IF(A44="H",IF(OR(H44="SEN",H44<1995),VLOOKUP(I44,Feuil1!$A$11:$G$29,6),IF(AND(H44>1994,H44<1998),VLOOKUP(I44,Feuil1!$A$11:$G$29,5),IF(AND(H44>1997,H44<2000),VLOOKUP(I44,Feuil1!$A$11:$G$29,4),IF(AND(H44>1999,H44<2002),VLOOKUP(I44,Feuil1!$A$11:$G$29,3),VLOOKUP(I44,Feuil1!$A$11:$G$29,2))))),IF(OR(H44="SEN",H44<1995),VLOOKUP(I44,Feuil1!$G$11:$L$25,6),IF(AND(H44>1994,H44<1998),VLOOKUP(I44,Feuil1!$G$11:$L$25,5),IF(AND(H44>1997,H44<2000),VLOOKUP(I44,Feuil1!$G$11:$L$25,4),IF(AND(H44>1999,H44<2002),VLOOKUP(I44,Feuil1!$G$11:$L$25,3),VLOOKUP(I44,Feuil1!$G$11:$L$25,2))))))) -> FC2 58 | Y44: 148.7689523 | AB44: =T44-HLOOKUP(X44,Feuil1!$C$1:$BL$10,2,FALSE) -> 55 | AC44: =T44-HLOOKUP(X44,Feuil1!$C$1:$BL$10,3,FALSE) -> 45 | AD44: =T44-HLOOKUP(X44,Feuil1!$C$1:$BL$10,4,FALSE) -> 35 | AE44: =T44-HLOOKUP(X44,Feuil1!$C$1:$BL$10,5,FALSE) -> 25 | AF44: =T44-HLOOKUP(X44,Feuil1!$C$1:$BL$10,6,FALSE) -> 15 | AG44: =T44-HLOOKUP(X44,Feuil1!$C$1:$BL$10,7,FALSE) -> 5 | AH44: =T44-HLOOKUP(X44,Feuil1!$C$1:$BL$10,8,FALSE) -> -10 | AI44: =T44-HLOOKUP(X44,Feuil1!$C$1:$BL$10,9,FALSE) -> -25 | AJ44: =T44-HLOOKUP(X44,Feuil1!$C$1:$BL$10,10,FALSE) -> -895 | AQ44: NAT +
A45: F | B45: N | C45: NPC | D45: 3 | E45: 208590 | F45: HOUZE | G45: Océne | H45: 1998 | I45: 57.99 | J45: CHCD COMINES | K45: F | L45: 43 | M45: 45 | N45: 47 | O45: 47 | P45: 53 | Q45: 56 | R45: -60 | S45: 56 | T45: 103 | U45: -12.98 | V45: NAT + | W45: 3 | X45: =IF(I45="","",IF(A45="H",IF(OR(H45="SEN",H45<1995),VLOOKUP(I45,Feuil1!$A$11:$G$29,6),IF(AND(H45>1994,H45<1998),VLOOKUP(I45,Feuil1!$A$11:$G$29,5),IF(AND(H45>1997,H45<2000),VLOOKUP(I45,Feuil1!$A$11:$G$29,4),IF(AND(H45>1999,H45<2002),VLOOKUP(I45,Feuil1!$A$11:$G$29,3),VLOOKUP(I45,Feuil1!$A$11:$G$29,2))))),IF(OR(H45="SEN",H45<1995),VLOOKUP(I45,Feuil1!$G$11:$L$25,6),IF(AND(H45>1994,H45<1998),VLOOKUP(I45,Feuil1!$G$11:$L$25,5),IF(AND(H45>1997,H45<2000),VLOOKUP(I45,Feuil1!$G$11:$L$25,4),IF(AND(H45>1999,H45<2002),VLOOKUP(I45,Feuil1!$G$11:$L$25,3),VLOOKUP(I45,Feuil1!$G$11:$L$25,2))))))) -> FC2 58 | Y45: 145.0295625 | AB45: =T45-HLOOKUP(X45,Feuil1!$C$1:$BL$10,2,FALSE) -> 53 | AC45: =T45-HLOOKUP(X45,Feuil1!$C$1:$BL$10,3,FALSE) -> 43 | AD45: =T45-HLOOKUP(X45,Feuil1!$C$1:$BL$10,4,FALSE) -> 33 | AE45: =T45-HLOOKUP(X45,Feuil1!$C$1:$BL$10,5,FALSE) -> 23 | AF45: =T45-HLOOKUP(X45,Feuil1!$C$1:$BL$10,6,FALSE) -> 13 | AG45: =T45-HLOOKUP(X45,Feuil1!$C$1:$BL$10,7,FALSE) -> 3 | AH45: =T45-HLOOKUP(X45,Feuil1!$C$1:$BL$10,8,FALSE) -> -12 | AI45: =T45-HLOOKUP(X45,Feuil1!$C$1:$BL$10,9,FALSE) -> -27 | AJ45: =T45-HLOOKUP(X45,Feuil1!$C$1:$BL$10,10,FALSE) -> -897 | AQ45: NAT +
A46: F | B46: N | C46: NPC | D46: 4 | E46: 280129 | F46: BOUDRAHEM | G46: Inès | H46: 1999 | I46: 56.6 | J46: ST POL SUR MER | K46: F | L46: 40 | M46: 43 | N46: -45 | O46: 43 | P46: 50 | Q46: 55 | R46: 57 | S46: 57 | T46: 100 | U46: -13.2 | V46: NAT + | W46: 0 | X46: =IF(I46="","",IF(A46="H",IF(OR(H46="SEN",H46<1995),VLOOKUP(I46,Feuil1!$A$11:$G$29,6),IF(AND(H46>1994,H46<1998),VLOOKUP(I46,Feuil1!$A$11:$G$29,5),IF(AND(H46>1997,H46<2000),VLOOKUP(I46,Feuil1!$A$11:$G$29,4),IF(AND(H46>1999,H46<2002),VLOOKUP(I46,Feuil1!$A$11:$G$29,3),VLOOKUP(I46,Feuil1!$A$11:$G$29,2))))),IF(OR(H46="SEN",H46<1995),VLOOKUP(I46,Feuil1!$G$11:$L$25,6),IF(AND(H46>1994,H46<1998),VLOOKUP(I46,Feuil1!$G$11:$L$25,5),IF(AND(H46>1997,H46<2000),VLOOKUP(I46,Feuil1!$G$11:$L$25,4),IF(AND(H46>1999,H46<2002),VLOOKUP(I46,Feuil1!$G$11:$L$25,3),VLOOKUP(I46,Feuil1!$G$11:$L$25,2))))))) -> FC2 58 | Y46: 143.3554861 | AB46: =T46-HLOOKUP(X46,Feuil1!$C$1:$BL$10,2,FALSE) -> 50 | AC46: =T46-HLOOKUP(X46,Feuil1!$C$1:$BL$10,3,FALSE) -> 40 | AD46: =T46-HLOOKUP(X46,Feuil1!$C$1:$BL$10,4,FALSE) -> 30 | AE46: =T46-HLOOKUP(X46,Feuil1!$C$1:$BL$10,5,FALSE) -> 20 | AF46: =T46-HLOOKUP(X46,Feuil1!$C$1:$BL$10,6,FALSE) -> 10 | AG46: =T46-HLOOKUP(X46,Feuil1!$C$1:$BL$10,7,FALSE) -> 0 | AH46: =T46-HLOOKUP(X46,Feuil1!$C$1:$BL$10,8,FALSE) -> -15 | AI46: =T46-HLOOKUP(X46,Feuil1!$C$1:$BL$10,9,FALSE) -> -30 | AJ46: =T46-HLOOKUP(X46,Feuil1!$C$1:$BL$10,10,FALSE) -> -900 | AQ46: NAT +
A47: F | B47: SEST | C47: CAZ | D47: 5 | E47: 339283 | F47: DULIO | G47: Ambre | H47: 1999 | I47: 57.15 | J47: ES VILL LOUBET | K47: F | L47: 45 | M47: -48 | N47: -48 | O47: 45 | P47: 55 | Q47: -58 | R47: -58 | S47: 55 | T47: 100 | U47: -14.3 | V47: NAT + | W47: 0 | X47: =IF(I47="","",IF(A47="H",IF(OR(H47="SEN",H47<1995),VLOOKUP(I47,Feuil1!$A$11:$G$29,6),IF(AND(H47>1994,H47<1998),VLOOKUP(I47,Feuil1!$A$11:$G$29,5),IF(AND(H47>1997,H47<2000),VLOOKUP(I47,Feuil1!$A$11:$G$29,4),IF(AND(H47>1999,H47<2002),VLOOKUP(I47,Feuil1!$A$11:$G$29,3),VLOOKUP(I47,Feuil1!$A$11:$G$29,2))))),IF(OR(H47="SEN",H47<1995),VLOOKUP(I47,Feuil1!$G$11:$L$25,6),IF(AND(H47>1994,H47<1998),VLOOKUP(I47,Feuil1!$G$11:$L$25,5),IF(AND(H47>1997,H47<2000),VLOOKUP(I47,Feuil1!$G$11:$L$25,4),IF(AND(H47>1999,H47<2002),VLOOKUP(I47,Feuil1!$G$11:$L$25,3),VLOOKUP(I47,Feuil1!$G$11:$L$25,2))))))) -> FC2 58 | Y47: 142.3257349 | AB47: =T47-HLOOKUP(X47,Feuil1!$C$1:$BL$10,2,FALSE) -> 50 | AC47: =T47-HLOOKUP(X47,Feuil1!$C$1:$BL$10,3,FALSE) -> 40 | AD47: =T47-HLOOKUP(X47,Feuil1!$C$1:$BL$10,4,FALSE) -> 30 | AE47: =T47-HLOOKUP(X47,Feuil1!$C$1:$BL$10,5,FALSE) -> 20 | AF47: =T47-HLOOKUP(X47,Feuil1!$C$1:$BL$10,6,FALSE) -> 10 | AG47: =T47-HLOOKUP(X47,Feuil1!$C$1:$BL$10,7,FALSE) -> 0 | AH47: =T47-HLOOKUP(X47,Feuil1!$C$1:$BL$10,8,FALSE) -> -15 | AI47: =T47-HLOOKUP(X47,Feuil1!$C$1:$BL$10,9,FALSE) -> -30 | AJ47: =T47-HLOOKUP(X47,Feuil1!$C$1:$BL$10,10,FALSE) -> -900 | AQ47: NAT +
A48: F | B48: N | C48: PIC | D48: 6 | E48: 326995 | F48: BONNIERE | G48: Priscillia | H48: 1999 | I48: 54.8 | J48: Villers-Bretonneux KC | K48: F | L48: 38 | M48: 42 | N48: 45 | O48: 45 | P48: 48 | Q48: 52 | R48: -54 | S48: 52 | T48: 97 | U48: -12.6 | V48: FED + | W48: 7 | X48: =IF(I48="","",IF(A48="H",IF(OR(H48="SEN",H48<1995),VLOOKUP(I48,Feuil1!$A$11:$G$29,6),IF(AND(H48>1994,H48<1998),VLOOKUP(I48,Feuil1!$A$11:$G$29,5),IF(AND(H48>1997,H48<2000),VLOOKUP(I48,Feuil1!$A$11:$G$29,4),IF(AND(H48>1999,H48<2002),VLOOKUP(I48,Feuil1!$A$11:$G$29,3),VLOOKUP(I48,Feuil1!$A$11:$G$29,2))))),IF(OR(H48="SEN",H48<1995),VLOOKUP(I48,Feuil1!$G$11:$L$25,6),IF(AND(H48>1994,H48<1998),VLOOKUP(I48,Feuil1!$G$11:$L$25,5),IF(AND(H48>1997,H48<2000),VLOOKUP(I48,Feuil1!$G$11:$L$25,4),IF(AND(H48>1999,H48<2002),VLOOKUP(I48,Feuil1!$G$11:$L$25,3),VLOOKUP(I48,Feuil1!$G$11:$L$25,2))))))) -> FC2 58 | Y48: 142.5211162 | AB48: =T48-HLOOKUP(X48,Feuil1!$C$1:$BL$10,2,FALSE) -> 47 | AC48: =T48-HLOOKUP(X48,Feuil1!$C$1:$BL$10,3,FALSE) -> 37 | AD48: =T48-HLOOKUP(X48,Feuil1!$C$1:$BL$10,4,FALSE) -> 27 | AE48: =T48-HLOOKUP(X48,Feuil1!$C$1:$BL$10,5,FALSE) -> 17 | AF48: =T48-HLOOKUP(X48,Feuil1!$C$1:$BL$10,6,FALSE) -> 7 | AG48: =T48-HLOOKUP(X48,Feuil1!$C$1:$BL$10,7,FALSE) -> -3 | AH48: =T48-HLOOKUP(X48,Feuil1!$C$1:$BL$10,8,FALSE) -> -18 | AI48: =T48-HLOOKUP(X48,Feuil1!$C$1:$BL$10,9,FALSE) -> -33 | AJ48: =T48-HLOOKUP(X48,Feuil1!$C$1:$BL$10,10,FALSE) -> -903 | AQ48: FED +
A49: F | B49: DOM | C49: GUA | D49: 7 | E49: 367889 | F49: UFREN | G49: Aurore | H49: 1998 | I49: 57.9 | J49: AHCS/Pointois | K49: F | L49: 35 | M49: 40 | N49: -43 | O49: 40 | P49: 45 | Q49: 50 | R49: 52 | S49: 52 | T49: 92 | U49: -23.8 | V49: FED + | W49: 2 | X49: =IF(I49="","",IF(A49="H",IF(OR(H49="SEN",H49<1995),VLOOKUP(I49,Feuil1!$A$11:$G$29,6),IF(AND(H49>1994,H49<1998),VLOOKUP(I49,Feuil1!$A$11:$G$29,5),IF(AND(H49>1997,H49<2000),VLOOKUP(I49,Feuil1!$A$11:$G$29,4),IF(AND(H49>1999,H49<2002),VLOOKUP(I49,Feuil1!$A$11:$G$29,3),VLOOKUP(I49,Feuil1!$A$11:$G$29,2))))),IF(OR(H49="SEN",H49<1995),VLOOKUP(I49,Feuil1!$G$11:$L$25,6),IF(AND(H49>1994,H49<1998),VLOOKUP(I49,Feuil1!$G$11:$L$25,5),IF(AND(H49>1997,H49<2000),VLOOKUP(I49,Feuil1!$G$11:$L$25,4),IF(AND(H49>1999,H49<2002),VLOOKUP(I49,Feuil1!$G$11:$L$25,3),VLOOKUP(I49,Feuil1!$G$11:$L$25,2))))))) -> FC2 58 | Y49: 129.6881208 | AB49: =T49-HLOOKUP(X49,Feuil1!$C$1:$BL$10,2,FALSE) -> 42 | AC49: =T49-HLOOKUP(X49,Feuil1!$C$1:$BL$10,3,FALSE) -> 32 | AD49: =T49-HLOOKUP(X49,Feuil1!$C$1:$BL$10,4,FALSE) -> 22 | AE49: =T49-HLOOKUP(X49,Feuil1!$C$1:$BL$10,5,FALSE) -> 12 | AF49: =T49-HLOOKUP(X49,Feuil1!$C$1:$BL$10,6,FALSE) -> 2 | AG49: =T49-HLOOKUP(X49,Feuil1!$C$1:$BL$10,7,FALSE) -> -8 | AH49: =T49-HLOOKUP(X49,Feuil1!$C$1:$BL$10,8,FALSE) -> -23 | AI49: =T49-HLOOKUP(X49,Feuil1!$C$1:$BL$10,9,FALSE) -> -38 | AJ49: =T49-HLOOKUP(X49,Feuil1!$C$1:$BL$10,10,FALSE) -> -908 | AQ49: FED +
A50: F | B50: CO | C50: BNO | D50: 8 | E50: 285369 | F50: VILLENEUVE | G50: Irys | H50: 1998 | I50: 53.6 | J50: Caen CHM | K50: F | L50: 37 | M50: -40 | N50: 40 | O50: 40 | P50: 48 | Q50: 51 | R50: -54 | S50: 51 | T50: 91 | U50: -16.2 | V50: FED + | W50: 1 | X50: =IF(I50="","",IF(A50="H",IF(OR(H50="SEN",H50<1995),VLOOKUP(I50,Feuil1!$A$11:$G$29,6),IF(AND(H50>1994,H50<1998),VLOOKUP(I50,Feuil1!$A$11:$G$29,5),IF(AND(H50>1997,H50<2000),VLOOKUP(I50,Feuil1!$A$11:$G$29,4),IF(AND(H50>1999,H50<2002),VLOOKUP(I50,Feuil1!$A$11:$G$29,3),VLOOKUP(I50,Feuil1!$A$11:$G$29,2))))),IF(OR(H50="SEN",H50<1995),VLOOKUP(I50,Feuil1!$G$11:$L$25,6),IF(AND(H50>1994,H50<1998),VLOOKUP(I50,Feuil1!$G$11:$L$25,5),IF(AND(H50>1997,H50<2000),VLOOKUP(I50,Feuil1!$G$11:$L$25,4),IF(AND(H50>1999,H50<2002),VLOOKUP(I50,Feuil1!$G$11:$L$25,3),VLOOKUP(I50,Feuil1!$G$11:$L$25,2))))))) -> FC2 58 | Y50: 136.0437717 | AB50: =T50-HLOOKUP(X50,Feuil1!$C$1:$BL$10,2,FALSE) -> 41 | AC50: =T50-HLOOKUP(X50,Feuil1!$C$1:$BL$10,3,FALSE) -> 31 | AD50: =T50-HLOOKUP(X50,Feuil1!$C$1:$BL$10,4,FALSE) -> 21 | AE50: =T50-HLOOKUP(X50,Feuil1!$C$1:$BL$10,5,FALSE) -> 11 | AF50: =T50-HLOOKUP(X50,Feuil1!$C$1:$BL$10,6,FALSE) -> 1 | AG50: =T50-HLOOKUP(X50,Feuil1!$C$1:$BL$10,7,FALSE) -> -9 | AH50: =T50-HLOOKUP(X50,Feuil1!$C$1:$BL$10,8,FALSE) -> -24 | AI50: =T50-HLOOKUP(X50,Feuil1!$C$1:$BL$10,9,FALSE) -> -39 | AJ50: =T50-HLOOKUP(X50,Feuil1!$C$1:$BL$10,10,FALSE) -> -909 | AQ50: FED +
A51: F | B51: SEST | C51: RAL | D51: 9 | E51: 379666 | F51: RAILLON | G51: Emilie | H51: 1998 | I51: 57.4 | J51: VALENCE | K51: F | L51: 37 | M51: -40 | N51: 40 | O51: 40 | P51: 47 | Q51: -50 | R51: -50 | S51: 47 | T51: 87 | U51: -27.8 | V51: IRG + | W51: 7 | X51: =IF(I51="","",IF(A51="H",IF(OR(H51="SEN",H51<1995),VLOOKUP(I51,Feuil1!$A$11:$G$29,6),IF(AND(H51>1994,H51<1998),VLOOKUP(I51,Feuil1!$A$11:$G$29,5),IF(AND(H51>1997,H51<2000),VLOOKUP(I51,Feuil1!$A$11:$G$29,4),IF(AND(H51>1999,H51<2002),VLOOKUP(I51,Feuil1!$A$11:$G$29,3),VLOOKUP(I51,Feuil1!$A$11:$G$29,2))))),IF(OR(H51="SEN",H51<1995),VLOOKUP(I51,Feuil1!$G$11:$L$25,6),IF(AND(H51>1994,H51<1998),VLOOKUP(I51,Feuil1!$G$11:$L$25,5),IF(AND(H51>1997,H51<2000),VLOOKUP(I51,Feuil1!$G$11:$L$25,4),IF(AND(H51>1999,H51<2002),VLOOKUP(I51,Feuil1!$G$11:$L$25,3),VLOOKUP(I51,Feuil1!$G$11:$L$25,2))))))) -> FC2 58 | Y51: 123.4240732 | AB51: =T51-HLOOKUP(X51,Feuil1!$C$1:$BL$10,2,FALSE) -> 37 | AC51: =T51-HLOOKUP(X51,Feuil1!$C$1:$BL$10,3,FALSE) -> 27 | AD51: =T51-HLOOKUP(X51,Feuil1!$C$1:$BL$10,4,FALSE) -> 17 | AE51: =T51-HLOOKUP(X51,Feuil1!$C$1:$BL$10,5,FALSE) -> 7 | AF51: =T51-HLOOKUP(X51,Feuil1!$C$1:$BL$10,6,FALSE) -> -3 | AG51: =T51-HLOOKUP(X51,Feuil1!$C$1:$BL$10,7,FALSE) -> -13 | AH51: =T51-HLOOKUP(X51,Feuil1!$C$1:$BL$10,8,FALSE) -> -28 | AI51: =T51-HLOOKUP(X51,Feuil1!$C$1:$BL$10,9,FALSE) -> -43 | AJ51: =T51-HLOOKUP(X51,Feuil1!$C$1:$BL$10,10,FALSE) -> -913 | AQ51: IRG +
A52: F | B52: SEST | C52: CAZ | D52: 10 | E52: 385817 | F52: POIRSON | G52: Samantha | H52: 1998 | I52: 55 | J52: ASLDD TOULON | K52: F | L52: 32 | M52: 35 | N52: 37 | O52: 37 | P52: 45 | Q52: -48 | R52: -48 | S52: 45 | T52: 82 | U52: -28 | V52: IRG + | W52: 2 | X52: =IF(I52="","",IF(A52="H",IF(OR(H52="SEN",H52<1995),VLOOKUP(I52,Feuil1!$A$11:$G$29,6),IF(AND(H52>1994,H52<1998),VLOOKUP(I52,Feuil1!$A$11:$G$29,5),IF(AND(H52>1997,H52<2000),VLOOKUP(I52,Feuil1!$A$11:$G$29,4),IF(AND(H52>1999,H52<2002),VLOOKUP(I52,Feuil1!$A$11:$G$29,3),VLOOKUP(I52,Feuil1!$A$11:$G$29,2))))),IF(OR(H52="SEN",H52<1995),VLOOKUP(I52,Feuil1!$G$11:$L$25,6),IF(AND(H52>1994,H52<1998),VLOOKUP(I52,Feuil1!$G$11:$L$25,5),IF(AND(H52>1997,H52<2000),VLOOKUP(I52,Feuil1!$G$11:$L$25,4),IF(AND(H52>1999,H52<2002),VLOOKUP(I52,Feuil1!$G$11:$L$25,3),VLOOKUP(I52,Feuil1!$G$11:$L$25,2))))))) -> FC2 58 | Y52: 120.1429565 | AB52: =T52-HLOOKUP(X52,Feuil1!$C$1:$BL$10,2,FALSE) -> 32 | AC52: =T52-HLOOKUP(X52,Feuil1!$C$1:$BL$10,3,FALSE) -> 22 | AD52: =T52-HLOOKUP(X52,Feuil1!$C$1:$BL$10,4,FALSE) -> 12 | AE52: =T52-HLOOKUP(X52,Feuil1!$C$1:$BL$10,5,FALSE) -> 2 | AF52: =T52-HLOOKUP(X52,Feuil1!$C$1:$BL$10,6,FALSE) -> -8 | AG52: =T52-HLOOKUP(X52,Feuil1!$C$1:$BL$10,7,FALSE) -> -18 | AH52: =T52-HLOOKUP(X52,Feuil1!$C$1:$BL$10,8,FALSE) -> -33 | AI52: =T52-HLOOKUP(X52,Feuil1!$C$1:$BL$10,9,FALSE) -> -48 | AJ52: =T52-HLOOKUP(X52,Feuil1!$C$1:$BL$10,10,FALSE) -> -918 | AQ52: IRG +
A53: F | B53: DOM | C53: GUA | D53: 11 | E53: 339433 | F53: CHALDER | G53: Lou Ann | H53: 1999 | I53: 57.5 | J53: AHCS/Pointois | K53: F | L53: 30 | M53: 32 | N53: 35 | O53: 35 | P53: 35 | Q53: 40 | R53: -42 | S53: 40 | T53: 75 | U53: -40 | V53: REG + | W53: 5 | X53: =IF(I53="","",IF(A53="H",IF(OR(H53="SEN",H53<1995),VLOOKUP(I53,Feuil1!$A$11:$G$29,6),IF(AND(H53>1994,H53<1998),VLOOKUP(I53,Feuil1!$A$11:$G$29,5),IF(AND(H53>1997,H53<2000),VLOOKUP(I53,Feuil1!$A$11:$G$29,4),IF(AND(H53>1999,H53<2002),VLOOKUP(I53,Feuil1!$A$11:$G$29,3),VLOOKUP(I53,Feuil1!$A$11:$G$29,2))))),IF(OR(H53="SEN",H53<1995),VLOOKUP(I53,Feuil1!$G$11:$L$25,6),IF(AND(H53>1994,H53<1998),VLOOKUP(I53,Feuil1!$G$11:$L$25,5),IF(AND(H53>1997,H53<2000),VLOOKUP(I53,Feuil1!$G$11:$L$25,4),IF(AND(H53>1999,H53<2002),VLOOKUP(I53,Feuil1!$G$11:$L$25,3),VLOOKUP(I53,Feuil1!$G$11:$L$25,2))))))) -> FC2 58 | Y53: 106.2635373 | AB53: =T53-HLOOKUP(X53,Feuil1!$C$1:$BL$10,2,FALSE) -> 25 | AC53: =T53-HLOOKUP(X53,Feuil1!$C$1:$BL$10,3,FALSE) -> 15 | AD53: =T53-HLOOKUP(X53,Feuil1!$C$1:$BL$10,4,FALSE) -> 5 | AE53: =T53-HLOOKUP(X53,Feuil1!$C$1:$BL$10,5,FALSE) -> -5 | AF53: =T53-HLOOKUP(X53,Feuil1!$C$1:$BL$10,6,FALSE) -> -15 | AG53: =T53-HLOOKUP(X53,Feuil1!$C$1:$BL$10,7,FALSE) -> -25 | AH53: =T53-HLOOKUP(X53,Feuil1!$C$1:$BL$10,8,FALSE) -> -40 | AI53: =T53-HLOOKUP(X53,Feuil1!$C$1:$BL$10,9,FALSE) -> -55 | AJ53: =T53-HLOOKUP(X53,Feuil1!$C$1:$BL$10,10,FALSE) -> -925 | AQ53: REG +
A54: F | B54: SO | C54: MPY | D54: 12 | E54: 279235 | F54: AUNAY | G54: Amélie | H54: 1998 | I54: 57.8 | J54: COLOMIERS US | K54: F | L54: 25 | M54: 28 | N54: 30 | O54: 30 | P54: 35 | Q54: 39 | R54: 42 | S54: 42 | T54: 72 | U54: -43.6 | V54: REG + | W54: 2 | X54: =IF(I54="","",IF(A54="H",IF(OR(H54="SEN",H54<1995),VLOOKUP(I54,Feuil1!$A$11:$G$29,6),IF(AND(H54>1994,H54<1998),VLOOKUP(I54,Feuil1!$A$11:$G$29,5),IF(AND(H54>1997,H54<2000),VLOOKUP(I54,Feuil1!$A$11:$G$29,4),IF(AND(H54>1999,H54<2002),VLOOKUP(I54,Feuil1!$A$11:$G$29,3),VLOOKUP(I54,Feuil1!$A$11:$G$29,2))))),IF(OR(H54="SEN",H54<1995),VLOOKUP(I54,Feuil1!$G$11:$L$25,6),IF(AND(H54>1994,H54<1998),VLOOKUP(I54,Feuil1!$G$11:$L$25,5),IF(AND(H54>1997,H54<2000),VLOOKUP(I54,Feuil1!$G$11:$L$25,4),IF(AND(H54>1999,H54<2002),VLOOKUP(I54,Feuil1!$G$11:$L$25,3),VLOOKUP(I54,Feuil1!$G$11:$L$25,2))))))) -> FC2 58 | Y54: 101.6235981 | AB54: =T54-HLOOKUP(X54,Feuil1!$C$1:$BL$10,2,FALSE) -> 22 | AC54: =T54-HLOOKUP(X54,Feuil1!$C$1:$BL$10,3,FALSE) -> 12 | AD54: =T54-HLOOKUP(X54,Feuil1!$C$1:$BL$10,4,FALSE) -> 2 | AE54: =T54-HLOOKUP(X54,Feuil1!$C$1:$BL$10,5,FALSE) -> -8 | AF54: =T54-HLOOKUP(X54,Feuil1!$C$1:$BL$10,6,FALSE) -> -18 | AG54: =T54-HLOOKUP(X54,Feuil1!$C$1:$BL$10,7,FALSE) -> -28 | AH54: =T54-HLOOKUP(X54,Feuil1!$C$1:$BL$10,8,FALSE) -> -43 | AI54: =T54-HLOOKUP(X54,Feuil1!$C$1:$BL$10,9,FALSE) -> -58 | AJ54: =T54-HLOOKUP(X54,Feuil1!$C$1:$BL$10,10,FALSE) -> -928 | AQ54: REG +
A55: F | B55: N | C55: PIC | D55: 13 | E55: 378361 | F55: CHARRAUD | G55: Manon | H55: 1998 | I55: 53.3 | J55: Villers-Bretonneux KC | K55: F | L55: 24 | M55: 27 | N55: 28 | O55: 28 | P55: 35 | Q55: 38 | R55: -40 | S55: 38 | T55: 66 | U55: -40.6 | V55: DEP + | W55: 6 | X55: =IF(I55="","",IF(A55="H",IF(OR(H55="SEN",H55<1995),VLOOKUP(I55,Feuil1!$A$11:$G$29,6),IF(AND(H55>1994,H55<1998),VLOOKUP(I55,Feuil1!$A$11:$G$29,5),IF(AND(H55>1997,H55<2000),VLOOKUP(I55,Feuil1!$A$11:$G$29,4),IF(AND(H55>1999,H55<2002),VLOOKUP(I55,Feuil1!$A$11:$G$29,3),VLOOKUP(I55,Feuil1!$A$11:$G$29,2))))),IF(OR(H55="SEN",H55<1995),VLOOKUP(I55,Feuil1!$G$11:$L$25,6),IF(AND(H55>1994,H55<1998),VLOOKUP(I55,Feuil1!$G$11:$L$25,5),IF(AND(H55>1997,H55<2000),VLOOKUP(I55,Feuil1!$G$11:$L$25,4),IF(AND(H55>1999,H55<2002),VLOOKUP(I55,Feuil1!$G$11:$L$25,3),VLOOKUP(I55,Feuil1!$G$11:$L$25,2))))))) -> FC2 58 | Y55: 99.10974495 | AB55: =T55-HLOOKUP(X55,Feuil1!$C$1:$BL$10,2,FALSE) -> 16 | AC55: =T55-HLOOKUP(X55,Feuil1!$C$1:$BL$10,3,FALSE) -> 6 | AD55: =T55-HLOOKUP(X55,Feuil1!$C$1:$BL$10,4,FALSE) -> -4 | AE55: =T55-HLOOKUP(X55,Feuil1!$C$1:$BL$10,5,FALSE) -> -14 | AF55: =T55-HLOOKUP(X55,Feuil1!$C$1:$BL$10,6,FALSE) -> -24 | AG55: =T55-HLOOKUP(X55,Feuil1!$C$1:$BL$10,7,FALSE) -> -34 | AH55: =T55-HLOOKUP(X55,Feuil1!$C$1:$BL$10,8,FALSE) -> -49 | AI55: =T55-HLOOKUP(X55,Feuil1!$C$1:$BL$10,9,FALSE) -> -64 | AJ55: =T55-HLOOKUP(X55,Feuil1!$C$1:$BL$10,10,FALSE) -> -934 | AQ55: DEP +
A56: F | B56: SEST | C56: RAL | D56: 14 | E56: 391553 | F56: FLASSEUR | G56: Amélie | H56: 1998 | I56: 54.1 | J56: SAINT MARCELLIN | K56: F | L56: 25 | M56: 27 | N56: 29 | O56: 29 | P56: 32 | Q56: 35 | R56: 37 | S56: 37 | T56: 66 | U56: -42.2 | V56: DEP + | W56: 6 | X56: =IF(I56="","",IF(A56="H",IF(OR(H56="SEN",H56<1995),VLOOKUP(I56,Feuil1!$A$11:$G$29,6),IF(AND(H56>1994,H56<1998),VLOOKUP(I56,Feuil1!$A$11:$G$29,5),IF(AND(H56>1997,H56<2000),VLOOKUP(I56,Feuil1!$A$11:$G$29,4),IF(AND(H56>1999,H56<2002),VLOOKUP(I56,Feuil1!$A$11:$G$29,3),VLOOKUP(I56,Feuil1!$A$11:$G$29,2))))),IF(OR(H56="SEN",H56<1995),VLOOKUP(I56,Feuil1!$G$11:$L$25,6),IF(AND(H56>1994,H56<1998),VLOOKUP(I56,Feuil1!$G$11:$L$25,5),IF(AND(H56>1997,H56<2000),VLOOKUP(I56,Feuil1!$G$11:$L$25,4),IF(AND(H56>1999,H56<2002),VLOOKUP(I56,Feuil1!$G$11:$L$25,3),VLOOKUP(I56,Feuil1!$G$11:$L$25,2))))))) -> FC2 58 | Y56: 97.94974452 | AB56: =T56-HLOOKUP(X56,Feuil1!$C$1:$BL$10,2,FALSE) -> 16 | AC56: =T56-HLOOKUP(X56,Feuil1!$C$1:$BL$10,3,FALSE) -> 6 | AD56: =T56-HLOOKUP(X56,Feuil1!$C$1:$BL$10,4,FALSE) -> -4 | AE56: =T56-HLOOKUP(X56,Feuil1!$C$1:$BL$10,5,FALSE) -> -14 | AF56: =T56-HLOOKUP(X56,Feuil1!$C$1:$BL$10,6,FALSE) -> -24 | AG56: =T56-HLOOKUP(X56,Feuil1!$C$1:$BL$10,7,FALSE) -> -34 | AH56: =T56-HLOOKUP(X56,Feuil1!$C$1:$BL$10,8,FALSE) -> -49 | AI56: =T56-HLOOKUP(X56,Feuil1!$C$1:$BL$10,9,FALSE) -> -64 | AJ56: =T56-HLOOKUP(X56,Feuil1!$C$1:$BL$10,10,FALSE) -> -934 | AQ56: DEP +
A57: F | B57: CO | C57: BNO | D57: 15 | E57: 380061 | F57: HELIE | G57: Pauline | H57: 1998 | I57: 55.2 | J57: Stade St Lois | K57: F | L57: 25 | M57: -27 | N57: 27 | O57: 27 | P57: 32 | Q57: 35 | R57: -37 | S57: 35 | T57: 62 | U57: -48.4 | V57: DEP + | W57: 2 | X57: =IF(I57="","",IF(A57="H",IF(OR(H57="SEN",H57<1995),VLOOKUP(I57,Feuil1!$A$11:$G$29,6),IF(AND(H57>1994,H57<1998),VLOOKUP(I57,Feuil1!$A$11:$G$29,5),IF(AND(H57>1997,H57<2000),VLOOKUP(I57,Feuil1!$A$11:$G$29,4),IF(AND(H57>1999,H57<2002),VLOOKUP(I57,Feuil1!$A$11:$G$29,3),VLOOKUP(I57,Feuil1!$A$11:$G$29,2))))),IF(OR(H57="SEN",H57<1995),VLOOKUP(I57,Feuil1!$G$11:$L$25,6),IF(AND(H57>1994,H57<1998),VLOOKUP(I57,Feuil1!$G$11:$L$25,5),IF(AND(H57>1997,H57<2000),VLOOKUP(I57,Feuil1!$G$11:$L$25,4),IF(AND(H57>1999,H57<2002),VLOOKUP(I57,Feuil1!$G$11:$L$25,3),VLOOKUP(I57,Feuil1!$G$11:$L$25,2))))))) -> FC2 58 | Y57: 90.58619979 | AB57: =T57-HLOOKUP(X57,Feuil1!$C$1:$BL$10,2,FALSE) -> 12 | AC57: =T57-HLOOKUP(X57,Feuil1!$C$1:$BL$10,3,FALSE) -> 2 | AD57: =T57-HLOOKUP(X57,Feuil1!$C$1:$BL$10,4,FALSE) -> -8 | AE57: =T57-HLOOKUP(X57,Feuil1!$C$1:$BL$10,5,FALSE) -> -18 | AF57: =T57-HLOOKUP(X57,Feuil1!$C$1:$BL$10,6,FALSE) -> -28 | AG57: =T57-HLOOKUP(X57,Feuil1!$C$1:$BL$10,7,FALSE) -> -38 | AH57: =T57-HLOOKUP(X57,Feuil1!$C$1:$BL$10,8,FALSE) -> -53 | AI57: =T57-HLOOKUP(X57,Feuil1!$C$1:$BL$10,9,FALSE) -> -68 | AJ57: =T57-HLOOKUP(X57,Feuil1!$C$1:$BL$10,10,FALSE) -> -938 | AQ57: DEP +
A58: F | B58: N | C58: PIC | D58: 16 | E58: 357294 | F58: MICHEL PINGUERBE | G58: Chloé | H58: 1999 | I58: 55.8 | J58: Villers-Bretonneux KC | K58: F | L58: 15 | M58: 20 | N58: 23 | O58: 23 | P58: 20 | Q58: 25 | R58: 28 | S58: 28 | T58: 51 | U58: -60.6 | V58: DEB | W58: 1 | X58: =IF(I58="","",IF(A58="H",IF(OR(H58="SEN",H58<1995),VLOOKUP(I58,Feuil1!$A$11:$G$29,6),IF(AND(H58>1994,H58<1998),VLOOKUP(I58,Feuil1!$A$11:$G$29,5),IF(AND(H58>1997,H58<2000),VLOOKUP(I58,Feuil1!$A$11:$G$29,4),IF(AND(H58>1999,H58<2002),VLOOKUP(I58,Feuil1!$A$11:$G$29,3),VLOOKUP(I58,Feuil1!$A$11:$G$29,2))))),IF(OR(H58="SEN",H58<1995),VLOOKUP(I58,Feuil1!$G$11:$L$25,6),IF(AND(H58>1994,H58<1998),VLOOKUP(I58,Feuil1!$G$11:$L$25,5),IF(AND(H58>1997,H58<2000),VLOOKUP(I58,Feuil1!$G$11:$L$25,4),IF(AND(H58>1999,H58<2002),VLOOKUP(I58,Feuil1!$G$11:$L$25,3),VLOOKUP(I58,Feuil1!$G$11:$L$25,2))))))) -> FC2 58 | Y58: 73.90108819 | AB58: =T58-HLOOKUP(X58,Feuil1!$C$1:$BL$10,2,FALSE) -> 1 | AC58: =T58-HLOOKUP(X58,Feuil1!$C$1:$BL$10,3,FALSE) -> -9 | AD58: =T58-HLOOKUP(X58,Feuil1!$C$1:$BL$10,4,FALSE) -> -19 | AE58: =T58-HLOOKUP(X58,Feuil1!$C$1:$BL$10,5,FALSE) -> -29 | AF58: =T58-HLOOKUP(X58,Feuil1!$C$1:$BL$10,6,FALSE) -> -39 | AG58: =T58-HLOOKUP(X58,Feuil1!$C$1:$BL$10,7,FALSE) -> -49 | AH58: =T58-HLOOKUP(X58,Feuil1!$C$1:$BL$10,8,FALSE) -> -64 | AI58: =T58-HLOOKUP(X58,Feuil1!$C$1:$BL$10,9,FALSE) -> -79 | AJ58: =T58-HLOOKUP(X58,Feuil1!$C$1:$BL$10,10,FALSE) -> -949 | AQ58: DEB
A59: F | B59: NE | C59: ALS | D59: 17 | E59: 381288 | F59: PIERRE | G59: Zoé | H59: 1998 | I59: 57.1 | J59: SR Obernai HM | K59: F | L59: 21 | M59: -23 | N59: -23 | O59: 21 | P59: 26 | Q59: 28 | R59: -30 | S59: 28 | T59: 49 | U59: -65.2 | V59: DEB | W59: -1 | X59: =IF(I59="","",IF(A59="H",IF(OR(H59="SEN",H59<1995),VLOOKUP(I59,Feuil1!$A$11:$G$29,6),IF(AND(H59>1994,H59<1998),VLOOKUP(I59,Feuil1!$A$11:$G$29,5),IF(AND(H59>1997,H59<2000),VLOOKUP(I59,Feuil1!$A$11:$G$29,4),IF(AND(H59>1999,H59<2002),VLOOKUP(I59,Feuil1!$A$11:$G$29,3),VLOOKUP(I59,Feuil1!$A$11:$G$29,2))))),IF(OR(H59="SEN",H59<1995),VLOOKUP(I59,Feuil1!$G$11:$L$25,6),IF(AND(H59>1994,H59<1998),VLOOKUP(I59,Feuil1!$G$11:$L$25,5),IF(AND(H59>1997,H59<2000),VLOOKUP(I59,Feuil1!$G$11:$L$25,4),IF(AND(H59>1999,H59<2002),VLOOKUP(I59,Feuil1!$G$11:$L$25,3),VLOOKUP(I59,Feuil1!$G$11:$L$25,2))))))) -> FC2 58 | Y59: 69.78492083 | AB59: =T59-HLOOKUP(X59,Feuil1!$C$1:$BL$10,2,FALSE) -> -1 | AC59: =T59-HLOOKUP(X59,Feuil1!$C$1:$BL$10,3,FALSE) -> -11 | AD59: =T59-HLOOKUP(X59,Feuil1!$C$1:$BL$10,4,FALSE) -> -21 | AE59: =T59-HLOOKUP(X59,Feuil1!$C$1:$BL$10,5,FALSE) -> -31 | AF59: =T59-HLOOKUP(X59,Feuil1!$C$1:$BL$10,6,FALSE) -> -41 | AG59: =T59-HLOOKUP(X59,Feuil1!$C$1:$BL$10,7,FALSE) -> -51 | AH59: =T59-HLOOKUP(X59,Feuil1!$C$1:$BL$10,8,FALSE) -> -66 | AI59: =T59-HLOOKUP(X59,Feuil1!$C$1:$BL$10,9,FALSE) -> -81 | AJ59: =T59-HLOOKUP(X59,Feuil1!$C$1:$BL$10,10,FALSE) -> -951 | AQ59: DEB
A60: F | B60: SO | C60: MPY | D60: 18 | E60: 365939 | F60: DELPECH | G60: Marine | H60: 1999 | I60: 57.6 | J60: MONTAUBAN HC | K60: F | L60: 15 | M60: 17 | N60: -20 | O60: 17 | P60: 18 | Q60: 20 | R60: 22 | S60: 22 | T60: 39 | U60: -76.2 | V60: DEB | W60: -11 | X60: =IF(I60="","",IF(A60="H",IF(OR(H60="SEN",H60<1995),VLOOKUP(I60,Feuil1!$A$11:$G$29,6),IF(AND(H60>1994,H60<1998),VLOOKUP(I60,Feuil1!$A$11:$G$29,5),IF(AND(H60>1997,H60<2000),VLOOKUP(I60,Feuil1!$A$11:$G$29,4),IF(AND(H60>1999,H60<2002),VLOOKUP(I60,Feuil1!$A$11:$G$29,3),VLOOKUP(I60,Feuil1!$A$11:$G$29,2))))),IF(OR(H60="SEN",H60<1995),VLOOKUP(I60,Feuil1!$G$11:$L$25,6),IF(AND(H60>1994,H60<1998),VLOOKUP(I60,Feuil1!$G$11:$L$25,5),IF(AND(H60>1997,H60<2000),VLOOKUP(I60,Feuil1!$G$11:$L$25,4),IF(AND(H60>1999,H60<2002),VLOOKUP(I60,Feuil1!$G$11:$L$25,3),VLOOKUP(I60,Feuil1!$G$11:$L$25,2))))))) -> FC2 58 | Y60: 55.18639022 | AB60: =T60-HLOOKUP(X60,Feuil1!$C$1:$BL$10,2,FALSE) -> -11 | AC60: =T60-HLOOKUP(X60,Feuil1!$C$1:$BL$10,3,FALSE) -> -21 | AD60: =T60-HLOOKUP(X60,Feuil1!$C$1:$BL$10,4,FALSE) -> -31 | AE60: =T60-HLOOKUP(X60,Feuil1!$C$1:$BL$10,5,FALSE) -> -41 | AF60: =T60-HLOOKUP(X60,Feuil1!$C$1:$BL$10,6,FALSE) -> -51 | AG60: =T60-HLOOKUP(X60,Feuil1!$C$1:$BL$10,7,FALSE) -> -61 | AH60: =T60-HLOOKUP(X60,Feuil1!$C$1:$BL$10,8,FALSE) -> -76 | AI60: =T60-HLOOKUP(X60,Feuil1!$C$1:$BL$10,9,FALSE) -> -91 | AJ60: =T60-HLOOKUP(X60,Feuil1!$C$1:$BL$10,10,FALSE) -> -961 | AQ60: DEB
AB61: =T61-HLOOKUP(X61,Feuil1!$C$1:$BL$10,2,FALSE) ->  | AC61: =T61-HLOOKUP(X61,Feuil1!$C$1:$BL$10,3,FALSE) ->  | AD61: =T61-HLOOKUP(X61,Feuil1!$C$1:$BL$10,4,FALSE) ->  | AE61: =T61-HLOOKUP(X61,Feuil1!$C$1:$BL$10,5,FALSE) ->  | AF61: =T61-HLOOKUP(X61,Feuil1!$C$1:$BL$10,6,FALSE) ->  | AG61: =T61-HLOOKUP(X61,Feuil1!$C$1:$BL$10,7,FALSE) ->  | AH61: =T61-HLOOKUP(X61,Feuil1!$C$1:$BL$10,8,FALSE) ->  | AI61: =T61-HLOOKUP(X61,Feuil1!$C$1:$BL$10,9,FALSE) ->  | AJ61: =T61-HLOOKUP(X61,Feuil1!$C$1:$BL$10,10,FALSE) ->  | AQ61: =IF(AJ61>=0,$AJ$4,IF(AI61>=0,$AI$4,IF(AH61>=0,$AH$4,IF(AG61>=0,$AG$4,IF(AF61>=0,$AF$4,IF(AE61>=0,$AE$4,IF(AD61>=0,$AD$4,IF(AC61>=0,$AC$4,$AB$4)))))))) -> 
A62: F | B62: NE | C62: ALS | D62: 1 | E62: 238723 | F62: OTT | G62: Justine | H62: 1998 | I62: 62.85 | J62: SHC Haguenau | K62: F | L62: 64 | M62: 67 | N62: 69 | O62: =IF(H62="","",IF(MAXA(L62:N62)<=0,0,MAXA(L62:N62))) -> 69 | P62: 82 | Q62: 85 | R62: 88 | S62: =IF(H62="","",IF(MAXA(P62:R62)<=0,0,MAXA(P62:R62))) -> 88 | T62: =IF(H62="","",IF(OR(O62=0,S62=0),0,O62+S62)) -> 157 | U62: =T62-I62*2 -> 31.3 | V62: =IF(H62="","",AQ62) -> INTA + | W62: =IF(AJ62>=0,AJ62,IF(AI62>=0,AI62,IF(AH62>=0,AH62,IF(AG62>=0,AG62,IF(AF62>=0,AF62,IF(AE62>=0,AE62,IF(AD62>=0,AD62,IF(AC62>=0,AC62,AB62)))))))) -> 17 | X62: =IF(I62="","",IF(A62="H",IF(OR(H62="SEN",H62<1995),VLOOKUP(I62,Feuil1!$A$11:$G$29,6),IF(AND(H62>1994,H62<1998),VLOOKUP(I62,Feuil1!$A$11:$G$29,5),IF(AND(H62>1997,H62<2000),VLOOKUP(I62,Feuil1!$A$11:$G$29,4),IF(AND(H62>1999,H62<2002),VLOOKUP(I62,Feuil1!$A$11:$G$29,3),VLOOKUP(I62,Feuil1!$A$11:$G$29,2))))),IF(OR(H62="SEN",H62<1995),VLOOKUP(I62,Feuil1!$G$11:$L$25,6),IF(AND(H62>1994,H62<1998),VLOOKUP(I62,Feuil1!$G$11:$L$25,5),IF(AND(H62>1997,H62<2000),VLOOKUP(I62,Feuil1!$G$11:$L$25,4),IF(AND(H62>1999,H62<2002),VLOOKUP(I62,Feuil1!$G$11:$L$25,3),VLOOKUP(I62,Feuil1!$G$11:$L$25,2))))))) -> FC2 63 | Y62: =IF(I62="","",IF(A62="H",10^(0.794358141*LOG(I62/174.393)^2)*T62,IF(A62="F",10^(0.89726074*LOG(I62/148.026)^2)*T62,""))) -> 208.9719654 | AB62: =T62-HLOOKUP(X62,Feuil1!$C$1:$BL$10,2,FALSE) -> 102 | AC62: =T62-HLOOKUP(X62,Feuil1!$C$1:$BL$10,3,FALSE) -> 92 | AD62: =T62-HLOOKUP(X62,Feuil1!$C$1:$BL$10,4,FALSE) -> 82 | AE62: =T62-HLOOKUP(X62,Feuil1!$C$1:$BL$10,5,FALSE) -> 72 | AF62: =T62-HLOOKUP(X62,Feuil1!$C$1:$BL$10,6,FALSE) -> 62 | AG62: =T62-HLOOKUP(X62,Feuil1!$C$1:$BL$10,7,FALSE) -> 47 | AH62: =T62-HLOOKUP(X62,Feuil1!$C$1:$BL$10,8,FALSE) -> 32 | AI62: =T62-HLOOKUP(X62,Feuil1!$C$1:$BL$10,9,FALSE) -> 17 | AJ62: =T62-HLOOKUP(X62,Feuil1!$C$1:$BL$10,10,FALSE) -> -843 | AQ62: =IF(AJ62>=0,$AJ$4,IF(AI62>=0,$AI$4,IF(AH62>=0,$AH$4,IF(AG62>=0,$AG$4,IF(AF62>=0,$AF$4,IF(AE62>=0,$AE$4,IF(AD62>=0,$AD$4,IF(AC62>=0,$AC$4,$AB$4)))))))) -> INTA +
A63: F | B63: N | C63: PIC | D63: 2 | E63: 260923 | F63: ARNOULD | G63: Lutricia | H63: 1998 | I63: 58.8 | J63: Villers-Bretonneux KC | K63: F | L63: 56 | M63: 59 | N63: -61 | O63: 59 | P63: 72 | Q63: 74 | R63: -76 | S63: 74 | T63: 133 | U63: 15.4 | V63: INTB + | W63: 8 | X63: =IF(I63="","",IF(A63="H",IF(OR(H63="SEN",H63<1995),VLOOKUP(I63,Feuil1!$A$11:$G$29,6),IF(AND(H63>1994,H63<1998),VLOOKUP(I63,Feuil1!$A$11:$G$29,5),IF(AND(H63>1997,H63<2000),VLOOKUP(I63,Feuil1!$A$11:$G$29,4),IF(AND(H63>1999,H63<2002),VLOOKUP(I63,Feuil1!$A$11:$G$29,3),VLOOKUP(I63,Feuil1!$A$11:$G$29,2))))),IF(OR(H63="SEN",H63<1995),VLOOKUP(I63,Feuil1!$G$11:$L$25,6),IF(AND(H63>1994,H63<1998),VLOOKUP(I63,Feuil1!$G$11:$L$25,5),IF(AND(H63>1997,H63<2000),VLOOKUP(I63,Feuil1!$G$11:$L$25,4),IF(AND(H63>1999,H63<2002),VLOOKUP(I63,Feuil1!$G$11:$L$25,3),VLOOKUP(I63,Feuil1!$G$11:$L$25,2))))))) -> FC2 63 | Y63: 185.3974558 | AB63: =T63-HLOOKUP(X63,Feuil1!$C$1:$BL$10,2,FALSE) -> 78 | AC63: =T63-HLOOKUP(X63,Feuil1!$C$1:$BL$10,3,FALSE) -> 68 | AD63: =T63-HLOOKUP(X63,Feuil1!$C$1:$BL$10,4,FALSE) -> 58 | AE63: =T63-HLOOKUP(X63,Feuil1!$C$1:$BL$10,5,FALSE) -> 48 | AF63: =T63-HLOOKUP(X63,Feuil1!$C$1:$BL$10,6,FALSE) -> 38 | AG63: =T63-HLOOKUP(X63,Feuil1!$C$1:$BL$10,7,FALSE) -> 23 | AH63: =T63-HLOOKUP(X63,Feuil1!$C$1:$BL$10,8,FALSE) -> 8 | AI63: =T63-HLOOKUP(X63,Feuil1!$C$1:$BL$10,9,FALSE) -> -7 | AJ63: =T63-HLOOKUP(X63,Feuil1!$C$1:$BL$10,10,FALSE) -> -867 | AQ63: INTB +
A64: F | B64: DOM | C64: GUA | D64: 3 | E64: 382038 | F64: NUIRO | G64: Naomi | H64: 1999 | I64: 62.2 | J64: AHCS/Pointois | K64: F | L64: 50 | M64: 55 | N64: 57 | O64: 57 | P64: 63 | Q64: 67 | R64: -70 | S64: 67 | T64: 124 | U64: -0.4 | V64: NAT + | W64: 14 | X64: =IF(I64="","",IF(A64="H",IF(OR(H64="SEN",H64<1995),VLOOKUP(I64,Feuil1!$A$11:$G$29,6),IF(AND(H64>1994,H64<1998),VLOOKUP(I64,Feuil1!$A$11:$G$29,5),IF(AND(H64>1997,H64<2000),VLOOKUP(I64,Feuil1!$A$11:$G$29,4),IF(AND(H64>1999,H64<2002),VLOOKUP(I64,Feuil1!$A$11:$G$29,3),VLOOKUP(I64,Feuil1!$A$11:$G$29,2))))),IF(OR(H64="SEN",H64<1995),VLOOKUP(I64,Feuil1!$G$11:$L$25,6),IF(AND(H64>1994,H64<1998),VLOOKUP(I64,Feuil1!$G$11:$L$25,5),IF(AND(H64>1997,H64<2000),VLOOKUP(I64,Feuil1!$G$11:$L$25,4),IF(AND(H64>1999,H64<2002),VLOOKUP(I64,Feuil1!$G$11:$L$25,3),VLOOKUP(I64,Feuil1!$G$11:$L$25,2))))))) -> FC2 63 | Y64: 166.2044276 | AB64: =T64-HLOOKUP(X64,Feuil1!$C$1:$BL$10,2,FALSE) -> 69 | AC64: =T64-HLOOKUP(X64,Feuil1!$C$1:$BL$10,3,FALSE) -> 59 | AD64: =T64-HLOOKUP(X64,Feuil1!$C$1:$BL$10,4,FALSE) -> 49 | AE64: =T64-HLOOKUP(X64,Feuil1!$C$1:$BL$10,5,FALSE) -> 39 | AF64: =T64-HLOOKUP(X64,Feuil1!$C$1:$BL$10,6,FALSE) -> 29 | AG64: =T64-HLOOKUP(X64,Feuil1!$C$1:$BL$10,7,FALSE) -> 14 | AH64: =T64-HLOOKUP(X64,Feuil1!$C$1:$BL$10,8,FALSE) -> -1 | AI64: =T64-HLOOKUP(X64,Feuil1!$C$1:$BL$10,9,FALSE) -> -16 | AJ64: =T64-HLOOKUP(X64,Feuil1!$C$1:$BL$10,10,FALSE) -> -876 | AQ64: NAT +
A65: F | B65: NE | C65: BOU | D65: 4 | E65: 334936 | F65: COMTE | G65: Pauline | H65: 1999 | I65: 59.65 | J65: HC Avallon | K65: F | L65: -54 | M65: -54 | N65: 54 | O65: 54 | P65: 63 | Q65: 67 | R65: -70 | S65: 67 | T65: 121 | U65: 1.7 | V65: NAT + | W65: 11 | X65: =IF(I65="","",IF(A65="H",IF(OR(H65="SEN",H65<1995),VLOOKUP(I65,Feuil1!$A$11:$G$29,6),IF(AND(H65>1994,H65<1998),VLOOKUP(I65,Feuil1!$A$11:$G$29,5),IF(AND(H65>1997,H65<2000),VLOOKUP(I65,Feuil1!$A$11:$G$29,4),IF(AND(H65>1999,H65<2002),VLOOKUP(I65,Feuil1!$A$11:$G$29,3),VLOOKUP(I65,Feuil1!$A$11:$G$29,2))))),IF(OR(H65="SEN",H65<1995),VLOOKUP(I65,Feuil1!$G$11:$L$25,6),IF(AND(H65>1994,H65<1998),VLOOKUP(I65,Feuil1!$G$11:$L$25,5),IF(AND(H65>1997,H65<2000),VLOOKUP(I65,Feuil1!$G$11:$L$25,4),IF(AND(H65>1999,H65<2002),VLOOKUP(I65,Feuil1!$G$11:$L$25,3),VLOOKUP(I65,Feuil1!$G$11:$L$25,2))))))) -> FC2 63 | Y65: 166.9503852 | AB65: =T65-HLOOKUP(X65,Feuil1!$C$1:$BL$10,2,FALSE) -> 66 | AC65: =T65-HLOOKUP(X65,Feuil1!$C$1:$BL$10,3,FALSE) -> 56 | AD65: =T65-HLOOKUP(X65,Feuil1!$C$1:$BL$10,4,FALSE) -> 46 | AE65: =T65-HLOOKUP(X65,Feuil1!$C$1:$BL$10,5,FALSE) -> 36 | AF65: =T65-HLOOKUP(X65,Feuil1!$C$1:$BL$10,6,FALSE) -> 26 | AG65: =T65-HLOOKUP(X65,Feuil1!$C$1:$BL$10,7,FALSE) -> 11 | AH65: =T65-HLOOKUP(X65,Feuil1!$C$1:$BL$10,8,FALSE) -> -4 | AI65: =T65-HLOOKUP(X65,Feuil1!$C$1:$BL$10,9,FALSE) -> -19 | AJ65: =T65-HLOOKUP(X65,Feuil1!$C$1:$BL$10,10,FALSE) -> -879 | AQ65: NAT +
A66: F | B66: SEST | C66: CAZ | D66: 5 | E66: 339283 | F66: DULIO | G66: Ambre | H66: 1999 | I66: 58.3 | J66: ES VILL LOUBET | K66: F | L66: 44 | M66: -48 | N66: 48 | O66: 48 | P66: -54 | Q66: 54 | R66: 58 | S66: 58 | T66: 106 | U66: -10.6 | V66: FED + | W66: 11 | X66: =IF(I66="","",IF(A66="H",IF(OR(H66="SEN",H66<1995),VLOOKUP(I66,Feuil1!$A$11:$G$29,6),IF(AND(H66>1994,H66<1998),VLOOKUP(I66,Feuil1!$A$11:$G$29,5),IF(AND(H66>1997,H66<2000),VLOOKUP(I66,Feuil1!$A$11:$G$29,4),IF(AND(H66>1999,H66<2002),VLOOKUP(I66,Feuil1!$A$11:$G$29,3),VLOOKUP(I66,Feuil1!$A$11:$G$29,2))))),IF(OR(H66="SEN",H66<1995),VLOOKUP(I66,Feuil1!$G$11:$L$25,6),IF(AND(H66>1994,H66<1998),VLOOKUP(I66,Feuil1!$G$11:$L$25,5),IF(AND(H66>1997,H66<2000),VLOOKUP(I66,Feuil1!$G$11:$L$25,4),IF(AND(H66>1999,H66<2002),VLOOKUP(I66,Feuil1!$G$11:$L$25,3),VLOOKUP(I66,Feuil1!$G$11:$L$25,2))))))) -> FC2 63 | Y66: 148.6753323 | AB66: =T66-HLOOKUP(X66,Feuil1!$C$1:$BL$10,2,FALSE) -> 51 | AC66: =T66-HLOOKUP(X66,Feuil1!$C$1:$BL$10,3,FALSE) -> 41 | AD66: =T66-HLOOKUP(X66,Feuil1!$C$1:$BL$10,4,FALSE) -> 31 | AE66: =T66-HLOOKUP(X66,Feuil1!$C$1:$BL$10,5,FALSE) -> 21 | AF66: =T66-HLOOKUP(X66,Feuil1!$C$1:$BL$10,6,FALSE) -> 11 | AG66: =T66-HLOOKUP(X66,Feuil1!$C$1:$BL$10,7,FALSE) -> -4 | AH66: =T66-HLOOKUP(X66,Feuil1!$C$1:$BL$10,8,FALSE) -> -19 | AI66: =T66-HLOOKUP(X66,Feuil1!$C$1:$BL$10,9,FALSE) -> -34 | AJ66: =T66-HLOOKUP(X66,Feuil1!$C$1:$BL$10,10,FALSE) -> -894 | AQ66: FED +
A67: F | B67: N | C67: NPC | D67: 6 | E67: 208590 | F67: HOUZE | G67: Océne | H67: 1998 | I67: 60 | J67: CHCD COMINES | K67: F | L67: 42 | M67: 46 | N67: -49 | O67: 46 | P67: 53 | Q67: 57 | R67: 60 | S67: 60 | T67: 106 | U67: -14 | V67: FED + | W67: 11 | X67: =IF(I67="","",IF(A67="H",IF(OR(H67="SEN",H67<1995),VLOOKUP(I67,Feuil1!$A$11:$G$29,6),IF(AND(H67>1994,H67<1998),VLOOKUP(I67,Feuil1!$A$11:$G$29,5),IF(AND(H67>1997,H67<2000),VLOOKUP(I67,Feuil1!$A$11:$G$29,4),IF(AND(H67>1999,H67<2002),VLOOKUP(I67,Feuil1!$A$11:$G$29,3),VLOOKUP(I67,Feuil1!$A$11:$G$29,2))))),IF(OR(H67="SEN",H67<1995),VLOOKUP(I67,Feuil1!$G$11:$L$25,6),IF(AND(H67>1994,H67<1998),VLOOKUP(I67,Feuil1!$G$11:$L$25,5),IF(AND(H67>1997,H67<2000),VLOOKUP(I67,Feuil1!$G$11:$L$25,4),IF(AND(H67>1999,H67<2002),VLOOKUP(I67,Feuil1!$G$11:$L$25,3),VLOOKUP(I67,Feuil1!$G$11:$L$25,2))))))) -> FC2 63 | Y67: 145.6511584 | AB67: =T67-HLOOKUP(X67,Feuil1!$C$1:$BL$10,2,FALSE) -> 51 | AC67: =T67-HLOOKUP(X67,Feuil1!$C$1:$BL$10,3,FALSE) -> 41 | AD67: =T67-HLOOKUP(X67,Feuil1!$C$1:$BL$10,4,FALSE) -> 31 | AE67: =T67-HLOOKUP(X67,Feuil1!$C$1:$BL$10,5,FALSE) -> 21 | AF67: =T67-HLOOKUP(X67,Feuil1!$C$1:$BL$10,6,FALSE) -> 11 | AG67: =T67-HLOOKUP(X67,Feuil1!$C$1:$BL$10,7,FALSE) -> -4 | AH67: =T67-HLOOKUP(X67,Feuil1!$C$1:$BL$10,8,FALSE) -> -19 | AI67: =T67-HLOOKUP(X67,Feuil1!$C$1:$BL$10,9,FALSE) -> -34 | AJ67: =T67-HLOOKUP(X67,Feuil1!$C$1:$BL$10,10,FALSE) -> -894 | AQ67: FED +
A68: F | B68: CO | C68: BNO | D68: 7 | E68: 288978 | F68: BOURRIEN | G68: Laura | H68: 1998 | I68: 59.8 | J68: Stade St Lois | K68: F | L68: 40 | M68: 45 | N68: -48 | O68: 45 | P68: -55 | Q68: -55 | R68: 55 | S68: 55 | T68: 100 | U68: -19.6 | V68: FED + | W68: 5 | X68: =IF(I68="","",IF(A68="H",IF(OR(H68="SEN",H68<1995),VLOOKUP(I68,Feuil1!$A$11:$G$29,6),IF(AND(H68>1994,H68<1998),VLOOKUP(I68,Feuil1!$A$11:$G$29,5),IF(AND(H68>1997,H68<2000),VLOOKUP(I68,Feuil1!$A$11:$G$29,4),IF(AND(H68>1999,H68<2002),VLOOKUP(I68,Feuil1!$A$11:$G$29,3),VLOOKUP(I68,Feuil1!$A$11:$G$29,2))))),IF(OR(H68="SEN",H68<1995),VLOOKUP(I68,Feuil1!$G$11:$L$25,6),IF(AND(H68>1994,H68<1998),VLOOKUP(I68,Feuil1!$G$11:$L$25,5),IF(AND(H68>1997,H68<2000),VLOOKUP(I68,Feuil1!$G$11:$L$25,4),IF(AND(H68>1999,H68<2002),VLOOKUP(I68,Feuil1!$G$11:$L$25,3),VLOOKUP(I68,Feuil1!$G$11:$L$25,2))))))) -> FC2 63 | Y68: 137.7306202 | AB68: =T68-HLOOKUP(X68,Feuil1!$C$1:$BL$10,2,FALSE) -> 45 | AC68: =T68-HLOOKUP(X68,Feuil1!$C$1:$BL$10,3,FALSE) -> 35 | AD68: =T68-HLOOKUP(X68,Feuil1!$C$1:$BL$10,4,FALSE) -> 25 | AE68: =T68-HLOOKUP(X68,Feuil1!$C$1:$BL$10,5,FALSE) -> 15 | AF68: =T68-HLOOKUP(X68,Feuil1!$C$1:$BL$10,6,FALSE) -> 5 | AG68: =T68-HLOOKUP(X68,Feuil1!$C$1:$BL$10,7,FALSE) -> -10 | AH68: =T68-HLOOKUP(X68,Feuil1!$C$1:$BL$10,8,FALSE) -> -25 | AI68: =T68-HLOOKUP(X68,Feuil1!$C$1:$BL$10,9,FALSE) -> -40 | AJ68: =T68-HLOOKUP(X68,Feuil1!$C$1:$BL$10,10,FALSE) -> -900 | AQ68: FED +
A69: F | B69: SO | C69: MPY | D69: 8 | E69: 360521 | F69: JENNISKEN | G69: Laura | H69: 1998 | I69: 62.1 | J69: TOULOUSE HC | K69: F | L69: 40 | M69: 43 | N69: -46 | O69: 43 | P69: 50 | Q69: 53 | R69: -55 | S69: 53 | T69: 96 | U69: -28.2 | V69: FED + | W69: 1 | X69: =IF(I69="","",IF(A69="H",IF(OR(H69="SEN",H69<1995),VLOOKUP(I69,Feuil1!$A$11:$G$29,6),IF(AND(H69>1994,H69<1998),VLOOKUP(I69,Feuil1!$A$11:$G$29,5),IF(AND(H69>1997,H69<2000),VLOOKUP(I69,Feuil1!$A$11:$G$29,4),IF(AND(H69>1999,H69<2002),VLOOKUP(I69,Feuil1!$A$11:$G$29,3),VLOOKUP(I69,Feuil1!$A$11:$G$29,2))))),IF(OR(H69="SEN",H69<1995),VLOOKUP(I69,Feuil1!$G$11:$L$25,6),IF(AND(H69>1994,H69<1998),VLOOKUP(I69,Feuil1!$G$11:$L$25,5),IF(AND(H69>1997,H69<2000),VLOOKUP(I69,Feuil1!$G$11:$L$25,4),IF(AND(H69>1999,H69<2002),VLOOKUP(I69,Feuil1!$G$11:$L$25,3),VLOOKUP(I69,Feuil1!$G$11:$L$25,2))))))) -> FC2 63 | Y69: 128.8145023 | AB69: =T69-HLOOKUP(X69,Feuil1!$C$1:$BL$10,2,FALSE) -> 41 | AC69: =T69-HLOOKUP(X69,Feuil1!$C$1:$BL$10,3,FALSE) -> 31 | AD69: =T69-HLOOKUP(X69,Feuil1!$C$1:$BL$10,4,FALSE) -> 21 | AE69: =T69-HLOOKUP(X69,Feuil1!$C$1:$BL$10,5,FALSE) -> 11 | AF69: =T69-HLOOKUP(X69,Feuil1!$C$1:$BL$10,6,FALSE) -> 1 | AG69: =T69-HLOOKUP(X69,Feuil1!$C$1:$BL$10,7,FALSE) -> -14 | AH69: =T69-HLOOKUP(X69,Feuil1!$C$1:$BL$10,8,FALSE) -> -29 | AI69: =T69-HLOOKUP(X69,Feuil1!$C$1:$BL$10,9,FALSE) -> -44 | AJ69: =T69-HLOOKUP(X69,Feuil1!$C$1:$BL$10,10,FALSE) -> -904 | AQ69: FED +
A70: F | B70: SEST | C70: RAL | D70: 9 | E70: 344106 | F70: LAFAURIE | G70: Lise | H70: 1998 | I70: 61 | J70: CH Arbresle | K70: F | L70: 40 | M70: 43 | N70: 45 | O70: 45 | P70: 50 | Q70: -53 | R70: -53 | S70: 50 | T70: 95 | U70: -27 | V70: FED + | W70: 0 | X70: =IF(I70="","",IF(A70="H",IF(OR(H70="SEN",H70<1995),VLOOKUP(I70,Feuil1!$A$11:$G$29,6),IF(AND(H70>1994,H70<1998),VLOOKUP(I70,Feuil1!$A$11:$G$29,5),IF(AND(H70>1997,H70<2000),VLOOKUP(I70,Feuil1!$A$11:$G$29,4),IF(AND(H70>1999,H70<2002),VLOOKUP(I70,Feuil1!$A$11:$G$29,3),VLOOKUP(I70,Feuil1!$A$11:$G$29,2))))),IF(OR(H70="SEN",H70<1995),VLOOKUP(I70,Feuil1!$G$11:$L$25,6),IF(AND(H70>1994,H70<1998),VLOOKUP(I70,Feuil1!$G$11:$L$25,5),IF(AND(H70>1997,H70<2000),VLOOKUP(I70,Feuil1!$G$11:$L$25,4),IF(AND(H70>1999,H70<2002),VLOOKUP(I70,Feuil1!$G$11:$L$25,3),VLOOKUP(I70,Feuil1!$G$11:$L$25,2))))))) -> FC2 63 | Y70: 129.0404064 | AB70: =T70-HLOOKUP(X70,Feuil1!$C$1:$BL$10,2,FALSE) -> 40 | AC70: =T70-HLOOKUP(X70,Feuil1!$C$1:$BL$10,3,FALSE) -> 30 | AD70: =T70-HLOOKUP(X70,Feuil1!$C$1:$BL$10,4,FALSE) -> 20 | AE70: =T70-HLOOKUP(X70,Feuil1!$C$1:$BL$10,5,FALSE) -> 10 | AF70: =T70-HLOOKUP(X70,Feuil1!$C$1:$BL$10,6,FALSE) -> 0 | AG70: =T70-HLOOKUP(X70,Feuil1!$C$1:$BL$10,7,FALSE) -> -15 | AH70: =T70-HLOOKUP(X70,Feuil1!$C$1:$BL$10,8,FALSE) -> -30 | AI70: =T70-HLOOKUP(X70,Feuil1!$C$1:$BL$10,9,FALSE) -> -45 | AJ70: =T70-HLOOKUP(X70,Feuil1!$C$1:$BL$10,10,FALSE) -> -905 | AQ70: FED +
A71: F | B71: SEST | C71: CAZ | D71: 10 | E71: 365254 | F71: GAUJARD | G71: Marine | H71: 1998 | I71: 62.7 | J71: ASLDD TOULON | K71: F | L71: 34 | M71: 37 | N71: -39 | O71: 37 | P71: 48 | Q71: 51 | R71: 53 | S71: 53 | T71: 90 | U71: -35.4 | V71: IRG + | W71: 5 | X71: =IF(I71="","",IF(A71="H",IF(OR(H71="SEN",H71<1995),VLOOKUP(I71,Feuil1!$A$11:$G$29,6),IF(AND(H71>1994,H71<1998),VLOOKUP(I71,Feuil1!$A$11:$G$29,5),IF(AND(H71>1997,H71<2000),VLOOKUP(I71,Feuil1!$A$11:$G$29,4),IF(AND(H71>1999,H71<2002),VLOOKUP(I71,Feuil1!$A$11:$G$29,3),VLOOKUP(I71,Feuil1!$A$11:$G$29,2))))),IF(OR(H71="SEN",H71<1995),VLOOKUP(I71,Feuil1!$G$11:$L$25,6),IF(AND(H71>1994,H71<1998),VLOOKUP(I71,Feuil1!$G$11:$L$25,5),IF(AND(H71>1997,H71<2000),VLOOKUP(I71,Feuil1!$G$11:$L$25,4),IF(AND(H71>1999,H71<2002),VLOOKUP(I71,Feuil1!$G$11:$L$25,3),VLOOKUP(I71,Feuil1!$G$11:$L$25,2))))))) -> FC2 63 | Y71: 119.984368 | AB71: =T71-HLOOKUP(X71,Feuil1!$C$1:$BL$10,2,FALSE) -> 35 | AC71: =T71-HLOOKUP(X71,Feuil1!$C$1:$BL$10,3,FALSE) -> 25 | AD71: =T71-HLOOKUP(X71,Feuil1!$C$1:$BL$10,4,FALSE) -> 15 | AE71: =T71-HLOOKUP(X71,Feuil1!$C$1:$BL$10,5,FALSE) -> 5 | AF71: =T71-HLOOKUP(X71,Feuil1!$C$1:$BL$10,6,FALSE) -> -5 | AG71: =T71-HLOOKUP(X71,Feuil1!$C$1:$BL$10,7,FALSE) -> -20 | AH71: =T71-HLOOKUP(X71,Feuil1!$C$1:$BL$10,8,FALSE) -> -35 | AI71: =T71-HLOOKUP(X71,Feuil1!$C$1:$BL$10,9,FALSE) -> -50 | AJ71: =T71-HLOOKUP(X71,Feuil1!$C$1:$BL$10,10,FALSE) -> -910 | AQ71: IRG +
A72: F | B72: SO | C72: MPY | D72: 11 | E72: 378625 | F72: GUILLOT | G72: Léa | H72: 1998 | I72: 60.5 | J72: FIGEAC HC | K72: F | L72: 32 | M72: 34 | N72: -36 | O72: 34 | P72: 52 | Q72: -54 | R72: -54 | S72: 52 | T72: 86 | U72: -35 | V72: IRG + | W72: 1 | X72: =IF(I72="","",IF(A72="H",IF(OR(H72="SEN",H72<1995),VLOOKUP(I72,Feuil1!$A$11:$G$29,6),IF(AND(H72>1994,H72<1998),VLOOKUP(I72,Feuil1!$A$11:$G$29,5),IF(AND(H72>1997,H72<2000),VLOOKUP(I72,Feuil1!$A$11:$G$29,4),IF(AND(H72>1999,H72<2002),VLOOKUP(I72,Feuil1!$A$11:$G$29,3),VLOOKUP(I72,Feuil1!$A$11:$G$29,2))))),IF(OR(H72="SEN",H72<1995),VLOOKUP(I72,Feuil1!$G$11:$L$25,6),IF(AND(H72>1994,H72<1998),VLOOKUP(I72,Feuil1!$G$11:$L$25,5),IF(AND(H72>1997,H72<2000),VLOOKUP(I72,Feuil1!$G$11:$L$25,4),IF(AND(H72>1999,H72<2002),VLOOKUP(I72,Feuil1!$G$11:$L$25,3),VLOOKUP(I72,Feuil1!$G$11:$L$25,2))))))) -> FC2 63 | Y72: 117.4847904 | AB72: =T72-HLOOKUP(X72,Feuil1!$C$1:$BL$10,2,FALSE) -> 31 | AC72: =T72-HLOOKUP(X72,Feuil1!$C$1:$BL$10,3,FALSE) -> 21 | AD72: =T72-HLOOKUP(X72,Feuil1!$C$1:$BL$10,4,FALSE) -> 11 | AE72: =T72-HLOOKUP(X72,Feuil1!$C$1:$BL$10,5,FALSE) -> 1 | AF72: =T72-HLOOKUP(X72,Feuil1!$C$1:$BL$10,6,FALSE) -> -9 | AG72: =T72-HLOOKUP(X72,Feuil1!$C$1:$BL$10,7,FALSE) -> -24 | AH72: =T72-HLOOKUP(X72,Feuil1!$C$1:$BL$10,8,FALSE) -> -39 | AI72: =T72-HLOOKUP(X72,Feuil1!$C$1:$BL$10,9,FALSE) -> -54 | AJ72: =T72-HLOOKUP(X72,Feuil1!$C$1:$BL$10,10,FALSE) -> -914 | AQ72: IRG +
A73: F | B73: SEST | C73: RAL | D73: 12 | E73: 379666 | F73: RAILLON | G73: Emilie | H73: 1998 | I73: 58.3 | J73: VALENCE | K73: F | L73: -30 | M73: 32 | N73: 35 | O73: 35 | P73: 42 | Q73: 47 | R73: -49 | S73: 47 | T73: 82 | U73: -34.6 | V73: REG + | W73: 7 | X73: =IF(I73="","",IF(A73="H",IF(OR(H73="SEN",H73<1995),VLOOKUP(I73,Feuil1!$A$11:$G$29,6),IF(AND(H73>1994,H73<1998),VLOOKUP(I73,Feuil1!$A$11:$G$29,5),IF(AND(H73>1997,H73<2000),VLOOKUP(I73,Feuil1!$A$11:$G$29,4),IF(AND(H73>1999,H73<2002),VLOOKUP(I73,Feuil1!$A$11:$G$29,3),VLOOKUP(I73,Feuil1!$A$11:$G$29,2))))),IF(OR(H73="SEN",H73<1995),VLOOKUP(I73,Feuil1!$G$11:$L$25,6),IF(AND(H73>1994,H73<1998),VLOOKUP(I73,Feuil1!$G$11:$L$25,5),IF(AND(H73>1997,H73<2000),VLOOKUP(I73,Feuil1!$G$11:$L$25,4),IF(AND(H73>1999,H73<2002),VLOOKUP(I73,Feuil1!$G$11:$L$25,3),VLOOKUP(I73,Feuil1!$G$11:$L$25,2))))))) -> FC2 63 | Y73: 115.0129929 | AB73: =T73-HLOOKUP(X73,Feuil1!$C$1:$BL$10,2,FALSE) -> 27 | AC73: =T73-HLOOKUP(X73,Feuil1!$C$1:$BL$10,3,FALSE) -> 17 | AD73: =T73-HLOOKUP(X73,Feuil1!$C$1:$BL$10,4,FALSE) -> 7 | AE73: =T73-HLOOKUP(X73,Feuil1!$C$1:$BL$10,5,FALSE) -> -3 | AF73: =T73-HLOOKUP(X73,Feuil1!$C$1:$BL$10,6,FALSE) -> -13 | AG73: =T73-HLOOKUP(X73,Feuil1!$C$1:$BL$10,7,FALSE) -> -28 | AH73: =T73-HLOOKUP(X73,Feuil1!$C$1:$BL$10,8,FALSE) -> -43 | AI73: =T73-HLOOKUP(X73,Feuil1!$C$1:$BL$10,9,FALSE) -> -58 | AJ73: =T73-HLOOKUP(X73,Feuil1!$C$1:$BL$10,10,FALSE) -> -918 | AQ73: REG +
A74: F | B74: N | C74: PIC | D74: 13 | E74: 367780 | F74: DENAND | G74: Gwendoline | H74: 1998 | I74: 63 | J74: La Ferté Milon CMHM | K74: F | L74: 30 | M74: 34 | N74: -36 | O74: 34 | P74: 40 | Q74: 45 | R74: -47 | S74: 45 | T74: 79 | U74: -47 | V74: REG + | W74: 4 | X74: =IF(I74="","",IF(A74="H",IF(OR(H74="SEN",H74<1995),VLOOKUP(I74,Feuil1!$A$11:$G$29,6),IF(AND(H74>1994,H74<1998),VLOOKUP(I74,Feuil1!$A$11:$G$29,5),IF(AND(H74>1997,H74<2000),VLOOKUP(I74,Feuil1!$A$11:$G$29,4),IF(AND(H74>1999,H74<2002),VLOOKUP(I74,Feuil1!$A$11:$G$29,3),VLOOKUP(I74,Feuil1!$A$11:$G$29,2))))),IF(OR(H74="SEN",H74<1995),VLOOKUP(I74,Feuil1!$G$11:$L$25,6),IF(AND(H74>1994,H74<1998),VLOOKUP(I74,Feuil1!$G$11:$L$25,5),IF(AND(H74>1997,H74<2000),VLOOKUP(I74,Feuil1!$G$11:$L$25,4),IF(AND(H74>1999,H74<2002),VLOOKUP(I74,Feuil1!$G$11:$L$25,3),VLOOKUP(I74,Feuil1!$G$11:$L$25,2))))))) -> FC2 63 | Y74: 104.9845188 | AB74: =T74-HLOOKUP(X74,Feuil1!$C$1:$BL$10,2,FALSE) -> 24 | AC74: =T74-HLOOKUP(X74,Feuil1!$C$1:$BL$10,3,FALSE) -> 14 | AD74: =T74-HLOOKUP(X74,Feuil1!$C$1:$BL$10,4,FALSE) -> 4 | AE74: =T74-HLOOKUP(X74,Feuil1!$C$1:$BL$10,5,FALSE) -> -6 | AF74: =T74-HLOOKUP(X74,Feuil1!$C$1:$BL$10,6,FALSE) -> -16 | AG74: =T74-HLOOKUP(X74,Feuil1!$C$1:$BL$10,7,FALSE) -> -31 | AH74: =T74-HLOOKUP(X74,Feuil1!$C$1:$BL$10,8,FALSE) -> -46 | AI74: =T74-HLOOKUP(X74,Feuil1!$C$1:$BL$10,9,FALSE) -> -61 | AJ74: =T74-HLOOKUP(X74,Feuil1!$C$1:$BL$10,10,FALSE) -> -921 | AQ74: REG +
A75: F | B75: SO | C75: MPY | D75: 14 | E75: 357559 | F75: MEUNIER | G75: Julie | H75: 1999 | I75: 59.3 | J75: MONTAUBAN HC | K75: F | L75: 26 | M75: 29 | N75: 32 | O75: 32 | P75: 35 | Q75: 39 | R75: -43 | S75: 39 | T75: 71 | U75: -47.6 | V75: DEP + | W75: 6 | X75: =IF(I75="","",IF(A75="H",IF(OR(H75="SEN",H75<1995),VLOOKUP(I75,Feuil1!$A$11:$G$29,6),IF(AND(H75>1994,H75<1998),VLOOKUP(I75,Feuil1!$A$11:$G$29,5),IF(AND(H75>1997,H75<2000),VLOOKUP(I75,Feuil1!$A$11:$G$29,4),IF(AND(H75>1999,H75<2002),VLOOKUP(I75,Feuil1!$A$11:$G$29,3),VLOOKUP(I75,Feuil1!$A$11:$G$29,2))))),IF(OR(H75="SEN",H75<1995),VLOOKUP(I75,Feuil1!$G$11:$L$25,6),IF(AND(H75>1994,H75<1998),VLOOKUP(I75,Feuil1!$G$11:$L$25,5),IF(AND(H75>1997,H75<2000),VLOOKUP(I75,Feuil1!$G$11:$L$25,4),IF(AND(H75>1999,H75<2002),VLOOKUP(I75,Feuil1!$G$11:$L$25,3),VLOOKUP(I75,Feuil1!$G$11:$L$25,2))))))) -> FC2 63 | Y75: 98.37316086 | AB75: =T75-HLOOKUP(X75,Feuil1!$C$1:$BL$10,2,FALSE) -> 16 | AC75: =T75-HLOOKUP(X75,Feuil1!$C$1:$BL$10,3,FALSE) -> 6 | AD75: =T75-HLOOKUP(X75,Feuil1!$C$1:$BL$10,4,FALSE) -> -4 | AE75: =T75-HLOOKUP(X75,Feuil1!$C$1:$BL$10,5,FALSE) -> -14 | AF75: =T75-HLOOKUP(X75,Feuil1!$C$1:$BL$10,6,FALSE) -> -24 | AG75: =T75-HLOOKUP(X75,Feuil1!$C$1:$BL$10,7,FALSE) -> -39 | AH75: =T75-HLOOKUP(X75,Feuil1!$C$1:$BL$10,8,FALSE) -> -54 | AI75: =T75-HLOOKUP(X75,Feuil1!$C$1:$BL$10,9,FALSE) -> -69 | AJ75: =T75-HLOOKUP(X75,Feuil1!$C$1:$BL$10,10,FALSE) -> -929 | AQ75: DEP +
A76: F | B76: SEST | C76: RAL | D76: 15 | E76: 391306 | F76: BERTRAND | G76: Morgane | H76: 1998 | I76: 59 | J76: SAINT MARCELLIN | K76: F | L76: 27 | M76: 29 | N76: 31 | O76: 31 | P76: 35 | Q76: 39 | R76: -42 | S76: 39 | T76: 70 | U76: -48 | V76: DEP + | W76: 5 | X76: =IF(I76="","",IF(A76="H",IF(OR(H76="SEN",H76<1995),VLOOKUP(I76,Feuil1!$A$11:$G$29,6),IF(AND(H76>1994,H76<1998),VLOOKUP(I76,Feuil1!$A$11:$G$29,5),IF(AND(H76>1997,H76<2000),VLOOKUP(I76,Feuil1!$A$11:$G$29,4),IF(AND(H76>1999,H76<2002),VLOOKUP(I76,Feuil1!$A$11:$G$29,3),VLOOKUP(I76,Feuil1!$A$11:$G$29,2))))),IF(OR(H76="SEN",H76<1995),VLOOKUP(I76,Feuil1!$G$11:$L$25,6),IF(AND(H76>1994,H76<1998),VLOOKUP(I76,Feuil1!$G$11:$L$25,5),IF(AND(H76>1997,H76<2000),VLOOKUP(I76,Feuil1!$G$11:$L$25,4),IF(AND(H76>1999,H76<2002),VLOOKUP(I76,Feuil1!$G$11:$L$25,3),VLOOKUP(I76,Feuil1!$G$11:$L$25,2))))))) -> FC2 63 | Y76: 97.33993147 | AB76: =T76-HLOOKUP(X76,Feuil1!$C$1:$BL$10,2,FALSE) -> 15 | AC76: =T76-HLOOKUP(X76,Feuil1!$C$1:$BL$10,3,FALSE) -> 5 | AD76: =T76-HLOOKUP(X76,Feuil1!$C$1:$BL$10,4,FALSE) -> -5 | AE76: =T76-HLOOKUP(X76,Feuil1!$C$1:$BL$10,5,FALSE) -> -15 | AF76: =T76-HLOOKUP(X76,Feuil1!$C$1:$BL$10,6,FALSE) -> -25 | AG76: =T76-HLOOKUP(X76,Feuil1!$C$1:$BL$10,7,FALSE) -> -40 | AH76: =T76-HLOOKUP(X76,Feuil1!$C$1:$BL$10,8,FALSE) -> -55 | AI76: =T76-HLOOKUP(X76,Feuil1!$C$1:$BL$10,9,FALSE) -> -70 | AJ76: =T76-HLOOKUP(X76,Feuil1!$C$1:$BL$10,10,FALSE) -> -930 | AQ76: DEP +
A77: F | B77: SO | C77: MPY | D77: 16 | E77: 269729 | F77: SYRIEIX | G77: Anne | H77: 1998 | I77: 63 | J77: DECAZEVILLE HC | K77: F | L77: 28 | M77: 30 | N77: -32 | O77: 30 | P77: 35 | Q77: 40 | R77: -45 | S77: 40 | T77: 70 | U77: -56 | V77: DEP + | W77: 5 | X77: =IF(I77="","",IF(A77="H",IF(OR(H77="SEN",H77<1995),VLOOKUP(I77,Feuil1!$A$11:$G$29,6),IF(AND(H77>1994,H77<1998),VLOOKUP(I77,Feuil1!$A$11:$G$29,5),IF(AND(H77>1997,H77<2000),VLOOKUP(I77,Feuil1!$A$11:$G$29,4),IF(AND(H77>1999,H77<2002),VLOOKUP(I77,Feuil1!$A$11:$G$29,3),VLOOKUP(I77,Feuil1!$A$11:$G$29,2))))),IF(OR(H77="SEN",H77<1995),VLOOKUP(I77,Feuil1!$G$11:$L$25,6),IF(AND(H77>1994,H77<1998),VLOOKUP(I77,Feuil1!$G$11:$L$25,5),IF(AND(H77>1997,H77<2000),VLOOKUP(I77,Feuil1!$G$11:$L$25,4),IF(AND(H77>1999,H77<2002),VLOOKUP(I77,Feuil1!$G$11:$L$25,3),VLOOKUP(I77,Feuil1!$G$11:$L$25,2))))))) -> FC2 63 | Y77: 93.02425715 | AB77: =T77-HLOOKUP(X77,Feuil1!$C$1:$BL$10,2,FALSE) -> 15 | AC77: =T77-HLOOKUP(X77,Feuil1!$C$1:$BL$10,3,FALSE) -> 5 | AD77: =T77-HLOOKUP(X77,Feuil1!$C$1:$BL$10,4,FALSE) -> -5 | AE77: =T77-HLOOKUP(X77,Feuil1!$C$1:$BL$10,5,FALSE) -> -15 | AF77: =T77-HLOOKUP(X77,Feuil1!$C$1:$BL$10,6,FALSE) -> -25 | AG77: =T77-HLOOKUP(X77,Feuil1!$C$1:$BL$10,7,FALSE) -> -40 | AH77: =T77-HLOOKUP(X77,Feuil1!$C$1:$BL$10,8,FALSE) -> -55 | AI77: =T77-HLOOKUP(X77,Feuil1!$C$1:$BL$10,9,FALSE) -> -70 | AJ77: =T77-HLOOKUP(X77,Feuil1!$C$1:$BL$10,10,FALSE) -> -930 | AQ77: DEP +
A78: F | B78: CO | C78: BNO | D78: 17 | E78: 384450 | F78: RIVIERE | G78: Pauline | H78: 1998 | I78: 59.9 | J78: Stade St Lois | K78: F | L78: 25 | M78: 28 | N78: -30 | O78: 28 | P78: 30 | Q78: 35 | R78: 38 | S78: 38 | T78: 66 | U78: -53.8 | V78: DEP + | W78: 1 | X78: =IF(I78="","",IF(A78="H",IF(OR(H78="SEN",H78<1995),VLOOKUP(I78,Feuil1!$A$11:$G$29,6),IF(AND(H78>1994,H78<1998),VLOOKUP(I78,Feuil1!$A$11:$G$29,5),IF(AND(H78>1997,H78<2000),VLOOKUP(I78,Feuil1!$A$11:$G$29,4),IF(AND(H78>1999,H78<2002),VLOOKUP(I78,Feuil1!$A$11:$G$29,3),VLOOKUP(I78,Feuil1!$A$11:$G$29,2))))),IF(OR(H78="SEN",H78<1995),VLOOKUP(I78,Feuil1!$G$11:$L$25,6),IF(AND(H78>1994,H78<1998),VLOOKUP(I78,Feuil1!$G$11:$L$25,5),IF(AND(H78>1997,H78<2000),VLOOKUP(I78,Feuil1!$G$11:$L$25,4),IF(AND(H78>1999,H78<2002),VLOOKUP(I78,Feuil1!$G$11:$L$25,3),VLOOKUP(I78,Feuil1!$G$11:$L$25,2))))))) -> FC2 63 | Y78: 90.79508249 | AB78: =T78-HLOOKUP(X78,Feuil1!$C$1:$BL$10,2,FALSE) -> 11 | AC78: =T78-HLOOKUP(X78,Feuil1!$C$1:$BL$10,3,FALSE) -> 1 | AD78: =T78-HLOOKUP(X78,Feuil1!$C$1:$BL$10,4,FALSE) -> -9 | AE78: =T78-HLOOKUP(X78,Feuil1!$C$1:$BL$10,5,FALSE) -> -19 | AF78: =T78-HLOOKUP(X78,Feuil1!$C$1:$BL$10,6,FALSE) -> -29 | AG78: =T78-HLOOKUP(X78,Feuil1!$C$1:$BL$10,7,FALSE) -> -44 | AH78: =T78-HLOOKUP(X78,Feuil1!$C$1:$BL$10,8,FALSE) -> -59 | AI78: =T78-HLOOKUP(X78,Feuil1!$C$1:$BL$10,9,FALSE) -> -74 | AJ78: =T78-HLOOKUP(X78,Feuil1!$C$1:$BL$10,10,FALSE) -> -934 | AQ78: DEP +
A79: F | B79: N | C79: PIC | D79: 18 | E79: 357294 | F79: MICHEL PINGUERBE | G79: Chloé | H79: 1999 | I79: 58.82 | J79: Villers-Bretonneux KC | K79: F | L79: 20 | M79: 22 | N79: 25 | O79: 25 | P79: 32 | Q79: 34 | R79: 36 | S79: 36 | T79: 61 | U79: -56.64 | V79: DEB | W79: 6 | X79: =IF(I79="","",IF(A79="H",IF(OR(H79="SEN",H79<1995),VLOOKUP(I79,Feuil1!$A$11:$G$29,6),IF(AND(H79>1994,H79<1998),VLOOKUP(I79,Feuil1!$A$11:$G$29,5),IF(AND(H79>1997,H79<2000),VLOOKUP(I79,Feuil1!$A$11:$G$29,4),IF(AND(H79>1999,H79<2002),VLOOKUP(I79,Feuil1!$A$11:$G$29,3),VLOOKUP(I79,Feuil1!$A$11:$G$29,2))))),IF(OR(H79="SEN",H79<1995),VLOOKUP(I79,Feuil1!$G$11:$L$25,6),IF(AND(H79>1994,H79<1998),VLOOKUP(I79,Feuil1!$G$11:$L$25,5),IF(AND(H79>1997,H79<2000),VLOOKUP(I79,Feuil1!$G$11:$L$25,4),IF(AND(H79>1999,H79<2002),VLOOKUP(I79,Feuil1!$G$11:$L$25,3),VLOOKUP(I79,Feuil1!$G$11:$L$25,2))))))) -> FC2 63 | Y79: 85.01111512 | AB79: =T79-HLOOKUP(X79,Feuil1!$C$1:$BL$10,2,FALSE) -> 6 | AC79: =T79-HLOOKUP(X79,Feuil1!$C$1:$BL$10,3,FALSE) -> -4 | AD79: =T79-HLOOKUP(X79,Feuil1!$C$1:$BL$10,4,FALSE) -> -14 | AE79: =T79-HLOOKUP(X79,Feuil1!$C$1:$BL$10,5,FALSE) -> -24 | AF79: =T79-HLOOKUP(X79,Feuil1!$C$1:$BL$10,6,FALSE) -> -34 | AG79: =T79-HLOOKUP(X79,Feuil1!$C$1:$BL$10,7,FALSE) -> -49 | AH79: =T79-HLOOKUP(X79,Feuil1!$C$1:$BL$10,8,FALSE) -> -64 | AI79: =T79-HLOOKUP(X79,Feuil1!$C$1:$BL$10,9,FALSE) -> -79 | AJ79: =T79-HLOOKUP(X79,Feuil1!$C$1:$BL$10,10,FALSE) -> -939 | AQ79: DEB
A80: F | B80: NE | C80: ALS | D80: 19 | E80: 381288 | F80: PIERRE | G80: Zoé | H80: 1998 | I80: 59.2 | J80: SR Obernai HM | K80: F | L80: 18 | M80: -20 | N80: 20 | O80: 20 | P80: -24 | Q80: 24 | R80: 26 | S80: 26 | T80: 46 | U80: -72.4 | V80: DEB | W80: -9 | X80: =IF(I80="","",IF(A80="H",IF(OR(H80="SEN",H80<1995),VLOOKUP(I80,Feuil1!$A$11:$G$29,6),IF(AND(H80>1994,H80<1998),VLOOKUP(I80,Feuil1!$A$11:$G$29,5),IF(AND(H80>1997,H80<2000),VLOOKUP(I80,Feuil1!$A$11:$G$29,4),IF(AND(H80>1999,H80<2002),VLOOKUP(I80,Feuil1!$A$11:$G$29,3),VLOOKUP(I80,Feuil1!$A$11:$G$29,2))))),IF(OR(H80="SEN",H80<1995),VLOOKUP(I80,Feuil1!$G$11:$L$25,6),IF(AND(H80>1994,H80<1998),VLOOKUP(I80,Feuil1!$G$11:$L$25,5),IF(AND(H80>1997,H80<2000),VLOOKUP(I80,Feuil1!$G$11:$L$25,4),IF(AND(H80>1999,H80<2002),VLOOKUP(I80,Feuil1!$G$11:$L$25,3),VLOOKUP(I80,Feuil1!$G$11:$L$25,2))))))) -> FC2 63 | Y80: 63.81153059 | AB80: =T80-HLOOKUP(X80,Feuil1!$C$1:$BL$10,2,FALSE) -> -9 | AC80: =T80-HLOOKUP(X80,Feuil1!$C$1:$BL$10,3,FALSE) -> -19 | AD80: =T80-HLOOKUP(X80,Feuil1!$C$1:$BL$10,4,FALSE) -> -29 | AE80: =T80-HLOOKUP(X80,Feuil1!$C$1:$BL$10,5,FALSE) -> -39 | AF80: =T80-HLOOKUP(X80,Feuil1!$C$1:$BL$10,6,FALSE) -> -49 | AG80: =T80-HLOOKUP(X80,Feuil1!$C$1:$BL$10,7,FALSE) -> -64 | AH80: =T80-HLOOKUP(X80,Feuil1!$C$1:$BL$10,8,FALSE) -> -79 | AI80: =T80-HLOOKUP(X80,Feuil1!$C$1:$BL$10,9,FALSE) -> -94 | AJ80: =T80-HLOOKUP(X80,Feuil1!$C$1:$BL$10,10,FALSE) -> -954 | AQ80: DEB
AB81: =T81-HLOOKUP(X81,Feuil1!$C$1:$BL$10,2,FALSE) ->  | AC81: =T81-HLOOKUP(X81,Feuil1!$C$1:$BL$10,3,FALSE) ->  | AD81: =T81-HLOOKUP(X81,Feuil1!$C$1:$BL$10,4,FALSE) ->  | AE81: =T81-HLOOKUP(X81,Feuil1!$C$1:$BL$10,5,FALSE) ->  | AF81: =T81-HLOOKUP(X81,Feuil1!$C$1:$BL$10,6,FALSE) ->  | AG81: =T81-HLOOKUP(X81,Feuil1!$C$1:$BL$10,7,FALSE) ->  | AH81: =T81-HLOOKUP(X81,Feuil1!$C$1:$BL$10,8,FALSE) ->  | AI81: =T81-HLOOKUP(X81,Feuil1!$C$1:$BL$10,9,FALSE) ->  | AJ81: =T81-HLOOKUP(X81,Feuil1!$C$1:$BL$10,10,FALSE) ->  | AQ81: =IF(AJ81>=0,$AJ$4,IF(AI81>=0,$AI$4,IF(AH81>=0,$AH$4,IF(AG81>=0,$AG$4,IF(AF81>=0,$AF$4,IF(AE81>=0,$AE$4,IF(AD81>=0,$AD$4,IF(AC81>=0,$AC$4,$AB$4)))))))) -> 
A82: F | B82: NE | C82: ALS | D82: 1 | E82: 238723 | F82: OTT | G82: Justine | H82: 1998 | I82: 63.75 | J82: SHC Haguenau | K82: F | L82: -64 | M82: 64 | N82: 67 | O82: =IF(H82="","",IF(MAXA(L82:N82)<=0,0,MAXA(L82:N82))) -> 67 | P82: 83 | Q82: -87 | R82: 87 | S82: =IF(H82="","",IF(MAXA(P82:R82)<=0,0,MAXA(P82:R82))) -> 87 | T82: =IF(H82="","",IF(OR(O82=0,S82=0),0,O82+S82)) -> 154 | U82: =T82-I82*2 -> 26.5 | V82: =IF(H82="","",AQ82) -> INTA + | W82: =IF(AJ82>=0,AJ82,IF(AI82>=0,AI82,IF(AH82>=0,AH82,IF(AG82>=0,AG82,IF(AF82>=0,AF82,IF(AE82>=0,AE82,IF(AD82>=0,AD82,IF(AC82>=0,AC82,AB82)))))))) -> 4 | X82: =IF(I82="","",IF(A82="H",IF(OR(H82="SEN",H82<1995),VLOOKUP(I82,Feuil1!$A$11:$G$29,6),IF(AND(H82>1994,H82<1998),VLOOKUP(I82,Feuil1!$A$11:$G$29,5),IF(AND(H82>1997,H82<2000),VLOOKUP(I82,Feuil1!$A$11:$G$29,4),IF(AND(H82>1999,H82<2002),VLOOKUP(I82,Feuil1!$A$11:$G$29,3),VLOOKUP(I82,Feuil1!$A$11:$G$29,2))))),IF(OR(H82="SEN",H82<1995),VLOOKUP(I82,Feuil1!$G$11:$L$25,6),IF(AND(H82>1994,H82<1998),VLOOKUP(I82,Feuil1!$G$11:$L$25,5),IF(AND(H82>1997,H82<2000),VLOOKUP(I82,Feuil1!$G$11:$L$25,4),IF(AND(H82>1999,H82<2002),VLOOKUP(I82,Feuil1!$G$11:$L$25,3),VLOOKUP(I82,Feuil1!$G$11:$L$25,2))))))) -> FC2 69 | Y82: =IF(I82="","",IF(A82="H",10^(0.794358141*LOG(I82/174.393)^2)*T82,IF(A82="F",10^(0.89726074*LOG(I82/148.026)^2)*T82,""))) -> 203.0583309 | AB82: =T82-HLOOKUP(X82,Feuil1!$C$1:$BL$10,2,FALSE) -> 94 | AC82: =T82-HLOOKUP(X82,Feuil1!$C$1:$BL$10,3,FALSE) -> 84 | AD82: =T82-HLOOKUP(X82,Feuil1!$C$1:$BL$10,4,FALSE) -> 74 | AE82: =T82-HLOOKUP(X82,Feuil1!$C$1:$BL$10,5,FALSE) -> 64 | AF82: =T82-HLOOKUP(X82,Feuil1!$C$1:$BL$10,6,FALSE) -> 49 | AG82: =T82-HLOOKUP(X82,Feuil1!$C$1:$BL$10,7,FALSE) -> 34 | AH82: =T82-HLOOKUP(X82,Feuil1!$C$1:$BL$10,8,FALSE) -> 19 | AI82: =T82-HLOOKUP(X82,Feuil1!$C$1:$BL$10,9,FALSE) -> 4 | AJ82: =T82-HLOOKUP(X82,Feuil1!$C$1:$BL$10,10,FALSE) -> -846 | AQ82: =IF(AJ82>=0,$AJ$4,IF(AI82>=0,$AI$4,IF(AH82>=0,$AH$4,IF(AG82>=0,$AG$4,IF(AF82>=0,$AF$4,IF(AE82>=0,$AE$4,IF(AD82>=0,$AD$4,IF(AC82>=0,$AC$4,$AB$4)))))))) -> INTA +
A83: F | B83: SEST | C83: CAZ | D83: 2 | E83: 362268 | F83: MAZOUZ | G83: Sophie | H83: 1998 | I83: 68.25 | J83: ASLDD TOULON | K83: F | L83: 42 | M83: 44 | N83: 47 | O83: 47 | P83: 61 | Q83: 64 | R83: 67 | S83: 67 | T83: 114 | U83: -22.5 | V83: FED + | W83: 9 | X83: =IF(I83="","",IF(A83="H",IF(OR(H83="SEN",H83<1995),VLOOKUP(I83,Feuil1!$A$11:$G$29,6),IF(AND(H83>1994,H83<1998),VLOOKUP(I83,Feuil1!$A$11:$G$29,5),IF(AND(H83>1997,H83<2000),VLOOKUP(I83,Feuil1!$A$11:$G$29,4),IF(AND(H83>1999,H83<2002),VLOOKUP(I83,Feuil1!$A$11:$G$29,3),VLOOKUP(I83,Feuil1!$A$11:$G$29,2))))),IF(OR(H83="SEN",H83<1995),VLOOKUP(I83,Feuil1!$G$11:$L$25,6),IF(AND(H83>1994,H83<1998),VLOOKUP(I83,Feuil1!$G$11:$L$25,5),IF(AND(H83>1997,H83<2000),VLOOKUP(I83,Feuil1!$G$11:$L$25,4),IF(AND(H83>1999,H83<2002),VLOOKUP(I83,Feuil1!$G$11:$L$25,3),VLOOKUP(I83,Feuil1!$G$11:$L$25,2))))))) -> FC2 69 | Y83: 143.9938537 | AB83: =T83-HLOOKUP(X83,Feuil1!$C$1:$BL$10,2,FALSE) -> 54 | AC83: =T83-HLOOKUP(X83,Feuil1!$C$1:$BL$10,3,FALSE) -> 44 | AD83: =T83-HLOOKUP(X83,Feuil1!$C$1:$BL$10,4,FALSE) -> 34 | AE83: =T83-HLOOKUP(X83,Feuil1!$C$1:$BL$10,5,FALSE) -> 24 | AF83: =T83-HLOOKUP(X83,Feuil1!$C$1:$BL$10,6,FALSE) -> 9 | AG83: =T83-HLOOKUP(X83,Feuil1!$C$1:$BL$10,7,FALSE) -> -6 | AH83: =T83-HLOOKUP(X83,Feuil1!$C$1:$BL$10,8,FALSE) -> -21 | AI83: =T83-HLOOKUP(X83,Feuil1!$C$1:$BL$10,9,FALSE) -> -36 | AJ83: =T83-HLOOKUP(X83,Feuil1!$C$1:$BL$10,10,FALSE) -> -886 | AQ83: FED +
A84: F | B84: NE | C84: CHA | D84: 3 | E84: 239747 | F84: VAUTARD | G84: Priscillia | H84: 1999 | I84: 67.6 | J84: Langres HM | K84: F | L84: 48 | M84: -50 | N84: 50 | O84: 50 | P84: 52 | Q84: 55 | R84: 58 | S84: 58 | T84: 108 | U84: -27.2 | V84: FED + | W84: 3 | X84: =IF(I84="","",IF(A84="H",IF(OR(H84="SEN",H84<1995),VLOOKUP(I84,Feuil1!$A$11:$G$29,6),IF(AND(H84>1994,H84<1998),VLOOKUP(I84,Feuil1!$A$11:$G$29,5),IF(AND(H84>1997,H84<2000),VLOOKUP(I84,Feuil1!$A$11:$G$29,4),IF(AND(H84>1999,H84<2002),VLOOKUP(I84,Feuil1!$A$11:$G$29,3),VLOOKUP(I84,Feuil1!$A$11:$G$29,2))))),IF(OR(H84="SEN",H84<1995),VLOOKUP(I84,Feuil1!$G$11:$L$25,6),IF(AND(H84>1994,H84<1998),VLOOKUP(I84,Feuil1!$G$11:$L$25,5),IF(AND(H84>1997,H84<2000),VLOOKUP(I84,Feuil1!$G$11:$L$25,4),IF(AND(H84>1999,H84<2002),VLOOKUP(I84,Feuil1!$G$11:$L$25,3),VLOOKUP(I84,Feuil1!$G$11:$L$25,2))))))) -> FC2 69 | Y84: 137.21007 | AB84: =T84-HLOOKUP(X84,Feuil1!$C$1:$BL$10,2,FALSE) -> 48 | AC84: =T84-HLOOKUP(X84,Feuil1!$C$1:$BL$10,3,FALSE) -> 38 | AD84: =T84-HLOOKUP(X84,Feuil1!$C$1:$BL$10,4,FALSE) -> 28 | AE84: =T84-HLOOKUP(X84,Feuil1!$C$1:$BL$10,5,FALSE) -> 18 | AF84: =T84-HLOOKUP(X84,Feuil1!$C$1:$BL$10,6,FALSE) -> 3 | AG84: =T84-HLOOKUP(X84,Feuil1!$C$1:$BL$10,7,FALSE) -> -12 | AH84: =T84-HLOOKUP(X84,Feuil1!$C$1:$BL$10,8,FALSE) -> -27 | AI84: =T84-HLOOKUP(X84,Feuil1!$C$1:$BL$10,9,FALSE) -> -42 | AJ84: =T84-HLOOKUP(X84,Feuil1!$C$1:$BL$10,10,FALSE) -> -892 | AQ84: FED +
A85: F | B85: NE | C85: ALS | D85: 4 | E85: 306518 | F85: BURST | G85: Justine | H85: 1998 | I85: 68.3 | J85: SR Obernai HM | K85: F | L85: 45 | M85: 48 | N85: 50 | O85: 50 | P85: 55 | Q85: -60 | R85: -60 | S85: 55 | T85: 105 | U85: -31.6 | V85: FED + | W85: 0 | X85: =IF(I85="","",IF(A85="H",IF(OR(H85="SEN",H85<1995),VLOOKUP(I85,Feuil1!$A$11:$G$29,6),IF(AND(H85>1994,H85<1998),VLOOKUP(I85,Feuil1!$A$11:$G$29,5),IF(AND(H85>1997,H85<2000),VLOOKUP(I85,Feuil1!$A$11:$G$29,4),IF(AND(H85>1999,H85<2002),VLOOKUP(I85,Feuil1!$A$11:$G$29,3),VLOOKUP(I85,Feuil1!$A$11:$G$29,2))))),IF(OR(H85="SEN",H85<1995),VLOOKUP(I85,Feuil1!$G$11:$L$25,6),IF(AND(H85>1994,H85<1998),VLOOKUP(I85,Feuil1!$G$11:$L$25,5),IF(AND(H85>1997,H85<2000),VLOOKUP(I85,Feuil1!$G$11:$L$25,4),IF(AND(H85>1999,H85<2002),VLOOKUP(I85,Feuil1!$G$11:$L$25,3),VLOOKUP(I85,Feuil1!$G$11:$L$25,2))))))) -> FC2 69 | Y85: 132.5673543 | AB85: =T85-HLOOKUP(X85,Feuil1!$C$1:$BL$10,2,FALSE) -> 45 | AC85: =T85-HLOOKUP(X85,Feuil1!$C$1:$BL$10,3,FALSE) -> 35 | AD85: =T85-HLOOKUP(X85,Feuil1!$C$1:$BL$10,4,FALSE) -> 25 | AE85: =T85-HLOOKUP(X85,Feuil1!$C$1:$BL$10,5,FALSE) -> 15 | AF85: =T85-HLOOKUP(X85,Feuil1!$C$1:$BL$10,6,FALSE) -> 0 | AG85: =T85-HLOOKUP(X85,Feuil1!$C$1:$BL$10,7,FALSE) -> -15 | AH85: =T85-HLOOKUP(X85,Feuil1!$C$1:$BL$10,8,FALSE) -> -30 | AI85: =T85-HLOOKUP(X85,Feuil1!$C$1:$BL$10,9,FALSE) -> -45 | AJ85: =T85-HLOOKUP(X85,Feuil1!$C$1:$BL$10,10,FALSE) -> -895 | AQ85: FED +
A86: F | B86: SEST | C86: CAZ | D86: 5 | E86: 363004 | F86: PEUGNIEZ | G86: Clea | H86: 1998 | I86: 65.1 | J86: ASLDD TOULON | K86: F | L86: 41 | M86: -43 | N86: 44 | O86: 44 | P86: 55 | Q86: -58 | R86: 59 | S86: 59 | T86: 103 | U86: -27.2 | V86: IRG + | W86: 13 | X86: =IF(I86="","",IF(A86="H",IF(OR(H86="SEN",H86<1995),VLOOKUP(I86,Feuil1!$A$11:$G$29,6),IF(AND(H86>1994,H86<1998),VLOOKUP(I86,Feuil1!$A$11:$G$29,5),IF(AND(H86>1997,H86<2000),VLOOKUP(I86,Feuil1!$A$11:$G$29,4),IF(AND(H86>1999,H86<2002),VLOOKUP(I86,Feuil1!$A$11:$G$29,3),VLOOKUP(I86,Feuil1!$A$11:$G$29,2))))),IF(OR(H86="SEN",H86<1995),VLOOKUP(I86,Feuil1!$G$11:$L$25,6),IF(AND(H86>1994,H86<1998),VLOOKUP(I86,Feuil1!$G$11:$L$25,5),IF(AND(H86>1997,H86<2000),VLOOKUP(I86,Feuil1!$G$11:$L$25,4),IF(AND(H86>1999,H86<2002),VLOOKUP(I86,Feuil1!$G$11:$L$25,3),VLOOKUP(I86,Feuil1!$G$11:$L$25,2))))))) -> FC2 69 | Y86: 133.9789577 | AB86: =T86-HLOOKUP(X86,Feuil1!$C$1:$BL$10,2,FALSE) -> 43 | AC86: =T86-HLOOKUP(X86,Feuil1!$C$1:$BL$10,3,FALSE) -> 33 | AD86: =T86-HLOOKUP(X86,Feuil1!$C$1:$BL$10,4,FALSE) -> 23 | AE86: =T86-HLOOKUP(X86,Feuil1!$C$1:$BL$10,5,FALSE) -> 13 | AF86: =T86-HLOOKUP(X86,Feuil1!$C$1:$BL$10,6,FALSE) -> -2 | AG86: =T86-HLOOKUP(X86,Feuil1!$C$1:$BL$10,7,FALSE) -> -17 | AH86: =T86-HLOOKUP(X86,Feuil1!$C$1:$BL$10,8,FALSE) -> -32 | AI86: =T86-HLOOKUP(X86,Feuil1!$C$1:$BL$10,9,FALSE) -> -47 | AJ86: =T86-HLOOKUP(X86,Feuil1!$C$1:$BL$10,10,FALSE) -> -897 | AQ86: IRG +
A87: F | B87: SEST | C87: CAZ | D87: 6 | E87: 365254 | F87: GAUJARD | G87: Marine | H87: 1998 | I87: 65.3 | J87: ASLDD TOULON | K87: F | L87: 42 | M87: 45 | N87: -47 | O87: 45 | P87: 54 | Q87: 57 | R87: -60 | S87: 57 | T87: 102 | U87: -28.6 | V87: IRG + | W87: 12 | X87: =IF(I87="","",IF(A87="H",IF(OR(H87="SEN",H87<1995),VLOOKUP(I87,Feuil1!$A$11:$G$29,6),IF(AND(H87>1994,H87<1998),VLOOKUP(I87,Feuil1!$A$11:$G$29,5),IF(AND(H87>1997,H87<2000),VLOOKUP(I87,Feuil1!$A$11:$G$29,4),IF(AND(H87>1999,H87<2002),VLOOKUP(I87,Feuil1!$A$11:$G$29,3),VLOOKUP(I87,Feuil1!$A$11:$G$29,2))))),IF(OR(H87="SEN",H87<1995),VLOOKUP(I87,Feuil1!$G$11:$L$25,6),IF(AND(H87>1994,H87<1998),VLOOKUP(I87,Feuil1!$G$11:$L$25,5),IF(AND(H87>1997,H87<2000),VLOOKUP(I87,Feuil1!$G$11:$L$25,4),IF(AND(H87>1999,H87<2002),VLOOKUP(I87,Feuil1!$G$11:$L$25,3),VLOOKUP(I87,Feuil1!$G$11:$L$25,2))))))) -> FC2 69 | Y87: 132.4183749 | AB87: =T87-HLOOKUP(X87,Feuil1!$C$1:$BL$10,2,FALSE) -> 42 | AC87: =T87-HLOOKUP(X87,Feuil1!$C$1:$BL$10,3,FALSE) -> 32 | AD87: =T87-HLOOKUP(X87,Feuil1!$C$1:$BL$10,4,FALSE) -> 22 | AE87: =T87-HLOOKUP(X87,Feuil1!$C$1:$BL$10,5,FALSE) -> 12 | AF87: =T87-HLOOKUP(X87,Feuil1!$C$1:$BL$10,6,FALSE) -> -3 | AG87: =T87-HLOOKUP(X87,Feuil1!$C$1:$BL$10,7,FALSE) -> -18 | AH87: =T87-HLOOKUP(X87,Feuil1!$C$1:$BL$10,8,FALSE) -> -33 | AI87: =T87-HLOOKUP(X87,Feuil1!$C$1:$BL$10,9,FALSE) -> -48 | AJ87: =T87-HLOOKUP(X87,Feuil1!$C$1:$BL$10,10,FALSE) -> -898 | AQ87: IRG +
A88: F | B88: N | C88: PIC | D88: 7 | E88: 367780 | F88: DENAND | G88: Gwendoline | H88: 1998 | I88: 63.1 | J88: La Ferté Milon CMHM | K88: F | L88: 30 | M88: 33 | N88: 35 | O88: 35 | P88: 40 | Q88: 45 | R88: -47 | S88: 45 | T88: 80 | U88: -46.2 | V88: REG + | W88: 0 | X88: =IF(I88="","",IF(A88="H",IF(OR(H88="SEN",H88<1995),VLOOKUP(I88,Feuil1!$A$11:$G$29,6),IF(AND(H88>1994,H88<1998),VLOOKUP(I88,Feuil1!$A$11:$G$29,5),IF(AND(H88>1997,H88<2000),VLOOKUP(I88,Feuil1!$A$11:$G$29,4),IF(AND(H88>1999,H88<2002),VLOOKUP(I88,Feuil1!$A$11:$G$29,3),VLOOKUP(I88,Feuil1!$A$11:$G$29,2))))),IF(OR(H88="SEN",H88<1995),VLOOKUP(I88,Feuil1!$G$11:$L$25,6),IF(AND(H88>1994,H88<1998),VLOOKUP(I88,Feuil1!$G$11:$L$25,5),IF(AND(H88>1997,H88<2000),VLOOKUP(I88,Feuil1!$G$11:$L$25,4),IF(AND(H88>1999,H88<2002),VLOOKUP(I88,Feuil1!$G$11:$L$25,3),VLOOKUP(I88,Feuil1!$G$11:$L$25,2))))))) -> FC2 69 | Y88: 106.2013407 | AB88: =T88-HLOOKUP(X88,Feuil1!$C$1:$BL$10,2,FALSE) -> 20 | AC88: =T88-HLOOKUP(X88,Feuil1!$C$1:$BL$10,3,FALSE) -> 10 | AD88: =T88-HLOOKUP(X88,Feuil1!$C$1:$BL$10,4,FALSE) -> 0 | AE88: =T88-HLOOKUP(X88,Feuil1!$C$1:$BL$10,5,FALSE) -> -10 | AF88: =T88-HLOOKUP(X88,Feuil1!$C$1:$BL$10,6,FALSE) -> -25 | AG88: =T88-HLOOKUP(X88,Feuil1!$C$1:$BL$10,7,FALSE) -> -40 | AH88: =T88-HLOOKUP(X88,Feuil1!$C$1:$BL$10,8,FALSE) -> -55 | AI88: =T88-HLOOKUP(X88,Feuil1!$C$1:$BL$10,9,FALSE) -> -70 | AJ88: =T88-HLOOKUP(X88,Feuil1!$C$1:$BL$10,10,FALSE) -> -920 | AQ88: REG +
A89: F | B89: NE | C89: FCO | D89: 8 | E89: 370228 | F89: PERRAUT | G89: Fanny | H89: 1999 | I89: 66 | J89: CH Luxeuil | K89: F | L89: 25 | M89: 28 | N89: 32 | O89: 32 | P89: 35 | Q89: 39 | R89: 42 | S89: 42 | T89: 74 | U89: -58 | V89: DEP + | W89: 4 | X89: =IF(I89="","",IF(A89="H",IF(OR(H89="SEN",H89<1995),VLOOKUP(I89,Feuil1!$A$11:$G$29,6),IF(AND(H89>1994,H89<1998),VLOOKUP(I89,Feuil1!$A$11:$G$29,5),IF(AND(H89>1997,H89<2000),VLOOKUP(I89,Feuil1!$A$11:$G$29,4),IF(AND(H89>1999,H89<2002),VLOOKUP(I89,Feuil1!$A$11:$G$29,3),VLOOKUP(I89,Feuil1!$A$11:$G$29,2))))),IF(OR(H89="SEN",H89<1995),VLOOKUP(I89,Feuil1!$G$11:$L$25,6),IF(AND(H89>1994,H89<1998),VLOOKUP(I89,Feuil1!$G$11:$L$25,5),IF(AND(H89>1997,H89<2000),VLOOKUP(I89,Feuil1!$G$11:$L$25,4),IF(AND(H89>1999,H89<2002),VLOOKUP(I89,Feuil1!$G$11:$L$25,3),VLOOKUP(I89,Feuil1!$G$11:$L$25,2))))))) -> FC2 69 | Y89: 95.4213302 | AB89: =T89-HLOOKUP(X89,Feuil1!$C$1:$BL$10,2,FALSE) -> 14 | AC89: =T89-HLOOKUP(X89,Feuil1!$C$1:$BL$10,3,FALSE) -> 4 | AD89: =T89-HLOOKUP(X89,Feuil1!$C$1:$BL$10,4,FALSE) -> -6 | AE89: =T89-HLOOKUP(X89,Feuil1!$C$1:$BL$10,5,FALSE) -> -16 | AF89: =T89-HLOOKUP(X89,Feuil1!$C$1:$BL$10,6,FALSE) -> -31 | AG89: =T89-HLOOKUP(X89,Feuil1!$C$1:$BL$10,7,FALSE) -> -46 | AH89: =T89-HLOOKUP(X89,Feuil1!$C$1:$BL$10,8,FALSE) -> -61 | AI89: =T89-HLOOKUP(X89,Feuil1!$C$1:$BL$10,9,FALSE) -> -76 | AJ89: =T89-HLOOKUP(X89,Feuil1!$C$1:$BL$10,10,FALSE) -> -926 | AQ89: DEP +
A90: F | B90: SO | C90: MPY | D90: 9 | E90: 365941 | F90: BRANCO | G90: Margaux | H90: 1999 | I90: 66.5 | J90: MONTAUBAN HC | K90: F | L90: 24 | M90: 27 | N90: 30 | O90: 30 | P90: 34 | Q90: 37 | R90: 40 | S90: 40 | T90: 70 | U90: -63 | V90: DEP + | W90: 0 | X90: =IF(I90="","",IF(A90="H",IF(OR(H90="SEN",H90<1995),VLOOKUP(I90,Feuil1!$A$11:$G$29,6),IF(AND(H90>1994,H90<1998),VLOOKUP(I90,Feuil1!$A$11:$G$29,5),IF(AND(H90>1997,H90<2000),VLOOKUP(I90,Feuil1!$A$11:$G$29,4),IF(AND(H90>1999,H90<2002),VLOOKUP(I90,Feuil1!$A$11:$G$29,3),VLOOKUP(I90,Feuil1!$A$11:$G$29,2))))),IF(OR(H90="SEN",H90<1995),VLOOKUP(I90,Feuil1!$G$11:$L$25,6),IF(AND(H90>1994,H90<1998),VLOOKUP(I90,Feuil1!$G$11:$L$25,5),IF(AND(H90>1997,H90<2000),VLOOKUP(I90,Feuil1!$G$11:$L$25,4),IF(AND(H90>1999,H90<2002),VLOOKUP(I90,Feuil1!$G$11:$L$25,3),VLOOKUP(I90,Feuil1!$G$11:$L$25,2))))))) -> FC2 69 | Y90: 89.83758805 | AB90: =T90-HLOOKUP(X90,Feuil1!$C$1:$BL$10,2,FALSE) -> 10 | AC90: =T90-HLOOKUP(X90,Feuil1!$C$1:$BL$10,3,FALSE) -> 0 | AD90: =T90-HLOOKUP(X90,Feuil1!$C$1:$BL$10,4,FALSE) -> -10 | AE90: =T90-HLOOKUP(X90,Feuil1!$C$1:$BL$10,5,FALSE) -> -20 | AF90: =T90-HLOOKUP(X90,Feuil1!$C$1:$BL$10,6,FALSE) -> -35 | AG90: =T90-HLOOKUP(X90,Feuil1!$C$1:$BL$10,7,FALSE) -> -50 | AH90: =T90-HLOOKUP(X90,Feuil1!$C$1:$BL$10,8,FALSE) -> -65 | AI90: =T90-HLOOKUP(X90,Feuil1!$C$1:$BL$10,9,FALSE) -> -80 | AJ90: =T90-HLOOKUP(X90,Feuil1!$C$1:$BL$10,10,FALSE) -> -930 | AQ90: DEP +
A91: F | B91: CO | C91: BNO | D91: 10 | E91: 391674 | F91: KADJAIEV | G91: LARA | H91: 1999 | I91: 67.6 | J91: Stade St Lois | K91: F | L91: 20 | M91: 25 | N91: -30 | O91: 25 | P91: 30 | Q91: -35 | R91: -35 | S91: 30 | T91: 55 | U91: -80.2 | V91: DEB | W91: -5 | X91: =IF(I91="","",IF(A91="H",IF(OR(H91="SEN",H91<1995),VLOOKUP(I91,Feuil1!$A$11:$G$29,6),IF(AND(H91>1994,H91<1998),VLOOKUP(I91,Feuil1!$A$11:$G$29,5),IF(AND(H91>1997,H91<2000),VLOOKUP(I91,Feuil1!$A$11:$G$29,4),IF(AND(H91>1999,H91<2002),VLOOKUP(I91,Feuil1!$A$11:$G$29,3),VLOOKUP(I91,Feuil1!$A$11:$G$29,2))))),IF(OR(H91="SEN",H91<1995),VLOOKUP(I91,Feuil1!$G$11:$L$25,6),IF(AND(H91>1994,H91<1998),VLOOKUP(I91,Feuil1!$G$11:$L$25,5),IF(AND(H91>1997,H91<2000),VLOOKUP(I91,Feuil1!$G$11:$L$25,4),IF(AND(H91>1999,H91<2002),VLOOKUP(I91,Feuil1!$G$11:$L$25,3),VLOOKUP(I91,Feuil1!$G$11:$L$25,2))))))) -> FC2 69 | Y91: 69.87549861 | AB91: =T91-HLOOKUP(X91,Feuil1!$C$1:$BL$10,2,FALSE) -> -5 | AC91: =T91-HLOOKUP(X91,Feuil1!$C$1:$BL$10,3,FALSE) -> -15 | AD91: =T91-HLOOKUP(X91,Feuil1!$C$1:$BL$10,4,FALSE) -> -25 | AE91: =T91-HLOOKUP(X91,Feuil1!$C$1:$BL$10,5,FALSE) -> -35 | AF91: =T91-HLOOKUP(X91,Feuil1!$C$1:$BL$10,6,FALSE) -> -50 | AG91: =T91-HLOOKUP(X91,Feuil1!$C$1:$BL$10,7,FALSE) -> -65 | AH91: =T91-HLOOKUP(X91,Feuil1!$C$1:$BL$10,8,FALSE) -> -80 | AI91: =T91-HLOOKUP(X91,Feuil1!$C$1:$BL$10,9,FALSE) -> -95 | AJ91: =T91-HLOOKUP(X91,Feuil1!$C$1:$BL$10,10,FALSE) -> -945 | AQ91: DEB
AB92: =T92-HLOOKUP(X92,Feuil1!$C$1:$BL$10,2,FALSE) ->  | AC92: =T92-HLOOKUP(X92,Feuil1!$C$1:$BL$10,3,FALSE) ->  | AD92: =T92-HLOOKUP(X92,Feuil1!$C$1:$BL$10,4,FALSE) ->  | AE92: =T92-HLOOKUP(X92,Feuil1!$C$1:$BL$10,5,FALSE) ->  | AF92: =T92-HLOOKUP(X92,Feuil1!$C$1:$BL$10,6,FALSE) ->  | AG92: =T92-HLOOKUP(X92,Feuil1!$C$1:$BL$10,7,FALSE) ->  | AH92: =T92-HLOOKUP(X92,Feuil1!$C$1:$BL$10,8,FALSE) ->  | AI92: =T92-HLOOKUP(X92,Feuil1!$C$1:$BL$10,9,FALSE) ->  | AJ92: =T92-HLOOKUP(X92,Feuil1!$C$1:$BL$10,10,FALSE) ->  | AQ92: =IF(AJ92>=0,$AJ$4,IF(AI92>=0,$AI$4,IF(AH92>=0,$AH$4,IF(AG92>=0,$AG$4,IF(AF92>=0,$AF$4,IF(AE92>=0,$AE$4,IF(AD92>=0,$AD$4,IF(AC92>=0,$AC$4,$AB$4)))))))) -> 
A93: F | B93: CO | C93: BRE | D93: 1 | E93: 210931 | F93: BACCEI | G93: Marilou | H93: 1998 | I93: 80.1 | J93: CHM Plouhinec PR | K93: F | L93: 50 | M93: 53 | N93: -56 | O93: =IF(H93="","",IF(MAXA(L93:N93)<=0,0,MAXA(L93:N93))) -> 53 | P93: 58 | Q93: 61 | R93: 64 | S93: =IF(H93="","",IF(MAXA(P93:R93)<=0,0,MAXA(P93:R93))) -> 64 | T93: =IF(H93="","",IF(OR(O93=0,S93=0),0,O93+S93)) -> 117 | U93: =T93-I93*2 -> -43.2 | V93: =IF(H93="","",AQ93) -> FED + | W93: =IF(AJ93>=0,AJ93,IF(AI93>=0,AI93,IF(AH93>=0,AH93,IF(AG93>=0,AG93,IF(AF93>=0,AF93,IF(AE93>=0,AE93,IF(AD93>=0,AD93,IF(AC93>=0,AC93,AB93)))))))) -> 2 | X93: =IF(I93="","",IF(A93="H",IF(OR(H93="SEN",H93<1995),VLOOKUP(I93,Feuil1!$A$11:$G$29,6),IF(AND(H93>1994,H93<1998),VLOOKUP(I93,Feuil1!$A$11:$G$29,5),IF(AND(H93>1997,H93<2000),VLOOKUP(I93,Feuil1!$A$11:$G$29,4),IF(AND(H93>1999,H93<2002),VLOOKUP(I93,Feuil1!$A$11:$G$29,3),VLOOKUP(I93,Feuil1!$A$11:$G$29,2))))),IF(OR(H93="SEN",H93<1995),VLOOKUP(I93,Feuil1!$G$11:$L$25,6),IF(AND(H93>1994,H93<1998),VLOOKUP(I93,Feuil1!$G$11:$L$25,5),IF(AND(H93>1997,H93<2000),VLOOKUP(I93,Feuil1!$G$11:$L$25,4),IF(AND(H93>1999,H93<2002),VLOOKUP(I93,Feuil1!$G$11:$L$25,3),VLOOKUP(I93,Feuil1!$G$11:$L$25,2))))))) -> FC2 +69 | Y93: =IF(I93="","",IF(A93="H",10^(0.794358141*LOG(I93/174.393)^2)*T93,IF(A93="F",10^(0.89726074*LOG(I93/148.026)^2)*T93,""))) -> 135.5219521 | AB93: =T93-HLOOKUP(X93,Feuil1!$C$1:$BL$10,2,FALSE) -> 47 | AC93: =T93-HLOOKUP(X93,Feuil1!$C$1:$BL$10,3,FALSE) -> 37 | AD93: =T93-HLOOKUP(X93,Feuil1!$C$1:$BL$10,4,FALSE) -> 22 | AE93: =T93-HLOOKUP(X93,Feuil1!$C$1:$BL$10,5,FALSE) -> 12 | AF93: =T93-HLOOKUP(X93,Feuil1!$C$1:$BL$10,6,FALSE) -> 2 | AG93: =T93-HLOOKUP(X93,Feuil1!$C$1:$BL$10,7,FALSE) -> -13 | AH93: =T93-HLOOKUP(X93,Feuil1!$C$1:$BL$10,8,FALSE) -> -28 | AI93: =T93-HLOOKUP(X93,Feuil1!$C$1:$BL$10,9,FALSE) -> -43 | AJ93: =T93-HLOOKUP(X93,Feuil1!$C$1:$BL$10,10,FALSE) -> -883 | AQ93: =IF(AJ93>=0,$AJ$4,IF(AI93>=0,$AI$4,IF(AH93>=0,$AH$4,IF(AG93>=0,$AG$4,IF(AF93>=0,$AF$4,IF(AE93>=0,$AE$4,IF(AD93>=0,$AD$4,IF(AC93>=0,$AC$4,$AB$4)))))))) -> FED +
A94: F | B94: N | C94: NPC | D94: 2 | E94: 362261 | F94: GODEFROIDT | G94: Charline | H94: 1999 | I94: 82.1 | J94: CHCD COMINES | K94: F | L94: 46 | M94: 49 | N94: 51 | O94: 51 | P94: 58 | Q94: -61 | R94: 61 | S94: 61 | T94: 112 | U94: -52.2 | V94: IRG + | W94: 7 | X94: =IF(I94="","",IF(A94="H",IF(OR(H94="SEN",H94<1995),VLOOKUP(I94,Feuil1!$A$11:$G$29,6),IF(AND(H94>1994,H94<1998),VLOOKUP(I94,Feuil1!$A$11:$G$29,5),IF(AND(H94>1997,H94<2000),VLOOKUP(I94,Feuil1!$A$11:$G$29,4),IF(AND(H94>1999,H94<2002),VLOOKUP(I94,Feuil1!$A$11:$G$29,3),VLOOKUP(I94,Feuil1!$A$11:$G$29,2))))),IF(OR(H94="SEN",H94<1995),VLOOKUP(I94,Feuil1!$G$11:$L$25,6),IF(AND(H94>1994,H94<1998),VLOOKUP(I94,Feuil1!$G$11:$L$25,5),IF(AND(H94>1997,H94<2000),VLOOKUP(I94,Feuil1!$G$11:$L$25,4),IF(AND(H94>1999,H94<2002),VLOOKUP(I94,Feuil1!$G$11:$L$25,3),VLOOKUP(I94,Feuil1!$G$11:$L$25,2))))))) -> FC2 +69 | Y94: 128.2385312 | AB94: =T94-HLOOKUP(X94,Feuil1!$C$1:$BL$10,2,FALSE) -> 42 | AC94: =T94-HLOOKUP(X94,Feuil1!$C$1:$BL$10,3,FALSE) -> 32 | AD94: =T94-HLOOKUP(X94,Feuil1!$C$1:$BL$10,4,FALSE) -> 17 | AE94: =T94-HLOOKUP(X94,Feuil1!$C$1:$BL$10,5,FALSE) -> 7 | AF94: =T94-HLOOKUP(X94,Feuil1!$C$1:$BL$10,6,FALSE) -> -3 | AG94: =T94-HLOOKUP(X94,Feuil1!$C$1:$BL$10,7,FALSE) -> -18 | AH94: =T94-HLOOKUP(X94,Feuil1!$C$1:$BL$10,8,FALSE) -> -33 | AI94: =T94-HLOOKUP(X94,Feuil1!$C$1:$BL$10,9,FALSE) -> -48 | AJ94: =T94-HLOOKUP(X94,Feuil1!$C$1:$BL$10,10,FALSE) -> -888 | AQ94: IRG +
A95: F | B95: NE | C95: CHA | D95: 3 | E95: 239747 | F95: VAUTARD | G95: Priscillia | H95: 1999 | I95: 69.3 | J95: Langres HM | K95: F | L95: 48 | M95: -51 | N95: 51 | O95: 51 | P95: 53 | Q95: 57 | R95: 60 | S95: 60 | T95: 111 | U95: -27.6 | V95: IRG + | W95: 6 | X95: =IF(I95="","",IF(A95="H",IF(OR(H95="SEN",H95<1995),VLOOKUP(I95,Feuil1!$A$11:$G$29,6),IF(AND(H95>1994,H95<1998),VLOOKUP(I95,Feuil1!$A$11:$G$29,5),IF(AND(H95>1997,H95<2000),VLOOKUP(I95,Feuil1!$A$11:$G$29,4),IF(AND(H95>1999,H95<2002),VLOOKUP(I95,Feuil1!$A$11:$G$29,3),VLOOKUP(I95,Feuil1!$A$11:$G$29,2))))),IF(OR(H95="SEN",H95<1995),VLOOKUP(I95,Feuil1!$G$11:$L$25,6),IF(AND(H95>1994,H95<1998),VLOOKUP(I95,Feuil1!$G$11:$L$25,5),IF(AND(H95>1997,H95<2000),VLOOKUP(I95,Feuil1!$G$11:$L$25,4),IF(AND(H95>1999,H95<2002),VLOOKUP(I95,Feuil1!$G$11:$L$25,3),VLOOKUP(I95,Feuil1!$G$11:$L$25,2))))))) -> FC2 +69 | Y95: 138.9315116 | AB95: =T95-HLOOKUP(X95,Feuil1!$C$1:$BL$10,2,FALSE) -> 41 | AC95: =T95-HLOOKUP(X95,Feuil1!$C$1:$BL$10,3,FALSE) -> 31 | AD95: =T95-HLOOKUP(X95,Feuil1!$C$1:$BL$10,4,FALSE) -> 16 | AE95: =T95-HLOOKUP(X95,Feuil1!$C$1:$BL$10,5,FALSE) -> 6 | AF95: =T95-HLOOKUP(X95,Feuil1!$C$1:$BL$10,6,FALSE) -> -4 | AG95: =T95-HLOOKUP(X95,Feuil1!$C$1:$BL$10,7,FALSE) -> -19 | AH95: =T95-HLOOKUP(X95,Feuil1!$C$1:$BL$10,8,FALSE) -> -34 | AI95: =T95-HLOOKUP(X95,Feuil1!$C$1:$BL$10,9,FALSE) -> -49 | AJ95: =T95-HLOOKUP(X95,Feuil1!$C$1:$BL$10,10,FALSE) -> -889 | AQ95: IRG +
A96: F | B96: NE | C96: ALS | D96: 4 | E96: 306518 | F96: BURST | G96: Justine | H96: 1998 | I96: 70.1 | J96: SR Obernai HM | K96: F | L96: 43 | M96: -46 | N96: 46 | O96: 46 | P96: 52 | Q96: 56 | R96: 60 | S96: 60 | T96: 106 | U96: -34.2 | V96: IRG + | W96: 1 | X96: =IF(I96="","",IF(A96="H",IF(OR(H96="SEN",H96<1995),VLOOKUP(I96,Feuil1!$A$11:$G$29,6),IF(AND(H96>1994,H96<1998),VLOOKUP(I96,Feuil1!$A$11:$G$29,5),IF(AND(H96>1997,H96<2000),VLOOKUP(I96,Feuil1!$A$11:$G$29,4),IF(AND(H96>1999,H96<2002),VLOOKUP(I96,Feuil1!$A$11:$G$29,3),VLOOKUP(I96,Feuil1!$A$11:$G$29,2))))),IF(OR(H96="SEN",H96<1995),VLOOKUP(I96,Feuil1!$G$11:$L$25,6),IF(AND(H96>1994,H96<1998),VLOOKUP(I96,Feuil1!$G$11:$L$25,5),IF(AND(H96>1997,H96<2000),VLOOKUP(I96,Feuil1!$G$11:$L$25,4),IF(AND(H96>1999,H96<2002),VLOOKUP(I96,Feuil1!$G$11:$L$25,3),VLOOKUP(I96,Feuil1!$G$11:$L$25,2))))))) -> FC2 +69 | Y96: 131.7824353 | AB96: =T96-HLOOKUP(X96,Feuil1!$C$1:$BL$10,2,FALSE) -> 36 | AC96: =T96-HLOOKUP(X96,Feuil1!$C$1:$BL$10,3,FALSE) -> 26 | AD96: =T96-HLOOKUP(X96,Feuil1!$C$1:$BL$10,4,FALSE) -> 11 | AE96: =T96-HLOOKUP(X96,Feuil1!$C$1:$BL$10,5,FALSE) -> 1 | AF96: =T96-HLOOKUP(X96,Feuil1!$C$1:$BL$10,6,FALSE) -> -9 | AG96: =T96-HLOOKUP(X96,Feuil1!$C$1:$BL$10,7,FALSE) -> -24 | AH96: =T96-HLOOKUP(X96,Feuil1!$C$1:$BL$10,8,FALSE) -> -39 | AI96: =T96-HLOOKUP(X96,Feuil1!$C$1:$BL$10,9,FALSE) -> -54 | AJ96: =T96-HLOOKUP(X96,Feuil1!$C$1:$BL$10,10,FALSE) -> -894 | AQ96: IRG +
A97: F | B97: N | C97: NPC | D97: 5 | E97: 191850 | F97: GONZALES | G97: Naomi | H97: 1998 | I97: 71.6 | J97: CHCD COMINES | K97: F | L97: 33 | M97: 35 | N97: 37 | O97: 37 | P97: 45 | Q97: -48 | R97: 48 | S97: 48 | T97: 85 | U97: -58.2 | V97: DEP + | W97: 5 | X97: =IF(I97="","",IF(A97="H",IF(OR(H97="SEN",H97<1995),VLOOKUP(I97,Feuil1!$A$11:$G$29,6),IF(AND(H97>1994,H97<1998),VLOOKUP(I97,Feuil1!$A$11:$G$29,5),IF(AND(H97>1997,H97<2000),VLOOKUP(I97,Feuil1!$A$11:$G$29,4),IF(AND(H97>1999,H97<2002),VLOOKUP(I97,Feuil1!$A$11:$G$29,3),VLOOKUP(I97,Feuil1!$A$11:$G$29,2))))),IF(OR(H97="SEN",H97<1995),VLOOKUP(I97,Feuil1!$G$11:$L$25,6),IF(AND(H97>1994,H97<1998),VLOOKUP(I97,Feuil1!$G$11:$L$25,5),IF(AND(H97>1997,H97<2000),VLOOKUP(I97,Feuil1!$G$11:$L$25,4),IF(AND(H97>1999,H97<2002),VLOOKUP(I97,Feuil1!$G$11:$L$25,3),VLOOKUP(I97,Feuil1!$G$11:$L$25,2))))))) -> FC2 +69 | Y97: 104.39748 | AB97: =T97-HLOOKUP(X97,Feuil1!$C$1:$BL$10,2,FALSE) -> 15 | AC97: =T97-HLOOKUP(X97,Feuil1!$C$1:$BL$10,3,FALSE) -> 5 | AD97: =T97-HLOOKUP(X97,Feuil1!$C$1:$BL$10,4,FALSE) -> -10 | AE97: =T97-HLOOKUP(X97,Feuil1!$C$1:$BL$10,5,FALSE) -> -20 | AF97: =T97-HLOOKUP(X97,Feuil1!$C$1:$BL$10,6,FALSE) -> -30 | AG97: =T97-HLOOKUP(X97,Feuil1!$C$1:$BL$10,7,FALSE) -> -45 | AH97: =T97-HLOOKUP(X97,Feuil1!$C$1:$BL$10,8,FALSE) -> -60 | AI97: =T97-HLOOKUP(X97,Feuil1!$C$1:$BL$10,9,FALSE) -> -75 | AJ97: =T97-HLOOKUP(X97,Feuil1!$C$1:$BL$10,10,FALSE) -> -915 | AQ97: DEP +
A98: F | B98: DOM | C98: GUA | D98: 6 | E98: 367888 | F98: BOUDINE | G98: Rémyka | H98: 1998 | I98: 75 | J98: AHCS/Pointois | K98: F | L98: 20 | M98: 25 | N98: 27 | O98: 27 | P98: 30 | Q98: 32 | R98: -35 | S98: 32 | T98: 59 | U98: -91 | V98: DEB | W98: -11 | X98: =IF(I98="","",IF(A98="H",IF(OR(H98="SEN",H98<1995),VLOOKUP(I98,Feuil1!$A$11:$G$29,6),IF(AND(H98>1994,H98<1998),VLOOKUP(I98,Feuil1!$A$11:$G$29,5),IF(AND(H98>1997,H98<2000),VLOOKUP(I98,Feuil1!$A$11:$G$29,4),IF(AND(H98>1999,H98<2002),VLOOKUP(I98,Feuil1!$A$11:$G$29,3),VLOOKUP(I98,Feuil1!$A$11:$G$29,2))))),IF(OR(H98="SEN",H98<1995),VLOOKUP(I98,Feuil1!$G$11:$L$25,6),IF(AND(H98>1994,H98<1998),VLOOKUP(I98,Feuil1!$G$11:$L$25,5),IF(AND(H98>1997,H98<2000),VLOOKUP(I98,Feuil1!$G$11:$L$25,4),IF(AND(H98>1999,H98<2002),VLOOKUP(I98,Feuil1!$G$11:$L$25,3),VLOOKUP(I98,Feuil1!$G$11:$L$25,2))))))) -> FC2 +69 | Y98: 70.64520636 | AB98: =T98-HLOOKUP(X98,Feuil1!$C$1:$BL$10,2,FALSE) -> -11 | AC98: =T98-HLOOKUP(X98,Feuil1!$C$1:$BL$10,3,FALSE) -> -21 | AD98: =T98-HLOOKUP(X98,Feuil1!$C$1:$BL$10,4,FALSE) -> -36 | AE98: =T98-HLOOKUP(X98,Feuil1!$C$1:$BL$10,5,FALSE) -> -46 | AF98: =T98-HLOOKUP(X98,Feuil1!$C$1:$BL$10,6,FALSE) -> -56 | AG98: =T98-HLOOKUP(X98,Feuil1!$C$1:$BL$10,7,FALSE) -> -71 | AH98: =T98-HLOOKUP(X98,Feuil1!$C$1:$BL$10,8,FALSE) -> -86 | AI98: =T98-HLOOKUP(X98,Feuil1!$C$1:$BL$10,9,FALSE) -> -101 | AJ98: =T98-HLOOKUP(X98,Feuil1!$C$1:$BL$10,10,FALSE) -> -941 | AQ98: DEB
A99: F | B99: SEST | C99: RAL | D99: 7 | E99: 367662 | F99: BRUNET | G99: Charlie | H99: 1998 | I99: 71.9 | J99: SAINT MARCELLIN | K99: F | L99: 23 | M99: -26 | N99: 26 | O99: 26 | P99: 28 | Q99: 30 | R99: 32 | S99: 32 | T99: 58 | U99: -85.8 | V99: DEB | W99: -12 | X99: =IF(I99="","",IF(A99="H",IF(OR(H99="SEN",H99<1995),VLOOKUP(I99,Feuil1!$A$11:$G$29,6),IF(AND(H99>1994,H99<1998),VLOOKUP(I99,Feuil1!$A$11:$G$29,5),IF(AND(H99>1997,H99<2000),VLOOKUP(I99,Feuil1!$A$11:$G$29,4),IF(AND(H99>1999,H99<2002),VLOOKUP(I99,Feuil1!$A$11:$G$29,3),VLOOKUP(I99,Feuil1!$A$11:$G$29,2))))),IF(OR(H99="SEN",H99<1995),VLOOKUP(I99,Feuil1!$G$11:$L$25,6),IF(AND(H99>1994,H99<1998),VLOOKUP(I99,Feuil1!$G$11:$L$25,5),IF(AND(H99>1997,H99<2000),VLOOKUP(I99,Feuil1!$G$11:$L$25,4),IF(AND(H99>1999,H99<2002),VLOOKUP(I99,Feuil1!$G$11:$L$25,3),VLOOKUP(I99,Feuil1!$G$11:$L$25,2))))))) -> FC2 +69 | Y99: 71.06801639 | AB99: =T99-HLOOKUP(X99,Feuil1!$C$1:$BL$10,2,FALSE) -> -12 | AC99: =T99-HLOOKUP(X99,Feuil1!$C$1:$BL$10,3,FALSE) -> -22 | AD99: =T99-HLOOKUP(X99,Feuil1!$C$1:$BL$10,4,FALSE) -> -37 | AE99: =T99-HLOOKUP(X99,Feuil1!$C$1:$BL$10,5,FALSE) -> -47 | AF99: =T99-HLOOKUP(X99,Feuil1!$C$1:$BL$10,6,FALSE) -> -57 | AG99: =T99-HLOOKUP(X99,Feuil1!$C$1:$BL$10,7,FALSE) -> -72 | AH99: =T99-HLOOKUP(X99,Feuil1!$C$1:$BL$10,8,FALSE) -> -87 | AI99: =T99-HLOOKUP(X99,Feuil1!$C$1:$BL$10,9,FALSE) -> -102 | AJ99: =T99-HLOOKUP(X99,Feuil1!$C$1:$BL$10,10,FALSE) -> -942 | AQ99: DEB
AB100: =T100-HLOOKUP(X100,Feuil1!$C$1:$BL$10,2,FALSE) ->  | AC100: =T100-HLOOKUP(X100,Feuil1!$C$1:$BL$10,3,FALSE) ->  | AD100: =T100-HLOOKUP(X100,Feuil1!$C$1:$BL$10,4,FALSE) ->  | AE100: =T100-HLOOKUP(X100,Feuil1!$C$1:$BL$10,5,FALSE) ->  | AF100: =T100-HLOOKUP(X100,Feuil1!$C$1:$BL$10,6,FALSE) ->  | AG100: =T100-HLOOKUP(X100,Feuil1!$C$1:$BL$10,7,FALSE) ->  | AH100: =T100-HLOOKUP(X100,Feuil1!$C$1:$BL$10,8,FALSE) ->  | AI100: =T100-HLOOKUP(X100,Feuil1!$C$1:$BL$10,9,FALSE) ->  | AJ100: =T100-HLOOKUP(X100,Feuil1!$C$1:$BL$10,10,FALSE) ->  | AQ100: =IF(AJ100>=0,$AJ$4,IF(AI100>=0,$AI$4,IF(AH100>=0,$AH$4,IF(AG100>=0,$AG$4,IF(AF100>=0,$AF$4,IF(AE100>=0,$AE$4,IF(AD100>=0,$AD$4,IF(AC100>=0,$AC$4,$AB$4)))))))) -> 
AB537: J77 | AC537: J85 | AD537: J94 | AE537: J105 | AF537: J+105 | AH537: J56 | AI537: J62 | AJ537: J69 | AK537: J77 | AL537: J85 | AM537: J94 | AN537: J105 | AO537: J+105 | AQ537: S56 | AR537: S62 | AS537: S69 | AT537: S77 | AU537: S85 | AV537: S94 | AW537: S105 | AX537: S+105
AB538: 145 | AC538: 160 | AD538: 170 | AE538: 180 | AF538: 190 | AH538: 100 | AI538: 115 | AJ538: 130 | AK538: 145 | AL538: 160 | AM538: 170 | AN538: 180 | AO538: 190 | AQ538: 115 | AR538: 135 | AS538: 150 | AT538: 165 | AU538: 180 | AV538: 190 | AW538: 200 | AX538: 210
AB539: 165 | AC539: 180 | AD539: 190 | AE539: 200 | AF539: 210 | AH539: 115 | AI539: 135 | AJ539: 150 | AK539: 165 | AL539: 180 | AM539: 190 | AN539: 200 | AO539: 210 | AQ539: 130 | AR539: 150 | AS539: 165 | AT539: 185 | AU539: 200 | AV539: 210 | AW539: 220 | AX539: 230
AB540: 185 | AC540: 200 | AD540: 210 | AE540: 220 | AF540: 230 | AH540: 130 | AI540: 150 | AJ540: 165 | AK540: 185 | AL540: 200 | AM540: 210 | AN540: 220 | AO540: 230 | AQ540: 145 | AR540: 165 | AS540: 180 | AT540: 200 | AU540: 220 | AV540: 230 | AW540: 240 | AX540: 250
AB541: 200 | AC541: 220 | AD541: 230 | AE541: 240 | AF541: 250 | AH541: 145 | AI541: 165 | AJ541: 180 | AK541: 200 | AL541: 220 | AM541: 230 | AN541: 240 | AO541: 250 | AQ541: 175 | AR541: 195 | AS541: 215 | AT541: 235 | AU541: 250 | AV541: 260 | AW541: 275 | AX541: 280
AB542: 235 | AC542: 250 | AD542: 260 | AE542: 275 | AF542: 280 | AH542: 175 | AI542: 195 | AJ542: 215 | AK542: 235 | AL542: 250 | AM542: 260 | AN542: 275 | AO542: 280 | AQ542: 210 | AR542: 230 | AS542: 250 | AT542: 270 | AU542: 290 | AV542: 300 | AW542: 310 | AX542: 325
AB543: 270 | AC543: 290 | AD543: 300 | AE543: 310 | AF543: 325 | AH543: 210 | AI543: 230 | AJ543: 250 | AK543: 270 | AL543: 290 | AM543: 300 | AN543: 310 | AO543: 325 | AQ543: 230 | AR543: 255 | AS543: 275 | AT543: 300 | AU543: 315 | AV543: 335 | AW543: 345 | AX543: 355
AB544: 320 | AC544: 335 | AD544: 355 | AE544: 370 | AF544: 380 | AH544: 245 | AI544: 270 | AJ544: 295 | AK544: 320 | AL544: 335 | AM544: 355 | AN544: 370 | AO544: 380 | AQ544: 245 | AR544: 270 | AS544: 295 | AT544: 320 | AU544: 335 | AV544: 355 | AW544: 370 | AX544: 380

Sheet JUNIORS
F1: LISTING NATIONAL | H1: FEMININES | Q1: DATE : | S1: 2015-03-08
L2: 2° TRIMESTRE
A4: SEXE | B4: ZONE | C4: REG. | D4: CL. | E4: LICENCE | F4: NOMS | G4: Prénoms | H4: AN | I4: POIDS | J4: CLUB | K4: NAT | L4: 1 | M4: 2 | N4: 3 | O4: ARR | P4: 1 | Q4: 2 | R4: 3 | S4: EP-J | T4: Total | U4: KP-2PC | V4: SERIE | X4: Catég | Y4: IWF | AB4: DEB | AC4: DEP + | AD4: REG + | AE4: IRG + | AF4: FED + | AG4: NAT + | AH4: INTB + | AI4: INTA + | AJ4: OLY +
AB5: =T5-HLOOKUP(X5,Feuil1!$C$1:$BL$10,2,FALSE) ->  | AC5: =T5-HLOOKUP(X5,Feuil1!$C$1:$BL$10,3,FALSE) ->  | AD5: =T5-HLOOKUP(X5,Feuil1!$C$1:$BL$10,4,FALSE) ->  | AE5: =T5-HLOOKUP(X5,Feuil1!$C$1:$BL$10,5,FALSE) ->  | AF5: =T5-HLOOKUP(X5,Feuil1!$C$1:$BL$10,6,FALSE) ->  | AG5: =T5-HLOOKUP(X5,Feuil1!$C$1:$BL$10,7,FALSE) ->  | AH5: =T5-HLOOKUP(X5,Feuil1!$C$1:$BL$10,8,FALSE) ->  | AI5: =T5-HLOOKUP(X5,Feuil1!$C$1:$BL$10,9,FALSE) ->  | AJ5: =T5-HLOOKUP(X5,Feuil1!$C$1:$BL$10,10,FALSE) ->  | AQ5: =IF(AJ5>=0,$AJ$4,IF(AI5>=0,$AI$4,IF(AH5>=0,$AH$4,IF(AG5>=0,$AG$4,IF(AF5>=0,$AF$4,IF(AE5>=0,$AE$4,IF(AD5>=0,$AD$4,IF(AC5>=0,$AC$4,$AB$4)))))))) -> 
A6: F | B6: SEST | C6: PRO | D6: 1 | E6: 361701 | F6: DELEUIL | G6: Fanny | H6: 1995 | I6: 48 | J6: EEAR MONTEUX | L6: 43 | M6: 46 | N6: -48 | O6: =IF(H6="","",IF(MAXA(L6:N6)<=0,0,MAXA(L6:N6))) -> 46 | P6: 57 | Q6: 61 | R6: -64 | S6: =IF(H6="","",IF(MAXA(P6:R6)<=0,0,MAXA(P6:R6))) -> 61 | T6: =IF(H6="","",IF(OR(O6=0,S6=0),0,O6+S6)) -> 107 | U6: =T6-I6*2 -> 11 | V6: =IF(H6="","",AQ6) -> NAT + | W6: =IF(AJ6>=0,AJ6,IF(AI6>=0,AI6,IF(AH6>=0,AH6,IF(AG6>=0,AG6,IF(AF6>=0,AF6,IF(AE6>=0,AE6,IF(AD6>=0,AD6,IF(AC6>=0,AC6,AB6)))))))) -> 12 | X6: =IF(I6="","",IF(A6="H",IF(OR(H6="SEN",H6<1995),VLOOKUP(I6,Feuil1!$A$11:$F$29,6),IF(AND(H6>1994,H6<1998),VLOOKUP(I6,Feuil1!$A$11:$F$29,5),IF(AND(H6>1997,H6<2000),VLOOKUP(I6,Feuil1!$A$11:$F$29,4),IF(AND(H6>1999,H6<2002),VLOOKUP(I6,Feuil1!$A$11:$F$29,3),VLOOKUP(I6,Feuil1!$A$11:$F$29,2))))),IF(OR(H6="SEN",H6<1995),VLOOKUP(I6,Feuil1!$G$11:$L$25,6),IF(AND(H6>1994,H6<1998),VLOOKUP(I6,Feuil1!$G$11:$L$25,5),IF(AND(H6>1997,H6<2000),VLOOKUP(I6,Feuil1!$G$11:$L$25,4),IF(AND(H6>1999,H6<2002),VLOOKUP(I6,Feuil1!$G$11:$L$25,3),VLOOKUP(I6,Feuil1!$G$11:$L$25,2))))))) -> FJ48 | Y6: =IF(I6="","",IF(A6="H",10^(0.794358141*LOG(I6/174.393)^2)*T6,IF(A6="F",10^(0.89726074*LOG(I6/148.026)^2)*T6,""))) -> 175.3971717 | AB6: =T6-HLOOKUP(X6,Feuil1!$C$1:$BL$10,2,FALSE) -> 62 | AC6: =T6-HLOOKUP(X6,Feuil1!$C$1:$BL$10,3,FALSE) -> 52 | AD6: =T6-HLOOKUP(X6,Feuil1!$C$1:$BL$10,4,FALSE) -> 42 | AE6: =T6-HLOOKUP(X6,Feuil1!$C$1:$BL$10,5,FALSE) -> 32 | AF6: =T6-HLOOKUP(X6,Feuil1!$C$1:$BL$10,6,FALSE) -> 22 | AG6: =T6-HLOOKUP(X6,Feuil1!$C$1:$BL$10,7,FALSE) -> 12 | AH6: =T6-HLOOKUP(X6,Feuil1!$C$1:$BL$10,8,FALSE) -> -3 | AI6: =T6-HLOOKUP(X6,Feuil1!$C$1:$BL$10,9,FALSE) -> -18 | AJ6: =T6-HLOOKUP(X6,Feuil1!$C$1:$BL$10,10,FALSE) -> -893 | AQ6: =IF(AJ6>=0,$AJ$4,IF(AI6>=0,$AI$4,IF(AH6>=0,$AH$4,IF(AG6>=0,$AG$4,IF(AF6>=0,$AF$4,IF(AE6>=0,$AE$4,IF(AD6>=0,$AD$4,IF(AC6>=0,$AC$4,$AB$4)))))))) -> NAT +
A7: F | B7: NE | C7: CHA | D7: 2 | E7: 193808 | F7: POIRET | G7: Kimberley | H7: 1997 | I7: 41.4 | J7: Reims HM | K7: F | L7: 43 | M7: 46 | N7: -48 | O7: 46 | P7: 54 | Q7: 58 | R7: 60 | S7: 60 | T7: 106 | U7: 23.2 | V7: NAT + | W7: 11 | X7: =IF(I7="","",IF(A7="H",IF(OR(H7="SEN",H7<1995),VLOOKUP(I7,Feuil1!$A$11:$F$29,6),IF(AND(H7>1994,H7<1998),VLOOKUP(I7,Feuil1!$A$11:$F$29,5),IF(AND(H7>1997,H7<2000),VLOOKUP(I7,Feuil1!$A$11:$F$29,4),IF(AND(H7>1999,H7<2002),VLOOKUP(I7,Feuil1!$A$11:$F$29,3),VLOOKUP(I7,Feuil1!$A$11:$F$29,2))))),IF(OR(H7="SEN",H7<1995),VLOOKUP(I7,Feuil1!$G$11:$L$25,6),IF(AND(H7>1994,H7<1998),VLOOKUP(I7,Feuil1!$G$11:$L$25,5),IF(AND(H7>1997,H7<2000),VLOOKUP(I7,Feuil1!$G$11:$L$25,4),IF(AND(H7>1999,H7<2002),VLOOKUP(I7,Feuil1!$G$11:$L$25,3),VLOOKUP(I7,Feuil1!$G$11:$L$25,2))))))) -> FJ48 | Y7: 199.5406872 | AB7: =T7-HLOOKUP(X7,Feuil1!$C$1:$BL$10,2,FALSE) -> 61 | AC7: =T7-HLOOKUP(X7,Feuil1!$C$1:$BL$10,3,FALSE) -> 51 | AD7: =T7-HLOOKUP(X7,Feuil1!$C$1:$BL$10,4,FALSE) -> 41 | AE7: =T7-HLOOKUP(X7,Feuil1!$C$1:$BL$10,5,FALSE) -> 31 | AF7: =T7-HLOOKUP(X7,Feuil1!$C$1:$BL$10,6,FALSE) -> 21 | AG7: =T7-HLOOKUP(X7,Feuil1!$C$1:$BL$10,7,FALSE) -> 11 | AH7: =T7-HLOOKUP(X7,Feuil1!$C$1:$BL$10,8,FALSE) -> -4 | AI7: =T7-HLOOKUP(X7,Feuil1!$C$1:$BL$10,9,FALSE) -> -19 | AJ7: =T7-HLOOKUP(X7,Feuil1!$C$1:$BL$10,10,FALSE) -> -894 | AQ7: NAT +
A8: F | B8: CO | C8: PDL | D8: 3 | E8: 97644 | F8: L'HERMIER | G8: Mélanie | H8: 1996 | I8: 47.74 | J8: CJF Laval-Voutré | K8: F | L8: -43 | M8: 43 | N8: 45 | O8: 45 | P8: 53 | Q8: 56 | R8: -59 | S8: 56 | T8: 101 | U8: 5.52 | V8: NAT + | W8: 6 | X8: =IF(I8="","",IF(A8="H",IF(OR(H8="SEN",H8<1995),VLOOKUP(I8,Feuil1!$A$11:$F$29,6),IF(AND(H8>1994,H8<1998),VLOOKUP(I8,Feuil1!$A$11:$F$29,5),IF(AND(H8>1997,H8<2000),VLOOKUP(I8,Feuil1!$A$11:$F$29,4),IF(AND(H8>1999,H8<2002),VLOOKUP(I8,Feuil1!$A$11:$F$29,3),VLOOKUP(I8,Feuil1!$A$11:$F$29,2))))),IF(OR(H8="SEN",H8<1995),VLOOKUP(I8,Feuil1!$G$11:$L$25,6),IF(AND(H8>1994,H8<1998),VLOOKUP(I8,Feuil1!$G$11:$L$25,5),IF(AND(H8>1997,H8<2000),VLOOKUP(I8,Feuil1!$G$11:$L$25,4),IF(AND(H8>1999,H8<2002),VLOOKUP(I8,Feuil1!$G$11:$L$25,3),VLOOKUP(I8,Feuil1!$G$11:$L$25,2))))))) -> FJ48 | Y8: 166.3548628 | AB8: =T8-HLOOKUP(X8,Feuil1!$C$1:$BL$10,2,FALSE) -> 56 | AC8: =T8-HLOOKUP(X8,Feuil1!$C$1:$BL$10,3,FALSE) -> 46 | AD8: =T8-HLOOKUP(X8,Feuil1!$C$1:$BL$10,4,FALSE) -> 36 | AE8: =T8-HLOOKUP(X8,Feuil1!$C$1:$BL$10,5,FALSE) -> 26 | AF8: =T8-HLOOKUP(X8,Feuil1!$C$1:$BL$10,6,FALSE) -> 16 | AG8: =T8-HLOOKUP(X8,Feuil1!$C$1:$BL$10,7,FALSE) -> 6 | AH8: =T8-HLOOKUP(X8,Feuil1!$C$1:$BL$10,8,FALSE) -> -9 | AI8: =T8-HLOOKUP(X8,Feuil1!$C$1:$BL$10,9,FALSE) -> -24 | AJ8: =T8-HLOOKUP(X8,Feuil1!$C$1:$BL$10,10,FALSE) -> -899 | AQ8: NAT +
A9: F | B9: DOM | C9: REU | D9: 4 | E9: 357739 | F9: VIRAMA | G9: DEBORAH | H9: 1996 | I9: 47.8 | J9: CH LA PLAINE | K9: F | L9: 35 | M9: 40 | N9: -45 | O9: 40 | P9: 45 | Q9: 50 | R9: 52 | S9: 52 | T9: 92 | U9: -3.6 | V9: FED + | W9: 7 | X9: =IF(I9="","",IF(A9="H",IF(OR(H9="SEN",H9<1995),VLOOKUP(I9,Feuil1!$A$11:$F$29,6),IF(AND(H9>1994,H9<1998),VLOOKUP(I9,Feuil1!$A$11:$F$29,5),IF(AND(H9>1997,H9<2000),VLOOKUP(I9,Feuil1!$A$11:$F$29,4),IF(AND(H9>1999,H9<2002),VLOOKUP(I9,Feuil1!$A$11:$F$29,3),VLOOKUP(I9,Feuil1!$A$11:$F$29,2))))),IF(OR(H9="SEN",H9<1995),VLOOKUP(I9,Feuil1!$G$11:$L$25,6),IF(AND(H9>1994,H9<1998),VLOOKUP(I9,Feuil1!$G$11:$L$25,5),IF(AND(H9>1997,H9<2000),VLOOKUP(I9,Feuil1!$G$11:$L$25,4),IF(AND(H9>1999,H9<2002),VLOOKUP(I9,Feuil1!$G$11:$L$25,3),VLOOKUP(I9,Feuil1!$G$11:$L$25,2))))))) -> FJ48 | Y9: 151.3634944 | AB9: =T9-HLOOKUP(X9,Feuil1!$C$1:$BL$10,2,FALSE) -> 47 | AC9: =T9-HLOOKUP(X9,Feuil1!$C$1:$BL$10,3,FALSE) -> 37 | AD9: =T9-HLOOKUP(X9,Feuil1!$C$1:$BL$10,4,FALSE) -> 27 | AE9: =T9-HLOOKUP(X9,Feuil1!$C$1:$BL$10,5,FALSE) -> 17 | AF9: =T9-HLOOKUP(X9,Feuil1!$C$1:$BL$10,6,FALSE) -> 7 | AG9: =T9-HLOOKUP(X9,Feuil1!$C$1:$BL$10,7,FALSE) -> -3 | AH9: =T9-HLOOKUP(X9,Feuil1!$C$1:$BL$10,8,FALSE) -> -18 | AI9: =T9-HLOOKUP(X9,Feuil1!$C$1:$BL$10,9,FALSE) -> -33 | AJ9: =T9-HLOOKUP(X9,Feuil1!$C$1:$BL$10,10,FALSE) -> -908 | AQ9: FED +
A10: F | B10: N | C10: IDF | D10: 5 | E10: 364789 | F10: RICHARD | G10: IRENE | H10: 1996 | I10: 47.85 | J10: BLANC-MESNIL | K10: F | L10: -35 | M10: 37 | N10: 39 | O10: 39 | P10: 46 | Q10: 49 | R10: -51 | S10: 49 | T10: 88 | U10: -7.7 | V10: FED + | W10: 3 | X10: =IF(I10="","",IF(A10="H",IF(OR(H10="SEN",H10<1995),VLOOKUP(I10,Feuil1!$A$11:$F$29,6),IF(AND(H10>1994,H10<1998),VLOOKUP(I10,Feuil1!$A$11:$F$29,5),IF(AND(H10>1997,H10<2000),VLOOKUP(I10,Feuil1!$A$11:$F$29,4),IF(AND(H10>1999,H10<2002),VLOOKUP(I10,Feuil1!$A$11:$F$29,3),VLOOKUP(I10,Feuil1!$A$11:$F$29,2))))),IF(OR(H10="SEN",H10<1995),VLOOKUP(I10,Feuil1!$G$11:$L$25,6),IF(AND(H10>1994,H10<1998),VLOOKUP(I10,Feuil1!$G$11:$L$25,5),IF(AND(H10>1997,H10<2000),VLOOKUP(I10,Feuil1!$G$11:$L$25,4),IF(AND(H10>1999,H10<2002),VLOOKUP(I10,Feuil1!$G$11:$L$25,3),VLOOKUP(I10,Feuil1!$G$11:$L$25,2))))))) -> FJ48 | Y10: 144.6492494 | AB10: =T10-HLOOKUP(X10,Feuil1!$C$1:$BL$10,2,FALSE) -> 43 | AC10: =T10-HLOOKUP(X10,Feuil1!$C$1:$BL$10,3,FALSE) -> 33 | AD10: =T10-HLOOKUP(X10,Feuil1!$C$1:$BL$10,4,FALSE) -> 23 | AE10: =T10-HLOOKUP(X10,Feuil1!$C$1:$BL$10,5,FALSE) -> 13 | AF10: =T10-HLOOKUP(X10,Feuil1!$C$1:$BL$10,6,FALSE) -> 3 | AG10: =T10-HLOOKUP(X10,Feuil1!$C$1:$BL$10,7,FALSE) -> -7 | AH10: =T10-HLOOKUP(X10,Feuil1!$C$1:$BL$10,8,FALSE) -> -22 | AI10: =T10-HLOOKUP(X10,Feuil1!$C$1:$BL$10,9,FALSE) -> -37 | AJ10: =T10-HLOOKUP(X10,Feuil1!$C$1:$BL$10,10,FALSE) -> -912 | AQ10: FED +
A11: F | B11: NE | C11: ALS | D11: 6 | E11: 316601 | F11: TSCHAEN | G11: Amandine | H11: 1996 | I11: 47.2 | J11: US Wittenheim | K11: F | L11: 32 | M11: 35 | N11: -37 | O11: 35 | P11: 46 | Q11: -48 | R11: -48 | S11: 46 | T11: 81 | U11: -13.4 | V11: IRG + | W11: 6 | X11: =IF(I11="","",IF(A11="H",IF(OR(H11="SEN",H11<1995),VLOOKUP(I11,Feuil1!$A$11:$F$29,6),IF(AND(H11>1994,H11<1998),VLOOKUP(I11,Feuil1!$A$11:$F$29,5),IF(AND(H11>1997,H11<2000),VLOOKUP(I11,Feuil1!$A$11:$F$29,4),IF(AND(H11>1999,H11<2002),VLOOKUP(I11,Feuil1!$A$11:$F$29,3),VLOOKUP(I11,Feuil1!$A$11:$F$29,2))))),IF(OR(H11="SEN",H11<1995),VLOOKUP(I11,Feuil1!$G$11:$L$25,6),IF(AND(H11>1994,H11<1998),VLOOKUP(I11,Feuil1!$G$11:$L$25,5),IF(AND(H11>1997,H11<2000),VLOOKUP(I11,Feuil1!$G$11:$L$25,4),IF(AND(H11>1999,H11<2002),VLOOKUP(I11,Feuil1!$G$11:$L$25,3),VLOOKUP(I11,Feuil1!$G$11:$L$25,2))))))) -> FJ48 | Y11: 134.7653163 | AB11: =T11-HLOOKUP(X11,Feuil1!$C$1:$BL$10,2,FALSE) -> 36 | AC11: =T11-HLOOKUP(X11,Feuil1!$C$1:$BL$10,3,FALSE) -> 26 | AD11: =T11-HLOOKUP(X11,Feuil1!$C$1:$BL$10,4,FALSE) -> 16 | AE11: =T11-HLOOKUP(X11,Feuil1!$C$1:$BL$10,5,FALSE) -> 6 | AF11: =T11-HLOOKUP(X11,Feuil1!$C$1:$BL$10,6,FALSE) -> -4 | AG11: =T11-HLOOKUP(X11,Feuil1!$C$1:$BL$10,7,FALSE) -> -14 | AH11: =T11-HLOOKUP(X11,Feuil1!$C$1:$BL$10,8,FALSE) -> -29 | AI11: =T11-HLOOKUP(X11,Feuil1!$C$1:$BL$10,9,FALSE) -> -44 | AJ11: =T11-HLOOKUP(X11,Feuil1!$C$1:$BL$10,10,FALSE) -> -919 | AQ11: IRG +
A12: F | B12: N | C12: PIC | D12: 7 | E12: 308200 | F12: LEBON | G12: Vanessa | H12: 1997 | I12: 45.12 | J12: Hirson CEHT | K12: F | L12: 30 | M12: 32 | N12: -34 | O12: 32 | P12: 43 | Q12: 45 | R12: - | S12: 45 | T12: 77 | U12: -13.24 | V12: IRG + | W12: 2 | X12: =IF(I12="","",IF(A12="H",IF(OR(H12="SEN",H12<1995),VLOOKUP(I12,Feuil1!$A$11:$F$29,6),IF(AND(H12>1994,H12<1998),VLOOKUP(I12,Feuil1!$A$11:$F$29,5),IF(AND(H12>1997,H12<2000),VLOOKUP(I12,Feuil1!$A$11:$F$29,4),IF(AND(H12>1999,H12<2002),VLOOKUP(I12,Feuil1!$A$11:$F$29,3),VLOOKUP(I12,Feuil1!$A$11:$F$29,2))))),IF(OR(H12="SEN",H12<1995),VLOOKUP(I12,Feuil1!$G$11:$L$25,6),IF(AND(H12>1994,H12<1998),VLOOKUP(I12,Feuil1!$G$11:$L$25,5),IF(AND(H12>1997,H12<2000),VLOOKUP(I12,Feuil1!$G$11:$L$25,4),IF(AND(H12>1999,H12<2002),VLOOKUP(I12,Feuil1!$G$11:$L$25,3),VLOOKUP(I12,Feuil1!$G$11:$L$25,2))))))) -> FJ48 | Y12: 133.4636493 | AB12: =T12-HLOOKUP(X12,Feuil1!$C$1:$BL$10,2,FALSE) -> 32 | AC12: =T12-HLOOKUP(X12,Feuil1!$C$1:$BL$10,3,FALSE) -> 22 | AD12: =T12-HLOOKUP(X12,Feuil1!$C$1:$BL$10,4,FALSE) -> 12 | AE12: =T12-HLOOKUP(X12,Feuil1!$C$1:$BL$10,5,FALSE) -> 2 | AF12: =T12-HLOOKUP(X12,Feuil1!$C$1:$BL$10,6,FALSE) -> -8 | AG12: =T12-HLOOKUP(X12,Feuil1!$C$1:$BL$10,7,FALSE) -> -18 | AH12: =T12-HLOOKUP(X12,Feuil1!$C$1:$BL$10,8,FALSE) -> -33 | AI12: =T12-HLOOKUP(X12,Feuil1!$C$1:$BL$10,9,FALSE) -> -48 | AJ12: =T12-HLOOKUP(X12,Feuil1!$C$1:$BL$10,10,FALSE) -> -923 | AQ12: IRG +
A13: F | B13: SEST | C13: CAZ | D13: 8 | E13: 341745 | F13: DOLET | G13: Oceane | H13: 1997 | I13: 47.8 | J13: ASLDD TOULON | K13: F | L13: 25 | M13: 30 | N13: -32 | O13: 30 | P13: 35 | Q13: 37 | R13: -40 | S13: 37 | T13: 67 | U13: -28.6 | V13: REG + | W13: 2 | X13: =IF(I13="","",IF(A13="H",IF(OR(H13="SEN",H13<1995),VLOOKUP(I13,Feuil1!$A$11:$F$29,6),IF(AND(H13>1994,H13<1998),VLOOKUP(I13,Feuil1!$A$11:$F$29,5),IF(AND(H13>1997,H13<2000),VLOOKUP(I13,Feuil1!$A$11:$F$29,4),IF(AND(H13>1999,H13<2002),VLOOKUP(I13,Feuil1!$A$11:$F$29,3),VLOOKUP(I13,Feuil1!$A$11:$F$29,2))))),IF(OR(H13="SEN",H13<1995),VLOOKUP(I13,Feuil1!$G$11:$L$25,6),IF(AND(H13>1994,H13<1998),VLOOKUP(I13,Feuil1!$G$11:$L$25,5),IF(AND(H13>1997,H13<2000),VLOOKUP(I13,Feuil1!$G$11:$L$25,4),IF(AND(H13>1999,H13<2002),VLOOKUP(I13,Feuil1!$G$11:$L$25,3),VLOOKUP(I13,Feuil1!$G$11:$L$25,2))))))) -> FJ48 | Y13: 110.2321101 | AB13: =T13-HLOOKUP(X13,Feuil1!$C$1:$BL$10,2,FALSE) -> 22 | AC13: =T13-HLOOKUP(X13,Feuil1!$C$1:$BL$10,3,FALSE) -> 12 | AD13: =T13-HLOOKUP(X13,Feuil1!$C$1:$BL$10,4,FALSE) -> 2 | AE13: =T13-HLOOKUP(X13,Feuil1!$C$1:$BL$10,5,FALSE) -> -8 | AF13: =T13-HLOOKUP(X13,Feuil1!$C$1:$BL$10,6,FALSE) -> -18 | AG13: =T13-HLOOKUP(X13,Feuil1!$C$1:$BL$10,7,FALSE) -> -28 | AH13: =T13-HLOOKUP(X13,Feuil1!$C$1:$BL$10,8,FALSE) -> -43 | AI13: =T13-HLOOKUP(X13,Feuil1!$C$1:$BL$10,9,FALSE) -> -58 | AJ13: =T13-HLOOKUP(X13,Feuil1!$C$1:$BL$10,10,FALSE) -> -933 | AQ13: REG +
A14: F | B14: SEST | C14: RAL | D14: 9 | E14: 366936 | F14: MARESCAUX | G14: Amandine | H14: 1997 | I14: 38.2 | J14: VALENCE | K14: F | L14: 22 | M14: 26 | N14: 27 | O14: 27 | P14: 27 | Q14: 31 | R14: 34 | S14: 34 | T14: 61 | U14: -15.4 | V14: DEP + | W14: 6 | X14: =IF(I14="","",IF(A14="H",IF(OR(H14="SEN",H14<1995),VLOOKUP(I14,Feuil1!$A$11:$F$29,6),IF(AND(H14>1994,H14<1998),VLOOKUP(I14,Feuil1!$A$11:$F$29,5),IF(AND(H14>1997,H14<2000),VLOOKUP(I14,Feuil1!$A$11:$F$29,4),IF(AND(H14>1999,H14<2002),VLOOKUP(I14,Feuil1!$A$11:$F$29,3),VLOOKUP(I14,Feuil1!$A$11:$F$29,2))))),IF(OR(H14="SEN",H14<1995),VLOOKUP(I14,Feuil1!$G$11:$L$25,6),IF(AND(H14>1994,H14<1998),VLOOKUP(I14,Feuil1!$G$11:$L$25,5),IF(AND(H14>1997,H14<2000),VLOOKUP(I14,Feuil1!$G$11:$L$25,4),IF(AND(H14>1999,H14<2002),VLOOKUP(I14,Feuil1!$G$11:$L$25,3),VLOOKUP(I14,Feuil1!$G$11:$L$25,2))))))) -> FJ48 | Y14: 124.6930406 | AB14: =T14-HLOOKUP(X14,Feuil1!$C$1:$BL$10,2,FALSE) -> 16 | AC14: =T14-HLOOKUP(X14,Feuil1!$C$1:$BL$10,3,FALSE) -> 6 | AD14: =T14-HLOOKUP(X14,Feuil1!$C$1:$BL$10,4,FALSE) -> -4 | AE14: =T14-HLOOKUP(X14,Feuil1!$C$1:$BL$10,5,FALSE) -> -14 | AF14: =T14-HLOOKUP(X14,Feuil1!$C$1:$BL$10,6,FALSE) -> -24 | AG14: =T14-HLOOKUP(X14,Feuil1!$C$1:$BL$10,7,FALSE) -> -34 | AH14: =T14-HLOOKUP(X14,Feuil1!$C$1:$BL$10,8,FALSE) -> -49 | AI14: =T14-HLOOKUP(X14,Feuil1!$C$1:$BL$10,9,FALSE) -> -64 | AJ14: =T14-HLOOKUP(X14,Feuil1!$C$1:$BL$10,10,FALSE) -> -939 | AQ14: DEP +
AB15: =T15-HLOOKUP(X15,Feuil1!$C$1:$BL$10,2,FALSE) ->  | AC15: =T15-HLOOKUP(X15,Feuil1!$C$1:$BL$10,3,FALSE) ->  | AD15: =T15-HLOOKUP(X15,Feuil1!$C$1:$BL$10,4,FALSE) ->  | AE15: =T15-HLOOKUP(X15,Feuil1!$C$1:$BL$10,5,FALSE) ->  | AF15: =T15-HLOOKUP(X15,Feuil1!$C$1:$BL$10,6,FALSE) ->  | AG15: =T15-HLOOKUP(X15,Feuil1!$C$1:$BL$10,7,FALSE) ->  | AH15: =T15-HLOOKUP(X15,Feuil1!$C$1:$BL$10,8,FALSE) ->  | AI15: =T15-HLOOKUP(X15,Feuil1!$C$1:$BL$10,9,FALSE) ->  | AJ15: =T15-HLOOKUP(X15,Feuil1!$C$1:$BL$10,10,FALSE) ->  | AQ15: =IF(AJ15>=0,$AJ$4,IF(AI15>=0,$AI$4,IF(AH15>=0,$AH$4,IF(AG15>=0,$AG$4,IF(AF15>=0,$AF$4,IF(AE15>=0,$AE$4,IF(AD15>=0,$AD$4,IF(AC15>=0,$AC$4,$AB$4)))))))) -> 
A16: F | B16: NE | C16: BOU | D16: 1 | E16: 196470 | F16: BALACE | G16: Julie | H16: 1996 | I16: 52.01 | J16: HMDB21 | K16: F | L16: -58 | M16: 58 | N16: 62 | O16: =IF(H16="","",IF(MAXA(L16:N16)<=0,0,MAXA(L16:N16))) -> 62 | P16: 70 | Q16: 74 | R16: -77 | S16: =IF(H16="","",IF(MAXA(P16:R16)<=0,0,MAXA(P16:R16))) -> 74 | T16: =IF(H16="","",IF(OR(O16=0,S16=0),0,O16+S16)) -> 136 | U16: =T16-I16*2 -> 31.98 | V16: =IF(H16="","",AQ16) -> INTA + | W16: =IF(AJ16>=0,AJ16,IF(AI16>=0,AI16,IF(AH16>=0,AH16,IF(AG16>=0,AG16,IF(AF16>=0,AF16,IF(AE16>=0,AE16,IF(AD16>=0,AD16,IF(AC16>=0,AC16,AB16)))))))) -> 1 | X16: =IF(I16="","",IF(A16="H",IF(OR(H16="SEN",H16<1995),VLOOKUP(I16,Feuil1!$A$11:$F$29,6),IF(AND(H16>1994,H16<1998),VLOOKUP(I16,Feuil1!$A$11:$F$29,5),IF(AND(H16>1997,H16<2000),VLOOKUP(I16,Feuil1!$A$11:$F$29,4),IF(AND(H16>1999,H16<2002),VLOOKUP(I16,Feuil1!$A$11:$F$29,3),VLOOKUP(I16,Feuil1!$A$11:$F$29,2))))),IF(OR(H16="SEN",H16<1995),VLOOKUP(I16,Feuil1!$G$11:$L$25,6),IF(AND(H16>1994,H16<1998),VLOOKUP(I16,Feuil1!$G$11:$L$25,5),IF(AND(H16>1997,H16<2000),VLOOKUP(I16,Feuil1!$G$11:$L$25,4),IF(AND(H16>1999,H16<2002),VLOOKUP(I16,Feuil1!$G$11:$L$25,3),VLOOKUP(I16,Feuil1!$G$11:$L$25,2))))))) -> FJ53 | Y16: =IF(I16="","",IF(A16="H",10^(0.794358141*LOG(I16/174.393)^2)*T16,IF(A16="F",10^(0.89726074*LOG(I16/148.026)^2)*T16,""))) -> 208.2971725 | AB16: =T16-HLOOKUP(X16,Feuil1!$C$1:$BL$10,2,FALSE) -> 81 | AC16: =T16-HLOOKUP(X16,Feuil1!$C$1:$BL$10,3,FALSE) -> 71 | AD16: =T16-HLOOKUP(X16,Feuil1!$C$1:$BL$10,4,FALSE) -> 61 | AE16: =T16-HLOOKUP(X16,Feuil1!$C$1:$BL$10,5,FALSE) -> 51 | AF16: =T16-HLOOKUP(X16,Feuil1!$C$1:$BL$10,6,FALSE) -> 41 | AG16: =T16-HLOOKUP(X16,Feuil1!$C$1:$BL$10,7,FALSE) -> 31 | AH16: =T16-HLOOKUP(X16,Feuil1!$C$1:$BL$10,8,FALSE) -> 16 | AI16: =T16-HLOOKUP(X16,Feuil1!$C$1:$BL$10,9,FALSE) -> 1 | AJ16: =T16-HLOOKUP(X16,Feuil1!$C$1:$BL$10,10,FALSE) -> -864 | AQ16: =IF(AJ16>=0,$AJ$4,IF(AI16>=0,$AI$4,IF(AH16>=0,$AH$4,IF(AG16>=0,$AG$4,IF(AF16>=0,$AF$4,IF(AE16>=0,$AE$4,IF(AD16>=0,$AD$4,IF(AC16>=0,$AC$4,$AB$4)))))))) -> INTA +
A17: F | B17: N | C17: PIC | D17: 2 | E17: 280885 | F17: CABON | G17: Ophélie | H17: 1997 | I17: 52.86 | J17: Péronne AAEEP | K17: F | L17: 57 | M17: -60 | N17: 60 | O17: 60 | P17: 70 | Q17: 75 | R17: -80 | S17: 75 | T17: 135 | U17: 29.28 | V17: INTA + | W17: 0 | X17: =IF(I17="","",IF(A17="H",IF(OR(H17="SEN",H17<1995),VLOOKUP(I17,Feuil1!$A$11:$F$29,6),IF(AND(H17>1994,H17<1998),VLOOKUP(I17,Feuil1!$A$11:$F$29,5),IF(AND(H17>1997,H17<2000),VLOOKUP(I17,Feuil1!$A$11:$F$29,4),IF(AND(H17>1999,H17<2002),VLOOKUP(I17,Feuil1!$A$11:$F$29,3),VLOOKUP(I17,Feuil1!$A$11:$F$29,2))))),IF(OR(H17="SEN",H17<1995),VLOOKUP(I17,Feuil1!$G$11:$L$25,6),IF(AND(H17>1994,H17<1998),VLOOKUP(I17,Feuil1!$G$11:$L$25,5),IF(AND(H17>1997,H17<2000),VLOOKUP(I17,Feuil1!$G$11:$L$25,4),IF(AND(H17>1999,H17<2002),VLOOKUP(I17,Feuil1!$G$11:$L$25,3),VLOOKUP(I17,Feuil1!$G$11:$L$25,2))))))) -> FJ53 | Y17: 204.0721354 | AB17: =T17-HLOOKUP(X17,Feuil1!$C$1:$BL$10,2,FALSE) -> 80 | AC17: =T17-HLOOKUP(X17,Feuil1!$C$1:$BL$10,3,FALSE) -> 70 | AD17: =T17-HLOOKUP(X17,Feuil1!$C$1:$BL$10,4,FALSE) -> 60 | AE17: =T17-HLOOKUP(X17,Feuil1!$C$1:$BL$10,5,FALSE) -> 50 | AF17: =T17-HLOOKUP(X17,Feuil1!$C$1:$BL$10,6,FALSE) -> 40 | AG17: =T17-HLOOKUP(X17,Feuil1!$C$1:$BL$10,7,FALSE) -> 30 | AH17: =T17-HLOOKUP(X17,Feuil1!$C$1:$BL$10,8,FALSE) -> 15 | AI17: =T17-HLOOKUP(X17,Feuil1!$C$1:$BL$10,9,FALSE) -> 0 | AJ17: =T17-HLOOKUP(X17,Feuil1!$C$1:$BL$10,10,FALSE) -> -865 | AQ17: INTA +
A18: F | B18: CO | C18: CEN | D18: 3 | E18: 357364 | F18: DAUMAS | G18: Solène | H18: 1995 | I18: 52.7 | J18: AAJ Blois | K18: F | L18: 53 | M18: 56 | N18: -59 | O18: 56 | P18: 62 | Q18: 65 | R18: 68 | S18: 68 | T18: 124 | U18: 18.6 | V18: INTB + | W18: 4 | X18: =IF(I18="","",IF(A18="H",IF(OR(H18="SEN",H18<1995),VLOOKUP(I18,Feuil1!$A$11:$F$29,6),IF(AND(H18>1994,H18<1998),VLOOKUP(I18,Feuil1!$A$11:$F$29,5),IF(AND(H18>1997,H18<2000),VLOOKUP(I18,Feuil1!$A$11:$F$29,4),IF(AND(H18>1999,H18<2002),VLOOKUP(I18,Feuil1!$A$11:$F$29,3),VLOOKUP(I18,Feuil1!$A$11:$F$29,2))))),IF(OR(H18="SEN",H18<1995),VLOOKUP(I18,Feuil1!$G$11:$L$25,6),IF(AND(H18>1994,H18<1998),VLOOKUP(I18,Feuil1!$G$11:$L$25,5),IF(AND(H18>1997,H18<2000),VLOOKUP(I18,Feuil1!$G$11:$L$25,4),IF(AND(H18>1999,H18<2002),VLOOKUP(I18,Feuil1!$G$11:$L$25,3),VLOOKUP(I18,Feuil1!$G$11:$L$25,2))))))) -> FJ53 | Y18: 187.9012832 | AB18: =T18-HLOOKUP(X18,Feuil1!$C$1:$BL$10,2,FALSE) -> 69 | AC18: =T18-HLOOKUP(X18,Feuil1!$C$1:$BL$10,3,FALSE) -> 59 | AD18: =T18-HLOOKUP(X18,Feuil1!$C$1:$BL$10,4,FALSE) -> 49 | AE18: =T18-HLOOKUP(X18,Feuil1!$C$1:$BL$10,5,FALSE) -> 39 | AF18: =T18-HLOOKUP(X18,Feuil1!$C$1:$BL$10,6,FALSE) -> 29 | AG18: =T18-HLOOKUP(X18,Feuil1!$C$1:$BL$10,7,FALSE) -> 19 | AH18: =T18-HLOOKUP(X18,Feuil1!$C$1:$BL$10,8,FALSE) -> 4 | AI18: =T18-HLOOKUP(X18,Feuil1!$C$1:$BL$10,9,FALSE) -> -11 | AJ18: =T18-HLOOKUP(X18,Feuil1!$C$1:$BL$10,10,FALSE) -> -876 | AQ18: INTB +
A19: F | B19: N | C19: PIC | D19: 4 | E19: 187400 | F19: CARON | G19: Amélie | H19: 1996 | I19: 52.46 | J19: Saleux CHM | K19: F | L19: 47 | M19: 50 | N19: 53 | O19: 53 | P19: 55 | Q19: 60 | R19: 65 | S19: 65 | T19: 118 | U19: 13.08 | V19: NAT + | W19: 13 | X19: =IF(I19="","",IF(A19="H",IF(OR(H19="SEN",H19<1995),VLOOKUP(I19,Feuil1!$A$11:$F$29,6),IF(AND(H19>1994,H19<1998),VLOOKUP(I19,Feuil1!$A$11:$F$29,5),IF(AND(H19>1997,H19<2000),VLOOKUP(I19,Feuil1!$A$11:$F$29,4),IF(AND(H19>1999,H19<2002),VLOOKUP(I19,Feuil1!$A$11:$F$29,3),VLOOKUP(I19,Feuil1!$A$11:$F$29,2))))),IF(OR(H19="SEN",H19<1995),VLOOKUP(I19,Feuil1!$G$11:$L$25,6),IF(AND(H19>1994,H19<1998),VLOOKUP(I19,Feuil1!$G$11:$L$25,5),IF(AND(H19>1997,H19<2000),VLOOKUP(I19,Feuil1!$G$11:$L$25,4),IF(AND(H19>1999,H19<2002),VLOOKUP(I19,Feuil1!$G$11:$L$25,3),VLOOKUP(I19,Feuil1!$G$11:$L$25,2))))))) -> FJ53 | Y19: 179.4688809 | AB19: =T19-HLOOKUP(X19,Feuil1!$C$1:$BL$10,2,FALSE) -> 63 | AC19: =T19-HLOOKUP(X19,Feuil1!$C$1:$BL$10,3,FALSE) -> 53 | AD19: =T19-HLOOKUP(X19,Feuil1!$C$1:$BL$10,4,FALSE) -> 43 | AE19: =T19-HLOOKUP(X19,Feuil1!$C$1:$BL$10,5,FALSE) -> 33 | AF19: =T19-HLOOKUP(X19,Feuil1!$C$1:$BL$10,6,FALSE) -> 23 | AG19: =T19-HLOOKUP(X19,Feuil1!$C$1:$BL$10,7,FALSE) -> 13 | AH19: =T19-HLOOKUP(X19,Feuil1!$C$1:$BL$10,8,FALSE) -> -2 | AI19: =T19-HLOOKUP(X19,Feuil1!$C$1:$BL$10,9,FALSE) -> -17 | AJ19: =T19-HLOOKUP(X19,Feuil1!$C$1:$BL$10,10,FALSE) -> -882 | AQ19: NAT +
A20: F | B20: SEST | C20: PRO | D20: 5 | E20: 361701 | F20: DELEUIL | G20: Fanny | H20: 1995 | I20: 48.1 | J20: EEAR MONTEUX | L20: 45 | M20: 47 | N20: -50 | O20: 47 | P20: 55 | Q20: 58 | R20: 62 | S20: 62 | T20: 109 | U20: 12.8 | V20: NAT + | W20: 4 | X20: =IF(I20="","",IF(A20="H",IF(OR(H20="SEN",H20<1995),VLOOKUP(I20,Feuil1!$A$11:$F$29,6),IF(AND(H20>1994,H20<1998),VLOOKUP(I20,Feuil1!$A$11:$F$29,5),IF(AND(H20>1997,H20<2000),VLOOKUP(I20,Feuil1!$A$11:$F$29,4),IF(AND(H20>1999,H20<2002),VLOOKUP(I20,Feuil1!$A$11:$F$29,3),VLOOKUP(I20,Feuil1!$A$11:$F$29,2))))),IF(OR(H20="SEN",H20<1995),VLOOKUP(I20,Feuil1!$G$11:$L$25,6),IF(AND(H20>1994,H20<1998),VLOOKUP(I20,Feuil1!$G$11:$L$25,5),IF(AND(H20>1997,H20<2000),VLOOKUP(I20,Feuil1!$G$11:$L$25,4),IF(AND(H20>1999,H20<2002),VLOOKUP(I20,Feuil1!$G$11:$L$25,3),VLOOKUP(I20,Feuil1!$G$11:$L$25,2))))))) -> FJ53 | Y20: 178.3498484 | AB20: =T20-HLOOKUP(X20,Feuil1!$C$1:$BL$10,2,FALSE) -> 54 | AC20: =T20-HLOOKUP(X20,Feuil1!$C$1:$BL$10,3,FALSE) -> 44 | AD20: =T20-HLOOKUP(X20,Feuil1!$C$1:$BL$10,4,FALSE) -> 34 | AE20: =T20-HLOOKUP(X20,Feuil1!$C$1:$BL$10,5,FALSE) -> 24 | AF20: =T20-HLOOKUP(X20,Feuil1!$C$1:$BL$10,6,FALSE) -> 14 | AG20: =T20-HLOOKUP(X20,Feuil1!$C$1:$BL$10,7,FALSE) -> 4 | AH20: =T20-HLOOKUP(X20,Feuil1!$C$1:$BL$10,8,FALSE) -> -11 | AI20: =T20-HLOOKUP(X20,Feuil1!$C$1:$BL$10,9,FALSE) -> -26 | AJ20: =T20-HLOOKUP(X20,Feuil1!$C$1:$BL$10,10,FALSE) -> -891 | AQ20: NAT +
A21: F | B21: N | C21: PIC | D21: 6 | E21: 309751 | F21: SEIGNEUR | G21: Manon | H21: 1995 | I21: 52.4 | J21: Villers-Bretonneux KC | K21: F | L21: 45 | M21: -48 | N21: 48 | O21: 48 | P21: 57 | Q21: 61 | R21: -63 | S21: 61 | T21: 109 | U21: 4.2 | V21: NAT + | W21: 4 | X21: =IF(I21="","",IF(A21="H",IF(OR(H21="SEN",H21<1995),VLOOKUP(I21,Feuil1!$A$11:$F$29,6),IF(AND(H21>1994,H21<1998),VLOOKUP(I21,Feuil1!$A$11:$F$29,5),IF(AND(H21>1997,H21<2000),VLOOKUP(I21,Feuil1!$A$11:$F$29,4),IF(AND(H21>1999,H21<2002),VLOOKUP(I21,Feuil1!$A$11:$F$29,3),VLOOKUP(I21,Feuil1!$A$11:$F$29,2))))),IF(OR(H21="SEN",H21<1995),VLOOKUP(I21,Feuil1!$G$11:$L$25,6),IF(AND(H21>1994,H21<1998),VLOOKUP(I21,Feuil1!$G$11:$L$25,5),IF(AND(H21>1997,H21<2000),VLOOKUP(I21,Feuil1!$G$11:$L$25,4),IF(AND(H21>1999,H21<2002),VLOOKUP(I21,Feuil1!$G$11:$L$25,3),VLOOKUP(I21,Feuil1!$G$11:$L$25,2))))))) -> FJ53 | Y21: 165.9341083 | AB21: =T21-HLOOKUP(X21,Feuil1!$C$1:$BL$10,2,FALSE) -> 54 | AC21: =T21-HLOOKUP(X21,Feuil1!$C$1:$BL$10,3,FALSE) -> 44 | AD21: =T21-HLOOKUP(X21,Feuil1!$C$1:$BL$10,4,FALSE) -> 34 | AE21: =T21-HLOOKUP(X21,Feuil1!$C$1:$BL$10,5,FALSE) -> 24 | AF21: =T21-HLOOKUP(X21,Feuil1!$C$1:$BL$10,6,FALSE) -> 14 | AG21: =T21-HLOOKUP(X21,Feuil1!$C$1:$BL$10,7,FALSE) -> 4 | AH21: =T21-HLOOKUP(X21,Feuil1!$C$1:$BL$10,8,FALSE) -> -11 | AI21: =T21-HLOOKUP(X21,Feuil1!$C$1:$BL$10,9,FALSE) -> -26 | AJ21: =T21-HLOOKUP(X21,Feuil1!$C$1:$BL$10,10,FALSE) -> -891 | AQ21: NAT +
A22: F | B22: CO | C22: PDL | D22: 7 | E22: 97644 | F22: L'HERMIER | G22: Mélanie | H22: 1996 | I22: 49.3 | J22: CJF Laval-Voutré | K22: F | L22: 44 | M22: 47 | N22: 49 | O22: 49 | P22: 54 | Q22: 59 | R22: -61 | S22: 59 | T22: 108 | U22: 9.4 | V22: NAT + | W22: 3 | X22: =IF(I22="","",IF(A22="H",IF(OR(H22="SEN",H22<1995),VLOOKUP(I22,Feuil1!$A$11:$F$29,6),IF(AND(H22>1994,H22<1998),VLOOKUP(I22,Feuil1!$A$11:$F$29,5),IF(AND(H22>1997,H22<2000),VLOOKUP(I22,Feuil1!$A$11:$F$29,4),IF(AND(H22>1999,H22<2002),VLOOKUP(I22,Feuil1!$A$11:$F$29,3),VLOOKUP(I22,Feuil1!$A$11:$F$29,2))))),IF(OR(H22="SEN",H22<1995),VLOOKUP(I22,Feuil1!$G$11:$L$25,6),IF(AND(H22>1994,H22<1998),VLOOKUP(I22,Feuil1!$G$11:$L$25,5),IF(AND(H22>1997,H22<2000),VLOOKUP(I22,Feuil1!$G$11:$L$25,4),IF(AND(H22>1999,H22<2002),VLOOKUP(I22,Feuil1!$G$11:$L$25,3),VLOOKUP(I22,Feuil1!$G$11:$L$25,2))))))) -> FJ53 | Y22: 172.9805097 | AB22: =T22-HLOOKUP(X22,Feuil1!$C$1:$BL$10,2,FALSE) -> 53 | AC22: =T22-HLOOKUP(X22,Feuil1!$C$1:$BL$10,3,FALSE) -> 43 | AD22: =T22-HLOOKUP(X22,Feuil1!$C$1:$BL$10,4,FALSE) -> 33 | AE22: =T22-HLOOKUP(X22,Feuil1!$C$1:$BL$10,5,FALSE) -> 23 | AF22: =T22-HLOOKUP(X22,Feuil1!$C$1:$BL$10,6,FALSE) -> 13 | AG22: =T22-HLOOKUP(X22,Feuil1!$C$1:$BL$10,7,FALSE) -> 3 | AH22: =T22-HLOOKUP(X22,Feuil1!$C$1:$BL$10,8,FALSE) -> -12 | AI22: =T22-HLOOKUP(X22,Feuil1!$C$1:$BL$10,9,FALSE) -> -27 | AJ22: =T22-HLOOKUP(X22,Feuil1!$C$1:$BL$10,10,FALSE) -> -892 | AQ22: NAT +
A23: F | B23: SO | C23: MPY | D23: 8 | E23: 253454 | F23: JOURNET | G23: Mégane | H23: 1995 | I23: 50.6 | J23: FIGEAC HC | K23: F | L23: 40 | M23: 43 | N23: 45 | O23: 45 | P23: 50 | Q23: 55 | R23: 60 | S23: 60 | T23: 105 | U23: 3.8 | V23: NAT + | W23: 0 | X23: =IF(I23="","",IF(A23="H",IF(OR(H23="SEN",H23<1995),VLOOKUP(I23,Feuil1!$A$11:$F$29,6),IF(AND(H23>1994,H23<1998),VLOOKUP(I23,Feuil1!$A$11:$F$29,5),IF(AND(H23>1997,H23<2000),VLOOKUP(I23,Feuil1!$A$11:$F$29,4),IF(AND(H23>1999,H23<2002),VLOOKUP(I23,Feuil1!$A$11:$F$29,3),VLOOKUP(I23,Feuil1!$A$11:$F$29,2))))),IF(OR(H23="SEN",H23<1995),VLOOKUP(I23,Feuil1!$G$11:$L$25,6),IF(AND(H23>1994,H23<1998),VLOOKUP(I23,Feuil1!$G$11:$L$25,5),IF(AND(H23>1997,H23<2000),VLOOKUP(I23,Feuil1!$G$11:$L$25,4),IF(AND(H23>1999,H23<2002),VLOOKUP(I23,Feuil1!$G$11:$L$25,3),VLOOKUP(I23,Feuil1!$G$11:$L$25,2))))))) -> FJ53 | Y23: 164.5097601 | AB23: =T23-HLOOKUP(X23,Feuil1!$C$1:$BL$10,2,FALSE) -> 50 | AC23: =T23-HLOOKUP(X23,Feuil1!$C$1:$BL$10,3,FALSE) -> 40 | AD23: =T23-HLOOKUP(X23,Feuil1!$C$1:$BL$10,4,FALSE) -> 30 | AE23: =T23-HLOOKUP(X23,Feuil1!$C$1:$BL$10,5,FALSE) -> 20 | AF23: =T23-HLOOKUP(X23,Feuil1!$C$1:$BL$10,6,FALSE) -> 10 | AG23: =T23-HLOOKUP(X23,Feuil1!$C$1:$BL$10,7,FALSE) -> 0 | AH23: =T23-HLOOKUP(X23,Feuil1!$C$1:$BL$10,8,FALSE) -> -15 | AI23: =T23-HLOOKUP(X23,Feuil1!$C$1:$BL$10,9,FALSE) -> -30 | AJ23: =T23-HLOOKUP(X23,Feuil1!$C$1:$BL$10,10,FALSE) -> -895 | AQ23: NAT +
A24: F | B24: SEST | C24: CAZ | D24: 9 | E24: 323896 | F24: DUPEYROUX | G24: Elise | H24: 1997 | I24: 53 | J24: ASLDD TOULON | K24: F | L24: -46 | M24: 46 | N24: -48 | O24: 46 | P24: 53 | Q24: 56 | R24: 58 | S24: 58 | T24: 104 | U24: -2 | V24: FED + | W24: 9 | X24: =IF(I24="","",IF(A24="H",IF(OR(H24="SEN",H24<1995),VLOOKUP(I24,Feuil1!$A$11:$F$29,6),IF(AND(H24>1994,H24<1998),VLOOKUP(I24,Feuil1!$A$11:$F$29,5),IF(AND(H24>1997,H24<2000),VLOOKUP(I24,Feuil1!$A$11:$F$29,4),IF(AND(H24>1999,H24<2002),VLOOKUP(I24,Feuil1!$A$11:$F$29,3),VLOOKUP(I24,Feuil1!$A$11:$F$29,2))))),IF(OR(H24="SEN",H24<1995),VLOOKUP(I24,Feuil1!$G$11:$L$25,6),IF(AND(H24>1994,H24<1998),VLOOKUP(I24,Feuil1!$G$11:$L$25,5),IF(AND(H24>1997,H24<2000),VLOOKUP(I24,Feuil1!$G$11:$L$25,4),IF(AND(H24>1999,H24<2002),VLOOKUP(I24,Feuil1!$G$11:$L$25,3),VLOOKUP(I24,Feuil1!$G$11:$L$25,2))))))) -> FJ53 | Y24: 156.8781971 | AB24: =T24-HLOOKUP(X24,Feuil1!$C$1:$BL$10,2,FALSE) -> 49 | AC24: =T24-HLOOKUP(X24,Feuil1!$C$1:$BL$10,3,FALSE) -> 39 | AD24: =T24-HLOOKUP(X24,Feuil1!$C$1:$BL$10,4,FALSE) -> 29 | AE24: =T24-HLOOKUP(X24,Feuil1!$C$1:$BL$10,5,FALSE) -> 19 | AF24: =T24-HLOOKUP(X24,Feuil1!$C$1:$BL$10,6,FALSE) -> 9 | AG24: =T24-HLOOKUP(X24,Feuil1!$C$1:$BL$10,7,FALSE) -> -1 | AH24: =T24-HLOOKUP(X24,Feuil1!$C$1:$BL$10,8,FALSE) -> -16 | AI24: =T24-HLOOKUP(X24,Feuil1!$C$1:$BL$10,9,FALSE) -> -31 | AJ24: =T24-HLOOKUP(X24,Feuil1!$C$1:$BL$10,10,FALSE) -> -896 | AQ24: FED +
A25: F | B25: N | C25: IDF | D25: 10 | E25: 364789 | F25: RICHARD | G25: IRENE | H25: 1996 | I25: 51.2 | J25: BLANC-MESNIL | K25: F | L25: 32 | M25: 36 | N25: -39 | O25: 36 | P25: 44 | Q25: 47 | R25: 50 | S25: 50 | T25: 86 | U25: -16.4 | V25: IRG + | W25: 1 | X25: =IF(I25="","",IF(A25="H",IF(OR(H25="SEN",H25<1995),VLOOKUP(I25,Feuil1!$A$11:$F$29,6),IF(AND(H25>1994,H25<1998),VLOOKUP(I25,Feuil1!$A$11:$F$29,5),IF(AND(H25>1997,H25<2000),VLOOKUP(I25,Feuil1!$A$11:$F$29,4),IF(AND(H25>1999,H25<2002),VLOOKUP(I25,Feuil1!$A$11:$F$29,3),VLOOKUP(I25,Feuil1!$A$11:$F$29,2))))),IF(OR(H25="SEN",H25<1995),VLOOKUP(I25,Feuil1!$G$11:$L$25,6),IF(AND(H25>1994,H25<1998),VLOOKUP(I25,Feuil1!$G$11:$L$25,5),IF(AND(H25>1997,H25<2000),VLOOKUP(I25,Feuil1!$G$11:$L$25,4),IF(AND(H25>1999,H25<2002),VLOOKUP(I25,Feuil1!$G$11:$L$25,3),VLOOKUP(I25,Feuil1!$G$11:$L$25,2))))))) -> FJ53 | Y25: 133.426316 | AB25: =T25-HLOOKUP(X25,Feuil1!$C$1:$BL$10,2,FALSE) -> 31 | AC25: =T25-HLOOKUP(X25,Feuil1!$C$1:$BL$10,3,FALSE) -> 21 | AD25: =T25-HLOOKUP(X25,Feuil1!$C$1:$BL$10,4,FALSE) -> 11 | AE25: =T25-HLOOKUP(X25,Feuil1!$C$1:$BL$10,5,FALSE) -> 1 | AF25: =T25-HLOOKUP(X25,Feuil1!$C$1:$BL$10,6,FALSE) -> -9 | AG25: =T25-HLOOKUP(X25,Feuil1!$C$1:$BL$10,7,FALSE) -> -19 | AH25: =T25-HLOOKUP(X25,Feuil1!$C$1:$BL$10,8,FALSE) -> -34 | AI25: =T25-HLOOKUP(X25,Feuil1!$C$1:$BL$10,9,FALSE) -> -49 | AJ25: =T25-HLOOKUP(X25,Feuil1!$C$1:$BL$10,10,FALSE) -> -914 | AQ25: IRG +
A26: F | B26: N | C26: NPC | D26: 11 | E26: 381945 | F26: DEZERABLE | G26: Khaty | H26: 1997 | I26: 50.2 | J26: A.O.SALLAUMINES | K26: F | L26: 30 | M26: 33 | N26: 36 | O26: 36 | P26: 45 | Q26: 49 | R26: -51 | S26: 49 | T26: 85 | U26: -15.4 | V26: IRG + | W26: 0 | X26: =IF(I26="","",IF(A26="H",IF(OR(H26="SEN",H26<1995),VLOOKUP(I26,Feuil1!$A$11:$F$29,6),IF(AND(H26>1994,H26<1998),VLOOKUP(I26,Feuil1!$A$11:$F$29,5),IF(AND(H26>1997,H26<2000),VLOOKUP(I26,Feuil1!$A$11:$F$29,4),IF(AND(H26>1999,H26<2002),VLOOKUP(I26,Feuil1!$A$11:$F$29,3),VLOOKUP(I26,Feuil1!$A$11:$F$29,2))))),IF(OR(H26="SEN",H26<1995),VLOOKUP(I26,Feuil1!$G$11:$L$25,6),IF(AND(H26>1994,H26<1998),VLOOKUP(I26,Feuil1!$G$11:$L$25,5),IF(AND(H26>1997,H26<2000),VLOOKUP(I26,Feuil1!$G$11:$L$25,4),IF(AND(H26>1999,H26<2002),VLOOKUP(I26,Feuil1!$G$11:$L$25,3),VLOOKUP(I26,Feuil1!$G$11:$L$25,2))))))) -> FJ53 | Y26: 134.0650243 | AB26: =T26-HLOOKUP(X26,Feuil1!$C$1:$BL$10,2,FALSE) -> 30 | AC26: =T26-HLOOKUP(X26,Feuil1!$C$1:$BL$10,3,FALSE) -> 20 | AD26: =T26-HLOOKUP(X26,Feuil1!$C$1:$BL$10,4,FALSE) -> 10 | AE26: =T26-HLOOKUP(X26,Feuil1!$C$1:$BL$10,5,FALSE) -> 0 | AF26: =T26-HLOOKUP(X26,Feuil1!$C$1:$BL$10,6,FALSE) -> -10 | AG26: =T26-HLOOKUP(X26,Feuil1!$C$1:$BL$10,7,FALSE) -> -20 | AH26: =T26-HLOOKUP(X26,Feuil1!$C$1:$BL$10,8,FALSE) -> -35 | AI26: =T26-HLOOKUP(X26,Feuil1!$C$1:$BL$10,9,FALSE) -> -50 | AJ26: =T26-HLOOKUP(X26,Feuil1!$C$1:$BL$10,10,FALSE) -> -915 | AQ26: IRG +
A27: F | B27: N | C27: NPC | D27: 12 | E27: 211905 | F27: FREMAUX | G27: Julie | H27: 1995 | I27: 52.4 | J27: CHCD COMINES | K27: F | L27: 33 | M27: 36 | N27: -38 | O27: 36 | P27: 43 | Q27: 46 | R27: 49 | S27: 49 | T27: 85 | U27: -19.8 | V27: IRG + | W27: 0 | X27: =IF(I27="","",IF(A27="H",IF(OR(H27="SEN",H27<1995),VLOOKUP(I27,Feuil1!$A$11:$F$29,6),IF(AND(H27>1994,H27<1998),VLOOKUP(I27,Feuil1!$A$11:$F$29,5),IF(AND(H27>1997,H27<2000),VLOOKUP(I27,Feuil1!$A$11:$F$29,4),IF(AND(H27>1999,H27<2002),VLOOKUP(I27,Feuil1!$A$11:$F$29,3),VLOOKUP(I27,Feuil1!$A$11:$F$29,2))))),IF(OR(H27="SEN",H27<1995),VLOOKUP(I27,Feuil1!$G$11:$L$25,6),IF(AND(H27>1994,H27<1998),VLOOKUP(I27,Feuil1!$G$11:$L$25,5),IF(AND(H27>1997,H27<2000),VLOOKUP(I27,Feuil1!$G$11:$L$25,4),IF(AND(H27>1999,H27<2002),VLOOKUP(I27,Feuil1!$G$11:$L$25,3),VLOOKUP(I27,Feuil1!$G$11:$L$25,2))))))) -> FJ53 | Y27: 129.3981578 | AB27: =T27-HLOOKUP(X27,Feuil1!$C$1:$BL$10,2,FALSE) -> 30 | AC27: =T27-HLOOKUP(X27,Feuil1!$C$1:$BL$10,3,FALSE) -> 20 | AD27: =T27-HLOOKUP(X27,Feuil1!$C$1:$BL$10,4,FALSE) -> 10 | AE27: =T27-HLOOKUP(X27,Feuil1!$C$1:$BL$10,5,FALSE) -> 0 | AF27: =T27-HLOOKUP(X27,Feuil1!$C$1:$BL$10,6,FALSE) -> -10 | AG27: =T27-HLOOKUP(X27,Feuil1!$C$1:$BL$10,7,FALSE) -> -20 | AH27: =T27-HLOOKUP(X27,Feuil1!$C$1:$BL$10,8,FALSE) -> -35 | AI27: =T27-HLOOKUP(X27,Feuil1!$C$1:$BL$10,9,FALSE) -> -50 | AJ27: =T27-HLOOKUP(X27,Feuil1!$C$1:$BL$10,10,FALSE) -> -915 | AQ27: IRG +
A28: F | B28: SEST | C28: RAL | D28: 13 | E28: 385864 | F28: BERRUYER | G28: Amélie | H28: 1997 | I28: 52.6 | J28: SAINT MARCELLIN | K28: F | L28: 38 | M28: -40 | N28: 40 | O28: 40 | P28: 45 | Q28: -50 | R28: -50 | S28: 45 | T28: 85 | U28: -20.2 | V28: IRG + | W28: 0 | X28: =IF(I28="","",IF(A28="H",IF(OR(H28="SEN",H28<1995),VLOOKUP(I28,Feuil1!$A$11:$F$29,6),IF(AND(H28>1994,H28<1998),VLOOKUP(I28,Feuil1!$A$11:$F$29,5),IF(AND(H28>1997,H28<2000),VLOOKUP(I28,Feuil1!$A$11:$F$29,4),IF(AND(H28>1999,H28<2002),VLOOKUP(I28,Feuil1!$A$11:$F$29,3),VLOOKUP(I28,Feuil1!$A$11:$F$29,2))))),IF(OR(H28="SEN",H28<1995),VLOOKUP(I28,Feuil1!$G$11:$L$25,6),IF(AND(H28>1994,H28<1998),VLOOKUP(I28,Feuil1!$G$11:$L$25,5),IF(AND(H28>1997,H28<2000),VLOOKUP(I28,Feuil1!$G$11:$L$25,4),IF(AND(H28>1999,H28<2002),VLOOKUP(I28,Feuil1!$G$11:$L$25,3),VLOOKUP(I28,Feuil1!$G$11:$L$25,2))))))) -> FJ53 | Y28: 129.0005403 | AB28: =T28-HLOOKUP(X28,Feuil1!$C$1:$BL$10,2,FALSE) -> 30 | AC28: =T28-HLOOKUP(X28,Feuil1!$C$1:$BL$10,3,FALSE) -> 20 | AD28: =T28-HLOOKUP(X28,Feuil1!$C$1:$BL$10,4,FALSE) -> 10 | AE28: =T28-HLOOKUP(X28,Feuil1!$C$1:$BL$10,5,FALSE) -> 0 | AF28: =T28-HLOOKUP(X28,Feuil1!$C$1:$BL$10,6,FALSE) -> -10 | AG28: =T28-HLOOKUP(X28,Feuil1!$C$1:$BL$10,7,FALSE) -> -20 | AH28: =T28-HLOOKUP(X28,Feuil1!$C$1:$BL$10,8,FALSE) -> -35 | AI28: =T28-HLOOKUP(X28,Feuil1!$C$1:$BL$10,9,FALSE) -> -50 | AJ28: =T28-HLOOKUP(X28,Feuil1!$C$1:$BL$10,10,FALSE) -> -915 | AQ28: IRG +
A29: F | B29: NE | C29: ALS | D29: 14 | E29: 316601 | F29: TSCHAEN | G29: Amandine | H29: 1996 | I29: 48.8 | J29: US Wittenheim | K29: F | L29: -32 | M29: 32 | N29: 35 | O29: 35 | P29: 42 | Q29: 45 | R29: 48 | S29: 48 | T29: 83 | U29: -14.6 | V29: REG + | W29: 8 | X29: =IF(I29="","",IF(A29="H",IF(OR(H29="SEN",H29<1995),VLOOKUP(I29,Feuil1!$A$11:$F$29,6),IF(AND(H29>1994,H29<1998),VLOOKUP(I29,Feuil1!$A$11:$F$29,5),IF(AND(H29>1997,H29<2000),VLOOKUP(I29,Feuil1!$A$11:$F$29,4),IF(AND(H29>1999,H29<2002),VLOOKUP(I29,Feuil1!$A$11:$F$29,3),VLOOKUP(I29,Feuil1!$A$11:$F$29,2))))),IF(OR(H29="SEN",H29<1995),VLOOKUP(I29,Feuil1!$G$11:$L$25,6),IF(AND(H29>1994,H29<1998),VLOOKUP(I29,Feuil1!$G$11:$L$25,5),IF(AND(H29>1997,H29<2000),VLOOKUP(I29,Feuil1!$G$11:$L$25,4),IF(AND(H29>1999,H29<2002),VLOOKUP(I29,Feuil1!$G$11:$L$25,3),VLOOKUP(I29,Feuil1!$G$11:$L$25,2))))))) -> FJ53 | Y29: 134.1104232 | AB29: =T29-HLOOKUP(X29,Feuil1!$C$1:$BL$10,2,FALSE) -> 28 | AC29: =T29-HLOOKUP(X29,Feuil1!$C$1:$BL$10,3,FALSE) -> 18 | AD29: =T29-HLOOKUP(X29,Feuil1!$C$1:$BL$10,4,FALSE) -> 8 | AE29: =T29-HLOOKUP(X29,Feuil1!$C$1:$BL$10,5,FALSE) -> -2 | AF29: =T29-HLOOKUP(X29,Feuil1!$C$1:$BL$10,6,FALSE) -> -12 | AG29: =T29-HLOOKUP(X29,Feuil1!$C$1:$BL$10,7,FALSE) -> -22 | AH29: =T29-HLOOKUP(X29,Feuil1!$C$1:$BL$10,8,FALSE) -> -37 | AI29: =T29-HLOOKUP(X29,Feuil1!$C$1:$BL$10,9,FALSE) -> -52 | AJ29: =T29-HLOOKUP(X29,Feuil1!$C$1:$BL$10,10,FALSE) -> -917 | AQ29: REG +
A30: F | B30: N | C30: IDF | D30: 15 | E30: 371173 | F30: HERVET | G30: JUSTINE | H30: 1997 | I30: 51.4 | J30: MANTES | K30: F | L30: 30 | M30: 35 | N30: 37 | O30: 37 | P30: 40 | Q30: 45 | R30: -48 | S30: 45 | T30: 82 | U30: -20.8 | V30: REG + | W30: 7 | X30: =IF(I30="","",IF(A30="H",IF(OR(H30="SEN",H30<1995),VLOOKUP(I30,Feuil1!$A$11:$F$29,6),IF(AND(H30>1994,H30<1998),VLOOKUP(I30,Feuil1!$A$11:$F$29,5),IF(AND(H30>1997,H30<2000),VLOOKUP(I30,Feuil1!$A$11:$F$29,4),IF(AND(H30>1999,H30<2002),VLOOKUP(I30,Feuil1!$A$11:$F$29,3),VLOOKUP(I30,Feuil1!$A$11:$F$29,2))))),IF(OR(H30="SEN",H30<1995),VLOOKUP(I30,Feuil1!$G$11:$L$25,6),IF(AND(H30>1994,H30<1998),VLOOKUP(I30,Feuil1!$G$11:$L$25,5),IF(AND(H30>1997,H30<2000),VLOOKUP(I30,Feuil1!$G$11:$L$25,4),IF(AND(H30>1999,H30<2002),VLOOKUP(I30,Feuil1!$G$11:$L$25,3),VLOOKUP(I30,Feuil1!$G$11:$L$25,2))))))) -> FJ53 | Y30: 126.8114754 | AB30: =T30-HLOOKUP(X30,Feuil1!$C$1:$BL$10,2,FALSE) -> 27 | AC30: =T30-HLOOKUP(X30,Feuil1!$C$1:$BL$10,3,FALSE) -> 17 | AD30: =T30-HLOOKUP(X30,Feuil1!$C$1:$BL$10,4,FALSE) -> 7 | AE30: =T30-HLOOKUP(X30,Feuil1!$C$1:$BL$10,5,FALSE) -> -3 | AF30: =T30-HLOOKUP(X30,Feuil1!$C$1:$BL$10,6,FALSE) -> -13 | AG30: =T30-HLOOKUP(X30,Feuil1!$C$1:$BL$10,7,FALSE) -> -23 | AH30: =T30-HLOOKUP(X30,Feuil1!$C$1:$BL$10,8,FALSE) -> -38 | AI30: =T30-HLOOKUP(X30,Feuil1!$C$1:$BL$10,9,FALSE) -> -53 | AJ30: =T30-HLOOKUP(X30,Feuil1!$C$1:$BL$10,10,FALSE) -> -918 | AQ30: REG +
A31: F | B31: DOM | C31: GUA | D31: 16 | E31: 383633 | F31: BONNET | G31: Mélissa | H31: 1996 | I31: 52.1 | J31: AHCS/Pointois | K31: F | L31: 30 | M31: 34 | N31: -36 | O31: 34 | P31: 38 | Q31: 41 | R31: -44 | S31: 41 | T31: 75 | U31: -29.2 | V31: REG + | W31: 0 | X31: =IF(I31="","",IF(A31="H",IF(OR(H31="SEN",H31<1995),VLOOKUP(I31,Feuil1!$A$11:$F$29,6),IF(AND(H31>1994,H31<1998),VLOOKUP(I31,Feuil1!$A$11:$F$29,5),IF(AND(H31>1997,H31<2000),VLOOKUP(I31,Feuil1!$A$11:$F$29,4),IF(AND(H31>1999,H31<2002),VLOOKUP(I31,Feuil1!$A$11:$F$29,3),VLOOKUP(I31,Feuil1!$A$11:$F$29,2))))),IF(OR(H31="SEN",H31<1995),VLOOKUP(I31,Feuil1!$G$11:$L$25,6),IF(AND(H31>1994,H31<1998),VLOOKUP(I31,Feuil1!$G$11:$L$25,5),IF(AND(H31>1997,H31<2000),VLOOKUP(I31,Feuil1!$G$11:$L$25,4),IF(AND(H31>1999,H31<2002),VLOOKUP(I31,Feuil1!$G$11:$L$25,3),VLOOKUP(I31,Feuil1!$G$11:$L$25,2))))))) -> FJ53 | Y31: 114.7081179 | AB31: =T31-HLOOKUP(X31,Feuil1!$C$1:$BL$10,2,FALSE) -> 20 | AC31: =T31-HLOOKUP(X31,Feuil1!$C$1:$BL$10,3,FALSE) -> 10 | AD31: =T31-HLOOKUP(X31,Feuil1!$C$1:$BL$10,4,FALSE) -> 0 | AE31: =T31-HLOOKUP(X31,Feuil1!$C$1:$BL$10,5,FALSE) -> -10 | AF31: =T31-HLOOKUP(X31,Feuil1!$C$1:$BL$10,6,FALSE) -> -20 | AG31: =T31-HLOOKUP(X31,Feuil1!$C$1:$BL$10,7,FALSE) -> -30 | AH31: =T31-HLOOKUP(X31,Feuil1!$C$1:$BL$10,8,FALSE) -> -45 | AI31: =T31-HLOOKUP(X31,Feuil1!$C$1:$BL$10,9,FALSE) -> -60 | AJ31: =T31-HLOOKUP(X31,Feuil1!$C$1:$BL$10,10,FALSE) -> -925 | AQ31: REG +
A32: F | B32: N | C32: PIC | D32: 17 | E32: 386134 | F32: MERLIER | G32: Marie | H32: 1997 | I32: 52.9 | J32: Péronne AAEEP | K32: F | L32: 30 | M32: -32 | N32: -32 | O32: 30 | P32: 41 | Q32: -45 | R32: 45 | S32: 45 | T32: 75 | U32: -30.8 | V32: REG + | W32: 0 | X32: =IF(I32="","",IF(A32="H",IF(OR(H32="SEN",H32<1995),VLOOKUP(I32,Feuil1!$A$11:$F$29,6),IF(AND(H32>1994,H32<1998),VLOOKUP(I32,Feuil1!$A$11:$F$29,5),IF(AND(H32>1997,H32<2000),VLOOKUP(I32,Feuil1!$A$11:$F$29,4),IF(AND(H32>1999,H32<2002),VLOOKUP(I32,Feuil1!$A$11:$F$29,3),VLOOKUP(I32,Feuil1!$A$11:$F$29,2))))),IF(OR(H32="SEN",H32<1995),VLOOKUP(I32,Feuil1!$G$11:$L$25,6),IF(AND(H32>1994,H32<1998),VLOOKUP(I32,Feuil1!$G$11:$L$25,5),IF(AND(H32>1997,H32<2000),VLOOKUP(I32,Feuil1!$G$11:$L$25,4),IF(AND(H32>1999,H32<2002),VLOOKUP(I32,Feuil1!$G$11:$L$25,3),VLOOKUP(I32,Feuil1!$G$11:$L$25,2))))))) -> FJ53 | Y32: 113.3046306 | AB32: =T32-HLOOKUP(X32,Feuil1!$C$1:$BL$10,2,FALSE) -> 20 | AC32: =T32-HLOOKUP(X32,Feuil1!$C$1:$BL$10,3,FALSE) -> 10 | AD32: =T32-HLOOKUP(X32,Feuil1!$C$1:$BL$10,4,FALSE) -> 0 | AE32: =T32-HLOOKUP(X32,Feuil1!$C$1:$BL$10,5,FALSE) -> -10 | AF32: =T32-HLOOKUP(X32,Feuil1!$C$1:$BL$10,6,FALSE) -> -20 | AG32: =T32-HLOOKUP(X32,Feuil1!$C$1:$BL$10,7,FALSE) -> -30 | AH32: =T32-HLOOKUP(X32,Feuil1!$C$1:$BL$10,8,FALSE) -> -45 | AI32: =T32-HLOOKUP(X32,Feuil1!$C$1:$BL$10,9,FALSE) -> -60 | AJ32: =T32-HLOOKUP(X32,Feuil1!$C$1:$BL$10,10,FALSE) -> -925 | AQ32: REG +
A33: F | B33: SEST | C33: CAZ | D33: 18 | E33: 341745 | F33: DOLET | G33: Oceane | H33: 1997 | I33: 49.4 | J33: ASLDD TOULON | K33: F | L33: 27 | M33: 30 | N33: -32 | O33: 30 | P33: 33 | Q33: 36 | R33: -38 | S33: 36 | T33: 66 | U33: -32.8 | V33: DEP + | W33: 1 | X33: =IF(I33="","",IF(A33="H",IF(OR(H33="SEN",H33<1995),VLOOKUP(I33,Feuil1!$A$11:$F$29,6),IF(AND(H33>1994,H33<1998),VLOOKUP(I33,Feuil1!$A$11:$F$29,5),IF(AND(H33>1997,H33<2000),VLOOKUP(I33,Feuil1!$A$11:$F$29,4),IF(AND(H33>1999,H33<2002),VLOOKUP(I33,Feuil1!$A$11:$F$29,3),VLOOKUP(I33,Feuil1!$A$11:$F$29,2))))),IF(OR(H33="SEN",H33<1995),VLOOKUP(I33,Feuil1!$G$11:$L$25,6),IF(AND(H33>1994,H33<1998),VLOOKUP(I33,Feuil1!$G$11:$L$25,5),IF(AND(H33>1997,H33<2000),VLOOKUP(I33,Feuil1!$G$11:$L$25,4),IF(AND(H33>1999,H33<2002),VLOOKUP(I33,Feuil1!$G$11:$L$25,3),VLOOKUP(I33,Feuil1!$G$11:$L$25,2))))))) -> FJ53 | Y33: 105.5270939 | AB33: =T33-HLOOKUP(X33,Feuil1!$C$1:$BL$10,2,FALSE) -> 11 | AC33: =T33-HLOOKUP(X33,Feuil1!$C$1:$BL$10,3,FALSE) -> 1 | AD33: =T33-HLOOKUP(X33,Feuil1!$C$1:$BL$10,4,FALSE) -> -9 | AE33: =T33-HLOOKUP(X33,Feuil1!$C$1:$BL$10,5,FALSE) -> -19 | AF33: =T33-HLOOKUP(X33,Feuil1!$C$1:$BL$10,6,FALSE) -> -29 | AG33: =T33-HLOOKUP(X33,Feuil1!$C$1:$BL$10,7,FALSE) -> -39 | AH33: =T33-HLOOKUP(X33,Feuil1!$C$1:$BL$10,8,FALSE) -> -54 | AI33: =T33-HLOOKUP(X33,Feuil1!$C$1:$BL$10,9,FALSE) -> -69 | AJ33: =T33-HLOOKUP(X33,Feuil1!$C$1:$BL$10,10,FALSE) -> -934 | AQ33: DEP +
A34: F | B34: N | C34: IDF | D34: 19 | E34: 380780 | F34: MACE | G34: GWENAELLE | H34: 1996 | I34: 50.1 | J34: US METRO | K34: F | L34: 15 | M34: 18 | N34: 20 | O34: 20 | P34: 20 | Q34: 23 | R34: 25 | S34: 25 | T34: 45 | U34: -55.2 | V34: DEB | W34: -10 | X34: =IF(I34="","",IF(A34="H",IF(OR(H34="SEN",H34<1995),VLOOKUP(I34,Feuil1!$A$11:$F$29,6),IF(AND(H34>1994,H34<1998),VLOOKUP(I34,Feuil1!$A$11:$F$29,5),IF(AND(H34>1997,H34<2000),VLOOKUP(I34,Feuil1!$A$11:$F$29,4),IF(AND(H34>1999,H34<2002),VLOOKUP(I34,Feuil1!$A$11:$F$29,3),VLOOKUP(I34,Feuil1!$A$11:$F$29,2))))),IF(OR(H34="SEN",H34<1995),VLOOKUP(I34,Feuil1!$G$11:$L$25,6),IF(AND(H34>1994,H34<1998),VLOOKUP(I34,Feuil1!$G$11:$L$25,5),IF(AND(H34>1997,H34<2000),VLOOKUP(I34,Feuil1!$G$11:$L$25,4),IF(AND(H34>1999,H34<2002),VLOOKUP(I34,Feuil1!$G$11:$L$25,3),VLOOKUP(I34,Feuil1!$G$11:$L$25,2))))))) -> FJ53 | Y34: 71.0950858 | AB34: =T34-HLOOKUP(X34,Feuil1!$C$1:$BL$10,2,FALSE) -> -10 | AC34: =T34-HLOOKUP(X34,Feuil1!$C$1:$BL$10,3,FALSE) -> -20 | AD34: =T34-HLOOKUP(X34,Feuil1!$C$1:$BL$10,4,FALSE) -> -30 | AE34: =T34-HLOOKUP(X34,Feuil1!$C$1:$BL$10,5,FALSE) -> -40 | AF34: =T34-HLOOKUP(X34,Feuil1!$C$1:$BL$10,6,FALSE) -> -50 | AG34: =T34-HLOOKUP(X34,Feuil1!$C$1:$BL$10,7,FALSE) -> -60 | AH34: =T34-HLOOKUP(X34,Feuil1!$C$1:$BL$10,8,FALSE) -> -75 | AI34: =T34-HLOOKUP(X34,Feuil1!$C$1:$BL$10,9,FALSE) -> -90 | AJ34: =T34-HLOOKUP(X34,Feuil1!$C$1:$BL$10,10,FALSE) -> -955 | AQ34: DEB
AB35: =T35-HLOOKUP(X35,Feuil1!$C$1:$BL$10,2,FALSE) ->  | AC35: =T35-HLOOKUP(X35,Feuil1!$C$1:$BL$10,3,FALSE) ->  | AD35: =T35-HLOOKUP(X35,Feuil1!$C$1:$BL$10,4,FALSE) ->  | AE35: =T35-HLOOKUP(X35,Feuil1!$C$1:$BL$10,5,FALSE) ->  | AF35: =T35-HLOOKUP(X35,Feuil1!$C$1:$BL$10,6,FALSE) ->  | AG35: =T35-HLOOKUP(X35,Feuil1!$C$1:$BL$10,7,FALSE) ->  | AH35: =T35-HLOOKUP(X35,Feuil1!$C$1:$BL$10,8,FALSE) ->  | AI35: =T35-HLOOKUP(X35,Feuil1!$C$1:$BL$10,9,FALSE) ->  | AJ35: =T35-HLOOKUP(X35,Feuil1!$C$1:$BL$10,10,FALSE) ->  | AQ35: =IF(AJ35>=0,$AJ$4,IF(AI35>=0,$AI$4,IF(AH35>=0,$AH$4,IF(AG35>=0,$AG$4,IF(AF35>=0,$AF$4,IF(AE35>=0,$AE$4,IF(AD35>=0,$AD$4,IF(AC35>=0,$AC$4,$AB$4)))))))) -> 
A36: F | B36: N | C36: IDF | D36: 1 | E36: 153936 | F36: TCHAKOUNTE | G36: DORA | H36: 1995 | I36: 56.48 | J36: BLANC-MESNIL | K36: F | L36: 80 | M36: 84 | N36: 87 | O36: =IF(H36="","",IF(MAXA(L36:N36)<=0,0,MAXA(L36:N36))) -> 87 | P36: 96 | Q36: 100 | R36: -104 | S36: =IF(H36="","",IF(MAXA(P36:R36)<=0,0,MAXA(P36:R36))) -> 100 | T36: =IF(H36="","",IF(OR(O36=0,S36=0),0,O36+S36)) -> 187 | U36: =T36-I36*2 -> 74.04 | V36: =IF(H36="","",AQ36) -> INTA + | W36: =IF(AJ36>=0,AJ36,IF(AI36>=0,AI36,IF(AH36>=0,AH36,IF(AG36>=0,AG36,IF(AF36>=0,AF36,IF(AE36>=0,AE36,IF(AD36>=0,AD36,IF(AC36>=0,AC36,AB36)))))))) -> 37 | X36: =IF(I36="","",IF(A36="H",IF(OR(H36="SEN",H36<1995),VLOOKUP(I36,Feuil1!$A$11:$F$29,6),IF(AND(H36>1994,H36<1998),VLOOKUP(I36,Feuil1!$A$11:$F$29,5),IF(AND(H36>1997,H36<2000),VLOOKUP(I36,Feuil1!$A$11:$F$29,4),IF(AND(H36>1999,H36<2002),VLOOKUP(I36,Feuil1!$A$11:$F$29,3),VLOOKUP(I36,Feuil1!$A$11:$F$29,2))))),IF(OR(H36="SEN",H36<1995),VLOOKUP(I36,Feuil1!$G$11:$L$25,6),IF(AND(H36>1994,H36<1998),VLOOKUP(I36,Feuil1!$G$11:$L$25,5),IF(AND(H36>1997,H36<2000),VLOOKUP(I36,Feuil1!$G$11:$L$25,4),IF(AND(H36>1999,H36<2002),VLOOKUP(I36,Feuil1!$G$11:$L$25,3),VLOOKUP(I36,Feuil1!$G$11:$L$25,2))))))) -> FJ58 | Y36: =IF(I36="","",IF(A36="H",10^(0.794358141*LOG(I36/174.393)^2)*T36,IF(A36="F",10^(0.89726074*LOG(I36/148.026)^2)*T36,""))) -> 268.5018633 | AB36: =T36-HLOOKUP(X36,Feuil1!$C$1:$BL$10,2,FALSE) -> 127 | AC36: =T36-HLOOKUP(X36,Feuil1!$C$1:$BL$10,3,FALSE) -> 117 | AD36: =T36-HLOOKUP(X36,Feuil1!$C$1:$BL$10,4,FALSE) -> 107 | AE36: =T36-HLOOKUP(X36,Feuil1!$C$1:$BL$10,5,FALSE) -> 97 | AF36: =T36-HLOOKUP(X36,Feuil1!$C$1:$BL$10,6,FALSE) -> 87 | AG36: =T36-HLOOKUP(X36,Feuil1!$C$1:$BL$10,7,FALSE) -> 72 | AH36: =T36-HLOOKUP(X36,Feuil1!$C$1:$BL$10,8,FALSE) -> 57 | AI36: =T36-HLOOKUP(X36,Feuil1!$C$1:$BL$10,9,FALSE) -> 37 | AJ36: =T36-HLOOKUP(X36,Feuil1!$C$1:$BL$10,10,FALSE) -> -813 | AQ36: =IF(AJ36>=0,$AJ$4,IF(AI36>=0,$AI$4,IF(AH36>=0,$AH$4,IF(AG36>=0,$AG$4,IF(AF36>=0,$AF$4,IF(AE36>=0,$AE$4,IF(AD36>=0,$AD$4,IF(AC36>=0,$AC$4,$AB$4)))))))) -> INTA +
A37: F | B37: N | C37: PIC | D37: 2 | E37: 280885 | F37: CABON | G37: Ophélie | H37: 1997 | I37: 55.22 | J37: Péronne AAEEP | K37: F | L37: 57 | M37: 60 | N37: 63 | O37: 63 | P37: 70 | Q37: 75 | R37: -80 | S37: 75 | T37: 138 | U37: 27.56 | V37: INTB + | W37: 8 | X37: =IF(I37="","",IF(A37="H",IF(OR(H37="SEN",H37<1995),VLOOKUP(I37,Feuil1!$A$11:$F$29,6),IF(AND(H37>1994,H37<1998),VLOOKUP(I37,Feuil1!$A$11:$F$29,5),IF(AND(H37>1997,H37<2000),VLOOKUP(I37,Feuil1!$A$11:$F$29,4),IF(AND(H37>1999,H37<2002),VLOOKUP(I37,Feuil1!$A$11:$F$29,3),VLOOKUP(I37,Feuil1!$A$11:$F$29,2))))),IF(OR(H37="SEN",H37<1995),VLOOKUP(I37,Feuil1!$G$11:$L$25,6),IF(AND(H37>1994,H37<1998),VLOOKUP(I37,Feuil1!$G$11:$L$25,5),IF(AND(H37>1997,H37<2000),VLOOKUP(I37,Feuil1!$G$11:$L$25,4),IF(AND(H37>1999,H37<2002),VLOOKUP(I37,Feuil1!$G$11:$L$25,3),VLOOKUP(I37,Feuil1!$G$11:$L$25,2))))))) -> FJ58 | Y37: 201.5712149 | AB37: =T37-HLOOKUP(X37,Feuil1!$C$1:$BL$10,2,FALSE) -> 78 | AC37: =T37-HLOOKUP(X37,Feuil1!$C$1:$BL$10,3,FALSE) -> 68 | AD37: =T37-HLOOKUP(X37,Feuil1!$C$1:$BL$10,4,FALSE) -> 58 | AE37: =T37-HLOOKUP(X37,Feuil1!$C$1:$BL$10,5,FALSE) -> 48 | AF37: =T37-HLOOKUP(X37,Feuil1!$C$1:$BL$10,6,FALSE) -> 38 | AG37: =T37-HLOOKUP(X37,Feuil1!$C$1:$BL$10,7,FALSE) -> 23 | AH37: =T37-HLOOKUP(X37,Feuil1!$C$1:$BL$10,8,FALSE) -> 8 | AI37: =T37-HLOOKUP(X37,Feuil1!$C$1:$BL$10,9,FALSE) -> -12 | AJ37: =T37-HLOOKUP(X37,Feuil1!$C$1:$BL$10,10,FALSE) -> -862 | AQ37: INTB +
A38: F | B38: CO | C38: CEN | D38: 3 | E38: 357364 | F38: DAUMAS | G38: Solène | H38: 1995 | I38: 55.9 | J38: AAJ Blois | K38: F | L38: 55 | M38: 57 | N38: 59 | O38: 59 | P38: -68 | Q38: 68 | R38: 71 | S38: 71 | T38: 130 | U38: 18.2 | V38: INTB + | W38: 0 | X38: =IF(I38="","",IF(A38="H",IF(OR(H38="SEN",H38<1995),VLOOKUP(I38,Feuil1!$A$11:$F$29,6),IF(AND(H38>1994,H38<1998),VLOOKUP(I38,Feuil1!$A$11:$F$29,5),IF(AND(H38>1997,H38<2000),VLOOKUP(I38,Feuil1!$A$11:$F$29,4),IF(AND(H38>1999,H38<2002),VLOOKUP(I38,Feuil1!$A$11:$F$29,3),VLOOKUP(I38,Feuil1!$A$11:$F$29,2))))),IF(OR(H38="SEN",H38<1995),VLOOKUP(I38,Feuil1!$G$11:$L$25,6),IF(AND(H38>1994,H38<1998),VLOOKUP(I38,Feuil1!$G$11:$L$25,5),IF(AND(H38>1997,H38<2000),VLOOKUP(I38,Feuil1!$G$11:$L$25,4),IF(AND(H38>1999,H38<2002),VLOOKUP(I38,Feuil1!$G$11:$L$25,3),VLOOKUP(I38,Feuil1!$G$11:$L$25,2))))))) -> FJ58 | Y38: 188.1192769 | AB38: =T38-HLOOKUP(X38,Feuil1!$C$1:$BL$10,2,FALSE) -> 70 | AC38: =T38-HLOOKUP(X38,Feuil1!$C$1:$BL$10,3,FALSE) -> 60 | AD38: =T38-HLOOKUP(X38,Feuil1!$C$1:$BL$10,4,FALSE) -> 50 | AE38: =T38-HLOOKUP(X38,Feuil1!$C$1:$BL$10,5,FALSE) -> 40 | AF38: =T38-HLOOKUP(X38,Feuil1!$C$1:$BL$10,6,FALSE) -> 30 | AG38: =T38-HLOOKUP(X38,Feuil1!$C$1:$BL$10,7,FALSE) -> 15 | AH38: =T38-HLOOKUP(X38,Feuil1!$C$1:$BL$10,8,FALSE) -> 0 | AI38: =T38-HLOOKUP(X38,Feuil1!$C$1:$BL$10,9,FALSE) -> -20 | AJ38: =T38-HLOOKUP(X38,Feuil1!$C$1:$BL$10,10,FALSE) -> -870 | AQ38: INTB +
A39: F | B39: N | C39: PIC | D39: 4 | E39: 187400 | F39: CARON | G39: Amélie | H39: 1996 | I39: 53.79 | J39: Saleux CHM | K39: F | L39: 50 | M39: 53 | N39: 55 | O39: 55 | P39: 60 | Q39: 65 | R39: 67 | S39: 67 | T39: 122 | U39: 14.42 | V39: NAT + | W39: 7 | X39: =IF(I39="","",IF(A39="H",IF(OR(H39="SEN",H39<1995),VLOOKUP(I39,Feuil1!$A$11:$F$29,6),IF(AND(H39>1994,H39<1998),VLOOKUP(I39,Feuil1!$A$11:$F$29,5),IF(AND(H39>1997,H39<2000),VLOOKUP(I39,Feuil1!$A$11:$F$29,4),IF(AND(H39>1999,H39<2002),VLOOKUP(I39,Feuil1!$A$11:$F$29,3),VLOOKUP(I39,Feuil1!$A$11:$F$29,2))))),IF(OR(H39="SEN",H39<1995),VLOOKUP(I39,Feuil1!$G$11:$L$25,6),IF(AND(H39>1994,H39<1998),VLOOKUP(I39,Feuil1!$G$11:$L$25,5),IF(AND(H39>1997,H39<2000),VLOOKUP(I39,Feuil1!$G$11:$L$25,4),IF(AND(H39>1999,H39<2002),VLOOKUP(I39,Feuil1!$G$11:$L$25,3),VLOOKUP(I39,Feuil1!$G$11:$L$25,2))))))) -> FJ58 | Y39: 181.8790096 | AB39: =T39-HLOOKUP(X39,Feuil1!$C$1:$BL$10,2,FALSE) -> 62 | AC39: =T39-HLOOKUP(X39,Feuil1!$C$1:$BL$10,3,FALSE) -> 52 | AD39: =T39-HLOOKUP(X39,Feuil1!$C$1:$BL$10,4,FALSE) -> 42 | AE39: =T39-HLOOKUP(X39,Feuil1!$C$1:$BL$10,5,FALSE) -> 32 | AF39: =T39-HLOOKUP(X39,Feuil1!$C$1:$BL$10,6,FALSE) -> 22 | AG39: =T39-HLOOKUP(X39,Feuil1!$C$1:$BL$10,7,FALSE) -> 7 | AH39: =T39-HLOOKUP(X39,Feuil1!$C$1:$BL$10,8,FALSE) -> -8 | AI39: =T39-HLOOKUP(X39,Feuil1!$C$1:$BL$10,9,FALSE) -> -28 | AJ39: =T39-HLOOKUP(X39,Feuil1!$C$1:$BL$10,10,FALSE) -> -878 | AQ39: NAT +
A40: F | B40: SEST | C40: RAL | D40: 5 | E40: 171425 | F40: HOSTALIER | G40: Melinda | H40: 1997 | I40: 54.96 | J40: SAINT BALDOPH | K40: F | L40: 50 | M40: 53 | N40: -54 | O40: 53 | P40: 64 | Q40: -68 | R40: 68 | S40: 68 | T40: 121 | U40: 11.08 | V40: NAT + | W40: 6 | X40: =IF(I40="","",IF(A40="H",IF(OR(H40="SEN",H40<1995),VLOOKUP(I40,Feuil1!$A$11:$F$29,6),IF(AND(H40>1994,H40<1998),VLOOKUP(I40,Feuil1!$A$11:$F$29,5),IF(AND(H40>1997,H40<2000),VLOOKUP(I40,Feuil1!$A$11:$F$29,4),IF(AND(H40>1999,H40<2002),VLOOKUP(I40,Feuil1!$A$11:$F$29,3),VLOOKUP(I40,Feuil1!$A$11:$F$29,2))))),IF(OR(H40="SEN",H40<1995),VLOOKUP(I40,Feuil1!$G$11:$L$25,6),IF(AND(H40>1994,H40<1998),VLOOKUP(I40,Feuil1!$G$11:$L$25,5),IF(AND(H40>1997,H40<2000),VLOOKUP(I40,Feuil1!$G$11:$L$25,4),IF(AND(H40>1999,H40<2002),VLOOKUP(I40,Feuil1!$G$11:$L$25,3),VLOOKUP(I40,Feuil1!$G$11:$L$25,2))))))) -> FJ58 | Y40: 177.3837049 | AB40: =T40-HLOOKUP(X40,Feuil1!$C$1:$BL$10,2,FALSE) -> 61 | AC40: =T40-HLOOKUP(X40,Feuil1!$C$1:$BL$10,3,FALSE) -> 51 | AD40: =T40-HLOOKUP(X40,Feuil1!$C$1:$BL$10,4,FALSE) -> 41 | AE40: =T40-HLOOKUP(X40,Feuil1!$C$1:$BL$10,5,FALSE) -> 31 | AF40: =T40-HLOOKUP(X40,Feuil1!$C$1:$BL$10,6,FALSE) -> 21 | AG40: =T40-HLOOKUP(X40,Feuil1!$C$1:$BL$10,7,FALSE) -> 6 | AH40: =T40-HLOOKUP(X40,Feuil1!$C$1:$BL$10,8,FALSE) -> -9 | AI40: =T40-HLOOKUP(X40,Feuil1!$C$1:$BL$10,9,FALSE) -> -29 | AJ40: =T40-HLOOKUP(X40,Feuil1!$C$1:$BL$10,10,FALSE) -> -879 | AQ40: NAT +
A41: F | B41: N | C41: PIC | D41: 6 | E41: 140592 | F41: ARANJO | G41: Caroline | H41: 1995 | I41: 56.8 | J41: Villers-Bretonneux KC | K41: F | L41: 51 | M41: 54 | N41: -56 | O41: 54 | P41: 62 | Q41: 65 | R41: 67 | S41: 67 | T41: 121 | U41: 7.4 | V41: NAT + | W41: 6 | X41: =IF(I41="","",IF(A41="H",IF(OR(H41="SEN",H41<1995),VLOOKUP(I41,Feuil1!$A$11:$F$29,6),IF(AND(H41>1994,H41<1998),VLOOKUP(I41,Feuil1!$A$11:$F$29,5),IF(AND(H41>1997,H41<2000),VLOOKUP(I41,Feuil1!$A$11:$F$29,4),IF(AND(H41>1999,H41<2002),VLOOKUP(I41,Feuil1!$A$11:$F$29,3),VLOOKUP(I41,Feuil1!$A$11:$F$29,2))))),IF(OR(H41="SEN",H41<1995),VLOOKUP(I41,Feuil1!$G$11:$L$25,6),IF(AND(H41>1994,H41<1998),VLOOKUP(I41,Feuil1!$G$11:$L$25,5),IF(AND(H41>1997,H41<2000),VLOOKUP(I41,Feuil1!$G$11:$L$25,4),IF(AND(H41>1999,H41<2002),VLOOKUP(I41,Feuil1!$G$11:$L$25,3),VLOOKUP(I41,Feuil1!$G$11:$L$25,2))))))) -> FJ58 | Y41: 173.0031505 | AB41: =T41-HLOOKUP(X41,Feuil1!$C$1:$BL$10,2,FALSE) -> 61 | AC41: =T41-HLOOKUP(X41,Feuil1!$C$1:$BL$10,3,FALSE) -> 51 | AD41: =T41-HLOOKUP(X41,Feuil1!$C$1:$BL$10,4,FALSE) -> 41 | AE41: =T41-HLOOKUP(X41,Feuil1!$C$1:$BL$10,5,FALSE) -> 31 | AF41: =T41-HLOOKUP(X41,Feuil1!$C$1:$BL$10,6,FALSE) -> 21 | AG41: =T41-HLOOKUP(X41,Feuil1!$C$1:$BL$10,7,FALSE) -> 6 | AH41: =T41-HLOOKUP(X41,Feuil1!$C$1:$BL$10,8,FALSE) -> -9 | AI41: =T41-HLOOKUP(X41,Feuil1!$C$1:$BL$10,9,FALSE) -> -29 | AJ41: =T41-HLOOKUP(X41,Feuil1!$C$1:$BL$10,10,FALSE) -> -879 | AQ41: NAT +
